Workbook

Sheet Cover
B2: Error checking | C2: Status | E2: Cell legend
B3: Input sheets | E3: Input
B4: Dx_Inputs | C4: =Dx_Inputs!C1 -> OK | E4: Calculation
B5: Tx_Inputs | C5: =Tx_Inputs!C1 -> OK | E5: Calculation - Different calc
B6: WACC_Inputs | C6: n/a | E6: Negative value | F6: Red text
B7: Adjustment_Inputs | C7: n/a | E7: Historical input or N/A
B8: Calculations
B9: Dx_Asset | C9: =Dx_Asset!C1 -> OK
B10: Dx_Tax_Asset | C10: =Dx_Tax_Asset!C1 -> OK
B11: Tx_Asset | C11: =Tx_Asset!C1 -> OK
B12: Tx_Tax_Asset | C12: =Tx_Tax_Asset!C1 -> OK | E12: MODEL DISCLAIMER
B13: Tax_Analysis | C13: =Tax_Analysis!C1 -> OK | E13: This model is to show the calculation of Western Power's revenue cap as submitted to the ERA in October 2017 for its Access Arrangement Four (AA4) submission.
B14: Dx_CoS | C14: =Dx_CoS!C1 -> OK
B15: Dx_CoS smoothing | C15: =Dx_CoS!C89 -> OK | E15: This model is not to be used for any other purpose as correct use of the model relies on an understanding of the of the relationships amongst the data in the model
B16: Tx_CoS | C16: =Tx_CoS!C1 -> OK | E16: which may change if one or more elements of the model are changed.
B17: Tx_CoS smoothing | C17: =Tx_CoS!C85 -> OK
B18: Dx_Adjustments | C18: =Dx_Adjustments!C1 -> OK
B19: Tx_Adjustments | C19: =Tx_Adjustments!C1 -> OK
B20: GSM | C20: n/a
B21: Speculative_Investment | C21: n/a
B22: Flags
B23: Deferred revenue transfer | C23: =IF(Tx_CoS!S96="","OFF","ON") -> ON
B25: Index of tabs contained in this model
B26: Tab | C26: Description
B27: Cover | C27: Cover page with error checking and solve model macro
B28: Output_Summary | C28: Output summary of key measures and graphs
B29: Public output summary | C29: High level output summary sized for A4 page printing
B30: Chpt 7 and 8 | C30: Outputs for populating tables in chapter 7 and 8 of Western Power's AAI
B31: Chpt 10 | C31: Outputs for populating tables in chapter 10 of Western Power's AAI
B32: Chpt 11 | C32: Outputs for populating tables in chapter 11 of Western Power's AAI
B33: INPUTS
B34: Dx_Inputs | C34: Distribution network inputs - primarily expenditure related
B35: Tx_Inputs | C35: Transmission network inputs - primarily expenditure related
B36: WACC_Inputs | C36: Weighted Average Cost of Capital inputs as well as values over AA1, 2 and 3
B37: Adjustment_Inputs | C37: Inputs required to calculate service standard and expenditure adjustment mechanisms
B38: Incentive_Rate_Inputs | C38: Metrics related to the calculation of service standard incentive rates
B39: Incentive_rates | C39: Incentive rates related to network performance
B40: CALCULATIONS
B41: Dx_Asset | C41: Roll forward calculation of distribution Regulated Asset Base (RAB)
B42: Dx_Tax_Asset | C42: Roll forward calculation of distribution Tax Asset Base (TAB)
B43: Tx_Asset | C43: Roll forward calculation of transnmission RAB
B44: Tx_Tax_Asset | C44: Roll forward calculation of transmission TAB
B45: Dx_CoS | C45: Calculation of Distribution cost of service (building blocks)
B46: Tx_CoS | C46: Calculation of Transmission cost of service (building blocks)
B47: Tax_Analysis | C47: Tax and equity raising cost calculations
B48: Dx_Adjustments | C48: Distribution expenditure adjustment calculations
B49: Tx_Adjustments | C49: Transmission expenditure adjustment calculations
B50: GSM | C50: Gain Sharing Mechanism calculations

Sheet Output_Summary
B2: WACC return | D2: 2018 | E2: 2019 | F2: 2020 | G2: 2021 | H2: 2022 | I2: 2023 | J2: 2024 | K2: 2025 | L2: 2026 | M2: 2027
B3: Nominal post tax | D3: =WACC_Inputs!H$30 -> 0.060892 | E3: =WACC_Inputs!I$30 -> 0.060892 | F3: =WACC_Inputs!J$30 -> 0.060892 | G3: =WACC_Inputs!K$30 -> 0.060892 | H3: =WACC_Inputs!L$30 -> 0.060892 | I3: =WACC_Inputs!$N$30 -> 0.060892 | J3: =WACC_Inputs!$N$30 -> 0.060892 | K3: =WACC_Inputs!$N$30 -> 0.060892 | L3: =WACC_Inputs!$N$30 -> 0.060892 | M3: =WACC_Inputs!$N$30 -> 0.060892
B4: Real post tax | D4: =WACC_Inputs!H$31 -> 0.04377410468 | E4: =WACC_Inputs!I$31 -> 0.04377410468 | F4: =WACC_Inputs!J$31 -> 0.04377410468 | G4: =WACC_Inputs!K$31 -> 0.04377410468 | H4: =WACC_Inputs!L$31 -> 0.04377410468 | I4: =WACC_Inputs!$N$31 -> 0.04377410468 | J4: =WACC_Inputs!$N$31 -> 0.04377410468 | K4: =WACC_Inputs!$N$31 -> 0.04377410468 | L4: =WACC_Inputs!$N$31 -> 0.04377410468 | M4: =WACC_Inputs!$N$31 -> 0.04377410468
B6: Price path | D6: 2018 | E6: 2019 | F6: 2020 | G6: 2021 | H6: 2022 | I6: 2023 | J6: 2024 | K6: 2025 | L6: 2026 | M6: 2027
B7: Distribution | D7: =P95 -> -0.005530624198 | E7: 0.04205940459 | F7: 0.04205940459 | G7: 0.04205940459 | H7: 0.04205940459 | I7: -0.03095078543 | J7: -0.03095078543 | K7: -0.03095078543 | L7: -0.03095078543 | M7: -0.03095078543
B8: Transmission | D8: 0.01563628416 | E8: 0.1 | F8: 0.1 | G8: 0.1 | H8: 0.1 | I8: 0.05819341032 | J8: 0.05819341032 | K8: 0.05819341032 | L8: 0.05819341032 | M8: 0.05819341032
B9: Bundled (average tariff $/MWh) | D9: -0.002270057462 | E9: 0.05114479972 | F9: 0.05156707151 | G9: 0.0520049743 | H9: 0.05245871538 | I9: -0.01422824359 | J9: -0.01299968928 | K9: -0.01170486276 | L9: -0.01034367347 | M9: -0.008916560521
B11: Revenue cap [$M nominal] | D11: 2018 | E11: 2019 | F11: 2020 | G11: 2021 | H11: 2022 | I11: 2023 | J11: 2024 | K11: 2025 | L11: 2026 | M11: 2027
B12: Distribution | D12: =Dx_CoS!R88 -> 1221.246854 | E12: =Dx_CoS!S88 -> 1269.358434 | F12: =Dx_CoS!T88 -> 1308.120739 | G12: =Dx_CoS!U88 -> 1340.025194 | H12: =Dx_CoS!V88 -> 1376.08588 | I12: =Dx_CoS!W88 -> 1333.494942 | J12: =Dx_CoS!X88 -> 1292.222226 | K12: =Dx_CoS!Y88 -> 1252.226933 | L12: =Dx_CoS!Z88 -> 1213.469526 | M12: =Dx_CoS!AA88 -> 1175.911691
B13: Transmission | D13: =IF(Tx_CoS!$S96="",Tx_CoS!R84,Tx_CoS!R93) -> 293.579347 | E13: =IF(Tx_CoS!$S96="",Tx_CoS!S84,Tx_CoS!S93) -> 322.298633 | F13: =IF(Tx_CoS!$S96="",Tx_CoS!T84,Tx_CoS!T93) -> 353.8259827 | G13: =IF(Tx_CoS!$S96="",Tx_CoS!U84,Tx_CoS!U93) -> 386.4266272 | H13: =IF(Tx_CoS!$S96="",Tx_CoS!V84,Tx_CoS!V93) -> 420.3819186 | I13: =Tx_CoS!W84 -> 444.8453761 | J13: =Tx_CoS!X84 -> 470.7324456 | K13: =Tx_CoS!Y84 -> 498.1259719 | L13: =Tx_CoS!Z84 -> 527.113621 | M13: =Tx_CoS!AA84 -> 557.7881602
B14: Total | D14: =SUM(D12:D13) -> 1514.826201 | E14: =SUM(E12:E13) -> 1591.657067 | F14: 1661.946721 | G14: 1726.451821 | H14: 1796.467799 | I14: 1778.340318 | J14: 1762.954671 | K14: 1750.352905 | L14: 1740.583147 | M14: 1733.699851
B16: Energy (GWh) | D16: 2018 | E16: 2019 | F16: 2020 | G16: 2021 | H16: 2022 | I16: 2023 | J16: 2024 | K16: 2025 | L16: 2026 | M16: 2027
B17: Distribution | D17: =Dx_CoS!R90 -> 13691 | E17: =Dx_CoS!S90 -> 13656 | F17: =Dx_CoS!T90 -> 13505 | G17: =Dx_CoS!U90 -> 13276 | H17: =Dx_CoS!V90 -> 13083 | I17: =Dx_CoS!W90 -> 13083 | J17: =Dx_CoS!X90 -> 13083 | K17: =Dx_CoS!Y90 -> 13083 | L17: =Dx_CoS!Z90 -> 13083 | M17: =Dx_CoS!AA90 -> 13083
B18: Transmission | D18: =Tx_CoS!R86 -> 17698 | E18: =Tx_CoS!S86 -> 17663 | F18: =Tx_CoS!T86 -> 17628 | G18: =Tx_CoS!U86 -> 17502 | H18: =Tx_CoS!V86 -> 17309 | I18: =Tx_CoS!W86 -> 17309 | J18: =Tx_CoS!X86 -> 17309 | K18: =Tx_CoS!Y86 -> 17309 | L18: =Tx_CoS!Z86 -> 17309 | M18: =Tx_CoS!AA86 -> 17309
B20: Bill impact* | C20: 2017 | D20: 2018 | E20: 2019 | F20: 2020 | G20: 2021 | H20: 2022 | J20: Indicative impact on the average customers' bill analysis analyses the
B21: Customers | C21: 1380822 | D21: 1407560 | E21: 1436169 | F21: 1464982 | G21: 1493622 | H21: 1522289 | J21: flow on impact from the revenue model
B22: Customer change | D22: =D21/C21-1 -> 0.01936382821 | E22: =E21/D21-1 -> 0.02032524368 | F22: =F21/E21-1 -> 0.02006240213 | G22: =G21/F21-1 -> 0.01954972826 | H22: =H21/G21-1 -> 0.01919294172
B23: Indicative average bill | C23: =SUM(Adjustments_Inputs!M282:M283)/C21*10^6 -> 1094.739945 | D23: =D14/D21*10^6 -> 1076.207196 | E23: =E14/E21*10^6 -> 1108.265857 | F23: =F14/F21*10^6 -> 1134.448561 | G23: =G14/G21*10^6 -> 1155.882694 | H23: =H14/H21*10^6 -> 1180.109558 | J23: ** Customer numbers include all customers (residential and commercial)
B24: Annual change | D24: =D23/C23-1 -> -0.01692890508 | E24: =E23/D23-1 -> 0.0297885582 | F24: =F23/E23-1 -> 0.02362493055 | G24: =G23/F23-1 -> 0.01889387839 | H24: =H23/G23-1 -> 0.02095962186 | J24: but exclude ~50 generator customers
B25: 5 year CAGR bill change | H25: =(H23/C23)^0.2-1 -> 0.0151314258
B67: Output Summary data for graphing
B68: Year ending 30 June | D68: 2006 | E68: 2007 | F68: 2008 | G68: 2009 | H68: 2010 | I68: 2011 | J68: 2012 | K68: 2013 | L68: 2014 | M68: 2015 | N68: 2016 | O68: 2017 | P68: 2018 | Q68: 2019 | R68: 2020 | S68: 2021 | T68: 2022 | U68: 2023 | V68: 2024 | W68: 2025 | X68: 2026 | Y68: 2027 | Z68: 2028 | AA68: 2029 | AB68: 2030 | AC68: 2031 | AD68: 2032
B69: Revenue path [$M nominal]
B70: Distribution | E70: =Dx_CoS!G88 -> 327.5635847 | F70: =Dx_CoS!H88 -> 427.5369699 | G70: =Dx_CoS!I88 -> 461.9704548 | H70: =Dx_CoS!J88 -> 513.899676 | I70: =Dx_CoS!K88 -> 711.271 | J70: =Dx_CoS!L88 -> 804.783 | K70: =Dx_CoS!M88 -> 906.403625 | L70: =Dx_CoS!N88 -> 1004.354391 | M70: =Dx_CoS!O88 -> 1061.773804 | N70: =Dx_CoS!P88 -> 1159.561392 | O70: =Dx_CoS!Q88 -> 1235.035024 | P70: =Dx_CoS!R88 -> 1221.246854 | Q70: =Dx_CoS!S88 -> 1269.358434 | R70: =Dx_CoS!T88 -> 1308.120739 | S70: =Dx_CoS!U88 -> 1340.025194 | T70: =Dx_CoS!V88 -> 1376.08588 | U70: =Dx_CoS!W88 -> 1333.494942 | V70: =Dx_CoS!X88 -> 1292.222226 | W70: =Dx_CoS!Y88 -> 1252.226933 | X70: =Dx_CoS!Z88 -> 1213.469526 | Y70: =Dx_CoS!AA88 -> 1175.911691 | Z70: =Dx_CoS!AB88 -> 1269.445508 | AA70: =Dx_CoS!AC88 -> 1370.419148 | AB70: =Dx_CoS!AD88 -> 1479.424387 | AC70: =Dx_CoS!AE88 -> 1597.100069 | AD70: =Dx_CoS!AF88 -> 1724.135855
B71: Transmission | E71: =Tx_CoS!G84 -> 200.4046813 | F71: =Tx_CoS!H84 -> 215.3356458 | G71: =Tx_CoS!I84 -> 227.2674179 | H71: =Tx_CoS!J84 -> 270.3259342 | I71: =Tx_CoS!K84 -> 345.421 | J71: =Tx_CoS!L84 -> 387.876 | K71: =Tx_CoS!M84 -> 423.6446161 | L71: =Tx_CoS!N84 -> 374.9551826 | M71: =Tx_CoS!O84 -> 361.3596067 | N71: =Tx_CoS!P84 -> 324.8690864 | O71: =Tx_CoS!Q84 -> 290.1375009 | P71: =IF(Tx_CoS!$S96="",Tx_CoS!R84,Tx_CoS!R93) -> 293.579347 | Q71: =IF(Tx_CoS!$S96="",Tx_CoS!S84,Tx_CoS!S93) -> 322.298633 | R71: =IF(Tx_CoS!$S96="",Tx_CoS!T84,Tx_CoS!T93) -> 353.8259827 | S71: =IF(Tx_CoS!$S96="",Tx_CoS!U84,Tx_CoS!U93) -> 386.4266272 | T71: =IF(Tx_CoS!$S96="",Tx_CoS!V84,Tx_CoS!V93) -> 420.3819186 | U71: =Tx_CoS!W84 -> 444.8453761 | V71: =Tx_CoS!X84 -> 470.7324456 | W71: =Tx_CoS!Y84 -> 498.1259719 | X71: =Tx_CoS!Z84 -> 527.113621 | Y71: =Tx_CoS!AA84 -> 557.7881602 | Z71: =Tx_CoS!AB84 -> 549.24831 | AA71: =Tx_CoS!AC84 -> 540.8392066 | AB71: =Tx_CoS!AD84 -> 532.5588483 | AC71: =Tx_CoS!AE84 -> 524.405264 | AD71: =Tx_CoS!AF84 -> 516.3765127
B72: Total | E72: =SUM(E70:E71) -> 527.9682659 | F72: =SUM(F70:F71) -> 642.8726156 | G72: 689.2378727 | H72: 784.2256102 | I72: 1056.692 | J72: 1192.659 | K72: =SUM(K70:K71)/Dx_Inputs!K32 -> 1432.26012 | L72: =SUM(L70:L71)/Dx_Inputs!L32 -> 1441.827855 | M72: =SUM(M70:M71)/Dx_Inputs!M32 -> 1465.496452 | N72: =SUM(N70:N71)/Dx_Inputs!N32 -> 1513.134936 | O72: =SUM(O70:O71)/Dx_Inputs!O32 -> 1525.172525 | P72: =SUM(P70:P71)/Dx_Inputs!P32 -> 1490.383905 | Q72: =SUM(Q70:Q71)/Dx_Inputs!Q32 -> 1540.707474 | R72: =SUM(R70:R71)/Dx_Inputs!R32 -> 1582.789381 | S72: =SUM(S70:S71)/Dx_Inputs!S32 -> 1617.692 | T72: =SUM(T70:T71)/Dx_Inputs!T32 -> 1656.136601 | U72: 1778.340318 | V72: 1762.954671 | W72: 1750.352905 | X72: 1740.583147 | Y72: 1733.699851 | Z72: 1818.693818 | AA72: 1911.258355 | AB72: 2011.983235 | AC72: 2121.505333 | AD72: 2240.512367
B74: Opex [$M real as at 30 June 2017]
B75: Distribution | E75: =Dx_Inputs!E428 -> 299.0784132 | F75: =Dx_Inputs!F428 -> 304.545851 | G75: =Dx_Inputs!G428 -> 338.3150965 | H75: =Dx_Inputs!H428 -> 325.3892153 | I75: =Dx_Inputs!I428 -> 362.7953016 | J75: =Dx_Inputs!J428 -> 414.9133028 | K75: =Dx_Inputs!K428 -> 403.068607 | L75: =Dx_Inputs!L428 -> 388.239221 | M75: =Dx_Inputs!M428 -> 361.4143898 | N75: =Dx_Inputs!N428 -> 385.3399724 | O75: =Dx_Inputs!O428 -> 351.128 | P75: =Dx_Inputs!P428 -> 292.5129817 | Q75: =Dx_Inputs!Q428 -> 268.3299402 | R75: =Dx_Inputs!R428 -> 266.5291347 | S75: =Dx_Inputs!S428 -> 272.6277021 | T75: =Dx_Inputs!T428 -> 274.7769665 | U75: =Dx_Inputs!U428 -> 276.9434951 | V75: =Dx_Inputs!V428 -> 279.1274295 | W75: =Dx_Inputs!W428 -> 281.3289124 | X75: =Dx_Inputs!X428 -> 283.5480877 | Y75: =Dx_Inputs!Y428 -> 285.7851007 | Z75: =Dx_Inputs!Z428 -> 288.0400977 | AA75: =Dx_Inputs!AA428 -> 288.0400977 | AB75: =Dx_Inputs!AB428 -> 288.0400977 | AC75: =Dx_Inputs!AC428 -> 288.0400977 | AD75: =Dx_Inputs!AD428 -> 288.0400977
B76: Transmission | E76: =Tx_Inputs!E398 -> 88.281983 | F76: =Tx_Inputs!F398 -> 88.68518724 | G76: =Tx_Inputs!G398 -> 87.0322184 | H76: =Tx_Inputs!H398 -> 100.3346783 | I76: =Tx_Inputs!I398 -> 111.7159952 | J76: =Tx_Inputs!J398 -> 136.9890448 | K76: =Tx_Inputs!K398 -> 127.7788132 | L76: =Tx_Inputs!L398 -> 122.3240227 | M76: =Tx_Inputs!M398 -> 120.4951479 | N76: =Tx_Inputs!N398 -> 126.5252072 | O76: =Tx_Inputs!O398 -> 105.647 | P76: =Tx_Inputs!P398 -> 93.84278192 | Q76: =Tx_Inputs!Q398 -> 84.17287474 | R76: =Tx_Inputs!R398 -> 83.15382209 | S76: =Tx_Inputs!S398 -> 84.5578387 | T76: =Tx_Inputs!T398 -> 84.54991317 | U76: =Tx_Inputs!U398 -> 84.54500585 | V76: =Tx_Inputs!V398 -> 84.54313505 | W76: =Tx_Inputs!W398 -> 84.54431934 | X76: =Tx_Inputs!X398 -> 84.5485775 | Y76: =Tx_Inputs!Y398 -> 84.55592855 | Z76: =Tx_Inputs!Z398 -> 84.56639172 | AA76: =Tx_Inputs!AA398 -> 84.56639172 | AB76: =Tx_Inputs!AB398 -> 84.56639172 | AC76: =Tx_Inputs!AC398 -> 84.56639172 | AD76: =Tx_Inputs!AD398 -> 84.56639172
B77: Total | E77: =SUM(E75:E76) -> 387.3603962 | F77: =SUM(F75:F76) -> 393.2310383 | G77: 425.3473149 | H77: 425.7238936 | I77: 474.5112968 | J77: 551.9023476 | K77: 530.8474202 | L77: 510.5632436 | M77: 481.9095377 | N77: 511.8651796 | O77: 456.775 | P77: 386.3557637 | Q77: 352.502815 | R77: 349.6829568 | S77: 357.1855408 | T77: 359.3268797 | U77: 361.4885009 | V77: 363.6705645 | W77: 365.8732317 | X77: 368.0966652 | Y77: 370.3410292 | Z77: 372.6064894 | AA77: 372.6064894 | AB77: 372.6064894 | AC77: 372.6064894 | AD77: 372.6064894
B79: Capex [$M real as at 30 June 2017]
B80: Distribution | E80: =Dx_Inputs!E147 -> 442.4556787 | F80: =Dx_Inputs!F147 -> 483.6890568 | G80: =Dx_Inputs!G147 -> 605.1211526 | H80: =Dx_Inputs!H147 -> 563.2717883 | I80: =Dx_Inputs!I147 -> 575.1578845 | J80: =Dx_Inputs!J147 -> 672.0910709 | K80: =Dx_Inputs!K147 -> 776.9169933 | L80: =Dx_Inputs!L147 -> 778.7128548 | M80: =Dx_Inputs!M147 -> 708.4231306 | N80: =Dx_Inputs!N147 -> 608.0339311 | O80: =Dx_Inputs!O147 -> 457.869 | P80: =Dx_Inputs!P147 -> 594.584656 | Q80: =Dx_Inputs!Q147 -> 621.6352974 | R80: =Dx_Inputs!R147 -> 637.55901 | S80: =Dx_Inputs!S147 -> 500.2445384 | T80: =Dx_Inputs!T147 -> 520.2798009 | U80: =Dx_Inputs!U147 -> 540.1323941 | V80: =Dx_Inputs!V147 -> 549.1715036 | W80: =Dx_Inputs!W147 -> 545.0543564 | X80: =Dx_Inputs!X147 -> 540.3382152 | Y80: =Dx_Inputs!Y147 -> 563.8288222 | Z80: =Dx_Inputs!Z147 -> 561.5010295 | AA80: =Dx_Inputs!AA147 -> 561.5010295 | AB80: =Dx_Inputs!AB147 -> 561.5010295 | AC80: =Dx_Inputs!AC147 -> 561.5010295 | AD80: =Dx_Inputs!AD147 -> 561.5010295
B81: Transmission | E81: =Tx_Inputs!E135 -> 316.6450241 | F81: =Tx_Inputs!F135 -> 327.3836507 | G81: =Tx_Inputs!G135 -> 334.2641093 | H81: =Tx_Inputs!H135 -> 254.888337 | I81: =Tx_Inputs!I135 -> 188.5630294 | J81: =Tx_Inputs!J135 -> 177.6876293 | K81: =Tx_Inputs!K135 -> 243.6690001 | L81: =Tx_Inputs!L135 -> 344.2340443 | M81: =Tx_Inputs!M135 -> 166.2185094 | N81: =Tx_Inputs!N135 -> 127.923516 | O81: =Tx_Inputs!O135 -> 122.0004119 | P81: =Tx_Inputs!P135 -> 178.6841801 | Q81: =Tx_Inputs!Q135 -> 223.4398627 | R81: =Tx_Inputs!R135 -> 258.1905886 | S81: =Tx_Inputs!S135 -> 228.9562416 | T81: =Tx_Inputs!T135 -> 225.7656363 | U81: =Tx_Inputs!U135 -> 188.0895482 | V81: =Tx_Inputs!V135 -> 218.6737652 | W81: =Tx_Inputs!W135 -> 166.6424296 | X81: =Tx_Inputs!X135 -> 149.2024697 | Y81: =Tx_Inputs!Y135 -> 191.9592184 | Z81: =Tx_Inputs!Z135 -> 150.3677494 | AA81: =Tx_Inputs!AA135 -> 150.3677494 | AB81: =Tx_Inputs!AB135 -> 150.3677494 | AC81: =Tx_Inputs!AC135 -> 150.3677494 | AD81: =Tx_Inputs!AD135 -> 150.3677494
B82: Total | E82: =SUM(E80:E81) -> 759.1007028 | F82: =SUM(F80:F81) -> 811.0727075 | G82: 939.3852619 | H82: 818.1601253 | I82: 763.7209139 | J82: 849.7787002 | K82: 1020.585993 | L82: 1122.946899 | M82: 874.64164 | N82: 735.957447 | O82: 579.8694119 | P82: 773.2688361 | Q82: 845.0751602 | R82: 895.7495985 | S82: 729.20078 | T82: 746.0454372 | U82: 728.2219423 | V82: 767.8452688 | W82: 711.696786 | X82: 689.5406849 | Y82: 755.7880407 | Z82: 711.8687789 | AA82: 711.8687789 | AB82: 711.8687789 | AC82: 711.8687789 | AD82: 711.8687789
B84: RAB closing value [$M real as at 30 June 2017]
B85: Distribution | E85: =Dx_Asset!G10 -> 2395.19139 | F85: =Dx_Asset!H10 -> 2767.373838 | G85: =Dx_Asset!I10 -> 3311.092276 | H85: =Dx_Asset!J10 -> 3612.597808 | I85: =Dx_Asset!K10 -> 3901.03306 | J85: =Dx_Asset!L10 -> 4248.701724 | K85: =Dx_Asset!M10 -> 4709.869982 | L85: =Dx_Asset!N10 -> 5144.372537 | M85: =Dx_Asset!O10 -> 5506.445762 | N85: =Dx_Asset!P10 -> 5752.61772 | O85: =Dx_Asset!Q10 -> 5834.933804 | P85: =Dx_Asset!R10 -> 6080.819512 | Q85: =Dx_Asset!S10 -> 6319.996024 | R85: =Dx_Asset!T10 -> 6582.180956 | S85: =Dx_Asset!U10 -> 6715.253185 | T85: =Dx_Asset!V10 -> 6871.849207 | U85: =Dx_Asset!W10 -> 7041.550663 | V85: =Dx_Asset!X10 -> 7221.09955 | W85: =Dx_Asset!Y10 -> 7380.736875 | X85: =Dx_Asset!Z10 -> 7522.001069 | Y85: =Dx_Asset!AA10 -> 7675.571307 | Z85: =Dx_Asset!AB10 -> 7810.483143 | AA85: =Dx_Asset!AC10 -> 7934.137965 | AB85: =Dx_Asset!AD10 -> 8049.801097 | AC85: =Dx_Asset!AE10 -> 8162.56753 | AD85: =Dx_Asset!AF10 -> 8265.735049
B86: Transmission | E86: =Tx_Asset!G10 -> 2040.96473 | F86: =Tx_Asset!H10 -> 2297.760264 | G86: =Tx_Asset!I10 -> 2557.700066 | H86: =Tx_Asset!J10 -> 2684.897516 | I86: =Tx_Asset!K10 -> 2761.839741 | J86: =Tx_Asset!L10 -> 2816.740397 | K86: =Tx_Asset!M10 -> 2942.834272 | L86: =Tx_Asset!N10 -> 3177.583831 | M86: =Tx_Asset!O10 -> 3215.433015 | N86: =Tx_Asset!P10 -> 3155.97493 | O86: =Tx_Asset!Q10 -> 3131.762985 | P86: =Tx_Asset!R10 -> 3183.875862 | Q86: =Tx_Asset!S10 -> 3277.351005 | R86: =Tx_Asset!T10 -> 3396.079636 | S86: =Tx_Asset!U10 -> 3473.785592 | T86: =Tx_Asset!V10 -> 3542.181952 | U86: =Tx_Asset!W10 -> 3564.826741 | V86: =Tx_Asset!X10 -> 3613.209358 | W86: =Tx_Asset!Y10 -> 3604.988014 | X86: =Tx_Asset!Z10 -> 3576.856007 | Y86: =Tx_Asset!AA10 -> 3591.35744 | Z86: =Tx_Asset!AB10 -> 3571.151744 | AA86: =Tx_Asset!AC10 -> 3549.090476 | AB86: =Tx_Asset!AD10 -> 3529.740927 | AC86: =Tx_Asset!AE10 -> 3509.360811 | AD86: =Tx_Asset!AF10 -> 3491.27619
B87: Total | E87: =SUM(E85:E86) -> 4436.15612 | F87: =SUM(F85:F86) -> 5065.134103 | G87: 5868.792342 | H87: 6297.495324 | I87: 6662.8728 | J87: 7065.442121 | K87: 7652.704254 | L87: 8321.956368 | M87: 8721.878778 | N87: 8908.59265 | O87: 8966.696789 | P87: 9264.695374 | Q87: 9597.347028 | R87: 9978.260592 | S87: 10189.03878 | T87: 10414.03116 | U87: 10606.3774 | V87: 10834.30891 | W87: 10985.72489 | X87: 11098.85708 | Y87: 11266.92875 | Z87: 11381.63489 | AA87: 11483.22844 | AB87: 11579.54202 | AC87: 11671.92834 | AD87: 11757.01124
B89: Average price [$/MWh nominal]
B90: Distribution | E90: =Dx_CoS!G91 -> 25.48855695 | F90: =Dx_CoS!H91 -> 31.86347719 | G90: =Dx_CoS!I91 -> 34.10708927 | H90: =Dx_CoS!J91 -> 37.44433803 | I90: =Dx_CoS!K91 -> 50.4257228 | J90: =Dx_CoS!L91 -> 57.77030299 | K90: =Dx_CoS!M91 -> 66.45675086 | L90: =Dx_CoS!N91 -> 73.49830889 | M90: =Dx_CoS!O91 -> 78.90709007 | N90: =Dx_CoS!P91 -> 83.66243812 | O90: =Dx_CoS!Q91 -> 89.69678434 | P90: =Dx_CoS!R91 -> 89.20070513 | Q90: =Dx_CoS!S91 -> 92.95243368 | R90: =Dx_CoS!T91 -> 96.8619577 | S90: =Dx_CoS!U91 -> 100.935914 | T90: =Dx_CoS!V91 -> 105.1812184 | U90: =Dx_CoS!W91 -> 101.9257771 | V90: =Dx_CoS!X91 -> 98.77109423 | W90: =Dx_CoS!Y91 -> 95.71405128 | X90: =Dx_CoS!Z91 -> 92.75162622 | Y90: =Dx_CoS!AA91 -> 89.88089054 | Z90: =Dx_CoS!AB91 -> 97.03015426 | AA90: =Dx_CoS!AC91 -> 104.7480814 | AB90: =Dx_CoS!AD91 -> 113.0799042 | AC90: =Dx_CoS!AE91 -> 122.074453 | AD90: =Dx_CoS!AF91 -> 131.784442
B91: Transmission | E91: =Tx_CoS!G87 -> 13.52276931 | F91: =Tx_CoS!H87 -> 13.76816323 | G91: =Tx_CoS!I87 -> 14.16830732 | H91: =Tx_CoS!J87 -> 16.12021587 | I91: =Tx_CoS!K87 -> 19.847857 | J91: =Tx_CoS!L87 -> 22.19975055 | K91: =Tx_CoS!M87 -> 25.01444356 | L91: =Tx_CoS!N87 -> 21.41499701 | M91: =Tx_CoS!O87 -> 20.54697257 | N91: =Tx_CoS!P87 -> 18.17449434 | O91: =Tx_CoS!Q87 -> 16.33289242 | P91: =IF(Tx_CoS!$S96="",Tx_CoS!R87,Tx_CoS!R95) -> 16.58827817 | Q91: =IF(Tx_CoS!$S96="",Tx_CoS!S87,Tx_CoS!S95) -> 18.24710598 | R91: =IF(Tx_CoS!$S96="",Tx_CoS!T87,Tx_CoS!T95) -> 20.07181658 | S91: =IF(Tx_CoS!$S96="",Tx_CoS!U87,Tx_CoS!U95) -> 22.07899824 | T91: =IF(Tx_CoS!$S96="",Tx_CoS!V87,Tx_CoS!V95) -> 24.28689806 | U91: =Tx_CoS!W87 -> 25.70023549 | V91: =Tx_CoS!X87 -> 27.19581984 | W91: =Tx_CoS!Y87 -> 28.77843734 | X91: =Tx_CoS!Z87 -> 30.45315275 | Y91: =Tx_CoS!AA87 -> 32.22532557 | Z91: =Tx_CoS!AB87 -> 31.73194927 | AA91: =Tx_CoS!AC87 -> 31.24612667 | AB91: =Tx_CoS!AD87 -> 30.76774212 | AC91: =Tx_CoS!AE87 -> 30.29668172 | AD91: =Tx_CoS!AF87 -> 29.83283336
B92: Total | E92: =SUM(E90:E91) -> 39.01132626 | F92: =SUM(F90:F91) -> 45.63164042 | G92: 48.27539659 | H92: 53.5645539 | I92: 70.2735798 | J92: 79.97005354 | K92: 91.47119442 | L92: 94.9133059 | M92: 99.45406264 | N92: 101.8369325 | O92: 106.0296768 | P92: 105.7889833 | Q92: 111.1995397 | R92: 116.9337743 | S92: 123.0149122 | T92: 129.4681165 | U92: 127.6260126 | V92: 125.9669141 | W92: 124.4924886 | X92: 123.204779 | Y92: 122.1062161 | Z92: 128.7621035 | AA92: 135.994208 | AB92: 143.8476463 | AC92: 152.3711347 | AD92: 161.6172754
B94: Price path
B95: Distribution | F95: =F90/E90-1 -> 0.250109108 | G95: =G90/F90-1 -> 0.07041328415 | H95: 0.09784619093 | I95: 0.3466848514 | J95: 0.1456514609 | K95: =K90/J90-1 -> 0.1503618194 | L95: 0.1059570012 | M95: 0.0735905528 | N95: 0.06026515549 | O95: 0.0721273053 | P95: -0.005530624198 | Q95: 0.04205940459 | R95: 0.04205940459 | S95: 0.04205940459 | T95: 0.04205940459 | U95: -0.03095078543 | V95: -0.03095078543 | W95: -0.03095078543 | X95: -0.03095078543 | Y95: -0.03095078543 | Z95: 0.07954153186 | AA95: 0.07954153186 | AB95: 0.07954153186 | AC95: 0.07954153186 | AD95: 0.07954153186
B96: Transmission | F96: =F91/E91-1 -> 0.01814672116 | G96: 0.02906299748 | H96: 0.1377658248 | I96: 0.2312401498 | J96: 0.1184960951 | K96: 0.1267893981 | L96: -0.143894728 | M96: -0.04053348377 | N96: -0.1154660727 | O96: -0.1013289223 | P96: 0.01563628416 | Q96: 0.1 | R96: 0.1 | S96: 0.1 | T96: 0.1 | U96: 0.05819341032 | V96: 0.05819341032 | W96: 0.05819341032 | X96: 0.05819341032 | Y96: 0.05819341032 | Z96: -0.01531020349 | AA96: -0.01531020349 | AB96: -0.01531020349 | AC96: -0.01531020349 | AD96: -0.01531020349
B97: Total | F97: 0.1697023609 | G97: 0.05793690831 | H97: 0.1095621722 | I97: 0.3119418474 | J97: 0.1379817816 | K97: 0.1438180965 | L97: 0.03763055134 | M97: 0.04784109778 | N97: 0.02395950211 | O97: 0.04117115658 | P97: -0.002270057462 | Q97: 0.05114479972 | R97: 0.05156707151 | S97: 0.0520049743 | T97: 0.05245871538 | U97: -0.01422824359 | V97: -0.01299968928 | W97: -0.01170486276 | X97: -0.01034367347 | Y97: -0.008916560521 | Z97: 0.05450899748 | AA97: 0.05616640539 | AB97: 0.05774832919 | AC97: 0.05925358272 | AD97: 0.06068170751
B99: TEC [$M nominal]
B100: Distribution | E100: =Dx_Inputs!E440 -> 0 | F100: =Dx_Inputs!F440 -> 0 | G100: =Dx_Inputs!G440 -> 0 | H100: =Dx_Inputs!H440 -> 0 | I100: =Dx_Inputs!I440 -> 0 | J100: =Dx_Inputs!J440 -> 0 | K100: =Dx_Inputs!K440 -> 154 | L100: =Dx_Inputs!L440 -> 209 | M100: =Dx_Inputs!M440 -> 136 | N100: =Dx_Inputs!N440 -> 141 | O100: =Dx_Inputs!O440 -> 150 | P100: =Dx_Inputs!P440 -> 167 | Q100: =Dx_Inputs!Q440 -> 175 | R100: =Dx_Inputs!R440 -> 162 | S100: =Dx_Inputs!S440 -> 157 | T100: =Dx_Inputs!T440 -> 161 | U100: =Dx_Inputs!U440 -> 161 | V100: =Dx_Inputs!V440 -> 161 | W100: =Dx_Inputs!W440 -> 161 | X100: =Dx_Inputs!X440 -> 161 | Y100: =Dx_Inputs!Y440 -> 161 | Z100: =Dx_Inputs!Z440 -> 161 | AA100: =Dx_Inputs!AA440 -> 161 | AB100: =Dx_Inputs!AB440 -> 161 | AC100: =Dx_Inputs!AC440 -> 161 | AD100: =Dx_Inputs!AD440 -> 161
B101: Total | E101: =SUM(E100:E100) -> 0 | F101: 0 | G101: 0 | H101: 0 | I101: 0 | J101: 0 | K101: 154 | L101: 209 | M101: 136 | N101: 141 | O101: 150 | P101: 167 | Q101: 175 | R101: 162 | S101: 157 | T101: 161 | U101: 161 | V101: 161 | W101: 161 | X101: 161 | Y101: 161 | Z101: 161 | AA101: 161 | AB101: 161 | AC101: 161 | AD101: 161
B103: Net Cost of Service [$M nominal]
B104: Distribution | J104: =Dx_CoS!L83 -> 804.783 | K104: =Dx_CoS!M83 -> 1007.006227 | L104: =Dx_CoS!N83 -> 1019.391963 | M104: =Dx_CoS!O83 -> 1102.964674 | N104: =Dx_CoS!P83 -> 1104.10138 | O104: =Dx_CoS!Q83 -> 1166.90879 | P104: =Dx_CoS!R83 -> 1491.039807 | Q104: =Dx_CoS!S83 -> 1216.509381 | R104: =Dx_CoS!T83 -> 1236.568188 | S104: =Dx_CoS!U83 -> 1238.901978 | T104: =Dx_CoS!V83 -> 1285.246276 | U104: =Dx_CoS!W83 -> 1214.356338 | V104: =Dx_CoS!X83 -> 1227.421234 | W104: =Dx_CoS!Y83 -> 1258.425681 | X104: =Dx_CoS!Z83 -> 1288.399231 | Y104: =Dx_CoS!AA83 -> 1317.733402 | Z104: =Dx_CoS!AB83 -> 1374.339578 | AA104: =Dx_CoS!AC83 -> 1429.746661 | AB104: =Dx_CoS!AD83 -> 1480.790732 | AC104: =Dx_CoS!AE83 -> 1530.873744 | AD104: =Dx_CoS!AF83 -> 1589.145799
B105: Transmission | J105: =Tx_CoS!L79 -> 387.876 | K105: =Tx_CoS!M79 -> 315.1339252 | L105: =Tx_CoS!N79 -> 329.5052332 | M105: =Tx_CoS!O79 -> 349.4067617 | N105: =Tx_CoS!P79 -> 362.833709 | O105: =Tx_CoS!Q79 -> 386.6583495 | P105: =Tx_CoS!R79 -> 361.0839818 | Q105: =Tx_CoS!S79 -> 378.4648877 | R105: =Tx_CoS!T79 -> 400.517147 | S105: =Tx_CoS!U79 -> 427.4095202 | T105: =Tx_CoS!V79 -> 453.4049196 | U105: =Tx_CoS!W79 -> 465.2210271 | V105: =Tx_CoS!X79 -> 482.7482959 | W105: =Tx_CoS!Y79 -> 501.2393408 | X105: =Tx_CoS!Z79 -> 515.072614 | Y105: =Tx_CoS!AA79 -> 526.8993641 | Z105: =Tx_CoS!AB79 -> 524.0518068 | AA105: =Tx_CoS!AC79 -> 531.4543617 | AB105: =Tx_CoS!AD79 -> 534.0442349 | AC105: =Tx_CoS!AE79 -> 539.8109266 | AD105: =Tx_CoS!AF79 -> 541.4840749
B106: Total | J106: =SUM(J104:J105) -> 1192.659 | K106: =SUM(K104:K105) -> 1322.140152 | L106: 1348.897196 | M106: 1452.371436 | N106: 1466.935089 | O106: 1553.567139 | P106: 1852.123788 | Q106: 1594.974269 | R106: 1637.085335 | S106: 1666.311498 | T106: 1738.651196 | U106: 1679.577365 | V106: 1710.16953 | W106: 1759.665022 | X106: 1803.471845 | Y106: 1844.632766 | Z106: 1898.391385 | AA106: 1961.201023 | AB106: 2014.834967 | AC106: 2070.684671 | AD106: 2130.629874
B108: Total Raw building block
B109: Operating expenditure | P109: =Dx_CoS!R54+Tx_CoS!R53 -> 392.6919982 | Q109: =Dx_CoS!S54+Tx_CoS!S53 -> 364.1597165 | R109: =Dx_CoS!T54+Tx_CoS!T53 -> 367.1710529 | S109: =Dx_CoS!U54+Tx_CoS!U53 -> 381.199652 | T109: =Dx_CoS!V54+Tx_CoS!V53 -> 389.7741095 | U109: =Dx_CoS!W54+Tx_CoS!W53 -> 398.5496436 | V109: =Dx_CoS!X54+Tx_CoS!X53 -> 407.5310893 | W109: =Dx_CoS!Y54+Tx_CoS!Y53 -> 416.7233997 | X109: =Dx_CoS!Z54+Tx_CoS!Z53 -> 426.1316487 | Y109: =Dx_CoS!AA54+Tx_CoS!AA53 -> 435.7610342 | Z109: =Dx_CoS!AB54+Tx_CoS!AB53 -> 445.616881 | AA109: =Dx_CoS!AC54+Tx_CoS!AC53 -> 452.9249978 | AB109: =Dx_CoS!AD54+Tx_CoS!AD53 -> 460.3529678 | AC109: =Dx_CoS!AE54+Tx_CoS!AE53 -> 467.9027565 | AD109: =Dx_CoS!AF54+Tx_CoS!AF53 -> 475.5763617
B110: Depreciation | P110: =Dx_CoS!R55+Tx_CoS!R54 -> 383.4898417 | Q110: =Dx_CoS!S55+Tx_CoS!S54 -> 411.2036423 | R110: =Dx_CoS!T55+Tx_CoS!T54 -> 443.1258529 | S110: =Dx_CoS!U55+Tx_CoS!U54 -> 465.8616426 | T110: =Dx_CoS!V55+Tx_CoS!V54 -> 470.1318501 | U110: =Dx_CoS!W55+Tx_CoS!W54 -> 494.8279722 | V110: =Dx_CoS!X55+Tx_CoS!X54 -> 507.1768208 | W110: =Dx_CoS!Y55+Tx_CoS!Y54 -> 536.8441393 | X110: =Dx_CoS!Z55+Tx_CoS!Z54 -> 562.9801213 | Y110: =Dx_CoS!AA55+Tx_CoS!AA54 -> 585.3745207 | Z110: =Dx_CoS!AB55+Tx_CoS!AB54 -> 604.2619293 | AA110: =Dx_CoS!AC55+Tx_CoS!AC54 -> 630.1109406 | AB110: =Dx_CoS!AD55+Tx_CoS!AD54 -> 646.968131 | AC110: =Dx_CoS!AE55+Tx_CoS!AE54 -> 662.5100949 | AD110: =Dx_CoS!AF55+Tx_CoS!AF54 -> 682.6969808
B111: Redundant Assets/Accelerated Depreciation | P111: =Dx_CoS!R57+Tx_CoS!R56 -> 0 | Q111: =Dx_CoS!S57+Tx_CoS!S56 -> 0 | R111: =Dx_CoS!T57+Tx_CoS!T56 -> 0 | S111: =Dx_CoS!U57+Tx_CoS!U56 -> 0 | T111: =Dx_CoS!V57+Tx_CoS!V56 -> 0 | U111: =Dx_CoS!W57+Tx_CoS!W56 -> 0 | V111: =Dx_CoS!X57+Tx_CoS!X56 -> 0 | W111: =Dx_CoS!Y57+Tx_CoS!Y56 -> 0 | X111: =Dx_CoS!Z57+Tx_CoS!Z56 -> 0 | Y111: =Dx_CoS!AA57+Tx_CoS!AA56 -> 0 | Z111: =Dx_CoS!AB57+Tx_CoS!AB56 -> 0 | AA111: =Dx_CoS!AC57+Tx_CoS!AC56 -> 0 | AB111: =Dx_CoS!AD57+Tx_CoS!AD56 -> 0 | AC111: =Dx_CoS!AE57+Tx_CoS!AE56 -> 0 | AD111: =Dx_CoS!AF57+Tx_CoS!AF56 -> 0
B112: Deferred Revenue Recovery | P112: =Dx_CoS!R58+Tx_CoS!R57 -> 43.16631672 | Q112: =Dx_CoS!S58+Tx_CoS!S57 -> 43.87424432 | R112: =Dx_CoS!T58+Tx_CoS!T57 -> 44.59378192 | S112: =Dx_CoS!U58+Tx_CoS!U57 -> 45.32511995 | T112: =Dx_CoS!V58+Tx_CoS!V57 -> 46.06845191 | U112: =Dx_CoS!W58+Tx_CoS!W57 -> 45.46338955 | V112: =Dx_CoS!X58+Tx_CoS!X57 -> 46.20898914 | W112: =Dx_CoS!Y58+Tx_CoS!Y57 -> 46.96681656 | X112: =Dx_CoS!Z58+Tx_CoS!Z57 -> 47.73707235 | Y112: =Dx_CoS!AA58+Tx_CoS!AA57 -> 48.51996034 | Z112: =Dx_CoS!AB58+Tx_CoS!AB57 -> 49.31568769 | AA112: =Dx_CoS!AC58+Tx_CoS!AC57 -> 50.12446497 | AB112: =Dx_CoS!AD58+Tx_CoS!AD57 -> 50.94650619 | AC112: =Dx_CoS!AE58+Tx_CoS!AE57 -> 51.78202889 | AD112: =Dx_CoS!AF58+Tx_CoS!AF57 -> 52.63125417
B113: Tax costs due to capital contributions and gifted assets | P113: =Dx_CoS!R59+Tx_CoS!R58 -> 0 | Q113: =Dx_CoS!S59+Tx_CoS!S58 -> 0 | R113: =Dx_CoS!T59+Tx_CoS!T58 -> 0 | S113: =Dx_CoS!U59+Tx_CoS!U58 -> 0 | T113: =Dx_CoS!V59+Tx_CoS!V58 -> 0 | U113: =Dx_CoS!W59+Tx_CoS!W58 -> 0 | V113: =Dx_CoS!X59+Tx_CoS!X58 -> 0 | W113: =Dx_CoS!Y59+Tx_CoS!Y58 -> 0 | X113: =Dx_CoS!Z59+Tx_CoS!Z58 -> 0 | Y113: =Dx_CoS!AA59+Tx_CoS!AA58 -> 0 | Z113: =Dx_CoS!AB59+Tx_CoS!AB58 -> 0 | AA113: =Dx_CoS!AC59+Tx_CoS!AC58 -> 0 | AB113: =Dx_CoS!AD59+Tx_CoS!AD58 -> 0 | AC113: =Dx_CoS!AE59+Tx_CoS!AE58 -> 0 | AD113: =Dx_CoS!AF59+Tx_CoS!AF58 -> 0
B114: Tax Payable | P114: =SUM(Dx_CoS!R60:R61)+SUM(Tx_CoS!R59:R60) -> 48.93320311 | Q114: =SUM(Dx_CoS!S60:S61)+SUM(Tx_CoS!S59:S60) -> 58.18988332 | R114: =SUM(Dx_CoS!T60:T61)+SUM(Tx_CoS!T59:T60) -> 63.87843984 | S114: =SUM(Dx_CoS!U60:U61)+SUM(Tx_CoS!U59:U60) -> 61.93827158 | T114: =SUM(Dx_CoS!V60:V61)+SUM(Tx_CoS!V59:V60) -> 69.7499064 | U114: =SUM(Dx_CoS!W60:W61)+SUM(Tx_CoS!W59:W60) -> 66.3654166 | V114: =SUM(Dx_CoS!X60:X61)+SUM(Tx_CoS!X59:X60) -> 57.363597 | W114: =SUM(Dx_CoS!Y60:Y61)+SUM(Tx_CoS!Y59:Y60) -> 47.60907331 | X114: =SUM(Dx_CoS!Z60:Z61)+SUM(Tx_CoS!Z59:Z60) -> 38.59252283 | Y114: =SUM(Dx_CoS!AA60:AA61)+SUM(Tx_CoS!AA59:AA60) -> 32.07641881 | Z114: =SUM(Dx_CoS!AB60:AB61)+SUM(Tx_CoS!AB59:AB60) -> 38.35533412 | AA114: =SUM(Dx_CoS!AC60:AC61)+SUM(Tx_CoS!AC59:AC60) -> 50.78134272 | AB114: =SUM(Dx_CoS!AD60:AD61)+SUM(Tx_CoS!AD59:AD60) -> 63.21139043 | AC114: =SUM(Dx_CoS!AE60:AE61)+SUM(Tx_CoS!AE59:AE60) -> 78.94800959 | AD114: =SUM(Dx_CoS!AF60:AF61)+SUM(Tx_CoS!AF59:AF60) -> 93.81119185
B115: Tariff Equalisation | P115: =Dx_CoS!R62 -> 167 | Q115: =Dx_CoS!S62 -> 175 | R115: =Dx_CoS!T62 -> 162 | S115: =Dx_CoS!U62 -> 157 | T115: =Dx_CoS!V62 -> 161 | U115: =Dx_CoS!W62 -> 161 | V115: =Dx_CoS!X62 -> 161 | W115: =Dx_CoS!Y62 -> 161 | X115: =Dx_CoS!Z62 -> 161 | Y115: =Dx_CoS!AA62 -> 161 | Z115: =Dx_CoS!AB62 -> 161 | AA115: =Dx_CoS!AC62 -> 161 | AB115: =Dx_CoS!AD62 -> 161 | AC115: =Dx_CoS!AE62 -> 161 | AD115: =Dx_CoS!AF62 -> 161
B116: Return on Assets | P116: =Dx_CoS!R63+Dx_CoS!R56+Tx_CoS!R61+Tx_CoS!R55 -> 398.9462735 | Q116: =Dx_CoS!S63+Dx_CoS!S56+Tx_CoS!S61+Tx_CoS!S55 -> 418.9649857 | R116: =Dx_CoS!T63+Dx_CoS!T56+Tx_CoS!T61+Tx_CoS!T55 -> 441.1257807 | S116: =Dx_CoS!U63+Dx_CoS!U56+Tx_CoS!U61+Tx_CoS!U55 -> 466.1554214 | T116: =Dx_CoS!V63+Dx_CoS!V56+Tx_CoS!V61+Tx_CoS!V55 -> 483.8088063 | U116: =Dx_CoS!W63+Dx_CoS!W56+Tx_CoS!W61+Tx_CoS!W55 -> 502.6018504 | V116: =Dx_CoS!X63+Dx_CoS!X56+Tx_CoS!X61+Tx_CoS!X55 -> 520.2797744 | W116: =Dx_CoS!Y63+Dx_CoS!Y56+Tx_CoS!Y61+Tx_CoS!Y55 -> 540.176563 | X116: =Dx_CoS!Z63+Dx_CoS!Z56+Tx_CoS!Z61+Tx_CoS!Z55 -> 556.7085593 | Y116: =Dx_CoS!AA63+Dx_CoS!AA56+Tx_CoS!AA61+Tx_CoS!AA55 -> 571.6656468 | Z116: =Dx_CoS!AB63+Dx_CoS!AB56+Tx_CoS!AB61+Tx_CoS!AB55 -> 589.8397545 | AA116: =Dx_CoS!AC63+Dx_CoS!AC56+Tx_CoS!AC61+Tx_CoS!AC55 -> 605.6166386 | AB116: =Dx_CoS!AD63+Dx_CoS!AD56+Tx_CoS!AD61+Tx_CoS!AD55 -> 621.0431981 | AC116: =Dx_CoS!AE63+Dx_CoS!AE56+Tx_CoS!AE61+Tx_CoS!AE55 -> 636.5226243 | AD116: =Dx_CoS!AF63+Dx_CoS!AF56+Tx_CoS!AF61+Tx_CoS!AF55 -> 652.1233193
B117: Return on Working Capital | P117: =Dx_CoS!R66+Tx_CoS!R64 -> 8.351674889 | Q117: =Dx_CoS!S66+Tx_CoS!S64 -> 8.687507835 | R117: =Dx_CoS!T66+Tx_CoS!T64 -> 9.269812338 | S117: =Dx_CoS!U66+Tx_CoS!U64 -> 9.623286559 | T117: =Dx_CoS!V66+Tx_CoS!V64 -> 10.31552472 | U117: =Dx_CoS!W66+Tx_CoS!W64 -> 10.76909311 | V117: =Dx_CoS!X66+Tx_CoS!X64 -> 10.60925953 | W117: =Dx_CoS!Y66+Tx_CoS!Y64 -> 10.34503018 | X117: =Dx_CoS!Z66+Tx_CoS!Z64 -> 10.32192011 | Y117: =Dx_CoS!AA66+Tx_CoS!AA64 -> 10.23518536 | Z117: =Dx_CoS!AB66+Tx_CoS!AB64 -> 10.00179851 | AA117: =Dx_CoS!AC66+Tx_CoS!AC64 -> 10.64263838 | AB117: =Dx_CoS!AD66+Tx_CoS!AD64 -> 11.31277335 | AC117: =Dx_CoS!AE66+Tx_CoS!AE64 -> 12.01915647 | AD117: =Dx_CoS!AF66+Tx_CoS!AF64 -> 12.79076594
B118: Total | P118: =SUM(P109:P117) -> 1442.579308 | Q118: =SUM(Q109:Q117) -> 1480.07998 | R118: 1531.164721 | S118: 1587.103394 | T118: 1630.848649 | U118: 1679.577365 | V118: 1710.16953 | W118: 1759.665022 | X118: 1803.471845 | Y118: 1844.632766 | Z118: 1898.391385 | AA118: 1961.201023 | AB118: 2014.834967 | AC118: 2070.684671 | AD118: 2130.629874
B120: Year ending 30 June | C120: 2018 | D120: 2019 | E120: 2020 | F120: 2021 | G120: 2022
B121: Inflation
B122: Implied inflation | C122: 0.0164 | D122: 0.0164 | E122: 0.0164 | F122: 0.0164 | G122: 0.0164
B123: Implied inflation factor | C123: 1.0164 | D123: 1.03306896 | E123: 1.050011291 | F123: 1.067231476 | G123: 1.084734072
B126: DRt and TRt
B127: Year ending 30 June | C127: 2018 | D127: 2019 | E127: 2020 | F127: 2021 | G127: 2022
B128: Smoothed revenue (excl TEC and k-factor) [$M nominal]
B129: Distribution | C129: =D12 -> 1221.246854 | D129: =E12 -> 1269.358434 | E129: =F12 -> 1308.120739 | F129: =G12 -> 1340.025194 | G129: =H12 -> 1376.08588
B130: TEC | C130: =Dx_Inputs!P440 -> 167 | D130: =Dx_Inputs!Q440 -> 175 | E130: =Dx_Inputs!R440 -> 162 | F130: =Dx_Inputs!S440 -> 157 | G130: =Dx_Inputs!T440 -> 161
B131: k-factor | C131: =Dx_CoS!R82 -> 37.15459944 | D131: =Dx_CoS!S82 -> 0 | E131: =Dx_CoS!T82 -> 0 | F131: =Dx_CoS!U82 -> 0 | G131: =Dx_CoS!V82 -> 0
B132: DRt - nominal | C132: =C129-C130-C131 -> 1017.092255 | D132: =D129-D130-D131 -> 1094.358434 | E132: 1146.120739 | F132: 1183.025194 | G132: 1215.08588
B134: Transmission | C134: =D13 -> 293.579347 | D134: =E13 -> 322.298633 | E134: =F13 -> 353.8259827 | F134: =G13 -> 386.4266272 | G134: =H13 -> 420.3819186
B135: k-factor | C135: =Tx_CoS!R78 -> 1.250691484 | D135: =Tx_CoS!S78 -> 0 | E135: =Tx_CoS!T78 -> 0 | F135: =Tx_CoS!U78 -> 0 | G135: =Tx_CoS!V78 -> 0
B136: TRt - nominal | C136: =C134-C135 -> 292.3286555 | D136: =D134-D135 -> 322.298633 | E136: 353.8259827 | F136: 386.4266272 | G136: 420.3819186
B138: DRt/TRt [$M real as at 30 June 2017] | H138: Average
B139: DRt - real 2017 | C139: =C132/C123 -> 1000.681085 | D139: =D132/D123 -> 1059.327573 | E139: =E132/E123 -> 1091.531823 | F139: =F132/F123 -> 1108.499159 | G139: 1120.169368 | H139: =AVERAGE(C139:G139) -> 1076.041802
B140: TRt - real 2017 | C140: =C134/C123 -> 288.8423327 | D140: =D134/D123 -> 311.9817219 | E140: =E134/E123 -> 336.9735028 | F140: =F134/F123 -> 362.0832367 | G140: =G134/G123 -> 387.5437578 | H140: =AVERAGE(C140:G140) -> 337.4849104

Sheet Public output summary
A1: Key metrics
A2: WACC return
A3: Nominal post tax | C3: =WACC_Inputs!H30 -> 0.060892
A5: Price path | C5: 2018 | D5: 2019 | E5: 2020 | F5: 2021 | G5: 2022
A6: =Output_Summary!B7 -> Distribution | C6: 0 | D6: =Output_Summary!E7 -> 0.04205940459 | E6: =Output_Summary!F7 -> 0.04205940459 | F6: =Output_Summary!G7 -> 0.04205940459 | G6: =Output_Summary!H7 -> 0.04205940459
A7: =Output_Summary!B8 -> Transmission | C7: 0 | D7: =Output_Summary!E8 -> 0.1 | E7: =Output_Summary!F8 -> 0.1 | F7: =Output_Summary!G8 -> 0.1 | G7: =Output_Summary!H8 -> 0.1
A8: Bundled | C8: 0 | D8: =Output_Summary!E9 -> 0.05114479972 | E8: =Output_Summary!F9 -> 0.05156707151 | F8: =Output_Summary!G9 -> 0.0520049743 | G8: =Output_Summary!H9 -> 0.05245871538
A10: =Output_Summary!B11 -> Revenue cap [$M nominal] | C10: 2018 | D10: 2019 | E10: 2020 | F10: 2021 | G10: 2022
A11: =Output_Summary!B12 -> Distribution | C11: =Output_Summary!D12 -> 1221.246854 | D11: =Output_Summary!E12 -> 1269.358434 | E11: =Output_Summary!F12 -> 1308.120739 | F11: =Output_Summary!G12 -> 1340.025194 | G11: =Output_Summary!H12 -> 1376.08588
A12: =Output_Summary!B13 -> Transmission | C12: =Output_Summary!D13 -> 293.579347 | D12: =Output_Summary!E13 -> 322.298633 | E12: =Output_Summary!F13 -> 353.8259827 | F12: =Output_Summary!G13 -> 386.4266272 | G12: =Output_Summary!H13 -> 420.3819186
A13: Total | C13: =Output_Summary!D14 -> 1514.826201 | D13: =Output_Summary!E14 -> 1591.657067 | E13: =Output_Summary!F14 -> 1661.946721 | F13: =Output_Summary!G14 -> 1726.451821 | G13: =Output_Summary!H14 -> 1796.467799
A15: =Output_Summary!B16 -> Energy (GWh) | C15: 2018 | D15: 2019 | E15: 2020 | F15: 2021 | G15: 2022
A16: =Output_Summary!B17 -> Distribution | C16: =Output_Summary!D17 -> 13691 | D16: =Output_Summary!E17 -> 13656 | E16: =Output_Summary!F17 -> 13505 | F16: =Output_Summary!G17 -> 13276 | G16: =Output_Summary!H17 -> 13083
A17: =Output_Summary!B18 -> Transmission | C17: =Output_Summary!D18 -> 17698 | D17: =Output_Summary!E18 -> 17663 | E17: =Output_Summary!F18 -> 17628 | F17: =Output_Summary!G18 -> 17502 | G17: =Output_Summary!H18 -> 17309

Sheet Chpt 7 and 8
B2: Table 7.1
B3: AA4 forecast opex [$M real as at 30 June 2017]
C4: 2018 | D4: 2019 | E4: 2020 | F4: 2021 | G4: 2022 | H4: AA4
B5: Distribution | C5: =SUM(Dx_Inputs!P411:P424,Dx_Inputs!P426:P427) -> 207.9819974 | D5: =SUM(Dx_Inputs!Q411:Q424,Dx_Inputs!Q426:Q427) -> 206.715472 | E5: =SUM(Dx_Inputs!R411:R424,Dx_Inputs!R426:R427) -> 205.3584654 | F5: =SUM(Dx_Inputs!S411:S424,Dx_Inputs!S426:S427) -> 211.3471098 | G5: =SUM(Dx_Inputs!T411:T424,Dx_Inputs!T426:T427) -> 212.8922244 | H5: =SUM(C5:G5) -> 1044.295269
B6: Transmission | C6: =SUM(Tx_Inputs!P388:P395,Tx_Inputs!P397) -> 62.96566825 | D6: =SUM(Tx_Inputs!Q388:Q395,Tx_Inputs!Q397) -> 61.66660731 | E6: =SUM(Tx_Inputs!R388:R395,Tx_Inputs!R397) -> 60.80966364 | F6: =SUM(Tx_Inputs!S388:S395,Tx_Inputs!S397) -> 62.17352801 | G6: =SUM(Tx_Inputs!T388:T395,Tx_Inputs!T397) -> 61.94492125 | H6: =SUM(C6:G6) -> 309.5603885
B7: Corporate | C7: =SUM(Dx_Inputs!P425,Tx_Inputs!P396) -> 115.408098 | D7: =SUM(Dx_Inputs!Q425,Tx_Inputs!Q396) -> 84.12073567 | E7: =SUM(Dx_Inputs!R425,Tx_Inputs!R396) -> 83.51482768 | F7: =SUM(Dx_Inputs!S425,Tx_Inputs!S396) -> 83.66490302 | G7: =SUM(Dx_Inputs!T425,Tx_Inputs!T396) -> 84.48973407 | H7: 451.1982985
B8: Total opex | C8: =SUM(C5:C7) -> 386.3557637 | D8: =SUM(D5:D7) -> 352.502815 | E8: 349.6829568 | F8: 357.1855408 | G8: 359.3268797 | H8: 1805.053956
B10: Table 7.17
B11: Summary of AA4 opex by expenditure category
B12: Transmission | C12: 2018 | D12: 2019 | E12: 2020 | F12: 2021 | G12: 2022 | H12: AA4
B13: Operations | C13: =SUM(Tx_Inputs!P388:P390) -> 14.46208757 | D13: =SUM(Tx_Inputs!Q388:Q390) -> 14.21118395 | E13: =SUM(Tx_Inputs!R388:R390) -> 14.06546537 | F13: =SUM(Tx_Inputs!S388:S390) -> 14.28999889 | G13: =SUM(Tx_Inputs!T388:T390) -> 14.23507718 | H13: =SUM(C13:G13) -> 71.26381296
B14: Maintenance | C14: =SUM(Tx_Inputs!P391:P395) -> 42.51388007 | D14: =SUM(Tx_Inputs!Q391:Q395) -> 41.59515956 | E14: =SUM(Tx_Inputs!R391:R395) -> 40.97176356 | F14: =SUM(Tx_Inputs!S391:S395) -> 41.97039859 | G14: =SUM(Tx_Inputs!T391:T395) -> 41.81816188 | H14: 208.8693637
B15: Other | C15: =Tx_Inputs!P397 -> 5.989700613 | D15: =Tx_Inputs!Q397 -> 5.860263808 | E15: =Tx_Inputs!R397 -> 5.772434718 | F15: =Tx_Inputs!S397 -> 5.91313053 | G15: =Tx_Inputs!T397 -> 5.891682187 | H15: 29.42721186
B16: Total transmission opex | C16: =SUM(C13:C15) -> 62.96566825 | D16: =SUM(D13:D15) -> 61.66660731 | E16: 60.80966364 | F16: 62.17352801 | G16: 61.94492125 | H16: 309.5603885
B17: Distribution
B18: Operations | C18: =SUM(Dx_Inputs!P411:P416) -> 21.04000841 | D18: =SUM(Dx_Inputs!Q411:Q416) -> 21.06995672 | E18: =SUM(Dx_Inputs!R411:R416) -> 21.10491574 | F18: =SUM(Dx_Inputs!S411:S416) -> 21.41372997 | G18: =SUM(Dx_Inputs!T411:T416) -> 21.56215456 | H18: =SUM(C18:G18) -> 106.1907654
B19: Maintenance | C19: =SUM(Dx_Inputs!P417:P420) -> 149.8611446 | D19: =SUM(Dx_Inputs!Q417:Q420) -> 148.6393124 | E19: =SUM(Dx_Inputs!R417:R420) -> 147.3245752 | F19: =SUM(Dx_Inputs!S417:S420) -> 152.220731 | G19: =SUM(Dx_Inputs!T417:T420) -> 153.3494833 | H19: 751.3952465
B20: Customer service and billing | C20: =SUM(Dx_Inputs!P421:P424) -> 25.14939783 | D20: =SUM(Dx_Inputs!Q421:Q424) -> 25.17203447 | E20: =SUM(Dx_Inputs!R421:R424) -> 25.19948121 | F20: =SUM(Dx_Inputs!S421:S424) -> 25.59333978 | G20: =SUM(Dx_Inputs!T421:T424) -> 25.77140998 | H20: 126.8856633
B21: Other | C21: =Dx_Inputs!P427 -> 11.93144658 | D21: =Dx_Inputs!Q427 -> 11.83416837 | E21: =Dx_Inputs!R427 -> 11.72949335 | F21: =Dx_Inputs!S427 -> 12.11930902 | G21: =Dx_Inputs!T427 -> 12.20917653 | H21: 59.82359385
B22: Total distribution opex | C22: =SUM(C18:C21) -> 207.9819974 | D22: =SUM(D18:D21) -> 206.715472 | E22: 205.3584654 | F22: 211.3471098 | G22: 212.8922244 | H22: =SUM(C22:G22) -> 1044.295269
B23: Corporate
B24: Business spport | C24: =SUM(Dx_Inputs!P425,Tx_Inputs!P396) -> 115.408098 | D24: =SUM(Dx_Inputs!Q425,Tx_Inputs!Q396) -> 84.12073567 | E24: =SUM(Dx_Inputs!R425,Tx_Inputs!R396) -> 83.51482768 | F24: =SUM(Dx_Inputs!S425,Tx_Inputs!S396) -> 83.66490302 | G24: =SUM(Dx_Inputs!T425,Tx_Inputs!T396) -> 84.48973407 | H24: =SUM(C24:G24) -> 451.1982985
B25: Total corporate opex | C25: =SUM(C24) -> 115.408098 | D25: =SUM(D24) -> 84.12073567 | E25: 83.51482768 | F25: 83.66490302 | G25: 84.48973407 | H25: 451.1982985
B26: Total regulated revenue-cap opex | C26: =SUM(C16,C22,C25) -> 386.3557637 | D26: =SUM(D16,D22,D25) -> 352.502815 | E26: 349.6829568 | F26: 357.1855408 | G26: 359.3268797 | H26: 1805.053956
B28: Table 8.1
B29: AA4 forecast capex summary
C30: 2018 | D30: 2019 | E30: 2020 | F30: 2021 | G30: 2022 | H30: AA4 | I30: % of total WP gross capex
B31: Transmission capex | C31: =SUM(Tx_Inputs!P103:P113) -> 149.4113762 | D31: =SUM(Tx_Inputs!Q103:Q113) -> 188.2025762 | E31: =SUM(Tx_Inputs!R103:R113) -> 192.4193872 | F31: =SUM(Tx_Inputs!S103:S113) -> 211.1634468 | G31: =SUM(Tx_Inputs!T103:T113) -> 206.1449945 | H31: =SUM(C31:G31) -> 947.341781 | I31: =H31/$H$34 -> 0.2156218732
B32: Distribution capex | C32: =SUM(Dx_Inputs!P113:P127) -> 604.2942106 | D32: =SUM(Dx_Inputs!Q113:Q127) -> 617.1813339 | E32: =SUM(Dx_Inputs!R113:R127) -> 563.0732671 | F32: =SUM(Dx_Inputs!S113:S127) -> 538.0216542 | G32: =SUM(Dx_Inputs!T113:T127) -> 554.7571031 | H32: =SUM(C32:G32) -> 2877.327569 | I32: =H32/$H$34 -> 0.6549006627
B33: Corporate capex | C33: =SUM(Dx_Inputs!P129:P130,Tx_Inputs!P115:P116) -> 99.50855188 | D33: =SUM(Dx_Inputs!Q129:Q130,Tx_Inputs!Q115:Q116) -> 120.2361717 | E33: =SUM(Dx_Inputs!R129:R130,Tx_Inputs!R115:R116) -> 221.1240455 | F33: =SUM(Dx_Inputs!S129:S130,Tx_Inputs!S115:S116) -> 61.23859556 | G33: =SUM(Dx_Inputs!T129:T130,Tx_Inputs!T115:T116) -> 66.75612608 | H33: 568.8634907 | I33: 0.1294774641
B34: Gross capex | C34: =SUM(C31:C33) -> 853.2141387 | D34: =SUM(D31:D33) -> 925.6200818 | E34: 976.6166998 | F34: 810.4236965 | G34: 827.6582237 | H34: 4393.532841 | I34: 1
B35: less contributions | C35: 178.2561641 | D35: 194.9275816 | E35: 173.6830528 | F35: 163.1313593 | G35: 169.2583718 | H35: 879.2565296 | J35: Refer to capital expenditure model ("Summary" tab)
B36: AA4 capex to be recovered via tariffs | C36: =C34-C35 -> 674.9579746 | D36: =D34-D35 -> 730.6925002 | E36: 802.933647 | F36: 647.2923372 | G36: 658.3998519 | H36: 3514.276311

Sheet Chpt 10
B2: Inflation
B3: Year ending 30 June | D3: 2006 | E3: 2007 | F3: 2008 | G3: 2009 | H3: 2010 | I3: 2011 | J3: 2012 | K3: 2013 | L3: 2014 | M3: 2015 | N3: 2016 | O3: 2017 | P3: 2018 | Q3: 2019 | R3: 2020 | S3: 2021 | T3: 2022 | U3: 2023 | V3: 2024 | W3: 2025 | X3: 2026 | Y3: 2027 | Z3: 2028 | AA3: 2029 | AB3: 2030 | AC3: 2031 | AD3: 2032
B4: Actual and Forecast Inflation
B5: June CPI | C5: =Dx_Inputs!C29 -> 148.4 | D5: =Dx_Inputs!D29 -> 154.3 | E5: =Dx_Inputs!E29 -> 157.5 | F5: =Dx_Inputs!F29 -> 164.6 | G5: =Dx_Inputs!G29 -> 167 | H5: =Dx_Inputs!H29 -> 172.1 | I5: =Dx_Inputs!I29 -> 178.3 | J5: =Dx_Inputs!J29 -> 180.4
B6: June CPI (rebased) | J6: =Dx_Inputs!J30 -> 100.4 | K6: =Dx_Inputs!K30 -> 102.8 | L6: =Dx_Inputs!L30 -> 105.9 | M6: =Dx_Inputs!M30 -> 107.5 | N6: =Dx_Inputs!N30 -> 108.6 | O6: =Dx_Inputs!O30 -> 110.7 | P6: =Dx_Inputs!P30 -> 0 | Q6: =Dx_Inputs!Q30 -> 0 | R6: =Dx_Inputs!R30 -> 0 | S6: =Dx_Inputs!S30 -> 0 | T6: =Dx_Inputs!T30 -> 0 | U6: =Dx_Inputs!U30 -> 0 | V6: =Dx_Inputs!V30 -> 0 | W6: =Dx_Inputs!W30 -> 0 | X6: =Dx_Inputs!X30 -> 0 | Y6: =Dx_Inputs!Y30 -> 0 | Z6: =Dx_Inputs!Z30 -> 0 | AA6: =Dx_Inputs!AA30 -> 0 | AB6: =Dx_Inputs!AB30 -> 0 | AC6: =Dx_Inputs!AC30 -> 0 | AD6: =Dx_Inputs!AD30 -> 0
B7: Actual & Forecast Inflation | D7: =Dx_Inputs!D31 -> 0.0397574124 | E7: =Dx_Inputs!E31 -> 0.02073882048 | F7: =Dx_Inputs!F31 -> 0.04507936508 | G7: =Dx_Inputs!G31 -> 0.01458080194 | H7: =Dx_Inputs!H31 -> 0.03053892216 | I7: =Dx_Inputs!I31 -> 0.03602556653 | J7: =Dx_Inputs!J31 -> 0.01177790241 | K7: =Dx_Inputs!K31 -> 0.02390438247 | L7: =Dx_Inputs!L31 -> 0.03015564202 | M7: =Dx_Inputs!M31 -> 0.01510859301 | N7: =Dx_Inputs!N31 -> 0.01023255814 | O7: =Dx_Inputs!O31 -> 0.01933701657 | P7: =Dx_Inputs!P31 -> 0.0164 | Q7: =Dx_Inputs!Q31 -> 0.0164 | R7: =Dx_Inputs!R31 -> 0.0164 | S7: =Dx_Inputs!S31 -> 0.0164 | T7: =Dx_Inputs!T31 -> 0.0164 | U7: =Dx_Inputs!U31 -> 0.0164 | V7: =Dx_Inputs!V31 -> 0.0164 | W7: =Dx_Inputs!W31 -> 0.0164 | X7: =Dx_Inputs!X31 -> 0.0164 | Y7: =Dx_Inputs!Y31 -> 0.0164 | Z7: =Dx_Inputs!Z31 -> 0.0164 | AA7: =Dx_Inputs!AA31 -> 0.0164 | AB7: =Dx_Inputs!AB31 -> 0.0164 | AC7: =Dx_Inputs!AC31 -> 0.0164 | AD7: =Dx_Inputs!AD31 -> 0.0164
B8: End of year Inflation factor | D8: =Dx_Inputs!D32 -> 0.7757387478 | E8: =Dx_Inputs!E32 -> 0.7918266544 | F8: =Dx_Inputs!F32 -> 0.8275216972 | G8: =Dx_Inputs!G32 -> 0.8395876272 | H8: =Dx_Inputs!H32 -> 0.8652277284 | I8: =Dx_Inputs!I32 -> 0.8963980475 | J8: =Dx_Inputs!J32 -> 0.9069557362 | K8: =Dx_Inputs!K32 -> 0.928635953 | L8: =Dx_Inputs!L32 -> 0.9566395664 | M8: =Dx_Inputs!M32 -> 0.9710930443 | N8: =Dx_Inputs!N32 -> 0.9810298103 | O8: =Dx_Inputs!O32 -> 1 | P8: =Dx_Inputs!P32 -> 1.0164 | Q8: =Dx_Inputs!Q32 -> 1.03306896 | R8: =Dx_Inputs!R32 -> 1.050011291 | S8: =Dx_Inputs!S32 -> 1.067231476 | T8: =Dx_Inputs!T32 -> 1.084734072 | U8: =Dx_Inputs!U32 -> 1.102523711 | V8: =Dx_Inputs!V32 -> 1.1206051 | W8: =Dx_Inputs!W32 -> 1.138983024 | X8: =Dx_Inputs!X32 -> 1.157662345 | Y8: =Dx_Inputs!Y32 -> 1.176648008 | Z8: =Dx_Inputs!Z32 -> 1.195945035 | AA8: =Dx_Inputs!AA32 -> 1.215558534 | AB8: =Dx_Inputs!AB32 -> 1.235493694 | AC8: =Dx_Inputs!AC32 -> 1.25575579 | AD8: =Dx_Inputs!AD32 -> 1.276350185
B11: Table 10.1 | N11: Figure 10.1
B12: Target Revenue [$M real as at 30 June 2017] | C12: AA4
B13: Transmission tariff revenue | C13: =(Tx_CoS!R93/Tx_CoS!R7)+(Tx_CoS!S93/Tx_CoS!S7)+(Tx_CoS!T93/Tx_CoS!T7)+(Tx_CoS!U93/Tx_CoS!U7)+(Tx_CoS!V93/Tx_CoS!V7) -> 1687.424552
B14: Distribution tariff revenue | C14: =(Dx_CoS!R88/Dx_CoS!R7)+(Dx_CoS!S88/Dx_CoS!S7)+(Dx_CoS!T88/Dx_CoS!T7)+(Dx_CoS!U88/Dx_CoS!U7)+(Dx_CoS!V88/Dx_CoS!V7) -> 6200.284808
B15: Total | C15: =SUM(C13:C14) -> 7887.70936
B17: Chart 1.1
B18: Target Revenue [$M real as at 30 June 2017]
C19: 12/13 | D19: 13/14 | E19: 14/15 | F19: 15/16 | G19: 16/17 | H19: 17/18 | I19: 18/19 | J19: 19/20 | K19: 20/21 | L19: 21/22
B20: Transmission tariff revenue | C20: =Tx_CoS!M84/Tx_CoS!M7 -> 456.2009631 | D20: =Tx_CoS!N84/Tx_CoS!N7 -> 391.9503184 | E20: =Tx_CoS!O84/Tx_CoS!O7 -> 372.1163577 | F20: =Tx_CoS!P84/Tx_CoS!P7 -> 331.1510853 | G20: =Tx_CoS!Q84/Tx_CoS!Q7 -> 290.1375009 | H20: =Tx_CoS!R93/Tx_CoS!R7 -> 288.8423327 | I20: =Tx_CoS!S93/Tx_CoS!S7 -> 311.9817219 | J20: =Tx_CoS!T93/Tx_CoS!T7 -> 336.9735028 | K20: =Tx_CoS!U93/Tx_CoS!U7 -> 362.0832367 | L20: =Tx_CoS!V93/Tx_CoS!V7 -> 387.5437578
B21: Distribution tariff revenue | C21: =Dx_CoS!M88/Dx_CoS!M7 -> 976.0591565 | D21: =Dx_CoS!N88/Dx_CoS!N7 -> 1049.877536 | E21: =Dx_CoS!O88/Dx_CoS!O7 -> 1093.380094 | F21: =Dx_CoS!P88/Dx_CoS!P7 -> 1181.98385 | G21: =Dx_CoS!Q88/Dx_CoS!Q7 -> 1235.035024 | H21: =Dx_CoS!R88/Dx_CoS!R7 -> 1201.541572 | I21: =Dx_CoS!S88/Dx_CoS!S7 -> 1228.725752 | J21: =Dx_CoS!T88/Dx_CoS!T7 -> 1245.815878 | K21: =Dx_CoS!U88/Dx_CoS!U7 -> 1255.608763 | L21: =Dx_CoS!V88/Dx_CoS!V7 -> 1268.592843
B22: Total | C22: =SUM(C20:C21) -> 1432.26012 | D22: =SUM(D20:D21) -> 1441.827855 | E22: 1465.496452 | F22: 1513.134936 | G22: 1525.172525 | H22: 1490.383905 | I22: 1540.707474 | J22: 1582.789381 | K22: 1617.692 | L22: 1656.136601
G23: =SUM(C22:G22) -> 7377.891886 | L23: =SUM(H22:L22) -> 7887.70936
L24: =L23-G23 -> 509.8174742 | M24: =L24/G23 -> 0.06910069734
C26: 2013 | D26: 2014 | E26: 2015 | F26: 2016 | G26: 2017 | H26: 2018 | I26: 2019 | J26: 2020 | K26: 2021 | L26: 2022
B27: Total Raw building block | C27: [$M real as at 30 June 2012] | H27: [$M nominal]
B28: Operating expenditure | C28: 452.3542711 | D28: 455.0458134 | E28: 451.3757453 | F28: 448.9798898 | G28: 460.4900327 | H28: =Output_Summary!P109 -> 392.6919982 | I28: =Output_Summary!Q109 -> 364.1597165 | J28: =Output_Summary!R109 -> 367.1710529 | K28: =Output_Summary!S109 -> 381.199652 | L28: =Output_Summary!T109 -> 389.7741095
B29: Depreciation | C29: 279.3585701 | D29: 308.0042228 | E29: 341.0100794 | F29: 351.7305378 | G29: 372.7658477 | H29: =Output_Summary!P110 -> 383.4898417 | I29: =Output_Summary!Q110 -> 411.2036423 | J29: =Output_Summary!R110 -> 443.1258529 | K29: =Output_Summary!S110 -> 465.8616426 | L29: =Output_Summary!T110 -> 470.1318501
B30: Redundant Assets/Accelerated Depreciation | C30: 3.445294017 | D30: 0.46210429 | E30: 0 | F30: 0 | G30: 0 | H30: =Output_Summary!P111 -> 0 | I30: =Output_Summary!Q111 -> 0 | J30: =Output_Summary!R111 -> 0 | K30: =Output_Summary!S111 -> 0 | L30: =Output_Summary!T111 -> 0
B31: Deferred Revenue Recovery | C31: 34.47442462 | D31: 34.47442462 | E31: 34.47442462 | F31: 34.47442462 | G31: 34.47442462 | H31: =Output_Summary!P112 -> 43.16631672 | I31: =Output_Summary!Q112 -> 43.87424432 | J31: =Output_Summary!R112 -> 44.59378192 | K31: =Output_Summary!S112 -> 45.32511995 | L31: =Output_Summary!T112 -> 46.06845191
B32: Tax costs due to capital contributions and gifted assets | C32: 0 | D32: 0 | E32: 0 | F32: 0 | G32: 0 | H32: =Output_Summary!P113 -> 0 | I32: =Output_Summary!Q113 -> 0 | J32: =Output_Summary!R113 -> 0 | K32: =Output_Summary!S113 -> 0 | L32: =Output_Summary!T113 -> 0
B33: Tax Payable | C33: 76.74196957 | D33: 23.92926531 | E33: 38.65853251 | F33: 49.46141635 | G33: 53.67791554 | H33: =Output_Summary!P114 -> 48.93320311 | I33: =Output_Summary!Q114 -> 58.18988332 | J33: =Output_Summary!R114 -> 63.87843984 | K33: =Output_Summary!S114 -> 61.93827158 | L33: =Output_Summary!T114 -> 69.7499064
B34: Tariff Equalisation | C34: 154 | D34: 209 | E34: 136 | F34: 141 | G34: 150 | H34: =Output_Summary!P115 -> 167 | I34: =Output_Summary!Q115 -> 175 | J34: =Output_Summary!R115 -> 162 | K34: =Output_Summary!S115 -> 157 | L34: =Output_Summary!T115 -> 161
B35: Return on Assets | C35: 230.9531596 | D35: 252.5782484 | E35: 279.0904171 | F35: 299.0943503 | G35: 318.3950808 | H35: =Output_Summary!P116 -> 398.9462735 | I35: =Output_Summary!Q116 -> 418.9649857 | J35: =Output_Summary!R116 -> 441.1257807 | K35: =Output_Summary!S116 -> 466.1554214 | L35: =Output_Summary!T116 -> 483.8088063
B36: Return on Working Capital | C36: 2.557561852 | D36: 3.856115031 | E36: 3.25668832 | F36: 4.029076031 | G36: 4.274698425 | H36: =Output_Summary!P117 -> 8.351674889 | I36: =Output_Summary!Q117 -> 8.687507835 | J36: =Output_Summary!R117 -> 9.269812338 | K36: =Output_Summary!S117 -> 9.623286559 | L36: =Output_Summary!T117 -> 10.31552472
B37: Total | C37: =SUM(C28:C36) -> 1233.885251 | D37: 1287.350194 | E37: 1283.865887 | F37: 1328.769695 | G37: 1394.078 | H37: 1442.579308 | I37: 1480.07998 | J37: 1531.164721 | K37: 1587.103394 | L37: 1630.848649
B39: Total Raw building block | C39: [$M real as at 30 June 2017]
B40: Operating expenditure | C40: =C28/$J$8 -> 498.7611335 | D40: =D28/$J$8 -> 501.7288003 | E40: =E28/$J$8 -> 497.6822212 | F40: =F28/$J$8 -> 495.0405757 | G40: =G28/$J$8 -> 507.7315401 | H40: =H28/P$8 -> 386.3557637 | I40: =I28/Q$8 -> 352.502815 | J40: =J28/R$8 -> 349.6829568 | K40: =K28/S$8 -> 357.1855408 | L40: =L28/T$8 -> 359.3268797
B41: Depreciation | C41: =C29/$J$8 -> 308.0178656 | D41: 339.6022656 | E41: 375.9941812 | F41: 387.8144475 | G41: 411.0077624 | H41: =H29/P$8 -> 377.3020874 | I41: 398.0408455 | J41: 422.0200837 | K41: 436.5141518 | L41: 433.4074702
B42: Redundant Assets/Accelerated Depreciation | C42: 3.798745495 | D42: 0.5095114034 | E42: 0 | F42: 0 | G42: 0 | H42: 0 | I42: 0 | J42: 0 | K42: 0 | L42: 0
B43: Deferred Revenue Recovery | C43: 38.01114348 | D43: 38.01114348 | E43: 38.01114348 | F43: 38.01114348 | G43: 38.01114348 | H43: 42.46981181 | I43: 42.46981181 | J43: 42.46981181 | K43: 42.46981181 | L43: 42.46981181
B44: Tax costs due to capital contributions and gifted assets | C44: 0 | D44: 0 | E44: 0 | F44: 0 | G44: 0 | H44: 0 | I44: 0 | J44: 0 | K44: 0 | L44: 0
B45: Tax Payable | C45: 84.61490071 | D45: 26.38416005 | E45: 42.62449749 | F45: 54.53564532 | G45: 59.18471364 | H45: =H33/P$8 -> 48.14364729 | I45: 56.32720135 | J45: 60.83595519 | K45: 58.03639882 | L45: 64.30138795
B46: Tariff Equalisation | C46: 169.7988048 | D46: 230.4412351 | E46: 149.9521912 | F46: 155.4651394 | G46: 165.3884462 | H46: 164.3053916 | I46: 169.3981784 | J46: 154.2840552 | K46: 147.1096042 | L46: 148.4234746
B47: Return on Assets | C47: 254.6465614 | D47: 278.4901603 | E47: 307.7222029 | F47: 329.7783324 | G47: 351.059118 | H47: 392.5091239 | I47: 405.5537451 | J47: 420.1152735 | K47: 436.7894237 | L47: 446.0160501
B48: Return on Working Capital | C48: 2.819941205 | D48: 4.251712489 | E48: 3.590790807 | F48: 4.442417496 | G48: 4.713238204 | H48: 8.216917443 | I48: 8.409417155 | J48: 8.828297769 | K48: 9.017056537 | L48: 9.50972684 | N48: Figure 10.2
B49: Total | C49: =SUM(C40:C48) -> 1360.469096 | D49: 1419.418989 | E49: 1415.577228 | F49: 1465.087701 | G49: 1537.095962 | H49: 1419.302743 | I49: 1432.702014 | J49: 1458.236434 | K49: 1487.121988 | L49: 1503.454801
B51: Totals | C51: AA3 | D51: AA4 | E51: Delta
B52: Operating expenditure | C52: =SUM(C40:G40) -> 2500.944271 | D52: =SUM(H40:L40) -> 1805.053956 | E52: =D52-C52 -> -695.8903149
B53: Depreciation | C53: 1822.436522 | D53: =SUM(H41:L41) -> 2067.284639 | E53: 244.8481163
B54: Redundant Assets/Accelerated Depreciation | C54: 4.308256898 | D54: 0 | E54: -4.308256898
B55: Deferred Revenue Recovery | C55: 190.0557174 | D55: 212.349059 | E55: 22.29334167
B56: Tax costs due to capital contributions and gifted assets | C56: 0 | D56: 0 | E56: 0
B57: Tax Payable | C57: 267.3439172 | D57: =SUM(H45:L45) -> 287.6445906 | E57: 20.30067338
B58: Tariff Equalisation | C58: 871.0458167 | D58: 783.520704 | E58: -87.52511278
B59: Return on Assets | C59: 1521.696375 | D59: 2100.983616 | E59: 579.2872413
B60: Return on Working Capital | C60: 19.8181002 | D60: 43.98141574 | E60: 24.16331554
B61: Cost of service | C61: =SUM(C52:C57,C59:C60) -> 6326.60316 | D61: =SUM(D52:D57,D59:D60) -> 6517.297276 | E61: 190.6941165
B62: Incentives | C62: 66.76764525 | D62: =E175+((Dx_CoS!R82+Tx_CoS!R78)/Dx_Inputs!P$32) -> 554.5327283 | E62: 487.765083
B63: Total | C63: =SUM(C58,C61:C62) -> 7264.416622 | D63: =SUM(D58,D61:D62) -> 7855.350708 | E63: 590.9340867
E64: =E61/C61 -> 0.03014162761
B71: Table 10.3 | C71: Est closing value
B72: Regulated asset base [$M real as at 30 June 2017] | C72: AA3 | D72: AA4
B73: Transmission RAB | C73: =Tx_Asset!Q10 -> 3131.762985 | D73: =Tx_Asset!V10 -> 3542.181952
B74: Distribution RAB | C74: =Dx_Asset!Q10 -> 5834.933804 | D74: =Dx_Asset!V10 -> 6871.849207
B75: Total | C75: =SUM(C73:C74) -> 8966.696789 | D75: =SUM(D73:D74) -> 10414.03116
B77: Table 10.4
B78: Transmission RAB roll forward [$M real as at 30 June 2017]
C79: 2018 | D79: 2019 | E79: 2020 | F79: 2021 | G79: 2022
B80: Opening RAB | C80: =Tx_Asset!R5 -> 3131.762985 | D80: =Tx_Asset!S5 -> 3183.875862 | E80: =Tx_Asset!T5 -> 3277.351005 | F80: =Tx_Asset!U5 -> 3396.079636 | G80: =Tx_Asset!V5 -> 3473.785592
B81: Net capital expenditure | C81: =SUM(Tx_Asset!R6:R7,Tx_Asset!R9) -> 165.7925908 | D81: =SUM(Tx_Asset!S6:S7,Tx_Asset!S9) -> 210.6855195 | E81: =SUM(Tx_Asset!T6:T7,Tx_Asset!T9) -> 245.578149 | F81: =SUM(Tx_Asset!U6:U7,Tx_Asset!U9) -> 215.9519712 | G81: =SUM(Tx_Asset!V6:V7,Tx_Asset!V9) -> 212.6898485
B82: Forecast depreciation | C82: =-Tx_Asset!R8 -> 113.6797136 | D82: =-Tx_Asset!S8 -> 117.2103769 | E82: =-Tx_Asset!T8 -> 126.8495176 | F82: =-Tx_Asset!U8 -> 138.2460154 | G82: =-Tx_Asset!V8 -> 144.2934884
B83: Closing RAB | C83: =Tx_Asset!R10 -> 3183.875862 | D83: =Tx_Asset!S10 -> 3277.351005 | E83: =Tx_Asset!T10 -> 3396.079636 | F83: =Tx_Asset!U10 -> 3473.785592 | G83: =Tx_Asset!V10 -> 3542.181952
B85: Table 10.5
B86: Distribution RAB roll forward [$M real as at 30 June 2017]
C87: 2018 | D87: 2019 | E87: 2020 | F87: 2021 | G87: 2022
B88: Opening RAB | C88: =Dx_Asset!R5 -> 5834.933804 | D88: =Dx_Asset!S5 -> 6080.819512 | E88: =Dx_Asset!T5 -> 6319.996024 | F88: =Dx_Asset!U5 -> 6582.180956 | G88: =Dx_Asset!V5 -> 6715.253185
B89: Net capital expenditure | C89: =SUM(Dx_Asset!R6:R7,Dx_Asset!R9) -> 509.5080811 | D89: =SUM(Dx_Asset!S6:S7,Dx_Asset!S9) -> 520.0069806 | E89: =SUM(Dx_Asset!T6:T7,Dx_Asset!T9) -> 557.355498 | F89: =SUM(Dx_Asset!U6:U7,Dx_Asset!U9) -> 431.3403661 | G89: =SUM(Dx_Asset!V6:V7,Dx_Asset!V9) -> 445.7100034
B90: Forecast depreciation | C90: =-Dx_Asset!R8 -> 263.6223738 | D90: =-Dx_Asset!S8 -> 280.8304686 | E90: =-Dx_Asset!T8 -> 295.1705661 | F90: =-Dx_Asset!U8 -> 298.2681364 | G90: =-Dx_Asset!V8 -> 289.1139817
B91: Closing RAB | C91: =Dx_Asset!R10 -> 6080.819512 | D91: =Dx_Asset!S10 -> 6319.996024 | E91: =Dx_Asset!T10 -> 6582.180956 | F91: =Dx_Asset!U10 -> 6715.253185 | G91: =Dx_Asset!V10 -> 6871.849207
B93: Table 10.6 | C93: Est closing value
B94: Tax asset base [$M nominal] | C94: AA3 | D94: AA4
B95: Transmission TAB | C95: =Tx_Tax_Asset!Q10 -> 2441.580327 | D95: =Tx_Tax_Asset!V10 -> 2905.488583
B96: Distribution TAB | C96: =Dx_Tax_Asset!Q10 -> 5101.945855 | D96: =Dx_Tax_Asset!V10 -> 6288.639469
B97: Total | C97: =SUM(C95:C96) -> 7543.526182 | D97: =SUM(D95:D96) -> 9194.128052
B99: Table 10.7
B100: Transmission return on capital allowance [$M nominal]
C101: 2018 | D101: 2019 | E101: 2020 | F101: 2021 | G101: 2022
B102: Opening RAB | C102: =Tx_CoS!R22 -> 3131.762985 | D102: =Tx_CoS!S22 -> 3236.091426 | E102: =Tx_CoS!T22 -> 3385.729594 | F102: =Tx_CoS!U22 -> 3565.921963 | G102: =Tx_CoS!V22 -> 3707.333325
B103: Post-tax nominal WACC | C103: =Tx_CoS!R10 -> 0.060892 | D103: =Tx_CoS!S10 -> 0.060892 | E103: =Tx_CoS!T10 -> 0.060892 | F103: =Tx_CoS!U10 -> 0.060892 | G103: =Tx_CoS!V10 -> 0.060892
B104: Indicative return on capital | C104: =Tx_CoS!R61 -> 190.6993117 | D104: =Tx_CoS!S61 -> 197.0520791 | E104: =Tx_CoS!T61 -> 206.1638464 | F104: =Tx_CoS!U61 -> 217.1361202 | G104: =Tx_CoS!V61 -> 225.7469408
B106: Table 10.8
B107: Distribution return on capital allowance [$M nominal]
C108: 2018 | D108: 2019 | E108: 2020 | F108: 2021 | G108: 2022
B109: Opening RAB | C109: =Dx_CoS!R22 -> 5834.933804 | D109: =Dx_CoS!S22 -> 6180.544952 | E109: =Dx_CoS!T22 -> 6528.99172 | F109: =Dx_CoS!U22 -> 6911.364323 | G109: =Dx_CoS!V22 -> 7166.72957
B110: Post-tax nominal WACC | C110: =Dx_CoS!R10 -> 0.060892 | D110: =Dx_CoS!S10 -> 0.060892 | E110: =Dx_CoS!T10 -> 0.060892 | F110: =Dx_CoS!U10 -> 0.060892 | G110: =Dx_CoS!V10 -> 0.060892
B111: Indicative return on capital | C111: =Dx_CoS!R63 -> 355.3007892 | D111: =Dx_CoS!S63 -> 376.3457432 | E111: =Dx_CoS!T63 -> 397.5633638 | F111: =Dx_CoS!U63 -> 420.8467963 | G111: =Dx_CoS!V63 -> 436.3964969
B113: Table 10.9
B114: Inflation deductions for distribution and transmission [$M nominal]
C115: 2018 | D115: 2019 | E115: 2020 | F115: 2021 | G115: 2022
B116: Transmission | C116: =Tx_CoS!R23 -> 51.36091295 | D116: =Tx_CoS!S23 -> 53.07189939 | E116: =Tx_CoS!T23 -> 55.52596534 | F116: =Tx_CoS!U23 -> 58.48112019 | G116: =Tx_CoS!V23 -> 60.80026653
B117: Distribution | C117: =Dx_CoS!R23 -> 95.69291439 | D117: =Dx_CoS!S23 -> 101.3609372 | E117: =Dx_CoS!T23 -> 107.0754642 | F117: =Dx_CoS!U23 -> 113.3463749 | G117: =Dx_CoS!V23 -> 117.5343649
B119: Table 10.10
B120: Forecast depreciation [$M nominal]
C121: 2018 | D121: 2019 | E121: 2020 | F121: 2021 | G121: 2022
B122: Transmission | C122: =-Tx_CoS!R27 -> 115.5440609 | D122: =-Tx_CoS!S27 -> 121.0864022 | E122: =-Tx_CoS!T27 -> 133.1934257 | F122: =-Tx_CoS!U27 -> 147.5404991 | G122: =-Tx_CoS!V27 -> 156.5200633
B123: Distribution | C123: =-Dx_CoS!R27 -> 267.9457807 | D123: =-Dx_CoS!S27 -> 290.1172401 | E123: =-Dx_CoS!T27 -> 309.9324272 | F123: =-Dx_CoS!U27 -> 318.3211435 | G123: =-Dx_CoS!V27 -> 313.6117868
B125: Table 10.11
B126: Transmission asset type | C126: Economic life
B127: =Tx_Inputs!B34 -> Transmission cables | C127: =Tx_Inputs!F34 -> 55
B128: =Tx_Inputs!B35 -> Transmission steel towers | C128: =Tx_Inputs!F35 -> 60
B129: =Tx_Inputs!B36 -> Transmission wood poles | C129: =Tx_Inputs!F36 -> 45
B130: =Tx_Inputs!B37 -> Transmission metering | C130: =Tx_Inputs!F37 -> 40
B131: =Tx_Inputs!B38 -> Transmission transformers | C131: =Tx_Inputs!F38 -> 50
B132: =Tx_Inputs!B39 -> Transmission reactors | C132: =Tx_Inputs!F39 -> 50
B133: =Tx_Inputs!B40 -> Transmission capacitors | C133: =Tx_Inputs!F40 -> 40
B134: =Tx_Inputs!B41 -> Transmission circuit breakers | C134: =Tx_Inputs!F41 -> 50
B135: =Tx_Inputs!B42 -> SCADA and communications | C135: =Tx_Inputs!F42 -> 11
B136: =Tx_Inputs!B43 -> IT | C136: =Tx_Inputs!F43 -> 6
B137: =Tx_Inputs!B44 -> Other non-network assets | C137: =Tx_Inputs!F44 -> 16.85
B138: =Tx_Inputs!B45 -> Land & Easements | C138: =Tx_Inputs!F45 -> 0
B139: =Tx_Inputs!B46 -> Equity raising costs | C139: =Tx_Inputs!F46 -> 49
B141: Table 10.12
B142: Distribution asset type | C142: Economic life
B143: =Dx_Inputs!B38 -> Wooden Pole Lines | C143: =Dx_Inputs!F38 -> 41
B144: =Dx_Inputs!B39 -> Underground Cables | C144: =Dx_Inputs!F39 -> 60
B145: =Dx_Inputs!B40 -> Transformers | C145: =Dx_Inputs!F40 -> 35
B146: =Dx_Inputs!B41 -> Switchgear | C146: =Dx_Inputs!F41 -> 35
B147: =Dx_Inputs!B42 -> Street lighting | C147: =Dx_Inputs!F42 -> 20
B148: =Dx_Inputs!B43 -> Meters and Services | C148: =Dx_Inputs!F43 -> 15
B149: =Dx_Inputs!B44 -> IT | C149: =Dx_Inputs!F44 -> 6
B150: =Dx_Inputs!B45 -> SCADA & Communications | C150: =Dx_Inputs!F45 -> 10.16
B151: =Dx_Inputs!B46 -> Other Distribution Non-Network | C151: =Dx_Inputs!F46 -> 10.16
B152: =Dx_Inputs!B47 -> Distribution Land & Easements | C152: =Dx_Inputs!F47 -> 0
B153: =Dx_Inputs!B48 -> Equity Raising Costs | C153: =Dx_Inputs!F48 -> 43
B155: Paragraph 911
B156: Working capital assumptions | C156: Assumption
B157: =Dx_Inputs!B59 -> Inventory % capex | C157: =Dx_Inputs!C59 -> 0.04
B158: =Dx_Inputs!B57 -> Receivables | C158: =Dx_Inputs!C57 -> 45
B159: =Dx_Inputs!B61 -> Creditors | C159: =Dx_Inputs!C61 -> -24.2
B161: Table 10.13
B162: Forecast working capital [$M nominal]
C163: 2018 | D163: 2019 | E163: 2020 | F163: 2021 | G163: 2022
B164: Transmission | C164: =Tx_CoS!R49 -> 25.43868414 | D164: =Tx_CoS!S49 -> 28.24555712 | E164: =Tx_CoS!T49 -> 30.99472108 | F164: =Tx_CoS!U49 -> 35.59672237 | G164: =Tx_CoS!V49 -> 39.67909287
B165: Distribution | C165: =Dx_CoS!R50 -> 117.2320745 | D165: =Dx_CoS!S50 -> 123.988108 | E165: =Dx_CoS!T50 -> 127.043881 | F165: =Dx_CoS!U50 -> 133.8101738 | G165: =Dx_CoS!V50 -> 137.1765386
B167: Table 10.14
B168: Adjustment mechanism [$M real as at 30 June 2017] | C168: Tx | D168: Dx | E168: Total
B169: =Tx_CoS!B72 -> IAM Revenue Adjustment | C169: =Tx_CoS!R72/Tx_CoS!R$7 -> -33.58075244 | D169: =Dx_CoS!R76/Dx_CoS!R$7 -> -5.886131873 | E169: =SUM(C169:D169) -> -39.46688431
B170: =Tx_CoS!B77 -> GSM Revenue Adjustment | C170: =(Tx_CoS!R77/Tx_CoS!R7)+(Tx_CoS!S77/Tx_CoS!S7)+(Tx_CoS!T77/Tx_CoS!T7)+(Tx_CoS!U77/Tx_CoS!U7)+(Tx_CoS!V77/Tx_CoS!V7) -> 103.6924799 | D170: =(Dx_CoS!R81/Dx_CoS!R7)+(Dx_CoS!S81/Dx_CoS!S7)+(Dx_CoS!T81/Dx_CoS!T7)+(Dx_CoS!U81/Dx_CoS!U7)+(Dx_CoS!V81/Dx_CoS!V7) -> 168.934771 | E170: =SUM(C170:D170) -> 272.6272508
B171: =Tx_CoS!B73 -> SSAM Revenue Adjustment | C171: =Tx_CoS!R73/Tx_CoS!R$7 -> 13.40156612 | D171: =Dx_CoS!R77/Dx_CoS!R$7 -> 241.6973939 | E171: =SUM(C171:D171) -> 255.09896
B172: =Tx_CoS!B76 -> D-Factor Revenue Adjustment | C172: =Tx_CoS!R76/Tx_CoS!R$7 -> 0 | D172: =Dx_CoS!R80/Dx_CoS!R$7 -> 8.775914769 | E172: =SUM(C172:D172) -> 8.775914769
B173: =Tx_CoS!B74 -> Unforeseen Events Revenue Adjustment | C173: =Tx_CoS!R74/Tx_CoS!R$7 -> 5.519326421 | D173: =Dx_CoS!R78/Dx_CoS!R$7 -> 14.19255365 | E173: 19.71188008
B174: =Tx_CoS!B75 -> Technical Rule Change Revenue Adjustment | C174: =Tx_CoS!R75/Tx_CoS!R$7 -> 0 | D174: =Dx_CoS!R79/Dx_CoS!R$7 -> 0 | E174: 0
B175: Total | C175: =SUM(C169:C174) -> 89.03261996 | D175: =SUM(D169:D174) -> 427.7145014 | E175: =SUM(E169:E174) -> 516.7471213
B177: Table 10.15
C179: 2013 | D179: 2014 | E179: 2015 | F179: 2016 | G179: 2017
B180: Forecast IAM transmission capex (net of capital contributions)
B181: Total IAM transmission capex | C181: =Tx_Adjustments!D33 -> 224.9870483 | D181: =Tx_Adjustments!E33 -> 320.7501204 | E181: =Tx_Adjustments!F33 -> 165.5485401 | F181: =Tx_Adjustments!G33 -> 176.3946635 | G181: =Tx_Adjustments!H33 -> 266.4945878
B182: Revenue - return on and return of | C182: =Tx_Adjustments!D72 -> 0 | D182: =Tx_Adjustments!E72 -> 11.36234845 | E182: =Tx_Adjustments!F72 -> 27.44532366 | F182: =Tx_Adjustments!G72 -> 35.5266898 | G182: =Tx_Adjustments!H72 -> 44.06914639
B183: Actual IAM transmission capex (net of capital contributions)
B184: Total IAM transmission capex | C184: =Tx_Adjustments!I33 -> 143.7140136 | D184: =Tx_Adjustments!J33 -> 256.0567309 | E184: =Tx_Adjustments!K33 -> 67.55068465 | F184: =Tx_Adjustments!L33 -> 27.51598343 | G184: =Tx_Adjustments!M33 -> 22.374
B185: Revenue - return on and return of | C185: =Tx_Adjustments!D73 -> 0 | D185: =Tx_Adjustments!E73 -> 8.433175941 | E185: =Tx_Adjustments!F73 -> 22.18452789 | F185: =Tx_Adjustments!G73 -> 26.73393998 | G185: =Tx_Adjustments!H73 -> 29.91063979
B186: Revenue adjustment under IAM | C186: =Tx_Adjustments!D74 -> 0 | D186: =Tx_Adjustments!E74 -> -2.929172508 | E186: =Tx_Adjustments!F74 -> -5.260795768 | F186: =Tx_Adjustments!G74 -> -8.792749819 | G186: =Tx_Adjustments!H74 -> -14.1585066
B188: Table 10.16
C190: 2013 | D190: 2014 | E190: 2015 | F190: 2016 | G190: 2017
B191: Forecast IAM distribution capex (net of capital contributions)
B192: Total IAM transmission capex | C192: =Dx_Adjustments!D29 -> 396.8468761 | D192: =Dx_Adjustments!E29 -> 422.3389833 | E192: =Dx_Adjustments!F29 -> 438.7361305 | F192: =Dx_Adjustments!G29 -> 450.2358077 | G192: =Dx_Adjustments!H29 -> 475.6710561
B193: Revenue - return on and return of | C193: =Dx_Adjustments!D64 -> 0 | D193: =Dx_Adjustments!E64 -> 23.92759937 | E193: =Dx_Adjustments!F64 -> 49.05172858 | F193: =Dx_Adjustments!G64 -> 74.79530463 | G193: =Dx_Adjustments!H64 -> 100.8484787
B194: Actual IAM distribution capex (net of capital contributions)
B195: Total IAM transmission capex | C195: =Dx_Adjustments!I29 -> 424.1382198 | D195: =Dx_Adjustments!J29 -> 439.1800368 | E195: =Dx_Adjustments!K29 -> 362.6964502 | F195: =Dx_Adjustments!L29 -> 281.0118481 | G195: =Dx_Adjustments!M29 -> 168.47
B196: Revenue - return on and return of | C196: =Dx_Adjustments!D65 -> 0 | D196: =Dx_Adjustments!E65 -> 24.91121041 | E196: =Dx_Adjustments!F65 -> 50.64231031 | F196: =Dx_Adjustments!G65 -> 73.6453299 | G196: =Dx_Adjustments!H65 -> 93.59948017
B197: Revenue adjustment under IAM | C197: =Dx_Adjustments!D66 -> 0 | D197: =Dx_Adjustments!E66 -> 0.9836110358 | E197: =Dx_Adjustments!F66 -> 1.590581737 | F197: =Dx_Adjustments!G66 -> -1.149974731 | G197: =Dx_Adjustments!H66 -> -7.248998498
B199: Table 10.17
B200: GSM
C201: 2018 | D201: 2019 | E201: 2020 | F201: 2021 | G201: 2022
B202: =GSM!B116 -> Efficiency and innovation benchmark (adjusted) | C202: =GSM!F116 -> 486.878891 | D202: =GSM!G116 -> 489.2368924 | E202: =GSM!H116 -> 481.6685394 | F202: =GSM!I116 -> 472.9789556 | G202: =GSM!J116 -> 481.4145645
B203: =GSM!B131 -> At | C203: =GSM!F131 -> 489.4523276 | D203: =GSM!G131 -> 485.5870239 | E203: =GSM!H131 -> 457.8606357 | F203: =GSM!I131 -> 482.6476628 | G203: =GSM!J131 -> 420.2769609
B204: =GSM!B133 -> ABSt | C204: =GSM!F133 -> -2.573436597 | D204: =GSM!G133 -> 6.223305101 | E204: =GSM!H133 -> 20.15803518 | F204: =GSM!I133 -> -33.47661084 | G204: =GSM!J133 -> 70.80631079
B205: =GSM!B165 -> Total - ABSt adjusted for service standard performance | C205: =GSM!F165 -> -2.573436597 | D205: =GSM!G165 -> 0 | E205: =GSM!H165 -> 20.15803518 | F205: =GSM!I165 -> -33.47661084 | G205: =GSM!J165 -> 70.80631079
B207: Table 10.18
B208: GSMA
C209: 2018 | D209: 2019 | E209: 2020 | F209: 2021 | G209: 2022
B210: =GSM!B170 -> Total - GSMAt | C210: =GSM!K170 -> 54.91429853 | D210: =GSM!L170 -> 57.48773513 | E210: =GSM!M170 -> 57.48773513 | F210: =GSM!N170 -> 37.32969994 | G210: =GSM!O170 -> 70.80631079
B211: =GSM!B168 -> Distribution - GSMAt | C211: =GSM!K168 -> 36.391446 | D211: =GSM!L168 -> 37.5064299 | E211: =GSM!M168 -> 34.82642979 | F211: =GSM!N168 -> 13.31982208 | G211: =GSM!O168 -> 46.89064318
B212: =GSM!B169 -> Transmission - GSMAt | C212: =GSM!K169 -> 18.52285253 | D212: =GSM!L169 -> 19.98130522 | E212: =GSM!M169 -> 22.66130533 | F212: =GSM!N169 -> 24.00987787 | G212: =GSM!O169 -> 23.91566761
B214: Table 10.19
B215: AA3 transmission SSAM adjustments
C216: 2018 | D216: 2019 | E216: 2020 | F216: 2021 | G216: 2022
B217: Circuit availability (% of total time)
B218: Target | C218: =Adjustments_Inputs!Q32 -> 98.1 | D218: =Adjustments_Inputs!R32 -> 98.1 | E218: =Adjustments_Inputs!S32 -> 98.1 | F218: =Adjustments_Inputs!T32 -> 98.1 | G218: =Adjustments_Inputs!U32 -> 98.1
B219: Performance | C219: =Adjustments_Inputs!E32 -> 98.4 | D219: =Adjustments_Inputs!F32 -> 98 | E219: =Adjustments_Inputs!G32 -> 98.5 | F219: =Adjustments_Inputs!H32 -> 98.7 | G219: =Adjustments_Inputs!I32 -> 98.9
B220: Penalty / reward [$M real as at 30 June 2017] | C220: =Tx_Adjustments!D98 -> 2.703062456 | D220: =Tx_Adjustments!E98 -> -0.4505104094 | E220: =Tx_Adjustments!F98 -> 3.604074454 | F220: =Tx_Adjustments!G98 -> 5.406105066 | G220: =Tx_Adjustments!H98 -> 7.208131267
B221: System minutes interrupted meshed (minutes)
B222: Target | C222: =Adjustments_Inputs!Q33 -> n/a | D222: =Adjustments_Inputs!R33 -> n/a | E222: =Adjustments_Inputs!S33 -> n/a | F222: =Adjustments_Inputs!T33 -> n/a | G222: =Adjustments_Inputs!U33 -> n/a
B223: Performance | C223: =Adjustments_Inputs!E33 -> 4.5 | D223: =Adjustments_Inputs!F33 -> 4.8 | E223: =Adjustments_Inputs!G33 -> 6.6 | F223: =Adjustments_Inputs!H33 -> 6.8 | G223: =Adjustments_Inputs!I33 -> 8.2
B224: Penalty / reward [$M real as at 30 June 2017] | C224: n/a | D224: n/a | E224: n/a | F224: n/a | G224: n/a
B225: System minute interrupted radial (minutes)
B226: Target | C226: =Adjustments_Inputs!Q34 -> 1.9 | D226: =Adjustments_Inputs!R34 -> 1.9 | E226: =Adjustments_Inputs!S34 -> 1.9 | F226: =Adjustments_Inputs!T34 -> 1.9 | G226: =Adjustments_Inputs!U34 -> 1.9
B227: Performance | C227: =Adjustments_Inputs!E34 -> 1.2 | D227: =Adjustments_Inputs!F34 -> 3.7 | E227: =Adjustments_Inputs!G34 -> 1.6 | F227: =Adjustments_Inputs!H34 -> 0.5 | G227: =Adjustments_Inputs!I34 -> 0.7
B228: Penalty / reward [$M real as at 30 June 2017] | C228: =Tx_Adjustments!D99 -> 0.08138225169 | D228: =Tx_Adjustments!E99 -> -0.3414391548 | E228: =Tx_Adjustments!F99 -> 0.03487810787 | F228: =Tx_Adjustments!G99 -> 0.1627645034 | G228: =Tx_Adjustments!H99 -> 0.1395124315
B230: Table 10.20
B231: AA3 distribution SSAM adjustments
B232: [$M real as at 30 June 2017] | C232: 2018 | D232: 2019 | E232: 2020 | F232: 2021 | G232: 2022
B233: =Adjustments_Inputs!B18 -> SAIDI - CBD (minutes per annum)
... 175 more rows

Sheet Chpt 11
B2: Section 1.1
B3: Target Revenue [$M real as at 30 June 2017] | C3: AA4
B4: Transmission tariff revenue | C4: =(Tx_CoS!R93/Tx_CoS!R7)+(Tx_CoS!S93/Tx_CoS!S7)+(Tx_CoS!T93/Tx_CoS!T7)+(Tx_CoS!U93/Tx_CoS!U7)+(Tx_CoS!V93/Tx_CoS!V7) -> 1687.424552
B5: Distribution tariff revenue | C5: =(Dx_CoS!R88/Dx_CoS!R7)+(Dx_CoS!S88/Dx_CoS!S7)+(Dx_CoS!T88/Dx_CoS!T7)+(Dx_CoS!U88/Dx_CoS!U7)+(Dx_CoS!V88/Dx_CoS!V7) -> 6200.284808
B6: Total | C6: =SUM(C4:C5) -> 7887.70936
B8: Table 11.1
B9: Price path | C9: 2013 | D9: 2014 | E9: 2015 | F9: 2016 | G9: 2017 | H9: 2018 | I9: 2019 | J9: 2020 | K9: 2021 | L9: 2022 | M9: 2023 | N9: 2024 | O9: 2025 | P9: 2026 | Q9: 2027
B10: Distribution | C10: =Output_Summary!K95 -> 0.1503618194 | D10: =Output_Summary!L95 -> 0.1059570012 | E10: =Output_Summary!M95 -> 0.0735905528 | F10: =Output_Summary!N95 -> 0.06026515549 | G10: =Output_Summary!O95 -> 0.0721273053 | H10: 0 | I10: =Output_Summary!Q95 -> 0.04205940459 | J10: =Output_Summary!R95 -> 0.04205940459 | K10: =Output_Summary!S95 -> 0.04205940459 | L10: =Output_Summary!T95 -> 0.04205940459 | M10: =Output_Summary!U95 -> -0.03095078543 | N10: =Output_Summary!V95 -> -0.03095078543 | O10: =Output_Summary!W95 -> -0.03095078543 | P10: =Output_Summary!X95 -> -0.03095078543 | Q10: =Output_Summary!Y95 -> -0.03095078543
B11: Transmission | C11: =Output_Summary!K96 -> 0.1267893981 | D11: =Output_Summary!L96 -> -0.143894728 | E11: =Output_Summary!M96 -> -0.04053348377 | F11: =Output_Summary!N96 -> -0.1154660727 | G11: =Output_Summary!O96 -> -0.1013289223 | H11: 0 | I11: =Output_Summary!Q96 -> 0.1 | J11: =Output_Summary!R96 -> 0.1 | K11: =Output_Summary!S96 -> 0.1 | L11: =Output_Summary!T96 -> 0.1 | M11: =Output_Summary!U96 -> 0.05819341032 | N11: =Output_Summary!V96 -> 0.05819341032 | O11: =Output_Summary!W96 -> 0.05819341032 | P11: =Output_Summary!X96 -> 0.05819341032 | Q11: =Output_Summary!Y96 -> 0.05819341032
B12: Bundled (average tariff $/MWh) | C12: =Output_Summary!K97 -> 0.1438180965 | D12: =Output_Summary!L97 -> 0.03763055134 | E12: =Output_Summary!M97 -> 0.04784109778 | F12: =Output_Summary!N97 -> 0.02395950211 | G12: =Output_Summary!O97 -> 0.04117115658 | H12: 0 | I12: =Output_Summary!Q97 -> 0.05114479972 | J12: =Output_Summary!R97 -> 0.05156707151 | K12: =Output_Summary!S97 -> 0.0520049743 | L12: =Output_Summary!T97 -> 0.05245871538 | M12: =Output_Summary!U97 -> -0.01422824359 | N12: =Output_Summary!V97 -> -0.01299968928 | O12: =Output_Summary!W97 -> -0.01170486276 | P12: =Output_Summary!X97 -> -0.01034367347 | Q12: =Output_Summary!Y97 -> -0.008916560521
B14: Average price | C14: 2013 | D14: 2014 | E14: 2015 | F14: 2016 | G14: 2017 | H14: 2018 | I14: 2019 | J14: 2020 | K14: 2021 | L14: 2022 | M14: 2023 | N14: 2024 | O14: 2025 | P14: 2026 | Q14: 2027
B15: Distribution | C15: =Output_Summary!K90 -> 66.45675086 | D15: =Output_Summary!L90 -> 73.49830889 | E15: =Output_Summary!M90 -> 78.90709007 | F15: =Output_Summary!N90 -> 83.66243812 | G15: =Output_Summary!O90 -> 89.69678434 | H15: =Output_Summary!P90 -> 89.20070513 | I15: =Output_Summary!Q90 -> 92.95243368 | J15: =Output_Summary!R90 -> 96.8619577 | K15: =Output_Summary!S90 -> 100.935914 | L15: =Output_Summary!T90 -> 105.1812184 | M15: =Output_Summary!U90 -> 101.9257771 | N15: =Output_Summary!V90 -> 98.77109423 | O15: =Output_Summary!W90 -> 95.71405128 | P15: =Output_Summary!X90 -> 92.75162622 | Q15: =Output_Summary!Y90 -> 89.88089054
B16: Transmission | C16: =Output_Summary!K91 -> 25.01444356 | D16: =Output_Summary!L91 -> 21.41499701 | E16: =Output_Summary!M91 -> 20.54697257 | F16: =Output_Summary!N91 -> 18.17449434 | G16: =Output_Summary!O91 -> 16.33289242 | H16: =Output_Summary!P91 -> 16.58827817 | I16: =Output_Summary!Q91 -> 18.24710598 | J16: =Output_Summary!R91 -> 20.07181658 | K16: =Output_Summary!S91 -> 22.07899824 | L16: =Output_Summary!T91 -> 24.28689806 | M16: =Output_Summary!U91 -> 25.70023549 | N16: =Output_Summary!V91 -> 27.19581984 | O16: =Output_Summary!W91 -> 28.77843734 | P16: =Output_Summary!X91 -> 30.45315275 | Q16: =Output_Summary!Y91 -> 32.22532557
B17: Bundled (average tariff $/MWh) | C17: =Output_Summary!K92 -> 91.47119442 | D17: =Output_Summary!L92 -> 94.9133059 | E17: =Output_Summary!M92 -> 99.45406264 | F17: =Output_Summary!N92 -> 101.8369325 | G17: =Output_Summary!O92 -> 106.0296768 | H17: =Output_Summary!P92 -> 105.7889833 | I17: =Output_Summary!Q92 -> 111.1995397 | J17: =Output_Summary!R92 -> 116.9337743 | K17: =Output_Summary!S92 -> 123.0149122 | L17: =Output_Summary!T92 -> 129.4681165 | M17: =Output_Summary!U92 -> 127.6260126 | N17: =Output_Summary!V92 -> 125.9669141 | O17: =Output_Summary!W92 -> 124.4924886 | P17: =Output_Summary!X92 -> 123.204779 | Q17: =Output_Summary!Y92 -> 122.1062161
G20: Figure 11.2

Sheet INPUTS -->

Sheet Dx_Inputs
B1: Validation status | C1: =IF(COUNTIF(N6:N24,"CHECK")+COUNTIF(E133:AD133,"CHECK")+COUNTIF(E148:AD148,"CHECK")+COUNTIF(E163:AD163,"CHECK")+COUNTIF(E249:AD249,"CHECK")+COUNTIF(K408:O408,"CHECK")+COUNTIF(K429:AD429,"CHECK")>0,"CHECK","OK") -> OK
B2: Allocation of capex and contributions from regulatory category to asset class
B3: % matrix
B4: Distribution
B5: Growth | C5: Wooden Pole Lines | D5: Underground Cables | E5: Transformers | F5: Switchgear | G5: Street lighting | H5: Meters and Services | I5: IT | J5: SCADA & Communications | K5: Other Distribution Non-Network | L5: Distribution Land & Easements | M5: Equity Raising Costs
B6: Capacity Expansion | C6: 0.4528455475 | D6: 0.3937764732 | E6: 0.07362193862 | F6: 0.07840838279 | G6: 0.001347657887 | H6: 0 | I6: 0 | J6: 0 | K6: 0 | L6: 0 | M6: 0 | N6: =IF(SUM(C6:M6)=1,"OK","CHECK") -> OK
B7: Customer Driven | C7: 0.1296069327 | D7: 0.2456531962 | E7: 0.4807318146 | F7: 0.137064576 | G7: 0.006943480447 | H7: 0 | I7: 0 | J7: 0 | K7: 0 | L7: 0 | M7: 0 | N7: =IF(SUM(C7:M7)=1,"OK","CHECK") -> OK
B8: Gifted Assets | C8: 0.1296069327 | D8: 0.2456531962 | E8: 0.4807318146 | F8: 0.137064576 | G8: 0.006943480447 | H8: 0 | I8: 0 | J8: 0 | K8: 0 | L8: 0 | M8: 0 | N8: =IF(SUM(C8:M8)=1,"OK","CHECK") -> OK
B9: Asset replacement and renewal
B10: Asset Replacement | C10: 0 | D10: 0.1830563095 | E10: 0.5163548429 | F10: 0.2653017117 | G10: 0.03528713594 | H10: 0 | I10: 0 | J10: 0 | K10: 0 | L10: 0 | M10: 0 | N10: =IF(SUM(C10:M10)=1,"OK","CHECK") -> OK
B11: State Undergrounding Power Program (SUPP) | C11: 0.01428742804 | D11: 0.634002595 | E11: 0.2356579095 | F11: 0.09126369846 | G11: 0.024788369 | H11: 0 | I11: 0 | J11: 0 | K11: 0 | L11: 0 | M11: 0 | N11: =IF(SUM(C11:M11)=1,"OK","CHECK") -> OK
B12: Metering | C12: 0 | D12: 0 | E12: 0 | F12: 0 | G12: 0 | H12: 1 | I12: 0 | J12: 0 | K12: 0 | L12: 0 | M12: 0 | N12: =IF(SUM(C12:M12)=1,"OK","CHECK") -> OK
B13: Smartgrid | C13: 0 | D13: 0 | E13: 0 | F13: 0 | G13: 0 | H13: 0.65 | I13: 0 | J13: 0.35 | K13: 0 | L13: 0 | M13: 0 | N13: =IF(SUM(C13:M13)=1,"OK","CHECK") -> OK
B14: Wood Pole Management | C14: 1 | D14: 0 | E14: 0 | F14: 0 | G14: 0 | H14: 0 | I14: 0 | J14: 0 | K14: 0 | L14: 0 | M14: 0 | N14: =IF(SUM(C14:M14)=1,"OK","CHECK") -> OK
B15: Improvement in service
B16: Reliability Driven | C16: 0.2565746422 | D16: 0.4740034641 | E16: 0.05138636275 | F16: 0.216527421 | G16: 0.001508109905 | H16: 0 | I16: 0 | J16: 0 | K16: 0 | L16: 0 | M16: 0 | N16: =IF(SUM(C16:M16)=1,"OK","CHECK") -> OK
B17: Rural Power Improvement Program (RPIP)
B18: SCADA & Communications | C18: 0 | D18: 0 | E18: 0 | F18: 0 | G18: 0 | H18: 0 | I18: 0 | J18: 1 | K18: 0 | L18: 0 | M18: 0 | N18: =IF(SUM(C18:M18)=1,"OK","CHECK") -> OK
B19: Compliance
B20: Safety, Environmental & Statutory | C20: 0.416205545 | D20: 0.02604003539 | E20: 0.2774890424 | F20: 0.2651954455 | G20: 0.01506993179 | H20: 0 | I20: 0 | J20: 0 | K20: 0 | L20: 0 | M20: 0 | N20: =IF(SUM(C20:M20)=1,"OK","CHECK") -> OK
B21: Corporate
B22: IT | C22: 0 | D22: 0 | E22: 0 | F22: 0 | G22: 0 | H22: 0 | I22: 1 | J22: 0 | K22: 0 | L22: 0 | M22: 0 | N22: =IF(SUM(C22:M22)=1,"OK","CHECK") -> OK
B23: Business Support | C23: 0 | D23: 0 | E23: 0 | F23: 0 | G23: 0 | H23: 0 | I23: 0 | J23: 0 | K23: 1 | L23: 0 | M23: 0 | N23: =IF(SUM(C23:M23)=1,"OK","CHECK") -> OK
B24: Equity Raising Costs | C24: 0 | D24: 0 | E24: 0 | F24: 0 | G24: 0 | H24: 0 | I24: 0 | J24: 0 | K24: 0 | L24: 0 | M24: 1 | N24: =IF(SUM(C24:M24)=1,"OK","CHECK") -> OK
B26: Inflation
B27: Year ending 30 June | D27: 2006 | E27: 2007 | F27: 2008 | G27: 2009 | H27: 2010 | I27: 2011 | J27: 2012 | K27: 2013 | L27: 2014 | M27: 2015 | N27: 2016 | O27: 2017 | P27: 2018 | Q27: 2019 | R27: 2020 | S27: 2021 | T27: 2022 | U27: 2023 | V27: 2024 | W27: 2025 | X27: 2026 | Y27: 2027 | Z27: 2028 | AA27: 2029 | AB27: 2030 | AC27: 2031 | AD27: 2032
B28: Actual and Forecast Inflation
B29: June CPI | C29: 148.4 | D29: 154.3 | E29: 157.5 | F29: 164.6 | G29: 167 | H29: 172.1 | I29: 178.3 | J29: 180.4
B30: June CPI (rebased) | J30: 100.4 | K30: 102.8 | L30: 105.9 | M30: 107.5 | N30: 108.6 | O30: 110.7
B31: Actual & Forecast Inflation | D31: =D29/C29-1 -> 0.0397574124 | E31: 0.02073882048 | F31: 0.04507936508 | G31: 0.01458080194 | H31: 0.03053892216 | I31: 0.03602556653 | J31: 0.01177790241 | K31: =K30/J30-1 -> 0.02390438247 | L31: =L30/K30-1 -> 0.03015564202 | M31: =M30/L30-1 -> 0.01510859301 | N31: =N30/M30-1 -> 0.01023255814 | O31: =O30/N30-1 -> 0.01933701657 | P31: =WACC_Inputs!$L$6 -> 0.0164 | Q31: =WACC_Inputs!$L$6 -> 0.0164 | R31: =WACC_Inputs!$L$6 -> 0.0164 | S31: =WACC_Inputs!$L$6 -> 0.0164 | T31: =WACC_Inputs!$L$6 -> 0.0164 | U31: =WACC_Inputs!$N$6 -> 0.0164 | V31: =WACC_Inputs!$N$6 -> 0.0164 | W31: =WACC_Inputs!$N$6 -> 0.0164 | X31: =WACC_Inputs!$N$6 -> 0.0164 | Y31: =WACC_Inputs!$N$6 -> 0.0164 | Z31: =WACC_Inputs!$N$6 -> 0.0164 | AA31: =WACC_Inputs!$N$6 -> 0.0164 | AB31: =WACC_Inputs!$N$6 -> 0.0164 | AC31: =WACC_Inputs!$N$6 -> 0.0164 | AD31: =WACC_Inputs!$N$6 -> 0.0164
B32: End of year Inflation factor | D32: =E32/(1+E31) -> 0.7757387478 | E32: 0.7918266544 | F32: 0.8275216972 | G32: 0.8395876272 | H32: 0.8652277284 | I32: 0.8963980475 | J32: 0.9069557362 | K32: 0.928635953 | L32: 0.9566395664 | M32: 0.9710930443 | N32: 0.9810298103 | O32: 1 | P32: =O32*(1+P31) -> 1.0164 | Q32: 1.03306896 | R32: 1.050011291 | S32: 1.067231476 | T32: 1.084734072 | U32: 1.102523711 | V32: 1.1206051 | W32: 1.138983024 | X32: 1.157662345 | Y32: 1.176648008 | Z32: 1.195945035 | AA32: 1.215558534 | AB32: 1.235493694 | AC32: 1.25575579 | AD32: 1.276350185
B34: Initial capital base - asset data
C37: Remaining life @ 30 June 2006 | D37: Standard life (AA1/AA2) | E37: Standard life (AA3) | F37: Standard life (AA4+) | G37: ICB ($M @ 30 June 2006) | H37: ICB ($M @ 30 June 2017) | J37: Tax life | K37: Tax ICB @ 30 June 2012
B38: Wooden Pole Lines | C38: 14.5 | D38: 41 | E38: 41 | F38: 41 | G38: 472.5939602 | H38: =G38/D$32 -> 609.2179378 | J38: 45 | K38: 2747.935154
B39: Underground Cables | C39: 36.9 | D39: 60 | E39: 60 | F39: 60 | G39: 535.2080615 | H39: 689.9333868 | J39: 50 | K39: 110.2319941
B40: Transformers | C40: 16.9 | D40: 35 | E40: 35 | F40: 35 | G40: 203.7623314 | H40: 262.6687554 | J40: 40 | K40: 32.22184132
B41: Switchgear | C41: 13.5 | D41: 35 | E41: 35 | F41: 35 | G41: 108.607514 | H41: 140.0052715 | J41: 30 | K41: 25.6890398
B42: Street lighting | C42: 1.2 | D42: 20 | E42: 20 | F42: 20 | G42: 5.256461486 | H42: 6.776071842 | J42: 15 | K42: 35.1250608
B43: Meters and Services | C43: 9.2 | D43: 25 | E43: 25 | F43: 15 | G43: 168.2064526 | H43: 216.8338929 | J43: 25 | K43: 3.246493062
B44: IT | C44: 9.8 | D44: 10.16 | E44: 6 | F44: 6 | G44: 15.41481432 | H44: 19.87114137 | J44: 4 | K44: 31.47250339
B45: SCADA & Communications | C45: 10.2 | D45: 10.16 | E45: 10.16 | F45: 10.16 | G45: 12.82523809 | H45: 16.53293473 | J45: 10 | K45: 15.86631549
B46: Other Distribution Non-Network | C46: 11.3 | D46: 10.16 | E46: 10.16 | F46: 10.16 | G46: 51.22111724 | H46: 66.02882399 | J46: 10 | K46: 107.6731485
B47: Distribution Land & Easements | D47: 0 | E47: 0 | F47: 0 | G47: 21.41871547 | H47: 27.61073303 | J47: 0 | K47: 18.23082961
B48: Equity Raising Costs | E48: =ROUND(SUMPRODUCT(Dx_Asset!M15:M23,E38:E46)/SUM(Dx_Asset!M15:M23),0) -> 44 | F48: =ROUND(SUMPRODUCT(Dx_Asset!R15:R23,Dx_Inputs!F38:F46)/SUM(Dx_Asset!R15:R23),0) -> 43 | G48: 0 | H48: 0 | J48: 5
B49: Total | G49: =SUM(G38:G48) -> 1594.514666 | H49: =SUM(H38:H48) -> 2055.478949 | K49: =SUM(K38:K48) -> 3127.69238
B51: Working capital assumptions
C54: Input
B55: 2017 Closing balance (real as at 30 June 2012) | C55: 107.8
B57: Receivables | C57: 45 | D57: days
B58: TEC | C58: 0 | D58: days
B59: Inventory % capex | C59: 0.04 | D59: Percent
B60: Prepayments | C60: 0
B61: Creditors | C61: -24.2 | D61: Days
B63: Capital expenditure
B64: Year ending 30 June | D64: 2006 | E64: 2007 | F64: 2008 | G64: 2009 | H64: 2010 | I64: 2011 | J64: 2012 | K64: 2013 | L64: 2014 | M64: 2015 | N64: 2016 | O64: 2017 | P64: 2018 | Q64: 2019 | R64: 2020 | S64: 2021 | T64: 2022 | U64: 2023 | V64: 2024 | W64: 2025 | X64: 2026 | Y64: 2027 | Z64: 2028 | AA64: 2029 | AB64: 2030 | AC64: 2031 | AD64: 2032
B65: [ACTUAL] Capital expenditure by regulatory category [$M nominal]
B66: Growth | R66: Proposed AA4 | W66: Forecast AA5 | AB66: Forecast AA6
B67: Capacity Expansion | P67: =P113*P$32 -> 44.50057922 | Q67: =Q113*Q$32 -> 42.91972764 | R67: 35.19149212 | S67: 34.67481595 | T67: 40.87950828 | U67: 24.99031913 | V67: 36.52661363 | W67: 37.79284104 | X67: 40.24655542 | Y67: 40.73778889 | Z67: 42.38373898 | AA67: 43.0788323 | AB67: 43.78532515 | AC67: 44.50340448 | AD67: 45.23326031
B68: Customer Driven | P68: =P114*P$32 -> 122.7063806 | Q68: 134.8756804 | R68: 124.0192488 | S68: 129.9692609 | T68: 132.8272486 | U68: 138.773077 | V68: 141.3861959 | W68: 146.2874736 | X68: 150.5290922 | Y68: 153.112587 | Z68: 158.5225291 | AA68: 161.1222986 | AB68: 163.7647043 | AC68: 166.4504455 | AD68: 169.1802328
B69: Gifted Assets | P69: 81.6047232 | Q69: 83.20845839 | R69: 84.91136942 | S69: 86.6836531 | T69: 88.52817029 | U69: 91.51598905 | V69: 93.66796923 | W69: 95.87055279 | X69: 98.12492967 | Y69: 100.4323178 | Z69: 102.7939636 | AA69: 104.4797846 | AB69: 106.1932531 | AC69: 107.9348225 | AD69: 109.7049535
B70: Asset replacement and renewal
B71: Asset Replacement | P71: =P117*P$32 -> 75.54333972 | Q71: 80.12325412 | R71: 87.68323085 | S71: 96.00006028 | T71: 109.6689919 | U71: 117.9378279 | V71: 113.0310262 | W71: 114.408992 | X71: 125.7013966 | Y71: 130.604591 | Z71: 124.5711064 | AA71: 126.6140726 | AB71: 128.6905433 | AC71: 130.8010683 | AD71: 132.9462058
B72: State Undergrounding Power Program (SUPP) | P72: 39.9929067 | Q72: 52.34583295 | R72: 34.52742627 | S72: 8.927978622 | T72: 19.74401916 | U72: 20.62783292 | V72: 21.01625826 | W72: 21.74480546 | X72: 22.37529808 | Y72: 22.75931997 | Z72: 23.56347726 | AA72: 23.94991829 | AB72: 24.34269695 | AC72: 24.74191718 | AD72: 25.14768462
B73: Metering | P73: 24.58772647 | Q73: 31.85450041 | R73: 37.19271837 | S73: 39.9680344 | T73: 41.2367924 | U73: 43.49274741 | V73: 44.7311553 | W73: 46.71979127 | X73: 48.52689838 | Y73: 49.82358686 | Z73: 51.58400855 | AA73: 52.42998629 | AB73: 53.28983807 | AC73: 54.16379141 | AD73: 55.05207759
B74: Smartgrid | P74: 0 | Q74: 0 | R74: 0 | S74: 0 | T74: 0 | U74: 0 | V74: 0 | W74: 0 | X74: 0 | Y74: 0 | Z74: 0 | AA74: 0 | AB74: 0 | AC74: 0 | AD74: 0
B75: Wood Pole Management | P75: 168.8005534 | Q75: 131.8289142 | R75: 124.0352348 | S75: 123.5292835 | T75: 115.2060751 | U75: 136.8576428 | V75: 138.367936 | W75: 141.8119016 | X75: 138.3340456 | Y75: 138.1350298 | Z75: 154.5520424 | AA75: 157.0866959 | AB75: 159.6629177 | AC75: 162.2813896 | AD75: 164.9428043
B76: Improvement in service
B77: Reliability Driven | P77: =P123*P$32 -> 5.165100702 | Q77: 10.95782602 | R77: 3.381156215 | S77: 2.227634809 | T77: 2.276619876 | U77: 2.378529621 | V77: 2.423317709 | W77: 2.507324163 | X77: 2.580024256 | Y77: 2.624304596 | Z77: 2.717029408 | AA77: 2.76158869 | AB77: 2.806878745 | AC77: 2.852911556 | AD77: 2.899699306
B78: Rural Power Improvement Program (RPIP) | P78: 0 | Q78: 0 | R78: 0 | S78: 0 | T78: 0 | U78: 0 | V78: 0 | W78: 0 | X78: 0 | Y78: 0 | Z78: 0 | AA78: 0 | AB78: 0 | AC78: 0 | AD78: 0
B79: SCADA & Communications | P79: 23.13984768 | Q79: 24.86956941 | R79: 16.46541108 | S79: 15.72290414 | T79: 14.03179611 | U79: 17.39329344 | V79: 19.83385221 | W79: 16.88139589 | X79: 16.71168742 | Y79: 18.06410861 | Z79: 18.25708516 | AA79: 18.55650136 | AB79: 18.86082798 | AC79: 19.17014556 | AD79: 19.48453595
B80: Compliance
B81: Safety, Environmental & Statutory | P81: =P127*P$32 -> 28.16347794 | Q81: 44.60711517 | R81: 43.82600013 | S81: 36.49001849 | T81: 37.36470989 | U81: 30.5334673 | V81: 30.55045583 | W81: 31.24287212 | X81: 31.91365938 | Y81: 32.47173151 | Z81: 32.8360476 | AA81: 33.37455878 | AB81: 33.92190154 | AC81: 34.47822073 | AD81: 35.04366355
B82: Corporate
B83: IT | P83: =P129*P$32 -> 42.56264795 | Q83: 45.42836837 | R83: 41.38596509 | S83: 30.95966716 | T83: 23.85109355 | U83: 31.09227983 | V83: 31.51897608 | W83: 36.94304616 | X83: 33.12199968 | Y83: 38.48168675 | Z83: 27.32154529 | AA83: 27.76961863 | AB83: 28.22504037 | AC83: 28.68793104 | AD83: 29.15841311
B84: Business Support | P84: 29.06685012 | Q84: 42.38134152 | R84: 121.7362754 | S84: 15.40705891 | T84: 27.27837231 | U84: 31.43175428 | V84: 36.01860055 | W84: 24.46721568 | X84: 15.48854833 | Y84: 36.61332531 | Z84: 35.21575821 | AA84: 35.79329665 | AB84: 36.38030671 | AC84: 36.97694374 | AD84: 37.58336562
B85: Equity Raising Costs | P85: =Tax_Analysis!G204 -> 0.1064338537 | Q85: =Tax_Analysis!H204 -> 0 | R85: =Tax_Analysis!I204 -> 0 | S85: =Tax_Analysis!J204 -> 0 | T85: =Tax_Analysis!K204 -> 0
B86: Total | P86: =SUM(P67:P85) -> 685.9405675 | Q86: 725.4005886 | R86: 754.3555285 | S86: 620.5603702 | T86: 652.8933975 | U86: 687.0247607 | V86: 709.0723569 | W86: 716.6782117 | X86: 723.6541351 | Y86: 763.8603781 | Z86: 774.318332 | AA86: 787.0171527 | AB86: 799.924234 | AC86: 813.0429914 | AD86: 826.3768965
B88: [APPROVED] Capital expenditure by regulatory category [$M real as at 30 June 2017]
B89: Growth | M89: Approved AA3
B90: Capacity Expansion | K90: 62.69763724 | L90: 67.60535878 | M90: 75.08049694 | N90: 75.49386332 | O90: 84.17908148
B91: Customer Driven | K91: 223.7016743 | L91: 224.5384539 | M91: 230.8361627 | N91: 232.4713725 | O91: 239.69248
B92: Gifted Assets | K92: 69.99652515 | L92: 69.99652515 | M92: 69.99652515 | N92: 69.99652515 | O92: 69.99652515
B93: Asset replacement and renewal
B94: Asset Replacement | K94: 46.4224666 | L94: 41.11735755 | M94: 38.71512957 | N94: 40.34627127 | O94: 40.48394518
B95: State Undergrounding Power Program (SUPP) | K95: 42.4274403 | L95: 20.49711573 | M95: 0 | N95: 0 | O95: 0
B96: Metering | K96: 14.85518931 | L96: 49.09700646 | M96: 48.67364556 | N96: 44.30178806 | O96: 17.77623655
B97: Smartgrid | K97: 2.730733329 | L97: 26.48800123 | M97: 29.31608077 | N97: 22.26390879 | O97: 17.20280957
B98: Wood Pole Management | K98: 181.4299224 | L98: 207.6925285 | M98: 219.5349255 | N98: 231.3412249 | O98: 245.0826936
B99: Improvement in service
B100: Reliability Driven | K100: 0.6553759991 | L100: 0.6649707421 | M100: 0.6713606284 | N100: 0.6780885927 | O100: 0.6881123827
B101: Rural Power Improvement Program (RPIP) | K101: 0 | L101: 0 | M101: 0 | N101: 0 | O101: 0
B102: SCADA & Communications | K102: 5.679925325 | L102: 6.982192792 | M102: 7.720647226 | N102: 4.294561087 | O102: 7.683921607
B103: Compliance
B104: Safety, Environmental & Statutory | K104: 124.5214398 | L104: 124.3495288 | M104: 124.7611834 | N104: 93.46321103 | O104: 100.8084641
B105: Corporate
B106: IT | K106: 28.32217572 | L106: 27.28615755 | M106: 15.97107321 | N106: 16.69465828 | O106: 16.94144572
B107: Business Support | K107: 22.5351927 | L107: 22.03616268 | M107: 15.27364643 | N107: 15.42670955 | O107: 12.72395501
B108: Equity Raising Costs | K108: 5.530749116 | L108: 4.737968109 | M108: 3.79857986 | N108: 1.592624457 | O108: 0
B109: Total | K109: =SUM(K90:K108) -> 831.5064474 | L109: =SUM(L90:L108) -> 893.0893279 | M109: =SUM(M90:M108) -> 880.349457 | N109: =SUM(N90:N108) -> 848.364807 | O109: =SUM(O90:O108) -> 853.2596703
B111: [ACTUAL] Capital expenditure by regulatory category [$M real as at 30 June 2017]
B112: Growth | M112: Actual AA3 | R112: Proposed AA4 | W112: Forecast AA5 | AB112: Forecast AA6
B113: Capacity Expansion | K113: 52.19591148 | L113: 41.11370822 | M113: 26.93253767 | N113: 25.92989503 | O113: 35.492 | P113: 43.78254547 | Q113: 41.5458496 | R113: 33.51534638 | S113: 32.49043598 | T113: 37.68620285 | U113: 22.66646865 | V113: 32.59543762 | W113: 33.1812154 | X113: 34.76536625 | Y113: 34.62189935 | Z113: 35.43953755 | AA113: =Z113 -> 35.43953755 | AB113: 35.43953755 | AC113: 35.43953755 | AD113: 35.43953755
B114: Customer Driven | K114: 202.9762033 | L114: 186.9471076 | M114: 153.6989693 | N114: 143.1669033 | O114: 131.167 | P114: 120.7264665 | Q114: 130.5582547 | R114: 118.1123002 | S114: 121.7816976 | T114: 122.4514395 | U114: 125.8685646 | V114: 126.1695096 | W114: 128.4369218 | X114: 130.0284948 | Y114: 130.1260751 | Z114: 132.5500123 | AA114: =Z114 -> 132.5500123 | AB114: 132.5500123 | AC114: 132.5500123 | AD114: 132.5500123
B115: Gifted Assets | K115: 62.01030642 | L115: 61.81847592 | M115: 152.27892 | N115: 126.1664006 | O115: 82.347 | P115: 80.288 | Q115: 80.5449216 | R115: 80.86710129 | S115: 81.22291653 | T115: 81.61278653 | U115: 83.00591464 | V115: 83.58695604 | W115: 84.17206473 | X115: 84.76126919 | Y115: 85.35459807 | Z115: 85.95208026 | AA115: 85.95208026 | AB115: 85.95208026 | AC115: 85.95208026 | AD115: 85.95208026
B116: Asset replacement and renewal
B117: Asset Replacement | K117: 52.53296498 | L117: 47.25917847 | M117: 97.30581488 | N117: 139.4483619 | O117: 114.918 | P117: 74.32441925 | Q117: 77.55847598 | R117: 83.50694093 | S117: 89.95242591 | T117: 101.1021915 | U117: 106.970786 | V117: 100.8660644 | W117: 100.4483733 | X117: 108.5820897 | Y117: 110.9971633 | Z117: 104.1612305 | AA117: 104.1612305 | AB117: 104.1612305 | AC117: 104.1612305 | AD117: 104.1612305
B118: State Undergrounding Power Program (SUPP) | K118: 31.97162451 | L118: 19.82355807 | M118: 15.74102512 | N118: 10.97825967 | O118: 10.389 | P118: 39.34760597 | Q118: 50.67022142 | R118: 32.88290951 | S118: 8.365550325 | T118: 18.20171382 | U118: 18.70965015 | V118: 18.75438391 | W118: 19.09142192 | X118: 19.32800024 | Y118: 19.342505 | Z118: 19.70280955 | AA118: 19.70280955 | AB118: 19.70280955 | AC118: 19.70280955 | AD118: 19.70280955
B119: Metering | K119: 12.18776848 | L119: 12.04006232 | M119: 17.18269953 | N119: 27.00733425 | O119: 24.481 | P119: 24.19099417 | Q119: 30.83482482 | R119: 35.42125565 | S119: 37.45020203 | T119: 38.01557769 | U119: 39.4483556 | V119: 39.91696566 | W119: 41.01886534 | X119: 41.91800708 | Y119: 42.34366313 | Z119: 43.13242419 | AA119: 43.13242419 | AB119: 43.13242419 | AC119: 43.13242419 | AD119: 43.13242419
B120: Smartgrid | K120: 0.8410184825 | L120: 0.5738838527 | M120: -1.36856093 | N120: 0 | O120: 0 | P120: 0 | Q120: 0 | R120: 0 | S120: 0 | T120: 0 | U120: 0 | V120: 0 | W120: 0 | X120: 0 | Y120: 0 | Z120: 0 | AA120: 0 | AB120: 0 | AC120: 0 | AD120: 0
B121: Wood Pole Management | K121: 233.5210039 | L121: 295.2637649 | M121: 241.206547 | N121: 190.0502901 | O121: 81.72 | P121: 166.0768923 | Q121: 127.6090167 | R121: 118.1275248 | S121: 115.747414 | T121: 106.2067451 | U121: 124.1312467 | V121: 123.4760898 | W121: 124.5074761 | X121: 119.4942949 | Y121: 117.3970711 | Z121: 129.2300548 | AA121: 129.2300548 | AB121: 129.2300548 | AC121: 129.2300548 | AD121: 129.2300548
B122: Improvement in service
B123: Reliability Driven | K123: 1.824180934 | L123: 0.09930594901 | M123: 0.186387907 | N123: 0.7910055249 | O123: 3.664 | P123: 5.08175984 | Q123: 10.60706152 | R123: 3.22011415 | S123: 2.087302389 | T123: 2.098781567 | U123: 2.157350085 | V123: 2.162508192 | W123: 2.20137097 | X123: 2.228650061 | Y123: 2.230322559 | Z123: 2.271868128 | AA123: 2.271868128 | AB123: 2.271868128 | AC123: 2.271868128 | AD123: 2.271868128
B124: Rural Power Improvement Program (RPIP) | K124: 0 | L124: 0 | M124: 0 | N124: 0 | O124: 0 | P124: 0 | Q124: 0 | R124: 0 | S124: 0 | T124: 0 | U124: 0 | V124: 0 | W124: 0 | X124: 0 | Y124: 0 | Z124: 0 | AA124: 0 | AB124: 0 | AC124: 0 | AD124: 0
B125: SCADA & Communications | K125: 3.310231518 | L125: 2.626903683 | M125: 3.23655907 | N125: 3.773585635 | O125: 5.064 | P125: 22.76647745 | Q125: 24.07348432 | R125: 15.68117526 | S125: 14.73242168 | T125: 12.93570145 | U125: 15.77589059 | V125: 17.69923429 | W125: 14.82146401 | X125: 14.43571823 | Y125: 15.35217711 | Z125: 15.26582295 | AA125: 15.26582295 | AB125: 15.26582295 | AC125: 15.26582295 | AD125: 15.26582295
B126: Compliance
B127: Safety, Environmental & Statutory | K127: 138.4342267 | L127: 151.9725977 | M127: 118.6549535 | N127: 36.67370718 | O127: 14.781 | P127: 27.70904953 | Q127: 43.17922317 | R127: 41.73859891 | S127: 34.19128774 | T127: 34.44596316 | U127: 27.69415931 | V127: 27.26246367 | W127: 27.4304985 | X127: 27.56732955 | Y127: 27.59681 | Z127: 27.45615111 | AA127: 27.45615111 | AB127: 27.45615111 | AC127: 27.45615111 | AD127: 27.45615111
B128: Corporate
B129: IT | K129: 20.15859922 | L129: 13.62373088 | M129: 21.12258977 | N129: 12.64079834 | O129: 30.948 | P129: 41.87588346 | Q129: 43.97418771 | R129: 39.41478101 | S129: 29.00932727 | T129: 21.98796383 | U129: 28.20100785 | V129: 28.12674695 | W129: 32.43511571 | X129: 28.61110567 | Y129: 32.70450168 | Z129: 22.84515131 | AA129: 22.84515131 | AB129: 22.84515131 | AC129: 22.84515131 | AD129: 22.84515131
B130: Business Support | K130: 21.4325107 | L130: 2.631084986 | M130: 10.72502791 | N130: 15.98116575 | O130: 5.245 | P130: 28.59784546 | Q130: 41.02469744 | R130: 115.9380632 | S130: 14.43647349 | T130: 25.14752049 | U130: 28.50891456 | V130: 32.14209943 | W130: 21.48163333 | X130: 13.37915878 | Y130: 31.11663392 | Z130: 29.44596715 | AA130: 29.44596715 | AB130: 29.44596715 | AC130: 29.44596715 | AD130: 29.44596715
B131: Equity Raising Costs | K131: 5.530749116 | L131: 4.737968109 | M131: 3.79857986 | N131: 1.592624457 | O131: 0 | P131: =P85/P$32 -> 0.104716503 | Q131: 0 | R131: 0 | S131: 0 | T131: 0 | U131: =U85/U$32 -> 0 | V131: 0 | W131: 0 | X131: 0 | Y131: 0 | Z131: 0 | AA131: 0 | AB131: 0 | AC131: 0 | AD131: 0
B132: Total | K132: =SUM(K113:K131) -> 838.9272997 | L132: 840.5313307 | M132: 860.7020506 | N132: 734.2003316 | O132: 540.216 | P132: =SUM(P113:P131) -> 674.872656 | Q132: 702.180219 | R132: 718.4261113 | S132: 581.4674549 | T132: 601.8925875 | U132: 623.1383087 | V132: 632.7584596 | W132: 629.2264211 | X132: 625.0994844 | Y132: 649.1834203 | Z132: 647.4531098 | AA132: 647.4531098 | AB132: 647.4531098 | AC132: 647.4531098 | AD132: 647.4531098
P133: =IF(ROUND(P132-P86/P32,8)=0,"OK","CHECK") -> OK | Q133: OK | R133: OK | S133: OK | T133: OK | U133: OK | V133: OK | W133: OK | X133: OK | Y133: OK | Z133: OK | AA133: OK | AB133: OK | AC133: OK | AD133: OK
B134: [ACTUAL] Capital expenditure by asset category (less gifted assets) [$M real as at 30 June 2017]
B135: Distribution | F135: Actual AA1 | I135: Actual AA2 | M135: Actual AA3 | R135: Proposed AA4 | W135: Forecast AA5 | AB135: Forecast AA6
B136: Wooden Pole Lines | E136: 98.94286704 | F136: 121.9081681 | G136: 166.4581747 | H136: 168.6707294 | I136: 161.9901178 | J136: 248.9945001 | K136: 342.0067367 | L136: 401.6721107 | M136: 322.9808495 | N136: 235.9715541 | O136: 122.0330024 | P136: =SUMPRODUCT(P$113:P$131,$C$6:$C$24)-P151 -> 214.949297 | Q136: 184.7610069 | R136: 167.2808213 | S136: 161.1299901 | T136: 154.2784804 | U136: 163.0563915 | V136: 166.758817 | W136: 168.4340661 | X136: 164.4118685 | Y136: 162.2752297 | Z136: 174.7499007 | AA136: 174.7499007 | AB136: 174.7499007 | AC136: 174.7499007 | AD136: 174.7499007
B137: Underground Cables | E137: 178.4673449 | F137: 172.6160803 | G137: 208.6512441 | H137: 194.2964664 | I137: 185.726016 | J137: 173.7335417 | K137: 104.7713589 | L137: 87.33748679 | M137: 79.3324646 | N137: 79.1970616 | O137: 75.94227176 | P137: =SUMPRODUCT(P$113:P$131,$D$6:$D$24)-P152 -> 88.5797333 | Q137: 100.9066234 | R137: 80.95976118 | S137: 66.35990318 | T137: 76.85965923 | U137: 73.03292964 | V137: 75.91870923 | W137: 76.86639051 | X137: 79.53657966 | Y137: 79.95690766 | Z137: 79.86742563 | AA137: 79.86742563 | AB137: 79.86742563 | AC137: 79.86742563 | AD137: 79.86742563
B138: Transformers | E138: 57.53104479 | F138: 56.23397802 | G138: 71.12084852 | H138: 68.57906093 | I138: 69.7147322 | J138: 66.91596761 | K138: 174.5876188 | L138: 164.1482107 | M138: 162.7596631 | N138: 155.5430439 | O138: 131.7457008 | P138: =SUMPRODUCT(P$113:P$131,$E$6:$E$24)-P153 -> 116.8608484 | Q138: 130.3375454 | R138: 121.86361 | S138: 118.9500908 | T138: 127.8010442 | U138: 129.6174174 | V138: 127.2318947 | W138: 128.2774117 | X138: 133.454166 | Y138: 134.7492332 | Z138: 132.4929382 | AA138: 132.4929382 | AB138: 132.4929382 | AC138: 132.4929382 | AD138: 132.4929382
B139: Switchgear | E139: 45.25462401 | F139: 53.00252667 | G139: 70.09640668 | H139: 64.97962525 | I139: 65.87246342 | J139: 79.82106829 | K139: 85.87549008 | L139: 83.51854081 | M139: 81.93751554 | N139: 69.55101222 | O139: 56.91051058 | P139: =SUMPRODUCT(P$113:P$131,$F$6:$F$24)-P154 -> 51.73829831 | Q139: 60.10085595 | R139: 55.7385761 | S139: 53.3868149 | T139: 57.81176535 | U139: 56.92789745 | V139: 56.01878339 | W139: 56.34841728 | X139: 58.91244978 | Y139: 59.56480272 | Z139: 58.15214004 | AA139: 58.15214004 | AB139: 58.15214004 | AC139: 58.15214004 | AD139: 58.15214004
B140: Street lighting | E140: 17.27253396 | F140: 17.38002888 | G140: 22.55415209 | H140: 21.35547861 | I140: 22.36706023 | J140: 21.53210163 | K140: 6.214911251 | L140: 5.802871973 | M140: 6.715742641 | N140: 6.775750864 | O140: 5.499514404 | P140: =SUMPRODUCT(P$113:P$131,$G$6:$G$24)-P155 -> 4.920561953 | Q140: 5.622071474 | R140: 5.260966264 | S140: 4.789314913 | T140: 5.442088368 | U140: 5.563589554 | V140: 5.358252906 | W140: 5.370992449 | X140: 5.679161518 | Y140: 5.765673091 | Z140: 5.549259355 | AA140: 5.549259355 | AB140: 5.549259355 | AC140: 5.549259355 | AD140: 5.549259355
B141: Meters and Services | E141: 12.03056245 | F141: 13.41627179 | G141: 15.03873568 | H141: 12.88446918 | I141: 17.84028875 | J141: 18.33970428 | K141: 12.7344305 | L141: 12.41308683 | M141: 16.29313493 | N141: 27.00733425 | O141: 24.481 | P141: =SUMPRODUCT(P$113:P$131,$H$6:$H$24)-P156 -> 24.19099417 | Q141: 30.83482482 | R141: 35.42125565 | S141: 37.45020203 | T141: 38.01557769 | U141: 39.4483556 | V141: 39.91696566 | W141: 41.01886534 | X141: 41.91800708 | Y141: 42.34366313 | Z141: 43.13242419 | AA141: 43.13242419 | AB141: 43.13242419 | AC141: 43.13242419 | AD141: 43.13242419
B142: IT | E142: 20.17346317 | F142: 36.75950275 | G142: 22.24472151 | H142: 15.24265746 | I142: 24.63905937 | J142: 32.2208139 | K142: 20.15859922 | L142: 13.62373088 | M142: 21.12258977 | N142: 12.64079834 | O142: 30.948 | P142: =SUMPRODUCT(P$113:P$131,$I$6:$I$24)-P157 -> 41.87588346 | Q142: 43.97418771 | R142: 39.41478101 | S142: 29.00932727 | T142: 21.98796383 | U142: 28.20100785 | V142: 28.12674695 | W142: 32.43511571 | X142: 28.61110567 | Y142: 32.70450168 | Z142: 22.84515131 | AA142: 22.84515131 | AB142: 22.84515131 | AC142: 22.84515131 | AD142: 22.84515131
B143: SCADA & Communications | E143: 2.599721286 | F143: 2.553736825 | G143: 2.521113304 | H143: 3.918837435 | I143: 3.690380723 | J143: 5.478126345 | K143: 3.604587986 | L143: 2.827763031 | M143: 2.757562744 | N143: 3.773585635 | O143: 5.064 | P143: =SUMPRODUCT(P$113:P$131,$J$6:$J$24)-P158 -> 22.76647745 | Q143: 24.07348432 | R143: 15.68117526 | S143: 14.73242168 | T143: 12.93570145 | U143: 15.77589059 | V143: 17.69923429 | W143: 14.82146401 | X143: 14.43571823 | Y143: 15.35217711 | Z143: 15.26582295 | AA143: 15.26582295 | AB143: 15.26582295 | AC143: 15.26582295 | AD143: 15.26582295
B144: Other Distribution Non-Network | E144: 10.18351708 | F144: 9.818763428 | G144: 26.435756 | H144: 13.34446368 | I144: 23.3177661 | J144: 25.05524701 | K144: 21.4325107 | L144: 2.631084986 | M144: 10.72502791 | N144: 15.98116575 | O144: 5.245 | P144: =SUMPRODUCT(P$113:P$131,$K$6:$K$24)-P159 -> 28.59784546 | Q144: 41.02469744 | R144: 115.9380632 | S144: 14.43647349 | T144: 25.14752049 | U144: 28.50891456 | V144: 32.14209943 | W144: 21.48163333 | X144: 13.37915878 | Y144: 31.11663392 | Z144: 29.44596715 | AA144: 29.44596715 | AB144: 29.44596715 | AC144: 29.44596715 | AD144: 29.44596715
B145: Distribution Land & Easements | E145: 0 | F145: 0 | G145: 0 | H145: 0 | I145: 0 | J145: 0 | K145: 0 | L145: 0 | M145: 0 | N145: 0 | O145: 0 | P145: =SUMPRODUCT(P$113:P$131,$L$6:$L$24)-P160 -> 0 | Q145: 0 | R145: 0 | S145: 0 | T145: 0 | U145: 0 | V145: 0 | W145: 0 | X145: 0 | Y145: 0 | Z145: 0 | AA145: 0 | AB145: 0 | AC145: 0 | AD145: 0
B146: Equity Raising Costs | E146: 0 | F146: 0 | G146: 0 | H146: 0 | I146: 0 | J146: 0 | K146: 5.530749116 | L146: 4.737968109 | M146: 3.79857986 | N146: 1.592624457 | O146: 0 | P146: =SUMPRODUCT(P$113:P$131,$M$6:$M$24)-P161 -> 0.104716503 | Q146: 0 | R146: 0 | S146: 0 | T146: 0 | U146: 0 | V146: 0 | W146: 0 | X146: 0 | Y146: 0 | Z146: 0 | AA146: 0 | AB146: 0 | AC146: 0 | AD146: 0
B147: Total actual distribution capital expenditure | E147: =SUM(E136:E146) -> 442.4556787 | F147: 483.6890568 | G147: 605.1211526 | H147: 563.2717883 | I147: 575.1578845 | J147: 672.0910709 | K147: 776.9169933 | L147: 778.7128548 | M147: 708.4231306 | N147: 608.0339311 | O147: 457.869 | P147: 594.584656 | Q147: 621.6352974 | R147: 637.55901 | S147: 500.2445384 | T147: 520.2798009 | U147: 540.1323941 | V147: 549.1715036 | W147: 545.0543564 | X147: 540.3382152 | Y147: 563.8288222 | Z147: 561.5010295 | AA147: 561.5010295 | AB147: 561.5010295 | AC147: 561.5010295 | AD147: 561.5010295
P148: =IF(ROUND(P132-P162-P147,8)=0,"OK","CHECK") -> OK | Q148: OK | R148: OK | S148: OK | T148: OK | U148: OK | V148: OK | W148: OK | X148: OK | Y148: OK | Z148: OK | AA148: OK | AB148: OK | AC148: OK | AD148: OK
B149: [ACTUAL] Gifted assets [$M real as at 30 June 2017]
F150: Actual AA1 | I150: Actual AA2 | M150: Actual AA3 | R150: Proposed AA4 | W150: Forecast AA5 | AB150: Forecast AA6
B151: Wooden Pole Lines | E151: 2.271183639 | F151: 2.005894213 | G151: 7.00848459 | H151: 7.963293291 | I151: 4.921414837 | J151: 6.009134919 | K151: =K$115*$C$8 -> 8.036965609 | L151: 8.012103046 | M151: 19.73640373 | N151: 16.35204018 | O151: 10.67274208 | P151: 10.40588141 | Q151: 10.43918023 | R151: 10.48093695 | S151: 10.52705307 | T151: 10.57758293 | U151: 10.75814199 | V151: 10.83344898 | W151: 10.90928313 | X151: 10.98564811 | Y151: 11.06254765 | Z151: 11.13998548 | AA151: 11.13998548 | AB151: 11.13998548 | AC151: 11.13998548 | AD151: 11.13998548
B152: Underground Cables | E152: 14.82541373 | F152: 13.09370634 | G152: 45.74869327 | H152: 51.98131744 | I152: 32.12510421 | J152: 39.22532278 | K152: =K$115*$D$8 -> 15.23302997 | L152: 15.18590619 | M152: 37.40780341 | N152: 30.99317955 | O152: 20.22880375 | P152: 19.72300382 | Q152: 19.78611743 | R152: 19.8652619 | S152: 19.95266905 | T152: 20.04844186 | U152: 20.39066824 | V152: 20.53340291 | W152: 20.67713673 | X152: 20.82187669 | Y152: 20.96762983 | Z152: 21.11440324 | AA152: 21.11440324 | AB152: 21.11440324 | AC152: 21.11440324 | AD152: 21.11440324
B153: Transformers | E153: 5.532641205 | F153: 4.886391742 | G153: 17.07278529 | H153: 19.3987152 | I153: 11.98864858 | J153: 14.63835283 | K153: =K$115*$E$8 -> 29.81032713 | L153: 29.71810811 | M153: 73.20532154 | N153: 60.65220269 | O153: 39.58682274 | P153: 38.59699593 | Q153: 38.72050632 | R153: 38.87538835 | S153: 39.04644006 | T153: 39.23386297 | U153: 39.90358397 | V153: 40.18290906 | W153: 40.46418942 | X153: 40.74743875 | Y153: 41.03267082 | Z153: 41.31989951 | AA153: 41.31989951 | AB153: 41.31989951 | AC153: 41.31989951 | AD153: 41.31989951
B154: Switchgear | E154: 3.378715286 | F154: 2.984058763 | G154: 10.42613799 | H154: 11.8465545 | I154: 7.321318828 | J154: 8.939460313 | K154: =K$115*$F$8 -> 8.499416359 | L154: 8.473123192 | M154: 20.87204561 | N154: 17.2929442 | O154: 11.28685664 | P154: 11.00464068 | Q154: 11.03985553 | R154: 11.08401495 | S154: 11.13278462 | T154: 11.18622198 | U154: 11.3771705 | V154: 11.45681069 | W154: 11.53700837 | X154: 11.61776742 | Y154: 11.6990918 | Z154: 11.78098544 | AA154: 11.78098544 | AB154: 11.78098544 | AC154: 11.78098544 | AD154: 11.78098544
B155: Street lighting | E155: 1.767481428 | F155: 1.561027787 | G155: 5.454145645 | H155: 6.197197249 | I155: 3.829945397 | J155: 4.676431349 | K155: =K$115*$G$8 -> 0.4305673502 | L155: 0.4292353788 | M155: 1.057345704 | N155: 0.8760339353 | O155: 0.5717747844 | P155: 0.5574781582 | Q155: 0.5592620883 | R155: 0.5614991366 | S155: 0.5639697328 | T155: 0.5666767875 | U155: 0.5763499453 | V155: 0.5803843949 | W155: 0.5844470857 | X155: 0.5885382153 | Y155: 0.5926579828 | Z155: 0.5968065887 | AA155: 0.5968065887 | AB155: 0.5968065887 | AC155: 0.5968065887 | AD155: 0.5968065887
B156: Meters and Services | E156: 0 | F156: 0 | G156: 0 | H156: 0 | I156: 0 | J156: 0 | K156: =K$115*$H$8 -> 0 | L156: 0 | M156: 0 | N156: 0 | O156: 0 | P156: 0 | Q156: 0 | R156: 0 | S156: 0 | T156: 0 | U156: 0 | V156: 0 | W156: 0 | X156: 0 | Y156: 0 | Z156: 0 | AA156: 0 | AB156: 0 | AC156: 0 | AD156: 0
B157: IT | E157: 0 | F157: 0 | G157: 0 | H157: 0 | I157: 0 | J157: 0 | K157: =K$115*$I$8 -> 0 | L157: 0 | M157: 0 | N157: 0 | O157: 0 | P157: 0 | Q157: 0 | R157: 0 | S157: 0 | T157: 0 | U157: 0 | V157: 0 | W157: 0 | X157: 0 | Y157: 0 | Z157: 0 | AA157: 0 | AB157: 0 | AC157: 0 | AD157: 0
B158: SCADA & Communications | E158: 0 | F158: 0 | G158: 0 | H158: 0 | I158: 0 | J158: 0 | K158: =K$115*$J$8 -> 0 | L158: 0 | M158: 0 | N158: 0 | O158: 0 | P158: 0 | Q158: 0 | R158: 0 | S158: 0 | T158: 0 | U158: 0 | V158: 0 | W158: 0 | X158: 0 | Y158: 0 | Z158: 0 | AA158: 0 | AB158: 0 | AC158: 0 | AD158: 0
B159: Other Distribution Non-Network | E159: 0 | F159: 0 | G159: 0 | H159: 0 | I159: 0 | J159: 0 | K159: =K$115*$K$8 -> 0 | L159: 0 | M159: 0 | N159: 0 | O159: 0 | P159: 0 | Q159: 0 | R159: 0 | S159: 0 | T159: 0 | U159: 0 | V159: 0 | W159: 0 | X159: 0 | Y159: 0 | Z159: 0 | AA159: 0 | AB159: 0 | AC159: 0 | AD159: 0
B160: Distribution Land & Easements | E160: 0 | F160: 0 | G160: 0 | H160: 0 | I160: 0 | J160: 0 | K160: =K$115*$L$8 -> 0 | L160: 0 | M160: 0 | N160: 0 | O160: 0 | P160: 0 | Q160: 0 | R160: 0 | S160: 0 | T160: 0 | U160: 0 | V160: 0 | W160: 0 | X160: 0 | Y160: 0 | Z160: 0 | AA160: 0 | AB160: 0 | AC160: 0 | AD160: 0
B161: Equity Raising Costs | E161: 0 | F161: 0 | G161: 0 | H161: 0 | I161: 0 | J161: 0 | K161: =K$115*$M$8 -> 0 | L161: 0 | M161: 0 | N161: 0 | O161: 0 | P161: 0 | Q161: 0 | R161: 0 | S161: 0 | T161: 0 | U161: 0 | V161: 0 | W161: 0 | X161: 0 | Y161: 0 | Z161: 0 | AA161: 0 | AB161: 0 | AC161: 0 | AD161: 0
B162: Total Distribution | E162: =SUM(E151:E161) -> 27.77543529 | F162: 24.53107884 | G162: 85.71024679 | H162: 97.38707768 | I162: 60.18643185 | J162: 73.48870219 | K162: 62.01030642 | L162: 61.81847592 | M162: 152.27892 | N162: 126.1664006 | O162: 82.347 | P162: 80.288 | Q162: 80.5449216 | R162: 80.86710129 | S162: 81.22291653 | T162: 81.61278653 | U162: 83.00591464 | V162: 83.58695604 | W162: 84.17206473 | X162: 84.76126919 | Y162: 85.35459807 | Z162: 85.95208026 | AA162: 85.95208026 | AB162: 85.95208026 | AC162: 85.95208026 | AD162: 85.95208026
K163: =IF(ROUND(K115-K162,8)=0,"OK","CHECK") -> OK | L163: OK | M163: OK | N163: OK | O163: OK | P163: OK | Q163: OK | R163: OK | S163: OK | T163: OK | U163: OK | V163: OK | W163: OK | X163: OK | Y163: OK | Z163: OK | AA163: OK | AB163: OK | AC163: OK | AD163: OK
B164: Cash contributions
B165: Year ending 30 June | D165: 2006 | E165: 2007 | F165: 2008 | G165: 2009 | H165: 2010 | I165: 2011 | J165: 2012 | K165: 2013 | L165: 2014 | M165: 2015 | N165: 2016 | O165: 2017 | P165: 2018 | Q165: 2019 | R165: 2020 | S165: 2021 | T165: 2022 | U165: 2023 | V165: 2024 | W165: 2025 | X165: 2026 | Y165: 2027 | Z165: 2028 | AA165: 2029 | AB165: 2030 | AC165: 2031 | AD165: 2032
B166: [ACTUAL] Cash contributions by regulatory category [$M nominal]
B167: Growth | R167: Proposed AA4 | W167: Forecast AA5 | AB167: Forecast AA6
B168: Capacity Expansion | P168: =P214*P$32 -> 0 | Q168: =Q214*Q$32 -> 0 | R168: 0 | S168: 0 | T168: 0 | U168: 0 | V168: 0 | W168: 0 | X168: 0 | Y168: 0 | Z168: 0 | AA168: 0 | AB168: 0 | AC168: 0 | AD168: 0
B169: Customer Driven | P169: =P215*P$32 -> 61.3531903 | Q169: 73.18018629 | R169: 62.00962439 | S169: 64.98463044 | T169: 66.41362431 | U169: 58.28469234 | V169: 59.38220228 | W169: 61.4407389 | X169: 63.22221874 | Y169: 64.30728656 | Z169: 66.57946223 | AA169: 67.67136541 | AB169: 68.78117581 | AC169: 69.90918709 | AD169: 71.05569776
B170: Gifted Assets
B171: Asset replacement and renewal
B172: Asset Replacement | P172: =P218*P$32 -> 0 | Q172: 0 | R172: 0 | S172: 0 | T172: 0 | U172: 0 | V172: 0 | W172: 0 | X172: 0 | Y172: 0 | Z172: 0 | AA172: 0 | AB172: 0 | AC172: 0 | AD172: 0
B173: State Undergrounding Power Program (SUPP) | P173: 21.59616962 | Q173: 28.26674979 | R173: 18.64481018 | S173: 4.821108456 | T173: 10.66177035 | U173: 15.28142689 | V173: 15.56917856 | W173: 16.10889793 | X173: 16.57597689 | Y173: 16.86046642 | Z173: 17.45619894 | AA173: 17.7424806 | AB173: 18.03345728 | AC173: 18.32920598 | AD173: 18.62980496
B174: Metering | P174: 3.522470753 | Q174: 3.542123444 | R174: 3.560158603 | S174: 3.730962628 | T174: 3.813005454 | U174: 6.029241965 | V174: 6.200917962 | W174: 6.476595361 | X174: 6.727108072 | Y174: 6.906863297 | Z174: 7.150904176 | AA174: 7.268179004 | AB174: 7.38737714 | AC174: 7.508530125 | AD174: 7.631670019
B175: Smartgrid | P175: 0 | Q175: 0 | R175: 0 | S175: 0 | T175: 0 | U175: 0 | V175: 0 | W175: 0 | X175: 0 | Y175: 0 | Z175: 0 | AA175: 0 | AB175: 0 | AC175: 0 | AD175: 0
B176: Wood Pole Management | P176: 0 | Q176: 0 | R176: 0 | S176: 0 | T176: 0 | U176: 0 | V176: 0 | W176: 0 | X176: 0 | Y176: 0 | Z176: 0 | AA176: 0 | AB176: 0 | AC176: 0 | AD176: 0
B177: Improvement in service
B178: Reliability Driven | P178: =P224*P$32 -> 0 | Q178: 0 | R178: 0 | S178: 0 | T178: 0 | U178: 0 | V178: 0 | W178: 0 | X178: 0 | Y178: 0 | Z178: 0 | AA178: 0 | AB178: 0 | AC178: 0 | AD178: 0
B179: Rural Power Improvement Program (RPIP) | P179: 0 | Q179: 0 | R179: 0 | S179: 0 | T179: 0 | U179: 0 | V179: 0 | W179: 0 | X179: 0 | Y179: 0 | Z179: 0 | AA179: 0 | AB179: 0 | AC179: 0 | AD179: 0
B180: SCADA & Communications | P180: 0 | Q180: 0 | R180: 0 | S180: 0 | T180: 0 | U180: 0 | V180: 0 | W180: 0 | X180: 0 | Y180: 0 | Z180: 0 | AA180: 0 | AB180: 0 | AC180: 0 | AD180: 0
B181: Compliance
B182: Safety, Environmental & Statutory | P182: =P228*P$32 -> 0 | Q182: 0 | R182: 0 | S182: 0 | T182: 0 | U182: 0 | V182: 0 | W182: 0 | X182: 0 | Y182: 0 | Z182: 0 | AA182: 0 | AB182: 0 | AC182: 0 | AD182: 0
B183: Corporate
B184: IT | P184: =P230*P$32 -> 0 | Q184: 0 | R184: 0 | S184: 0 | T184: 0 | U184: 0 | V184: 0 | W184: 0 | X184: 0 | Y184: 0 | Z184: 0 | AA184: 0 | AB184: 0 | AC184: 0 | AD184: 0
B185: Business Support | P185: 0 | Q185: 0 | R185: 0 | S185: 0 | T185: 0 | U185: 0 | V185: 0 | W185: 0 | X185: 0 | Y185: 0 | Z185: 0 | AA185: 0 | AB185: 0 | AC185: 0 | AD185: 0
B186: Equity Raising Costs | P186: 0 | Q186: 0 | R186: 0 | S186: 0 | T186: 0 | U186: 0 | V186: 0 | W186: 0 | X186: 0 | Y186: 0 | Z186: 0 | AA186: 0 | AB186: 0 | AC186: 0 | AD186: 0
B187: Total actual distribution cash contributions | P187: =SUM(P168:P186) -> 86.47183067 | Q187: 104.9890595 | R187: 84.21459317 | S187: 73.53670153 | T187: 80.88840011 | U187: 79.59536119 | V187: 81.1522988 | W187: 84.02623219 | X187: 86.5253037 | Y187: 88.07461628 | Z187: 91.18656535 | AA187: 92.68202502 | AB187: 94.20201023 | AC187: 95.7469232 | AD187: 97.31717274
B189: [APPROVED] Cash contributions by regulatory category [$M real as at 30 June 2017]
B190: Growth | M190: Approved AA3
B191: Capacity Expansion | K191: 0 | L191: 0 | M191: 0 | N191: 0 | O191: 0
B192: Customer Driven | K192: 80.99366275 | L192: 82.33770063 | M192: 86.71545464 | N192: 89.07065303 | O192: 93.28319904
B193: Gifted Assets | K193: 0 | L193: 0 | M193: 0 | N193: 0 | O193: 0
B194: Asset replacement and renewal
B195: Asset Replacement | K195: 0 | L195: 0 | M195: 0 | N195: 0 | O195: 0
B196: State Undergrounding Power Program (SUPP) | K196: 32.41613546 | L196: 15.65677291 | M196: 0 | N196: 0 | O196: 0
B197: Metering | K197: 0 | L197: 0 | M197: 0 | N197: 0 | O197: 0
B198: Smartgrid | K198: 0 | L198: 0 | M198: 0 | N198: 0 | O198: 0
B199: Wood Pole Management | K199: 0 | L199: 0 | M199: 0 | N199: 0 | O199: 0
B200: Improvement in service
B201: Reliability Driven | K201: 0 | L201: 0 | M201: 0 | N201: 0 | O201: 0
B202: Rural Power Improvement Program (RPIP) | K202: 0 | L202: 0 | M202: 0 | N202: 0 | O202: 0
B203: SCADA & Communications | K203: 0 | L203: 0 | M203: 0 | N203: 0 | O203: 0
B204: Compliance
B205: Safety, Environmental & Statutory | K205: 0 | L205: 0 | M205: 0 | N205: 0 | O205: 0
B206: Corporate
B207: IT | K207: 0 | L207: 0 | M207: 0 | N207: 0 | O207: 0
B208: Business Support | K208: 0 | L208: 0 | M208: 0 | N208: 0 | O208: 0
B209: Equity Raising Costs | K209: 0 | L209: 0 | M209: 0 | N209: 0 | O209: 0
B210: Total approved distribution cash contributions | K210: =SUM(K191:K209) -> 113.4097982 | L210: =SUM(L191:L209) -> 97.99447354 | M210: =SUM(M191:M209) -> 86.71545464 | N210: =SUM(N191:N209) -> 89.07065303 | O210: =SUM(O191:O209) -> 93.28319904
B212: [ACTUAL] Cash contributions by regulatory category [$M real as at 30 June 2017]
B213: Growth | M213: Actual AA3 | R213: Proposed AA4 | W213: Forecast AA5 | AB213: Forecast AA6
... 218 more rows

Sheet Tx_Inputs
B1: Validation status | C1: =IF(COUNTIF(P6:P20,"CHECK")+COUNTIF(E119:AD119,"CHECK")+COUNTIF(E136:AD136,"CHECK")+COUNTIF(E172:AD172,"CHECK")+COUNTIF(K231:AD231,"CHECK")+COUNTIF(K265:AD265,"CHECK")+COUNTIF(E399:AD399,"CHECK")>0,"CHECK","OK") -> OK
B2: Allocation of capex and contributions from regulatory category to asset class
B3: % matrix
B4: Transmission
B5: Growth | C5: Transmission cables | D5: Transmission steel towers | E5: Transmission wood poles | F5: Transmission metering | G5: Transmission transformers | H5: Transmission reactors | I5: Transmission capacitors | J5: Transmission circuit breakers | K5: SCADA and communications | L5: IT | M5: Other non-network assets | N5: Land & Easements | O5: Equity raising costs
B6: Capacity Expansion | C6: 0.1288197122 | D6: 0.08158130026 | E6: 0.04427315722 | F6: 0 | G6: 0.3101397437 | H6: 0.04234319172 | I6: 0.03106847006 | J6: 0.09628261272 | K6: 0 | L6: 0 | M6: 0 | N6: 0.2654918121 | O6: 0 | P6: =IF(SUM(C6:O6)=1,"OK","CHECK") -> OK
B7: Customer Driven | C7: 0.08209495336 | D7: 0.09466179622 | E7: 0 | F7: 0 | G7: 0.3529123605 | H7: 0 | I7: 0.02874176457 | J7: 0.2004958335 | K7: 0 | L7: 0 | M7: 0 | N7: 0.2410932918 | O7: 0 | P7: =IF(SUM(C7:O7)=1,"OK","CHECK") -> OK
B8: Generation Driven
B9: Gifted Assets | C9: 0.08209495336 | D9: 0.09466179622 | E9: 0 | F9: 0 | G9: 0.3529123605 | H9: 0 | I9: 0.02874176457 | J9: 0.2004958335 | K9: 0 | L9: 0 | M9: 0 | N9: 0.2410932918 | O9: 0 | P9: =IF(SUM(C9:O9)=1,"OK","CHECK") -> OK
B10: Asset replacement and renewal
B11: Asset Replacement | C11: 0 | D11: 0 | E11: 0 | F11: 0 | G11: 0.5969092318 | H11: 0.0730424798 | I11: 0 | J11: 0.3300482884 | K11: 0 | L11: 0 | M11: 0 | N11: 0 | O11: 0 | P11: =IF(SUM(C11:O11)=1,"OK","CHECK") -> OK
B12: Improvement in service
B13: Reliability Driven | C13: 0 | D13: 0 | E13: 0.8472688889 | F13: 0 | G13: 0 | H13: 0 | I13: 0 | J13: 0.1527311111 | K13: 0 | L13: 0 | M13: 0 | N13: 0 | O13: 0 | P13: =IF(SUM(C13:O13)=1,"OK","CHECK") -> OK
B14: SCADA & Communications | C14: 0 | D14: 0 | E14: 0 | F14: 0 | G14: 0 | H14: 0 | I14: 0 | J14: 0 | K14: 1 | L14: 0 | M14: 0 | N14: 0 | O14: 0 | P14: =IF(SUM(C14:O14)=1,"OK","CHECK") -> OK
B15: Compliance
B16: Safety, Environmental & Statutory | C16: 0 | D16: 0 | E16: 1 | F16: 0 | G16: 0 | H16: 0 | I16: 0 | J16: 0 | K16: 0 | L16: 0 | M16: 0 | N16: 0 | O16: 0 | P16: =IF(SUM(C16:O16)=1,"OK","CHECK") -> OK
B17: Corporate
B18: IT | C18: 0 | D18: 0 | E18: 0 | F18: 0 | G18: 0 | H18: 0 | I18: 0 | J18: 0 | K18: 0 | L18: 1 | M18: 0 | N18: 0 | O18: 0 | P18: =IF(SUM(C18:O18)=1,"OK","CHECK") -> OK
B19: Business Support | C19: 0 | D19: 0 | E19: 0 | F19: 0 | G19: 0 | H19: 0 | I19: 0 | J19: 0 | K19: 0 | L19: 0 | M19: 1 | N19: 0 | O19: 0 | P19: =IF(SUM(C19:O19)=1,"OK","CHECK") -> OK
B20: Equity Raising Costs | C20: 0 | D20: 0 | E20: 0 | F20: 0 | G20: 0 | H20: 0 | I20: 0 | J20: 0 | K20: 0 | L20: 0 | M20: 0 | N20: 0 | O20: 1 | P20: =IF(SUM(C20:O20)=1,"OK","CHECK") -> OK
B22: Inflation
B23: Year ending 30 June | D23: 2006 | E23: 2007 | F23: 2008 | G23: 2009 | H23: 2010 | I23: 2011 | J23: 2012 | K23: 2013 | L23: 2014 | M23: 2015 | N23: 2016 | O23: 2017 | P23: 2018 | Q23: 2019 | R23: 2020 | S23: 2021 | T23: 2022 | U23: 2023 | V23: 2024 | W23: 2025 | X23: 2026 | Y23: 2027 | Z23: 2028 | AA23: 2029 | AB23: 2030 | AC23: 2031 | AD23: 2032
B24: Actual and Forecast Inflation
B25: June CPI | C25: =Dx_Inputs!C29 -> 148.4 | D25: =Dx_Inputs!D29 -> 154.3 | E25: =Dx_Inputs!E29 -> 157.5 | F25: =Dx_Inputs!F29 -> 164.6 | G25: =Dx_Inputs!G29 -> 167 | H25: =Dx_Inputs!H29 -> 172.1 | I25: =Dx_Inputs!I29 -> 178.3 | J25: =Dx_Inputs!J29 -> 180.4
B26: June CPI (rebased) | J26: =Dx_Inputs!J30 -> 100.4 | K26: =Dx_Inputs!K30 -> 102.8 | L26: =Dx_Inputs!L30 -> 105.9 | M26: =Dx_Inputs!M30 -> 107.5 | N26: =Dx_Inputs!N30 -> 108.6 | O26: =Dx_Inputs!O30 -> 110.7 | P26: =Dx_Inputs!P30 -> 0 | Q26: =Dx_Inputs!Q30 -> 0 | R26: =Dx_Inputs!R30 -> 0 | S26: =Dx_Inputs!S30 -> 0 | T26: =Dx_Inputs!T30 -> 0 | U26: =Dx_Inputs!U30 -> 0 | V26: =Dx_Inputs!V30 -> 0 | W26: =Dx_Inputs!W30 -> 0 | X26: =Dx_Inputs!X30 -> 0 | Y26: =Dx_Inputs!Y30 -> 0 | Z26: =Dx_Inputs!Z30 -> 0 | AA26: =Dx_Inputs!AA30 -> 0 | AB26: =Dx_Inputs!AB30 -> 0 | AC26: =Dx_Inputs!AC30 -> 0 | AD26: =Dx_Inputs!AD30 -> 0
B27: Actual & Forecast Inflation | D27: =Dx_Inputs!D31 -> 0.0397574124 | E27: =Dx_Inputs!E31 -> 0.02073882048 | F27: =Dx_Inputs!F31 -> 0.04507936508 | G27: =Dx_Inputs!G31 -> 0.01458080194 | H27: =Dx_Inputs!H31 -> 0.03053892216 | I27: =Dx_Inputs!I31 -> 0.03602556653 | J27: =Dx_Inputs!J31 -> 0.01177790241 | K27: =Dx_Inputs!K31 -> 0.02390438247 | L27: =Dx_Inputs!L31 -> 0.03015564202 | M27: =Dx_Inputs!M31 -> 0.01510859301 | N27: =Dx_Inputs!N31 -> 0.01023255814 | O27: =Dx_Inputs!O31 -> 0.01933701657 | P27: =Dx_Inputs!P31 -> 0.0164 | Q27: =Dx_Inputs!Q31 -> 0.0164 | R27: =Dx_Inputs!R31 -> 0.0164 | S27: =Dx_Inputs!S31 -> 0.0164 | T27: =Dx_Inputs!T31 -> 0.0164 | U27: =Dx_Inputs!U31 -> 0.0164 | V27: =Dx_Inputs!V31 -> 0.0164 | W27: =Dx_Inputs!W31 -> 0.0164 | X27: =Dx_Inputs!X31 -> 0.0164 | Y27: =Dx_Inputs!Y31 -> 0.0164 | Z27: =Dx_Inputs!Z31 -> 0.0164 | AA27: =Dx_Inputs!AA31 -> 0.0164 | AB27: =Dx_Inputs!AB31 -> 0.0164 | AC27: =Dx_Inputs!AC31 -> 0.0164 | AD27: =Dx_Inputs!AD31 -> 0.0164
B28: End of year Inflation factor | D28: =Dx_Inputs!D32 -> 0.7757387478 | E28: =Dx_Inputs!E32 -> 0.7918266544 | F28: =Dx_Inputs!F32 -> 0.8275216972 | G28: =Dx_Inputs!G32 -> 0.8395876272 | H28: =Dx_Inputs!H32 -> 0.8652277284 | I28: =Dx_Inputs!I32 -> 0.8963980475 | J28: =Dx_Inputs!J32 -> 0.9069557362 | K28: =Dx_Inputs!K32 -> 0.928635953 | L28: =Dx_Inputs!L32 -> 0.9566395664 | M28: =Dx_Inputs!M32 -> 0.9710930443 | N28: =Dx_Inputs!N32 -> 0.9810298103 | O28: =Dx_Inputs!O32 -> 1 | P28: =Dx_Inputs!P32 -> 1.0164 | Q28: =Dx_Inputs!Q32 -> 1.03306896 | R28: =Dx_Inputs!R32 -> 1.050011291 | S28: =Dx_Inputs!S32 -> 1.067231476 | T28: =Dx_Inputs!T32 -> 1.084734072 | U28: =Dx_Inputs!U32 -> 1.102523711 | V28: =Dx_Inputs!V32 -> 1.1206051 | W28: =Dx_Inputs!W32 -> 1.138983024 | X28: =Dx_Inputs!X32 -> 1.157662345 | Y28: =Dx_Inputs!Y32 -> 1.176648008 | Z28: =Dx_Inputs!Z32 -> 1.195945035 | AA28: =Dx_Inputs!AA32 -> 1.215558534 | AB28: =Dx_Inputs!AB32 -> 1.235493694 | AC28: =Dx_Inputs!AC32 -> 1.25575579 | AD28: =Dx_Inputs!AD32 -> 1.276350185
B30: Initial capital base - asset data
C33: Remaining life @ 30 June 2006 | D33: Standard life (AA1/AA2) | E33: Standard life (AA3) | F33: Standard life (AA4+) | G33: ICB ($M @ 30 June 2006) | H33: ICB ($M @ 30 June 2017) | J33: Tax life | K33: Tax ICB @ 30 June 2012
B34: Transmission cables | C34: 38.1 | D34: 55 | E34: 55 | F34: 55 | G34: 12.08660829 | H34: =G34/D$28 -> 15.58077165 | J34: 47.5 | K34: 1328.902758
B35: Transmission steel towers | C35: 41.3 | D35: 60 | E35: 60 | F35: 60 | G35: 365.1878518 | H35: 470.7613909 | J35: 47.5 | K35: 58.78918677
B36: Transmission wood poles | C36: 20.9 | D36: 45 | E36: 45 | F36: 45 | G36: 172.740829 | H36: 222.6791294 | J36: 47.5 | K36: 9.139871168
B37: Transmission metering | C37: 26.1 | D37: 40 | E37: 40 | F37: 40 | G37: 2.126729009 | H37: 2.741553152 | J37: 25 | K37: 0
B38: Transmission transformers | C38: 25.5 | D38: 50 | E38: 50 | F38: 50 | G38: 154.909869 | H38: 199.6933497 | J38: 40 | K38: 165.4964765
B39: Transmission reactors | C39: 27 | D39: 50 | E39: 50 | F39: 50 | G39: 3.932879594 | H39: 5.069850649 | J39: 40 | K39: 1.929584197
B40: Transmission capacitors | C40: 23.1 | D40: 40 | E40: 40 | F40: 40 | G40: 76.25847891 | H40: 98.30433136 | J40: 40 | K40: 12.78949966
B41: Transmission circuit breakers | C41: 28.2 | D41: 50 | E41: 50 | F41: 50 | G41: 455.2650729 | H41: 586.8793768 | J41: 40 | K41: 23.55868953
B42: SCADA and communications | C42: 11.4 | D42: 34.15 | E42: 11 | F42: 11 | G42: 33.89058198 | H42: 43.68813866 | J42: 12.5 | K42: 72.73476178
B43: IT | C43: 4.2 | D43: 16.85 | E43: 6 | F43: 6 | G43: 2.679569855 | H43: 3.454216852 | J43: 4 | K43: 18.76923065
B44: Other non-network assets | C44: 12 | D44: 16.85 | E44: 16.85 | F44: 16.85 | G44: 24.49947447 | H44: 31.58212032 | J44: 12.5 | K44: 151.0024198
B45: Land & Easements | C45: 0 | D45: 0 | E45: 0 | F45: 0 | G45: 82.98579328 | H45: 106.9764705 | J45: 0 | K45: 200.1478209
B46: Equity raising costs | C46: 0 | D46: 0 | E46: =ROUND(SUMPRODUCT(Tx_Asset!M15:M25,E34:E44)/SUM(Tx_Asset!M15:M25),0) -> 49 | F46: =ROUND(SUMPRODUCT(Tx_Asset!R15:R25,F34:F44)/SUM(Tx_Asset!R15:R25),0) -> 49 | G46: 0 | H46: 0 | J46: 5 | K46: 0
B47: Total | G47: =SUM(G34:G46) -> 1386.563738 | H47: =SUM(H34:H46) -> 1787.4107 | K47: =SUM(K34:K46) -> 2043.260298
B49: Working capital assumptions
C52: Input
B53: 2017 Closing balance (real as at 30 June 2012) | C53: 16.594
B55: Receivables | C55: 45 | D55: days
B56: TEC | C56: 0 | D56: days
B57: Inventory % capex | C57: 0.04 | D57: Percent
B58: Prepayments | C58: 0
B59: Creditors | C59: -24.2 | D59: Days
B61: Capital expenditure
B62: Year ending 30 June | D62: 2006 | E62: 2007 | F62: 2008 | G62: 2009 | H62: 2010 | I62: 2011 | J62: 2012 | K62: 2013 | L62: 2014 | M62: 2015 | N62: 2016 | O62: 2017 | P62: 2018 | Q62: 2019 | R62: 2020 | S62: 2021 | T62: 2022 | U62: 2023 | V62: 2024 | W62: 2025 | X62: 2026 | Y62: 2027 | Z62: 2028 | AA62: 2029 | AB62: 2030 | AC62: 2031 | AD62: 2032
B63: [ACTUAL] Capital expenditure by regulatory category [$M nominal]
B64: Growth | R64: Proposed AA4 | W64: Forecast AA5 | AB64: Forecast AA6
B65: Capacity Expansion | P65: =P103*P$28 -> 31.18637373 | Q65: =Q103*Q$28 -> 32.18398087 | R65: 47.96801296 | S65: 77.24079526 | T65: 67.30064399 | U65: 54.3759196 | V65: 83.20312794 | W65: 26.01620312 | X65: 18.91949539 | Y65: 51.95615688 | Z65: 17.97201831 | AA65: 18.26675941 | AB65: 18.56633427 | AC65: 18.87082215 | AD65: 19.18030363
B66: Customer Driven | P66: =P104*P$28 -> 23.19114676 | Q66: 23.32053561 | R66: 23.439275 | S66: 24.56380988 | T66: 25.10396119 | U66: 26.22770535 | V66: 26.72157718 | W66: 27.64790431 | X66: 28.44955782 | Y66: 28.93783078 | Z66: 29.960294 | AA66: 30.45164282 | AB66: 30.95104976 | AC66: 31.45864698 | AD66: 31.97456879
B67: Generation Driven | P67: 0 | Q67: 0 | R67: 0 | S67: 0 | T67: 0 | U67: 0 | V67: 0 | W67: 0 | X67: 0 | Y67: 0 | Z67: 0 | AA67: 0 | AB67: 0 | AC67: 0 | AD67: 0
B68: Gifted Assets | P68: 0 | Q68: 0 | R68: 0 | S68: 0 | T68: 0 | U68: 0 | V68: 0 | W68: 0 | X68: 0 | Y68: 0 | Z68: 0 | AA68: 0 | AB68: 0 | AC68: 0 | AD68: 0
B69: Asset replacement and renewal
B70: Asset Replacement | P70: =P108*P$28 -> 43.18387323 | Q70: 72.79952876 | R70: 59.72684129 | S70: 61.77329268 | T70: 74.25909785 | U70: 43.76568508 | V70: 39.06184863 | W70: 43.61967279 | X70: 44.78514391 | Y70: 53.77895061 | Z70: 39.84787955 | AA70: 40.50138478 | AB70: 41.16560749 | AC70: 41.84072345 | AD70: 42.52691132
B71: Improvement in service
B72: Reliability Driven | P72: =P110*P$28 -> 0 | Q72: 0 | R72: 0 | S72: 0 | T72: 0 | U72: 0 | V72: 0 | W72: 0 | X72: 0 | Y72: 0 | Z72: 0 | AA72: 0 | AB72: 0 | AC72: 0 | AD72: 0
B73: SCADA & Communications | P73: 14.19981148 | Q73: 24.40966158 | R73: 28.34264384 | S73: 26.34029887 | T73: 20.77373877 | U73: 23.41947006 | V73: 27.42807642 | W73: 27.5405992 | X73: 21.61251761 | Y73: 19.05853187 | Z73: 26.43270955 | AA73: 26.86620599 | AB73: 27.30681176 | AC73: 27.75464348 | AD73: 28.20981963
B74: Compliance
B75: Safety, Environmental & Statutory | P75: =P113*P$28 -> 40.10051759 | Q75: 41.71253287 | R75: 42.5657561 | S75: 35.44208035 | T75: 36.17505759 | U75: 32.53553077 | V75: 39.3489059 | W75: 38.61475549 | X75: 38.21370553 | Y75: 39.68580466 | Z75: 38.4441564 | AA75: 39.07464056 | AB75: 39.71546467 | AC75: 40.36679829 | AD75: 41.02881378
B76: Corporate
B77: IT | P77: =P115*P$28 -> 16.95876993 | Q77: 18.10059488 | R77: 16.48992942 | S77: 12.33564869 | T77: 9.503290505 | U77: 12.95490766 | V77: 13.1326949 | W77: 15.39268765 | X77: 13.80061063 | Y77: 16.03377755 | Z77: 11.38379361 | AA77: 11.57048782 | AB77: 11.76024382 | AC77: 11.95311182 | AD77: 12.14914285
B78: Business Support | P78: 12.55222412 | Q78: 18.30195206 | R78: 52.57057459 | S78: 6.653381969 | T78: 11.77988814 | U78: 14.09396815 | V78: 16.15070556 | W78: 10.97107579 | X78: 6.945050054 | Y78: 16.41737957 | Z78: 15.79071184 | AA78: 16.04967951 | AB78: 16.31289426 | AC78: 16.58042572 | AD78: 16.85234471
B79: Equity Raising Costs | P79: =Tax_Analysis!G205 -> 0.2418837807 | Q79: =Tax_Analysis!H205 -> 0 | R79: =Tax_Analysis!I205 -> 0 | S79: =Tax_Analysis!J205 -> 0 | T79: =Tax_Analysis!K205 -> 0
B80: Total | P80: =SUM(P65:P79) -> 181.6146006 | Q80: =SUM(Q65:Q79) -> 230.8287866 | R80: 271.1030332 | S80: 244.3493077 | T80: 244.895678 | U80: 207.3731867 | V80: 245.0469365 | W80: 189.8028983 | X80: 172.7260809 | Y80: 225.8684319 | Z80: 179.8315633 | AA80: 182.7808009 | AB80: 185.778406 | AC80: 188.8251719 | AD80: 191.9219047
B82: [APPROVED] Capital expenditure by regulatory category [$M real as at 30 June 2017]
B83: Growth | M83: Approved AA3
B84: Capacity Expansion | K84: 212.4517709 | L84: 298.9687755 | M84: 143.7103394 | N84: 154.403854 | O84: 244.0647024
B85: Customer Driven | K85: 37.20906722 | L85: 64.06473761 | M85: 64.65290327 | N85: 65.25535145 | O85: 66.18897551
B86: Generation Driven | K86: 0 | L86: 0 | M86: 0 | N86: 0 | O86: 0
B87: Gifted Assets | K87: 0 | L87: 0 | M87: 0 | N87: 0 | O87: 0
B88: Asset replacement and renewal
B89: Asset Replacement | K89: 33.49907225 | L89: 36.62422823 | M89: 37.07213106 | N89: 37.41757631 | O89: 39.43902686
B90: Improvement in service
B91: Reliability Driven | K91: 0 | L91: 0 | M91: 0 | N91: 0 | O91: 0
B92: SCADA & Communications | K92: 15.49468488 | L92: 13.16701861 | M92: 14.40453285 | N92: 20.62474839 | O92: 20.57688358
B93: Compliance
B94: Safety, Environmental & Statutory | K94: 19.75026735 | L94: 21.57620697 | M94: 27.13412002 | N94: 33.24754521 | O94: 33.83754188
B95: Corporate
B96: IT | K96: 17.09970148 | L96: 16.4641145 | M96: 9.632649202 | N96: 10.06205552 | O96: 10.20601578
B97: Business Support | K97: 13.60577209 | L97: 13.29633551 | M97: 9.212009499 | N97: 9.297848775 | O97: 7.665277674
B98: Equity Raising Costs | K98: 0.8461810701 | L98: 2.536908301 | M98: 0.4753801142 | N98: 1.518590548 | O98: 3.808411904
B99: Total | K99: =SUM(K84:K98) -> 349.9565172 | L99: =SUM(L84:L98) -> 466.6983252 | M99: =SUM(M84:M98) -> 306.2940654 | N99: =SUM(N84:N98) -> 331.8275702 | O99: =SUM(O84:O98) -> 425.7868356
B101: [ACTUAL] Capital expenditure by regulatory category [$M real as at 30 June 2017]
B102: Growth | M102: Actual AA3 | R102: Proposed AA4 | W102: Forecast AA5 | AB102: Forecast AA6
B103: Capacity Expansion | K103: 122.5097947 | L103: 215.5524476 | M103: 90.46301023 | N103: 27.8319779 | O103: 31.275 | P103: 30.68316975 | Q103: 31.15375847 | R103: 45.68333062 | S103: 72.3749224 | T103: 62.04344982 | U103: 49.3195013 | V103: 74.24839307 | W103: 22.84160745 | X103: 16.34284424 | Y103: 44.15607432 | Z103: 15.02746179 | AA103: =Z103 -> 15.02746179 | AB103: 15.02746179 | AC103: 15.02746179 | AD103: 15.02746179
B104: Customer Driven | K104: 40.51964591 | L104: 42.13812748 | M104: -17.8829414 | N104: 5.154787293 | O104: 6.474 | P104: 22.8169488 | Q104: 22.57403573 | R104: 22.32287901 | S104: 23.01638438 | T104: 23.14296364 | U104: 23.78879029 | V104: 23.845668 | W104: 24.27420228 | X104: 24.57500491 | Y104: 24.59344731 | Z104: 25.05156435 | AA104: =Z104 -> 25.05156435 | AB104: 25.05156435 | AC104: 25.05156435 | AD104: 25.05156435
B105: Generation Driven | K105: 0 | L105: 0 | M105: 0 | N105: 0 | O105: 0 | P105: 0 | Q105: 0 | R105: 0 | S105: 0 | T105: 0 | U105: 0 | V105: 0 | W105: 0 | X105: 0 | Y105: 0 | Z105: 0 | AA105: 0 | AB105: 0 | AC105: 0 | AD105: 0
B106: Gifted Assets | K106: 0 | L106: 0 | M106: 0 | N106: 0 | O106: 0 | P106: 0 | Q106: 0 | R106: 0 | S106: 0 | T106: 0 | U106: 0 | V106: 0 | W106: 0 | X106: 0 | Y106: 0 | Z106: 0 | AA106: 0 | AB106: 0 | AC106: 0 | AD106: 0
B107: Asset replacement and renewal
B108: Asset Replacement | K108: 28.02712938 | L108: 44.52460623 | M108: 38.88504837 | N108: 41.5125 | O108: 33.356 | P108: 42.48708503 | Q108: 70.46918607 | R108: 56.88209432 | S108: 57.88181295 | T108: 68.45834361 | U108: 39.69591279 | V108: 34.85781801 | W108: 38.29703506 | X108: 38.68584315 | Y108: 45.70521538 | Z108: 33.31915631 | AA108: 33.31915631 | AB108: 33.31915631 | AC108: 33.31915631 | AD108: 33.31915631
B109: Improvement in service
B110: Reliability Driven | K110: 1.310524319 | L110: 0.2811926346 | M110: 0.1915367442 | N110: 0 | O110: 0 | P110: 0 | Q110: 0 | R110: 0 | S110: 0 | T110: 0 | U110: 0 | V110: 0 | W110: 0 | X110: 0 | Y110: 0 | Z110: 0 | AA110: 0 | AB110: 0 | AC110: 0 | AD110: 0
B111: SCADA & Communications | K111: 6.110036965 | L111: 10.97801133 | M111: 13.1037907 | N111: 16.78032597 | O111: 11.455 | P111: 13.97069213 | Q111: 23.62829833 | R111: 26.99270388 | S111: 24.6809614 | T111: 19.15099682 | U111: 21.24169288 | V111: 24.47613028 | W111: 24.17999095 | X111: 18.66910304 | Y111: 16.19730943 | Z111: 22.10194346 | AA111: 22.10194346 | AB111: 22.10194346 | AC111: 22.10194346 | AD111: 22.10194346
B112: Compliance
B113: Safety, Environmental & Statutory | K113: 22.41782685 | L113: 19.63958074 | M113: 26.15712279 | N113: 22.69248066 | O113: 21.036 | P113: 39.45348051 | Q113: 40.37729763 | R113: 40.53837941 | S113: 33.20936568 | T113: 33.34924063 | U113: 29.51005084 | V113: 35.11398074 | W113: 33.90283673 | X113: 33.00937072 | Y113: 33.72784758 | Z113: 32.1454208 | AA113: 32.1454208 | AB113: 32.1454208 | AC113: 32.1454208 | AD113: 32.1454208
B114: Corporate
B115: IT | K115: 10.16544747 | L115: 6.697402266 | M115: 9.538735814 | N115: 5.266914365 | O115: 12.331 | P115: 16.68513374 | Q115: 17.52118743 | R115: 15.70452581 | S115: 11.5585503 | T115: 8.760940351 | U115: 11.75023043 | V115: 11.71928889 | W115: 13.51441359 | X115: 11.92110176 | Y115: 13.62665593 | Z115: 9.51865953 | AA115: 9.51865953 | AB115: 9.51865953 | AC115: 9.51865953 | AD115: 9.51865953
B116: Business Support | K116: 11.76241342 | L116: 1.885767705 | M116: 5.286826047 | N116: 7.165939227 | O116: 2.265 | P116: 12.34968922 | Q116: 17.71609908 | R116: 50.06667551 | S116: 6.234244509 | T116: 10.85970141 | U116: 12.78336965 | V116: 14.41248622 | W116: 9.632343558 | X116: 5.999201825 | Y116: 13.95266848 | Z116: 13.20354312 | AA116: 13.20354312 | AB116: 13.20354312 | AC116: 13.20354312 | AD116: 13.20354312
B117: Equity Raising Costs | K117: 0.8461810701 | L117: 2.536908301 | M117: 0.4753801142 | N117: 1.518590548 | O117: 3.808411904 | P117: =P79/P$28 -> 0.2379808941 | Q117: 0 | R117: 0 | S117: 0 | T117: 0 | U117: =U79/U$28 -> 0 | V117: 0 | W117: 0 | X117: 0 | Y117: 0 | Z117: 0 | AA117: 0 | AB117: 0 | AC117: 0 | AD117: 0
B118: Total | K118: =SUM(K103:K117) -> 243.6690001 | L118: 344.2340443 | M118: 166.2185094 | N118: 127.923516 | O118: 122.0004119 | P118: 178.6841801 | Q118: 223.4398627 | R118: 258.1905886 | S118: 228.9562416 | T118: 225.7656363 | U118: 188.0895482 | V118: 218.6737652 | W118: 166.6424296 | X118: 149.2024697 | Y118: 191.9592184 | Z118: 150.3677494 | AA118: 150.3677494 | AB118: 150.3677494 | AC118: 150.3677494 | AD118: 150.3677494
P119: =IF(ROUND(P118-P80/P28,8)=0,"OK","CHECK") -> OK | Q119: OK | R119: OK | S119: OK | T119: OK | U119: OK | V119: OK | W119: OK | X119: OK | Y119: OK | Z119: OK | AA119: OK | AB119: OK | AC119: OK | AD119: OK
B120: [ACTUAL] Capital expenditure by asset category [$M real as at 30 June 2017]
F121: Actual AA1 | I121: Actual AA2 | M121: Actual AA3 | R121: Proposed AA4 | W121: Forecast AA5 | AB121: Forecast AA6
B122: Transmission cables | E122: 5.743717321 | F122: 4.923117706 | G122: 5.687416585 | H122: 5.129861298 | I122: 2.314033573 | J122: 0.9182704912 | K122: =SUMPRODUCT(K$103:K$117,$C$6:$C$20) -> 19.10813494 | L122: 31.22673187 | M122: 10.1853197 | N122: 4.008489405 | O122: 4.560319227 | P122: 5.825753444 | Q122: 5.866432611 | R122: 7.717509214 | S122: 11.21284568 | T122: 9.89233987 | U122: 8.306263592 | V122: 11.52226563 | W122: 4.935238802 | X122: 4.122764374 | Y122: 7.707170696 | Z122: 3.992440309 | AA122: 3.992440309 | AB122: 3.992440309 | AC122: 3.992440309 | AD122: 3.992440309
B123: Transmission steel towers | E123: 90.83380879 | F123: 128.6271447 | G123: 103.4656356 | H123: 91.17466364 | I123: 55.45325347 | J123: 60.72171709 | K123: =SUMPRODUCT(K$103:K$117,$D$6:$D$20) -> 13.83017081 | L123: 21.57391978 | M123: 5.687258646 | N123: 2.75853037 | O123: 3.164295634 | P123: 4.663066242 | Q123: 4.678462894 | R123: 5.840029336 | S123: 8.083212563 | T123: 7.252339817 | U123: 6.275438663 | V123: 8.314554214 | W123: 4.161287625 | X123: 3.659584591 | Y123: 5.930369855 | Z123: 3.597385951 | AA123: 3.597385951 | AB123: 3.597385951 | AC123: 3.597385951 | AD123: 3.597385951
B124: Transmission wood poles | E124: 15.89362123 | F124: 15.11621087 | G124: 18.58973369 | H124: 14.53778899 | I124: 9.754479936 | J124: 8.512019789 | K124: =SUMPRODUCT(K$103:K$117,$E$6:$E$20) -> 28.95208874 | L124: 29.42101391 | M124: 30.32448899 | N124: 23.9246902 | O124: 22.42064299 | P124: 40.8119213 | Q124: 41.75657288 | R124: 42.56092469 | S124: 36.41363199 | T124: 36.09610003 | U124: 31.69358088 | V124: 38.40119152 | W124: 34.91410681 | X124: 33.73292004 | Y124: 35.68277641 | Z124: 32.81073397 | AA124: 32.81073397 | AB124: 32.81073397 | AC124: 32.81073397 | AD124: 32.81073397
B125: Transmission Metering | E125: 0 | F125: 0 | G125: 0 | H125: 0 | I125: 0 | J125: 0 | K125: =SUMPRODUCT(K$103:K$117,$F$6:$F$20) -> 0 | L125: 0 | M125: 0 | N125: 0 | O125: 0 | P125: 0 | Q125: 0 | R125: 0 | S125: 0 | T125: 0 | U125: 0 | V125: 0 | W125: 0 | X125: 0 | Y125: 0 | Z125: 0 | AA125: 0 | AB125: 0 | AC125: 0 | AD125: 0
B126: Transmission transformers | E126: 60.84351798 | F126: 53.99602589 | G126: 57.31803849 | H126: 39.23561455 | I126: 21.7124175 | J126: 17.66392341 | K126: =SUMPRODUCT(K$103:K$117,$G$6:$G$20) -> 69.0246925 | L126: 108.2995954 | M126: 44.9559081 | N126: 35.23018513 | O126: 31.89487944 | P126: 42.92938695 | Q126: 59.69238263 | R126: 55.9996836 | S126: 65.11929493 | T126: 68.27299485 | U126: 47.38615244 | V126: 52.24976195 | W126: 38.51061009 | X126: 36.83332544 | Y126: 49.65575012 | Z126: 33.39013185 | AA126: 33.39013185 | AB126: 33.39013185 | AC126: 33.39013185 | AD126: 33.39013185
B127: Transmission reactors | E127: 4.583286854 | F127: 3.44779165 | G127: 3.844034567 | H127: 1.157396827 | I127: 0.7084945585 | J127: 0.3457976441 | K127: =SUMPRODUCT(K$103:K$117,$H$6:$H$20) -> 7.234626758 | L127: 12.37936627 | M127: 6.670752946 | N127: 4.210670719 | O127: 3.760688277 | P127: 4.402585389 | Q127: 6.466393668 | R127: 6.089187252 | S127: 7.292416368 | T127: 7.627484872 | U127: 4.987833007 | V127: 5.69001541 | W127: 3.764496973 | X127: 3.517718104 | Y127: 5.208131392 | Z127: 3.070024497 | AA127: 3.070024497 | AB127: 3.070024497 | AC127: 3.070024497 | AD127: 3.070024497
B128: Transmission capacitors | E128: 29.66471817 | F128: 22.68676816 | G128: 24.65292422 | H128: 9.714790711 | I128: 3.61939155 | J128: 0.9876495273 | K128: =SUMPRODUCT(K$103:K$117,$I$6:$I$20) -> 4.970798014 | L128: 7.908008904 | M128: 2.296560034 | N128: 1.012854655 | O128: 1.157740585 | P128: 1.609078511 | Q128: 1.616717233 | R128: 2.060910123 | S128: 2.910109611 | T128: 2.592764676 | U128: 2.216013259 | V128: 2.992150553 | W128: 1.407337204 | X128: 1.214076173 | Y128: 2.078720746 | Z128: 1.186906411 | AA128: 1.186906411 | AB128: 1.186906411 | AC128: 1.186906411 | AD128: 1.186906411
B129: Transmission circuit breakers | E129: 62.83957951 | F129: 52.278877 | G129: 70.16868561 | H129: 38.82664059 | I129: 48.20118579 | J129: 36.29321942 | K129: =SUMPRODUCT(K$103:K$117,$J$6:$J$20) -> 29.37004722 | L129: 43.94068876 | M129: 17.98775702 | N129: 17.4143785 | O129: 15.31833945 | P129: 21.55174861 | Q129: 30.78379962 | R129: 27.64799253 | S129: 30.68692909 | T129: 33.20833237 | U129: 22.61973185 | V129: 23.43454953 | W129: 19.70599693 | X129: 19.26891415 | Y129: 24.26727403 | Z129: 17.46654807 | AA129: 17.46654807 | AB129: 17.46654807 | AC129: 17.46654807 | AD129: 17.46654807
B130: SCADA and Communications | E130: 7.770790015 | F130: 5.350312525 | G130: 6.286147835 | H130: 11.71319437 | I130: 6.674823524 | J130: 13.73625517 | K130: =SUMPRODUCT(K$103:K$117,$K$6:$K$20) -> 6.110036965 | L130: 10.97801133 | M130: 13.1037907 | N130: 16.78032597 | O130: 11.455 | P130: 13.97069213 | Q130: 23.62829833 | R130: 26.99270388 | S130: 24.6809614 | T130: 19.15099682 | U130: 21.24169288 | V130: 24.47613028 | W130: 24.17999095 | X130: 18.66910304 | Y130: 16.19730943 | Z130: 22.10194346 | AA130: 22.10194346 | AB130: 22.10194346 | AC130: 22.10194346 | AD130: 22.10194346
B131: IT | E131: 6.655064462 | F131: 12.04476591 | G131: 7.236765448 | H131: 9.725848232 | I131: 14.56231998 | J131: 17.2215108 | K131: =SUMPRODUCT(K$103:K$117,$L$6:$L$20) -> 10.16544747 | L131: 6.697402266 | M131: 9.538735814 | N131: 5.266914365 | O131: 12.331 | P131: 16.68513374 | Q131: 17.52118743 | R131: 15.70452581 | S131: 11.5585503 | T131: 8.760940351 | U131: 11.75023043 | V131: 11.71928889 | W131: 13.51441359 | X131: 11.92110176 | Y131: 13.62665593 | Z131: 9.51865953 | AA131: 9.51865953 | AB131: 9.51865953 | AC131: 9.51865953 | AD131: 9.51865953
B132: Other Non-Network Assets | E132: 3.359460992 | F132: 3.217255355 | G132: 8.60021401 | H132: 8.433617833 | I132: 13.81975344 | J132: 15.5939253 | K132: =SUMPRODUCT(K$103:K$117,$M$6:$M$20) -> 11.76241342 | L132: 1.885767705 | M132: 5.286826047 | N132: 7.165939227 | O132: 2.265 | P132: 12.34968922 | Q132: 17.71609908 | R132: 50.06667551 | S132: 6.234244509 | T132: 10.85970141 | U132: 12.78336965 | V132: 14.41248622 | W132: 9.632343558 | X132: 5.999201825 | Y132: 13.95266848 | Z132: 13.20354312 | AA132: 13.20354312 | AB132: 13.20354312 | AC132: 13.20354312 | AD132: 13.20354312
B133: Land & Easements | E133: 28.45745877 | F133: 25.69538094 | G133: 28.41451329 | H133: 25.23891993 | I133: 11.74287604 | J133: 5.693340684 | K133: =SUMPRODUCT(K$103:K$117,$N$6:$N$20) -> 42.29436222 | L133: 67.38662978 | M133: 19.70573131 | N133: 8.631946884 | O133: 9.864094394 | P133: 13.64714363 | Q133: 13.71351637 | R133: 17.51044661 | S133: 24.76404517 | T133: 22.05164121 | U133: 18.82924153 | V133: 25.46137101 | W133: 11.91660709 | X133: 10.26376016 | Y133: 17.65239136 | Z133: 10.02943217 | AA133: 10.02943217 | AB133: 10.02943217 | AC133: 10.02943217 | AD133: 10.02943217
B134: Equity Raising Costs | E134: 0 | F134: 0 | G134: 0 | H134: 0 | I134: 0 | J134: 0 | K134: =SUMPRODUCT(K$103:K$117,$O$6:$O$20) -> 0.8461810701 | L134: 2.536908301 | M134: 0.4753801142 | N134: 1.518590548 | O134: 3.808411904 | P134: 0.2379808941 | Q134: 0 | R134: 0 | S134: 0 | T134: 0 | U134: 0 | V134: 0 | W134: 0 | X134: 0 | Y134: 0 | Z134: 0 | AA134: 0 | AB134: 0 | AC134: 0 | AD134: 0
B135: Total Transmission | E135: =SUM(E122:E134) -> 316.6450241 | F135: 327.3836507 | G135: 334.2641093 | H135: 254.888337 | I135: 188.5630294 | J135: 177.6876293 | K135: 243.6690001 | L135: 344.2340443 | M135: 166.2185094 | N135: 127.923516 | O135: 122.0004119 | P135: 178.6841801 | Q135: 223.4398627 | R135: 258.1905886 | S135: 228.9562416 | T135: 225.7656363 | U135: 188.0895482 | V135: 218.6737652 | W135: 166.6424296 | X135: 149.2024697 | Y135: 191.9592184 | Z135: 150.3677494 | AA135: 150.3677494 | AB135: 150.3677494 | AC135: 150.3677494 | AD135: 150.3677494
K136: =IF(ROUND(K118-K135-K171,8)=0,"OK","CHECK") -> OK | L136: OK | M136: OK | N136: OK | O136: OK | P136: OK | Q136: OK | R136: OK | S136: OK | T136: OK | U136: OK | V136: OK | W136: OK | X136: OK | Y136: OK | Z136: OK | AA136: OK | AB136: OK | AC136: OK | AD136: OK
B138: Prior period capital expenditure that now satisfies NFIT
B139: Transmission cables | E139: 0.004192952637 | F139: 0.008690060648 | G139: 0.08259317351
B140: Transmission steel towers | E140: 0.06630929707 | F140: 0.227046712 | G140: 1.502537236
B141: Transmission wood poles | E141: 0.0116024514 | F141: 0.02668243927 | G141: 0.2699617791
B142: Transmission Metering | E142: 0 | F142: 0 | G142: 0
B143: Transmission transformers | E143: 0.04441618118 | F143: 0.0953112982 | G143: 0.8323776933
B144: Transmission reactors | E144: 0.003345830519 | F144: 0.006085883038 | G144: 0.05582341458
B145: Transmission capacitors | E145: 0.02165544565 | F145: 0.04004563835 | G145: 0.3580119755
B146: Transmission circuit breakers | E146: 0.04587331964 | F146: 0.09228026606 | G146: 1.018995943
B147: SCADA and Communications | E147: 0.005672729465 | F147: 0.009444125269 | G147: 0.0912880024
B148: IT | E148: 0.004858242237 | F148: 0.02126086609 | G148: 0.1050929566
B149: Other Non-Network Assets | E149: 0.002452429331 | F149: 0.005678950987 | G149: 0.1248930788
B150: Land & Easements | E150: 0.02077413809 | F150: 0.04535630308 | G150: 0.4126381092
B151: Equity Raising Costs | E151: 0 | F151: 0 | G151: 0
B152: Total Transmission | E152: =SUM(E139:E151) -> 0.2311530172 | F152: =SUM(F139:F151) -> 0.577882543 | G152: =SUM(G139:G151) -> 4.854213362
B154: Gifted asset
B155: Year ending 30 June | D155: 2006 | E155: 2007 | F155: 2008 | G155: 2009 | H155: 2010 | I155: 2011 | J155: 2012 | K155: 2013 | L155: 2014 | M155: 2015 | N155: 2016 | O155: 2017 | P155: 2018 | Q155: 2019 | R155: 2020 | S155: 2021 | T155: 2022 | U155: 2023 | V155: 2024 | W155: 2025 | X155: 2026 | Y155: 2027 | Z155: 2028 | AA155: 2029 | AB155: 2030 | AC155: 2031 | AD155: 2032
B156: [ACTUAL] Gifted assets [$M real as at 30 June 2017]
F157: Actual AA1 | I157: Actual AA2 | M157: Actual AA3 | R157: Proposed AA4 | W157: Forecast AA5 | AB157: Forecast AA6
B158: Transmission cables | E158: 0 | F158: 0 | G158: 0 | H158: 0 | I158: 0 | J158: 0 | K158: =K$106*$C$9 -> 0 | L158: 0 | M158: 0 | N158: 0 | O158: 0 | P158: 0 | Q158: 0 | R158: 0 | S158: 0 | T158: 0 | U158: 0 | V158: 0 | W158: 0 | X158: 0 | Y158: 0 | Z158: 0 | AA158: 0 | AB158: 0 | AC158: 0 | AD158: 0
B159: Transmission steel towers | E159: 0 | F159: 0 | G159: 0 | H159: 0.5360885176 | I159: 0 | J159: 0 | K159: =K$106*$D$9 -> 0 | L159: 0 | M159: 0 | N159: 0 | O159: 0 | P159: 0 | Q159: 0 | R159: 0 | S159: 0 | T159: 0 | U159: 0 | V159: 0 | W159: 0 | X159: 0 | Y159: 0 | Z159: 0 | AA159: 0 | AB159: 0 | AC159: 0 | AD159: 0
B160: Transmission wood poles | E160: 0 | F160: 0 | G160: 0 | H160: 0 | I160: 0 | J160: 0 | K160: =K$106*$E$9 -> 0 | L160: 0 | M160: 0 | N160: 0 | O160: 0 | P160: 0 | Q160: 0 | R160: 0 | S160: 0 | T160: 0 | U160: 0 | V160: 0 | W160: 0 | X160: 0 | Y160: 0 | Z160: 0 | AA160: 0 | AB160: 0 | AC160: 0 | AD160: 0
B161: Transmission Metering | E161: 0 | F161: 0 | G161: 0 | H161: 0 | I161: 0 | J161: 0 | K161: =K$106*$F$9 -> 0 | L161: 0 | M161: 0 | N161: 0 | O161: 0 | P161: 0 | Q161: 0 | R161: 0 | S161: 0 | T161: 0 | U161: 0 | V161: 0 | W161: 0 | X161: 0 | Y161: 0 | Z161: 0 | AA161: 0 | AB161: 0 | AC161: 0 | AD161: 0
B162: Transmission transformers | E162: 0 | F162: 0 | G162: 0 | H162: 0.4522693877 | I162: 0 | J162: 0 | K162: =K$106*$G$9 -> 0 | L162: 0 | M162: 0 | N162: 0 | O162: 0 | P162: 0 | Q162: 0 | R162: 0 | S162: 0 | T162: 0 | U162: 0 | V162: 0 | W162: 0 | X162: 0 | Y162: 0 | Z162: 0 | AA162: 0 | AB162: 0 | AC162: 0 | AD162: 0
B163: Transmission reactors | E163: 0 | F163: 0 | G163: 0 | H163: 0.06056033194 | I163: 0 | J163: 0 | K163: =K$106*$H$9 -> 0 | L163: 0 | M163: 0 | N163: 0 | O163: 0 | P163: 0 | Q163: 0 | R163: 0 | S163: 0 | T163: 0 | U163: 0 | V163: 0 | W163: 0 | X163: 0 | Y163: 0 | Z163: 0 | AA163: 0 | AB163: 0 | AC163: 0 | AD163: 0
B164: Transmission capacitors | E164: 0 | F164: 0 | G164: 0 | H164: 0.3549509279 | I164: 0 | J164: 0 | K164: =K$106*$I$9 -> 0 | L164: 0 | M164: 0 | N164: 0 | O164: 0 | P164: 0 | Q164: 0 | R164: 0 | S164: 0 | T164: 0 | U164: 0 | V164: 0 | W164: 0 | X164: 0 | Y164: 0 | Z164: 0 | AA164: 0 | AB164: 0 | AC164: 0 | AD164: 0
B165: Transmission circuit breakers | E165: 0 | F165: 0 | G165: 0 | H165: 0.2775516362 | I165: 0 | J165: 0 | K165: =K$106*$J$9 -> 0 | L165: 0 | M165: 0 | N165: 0 | O165: 0 | P165: 0 | Q165: 0 | R165: 0 | S165: 0 | T165: 0 | U165: 0 | V165: 0 | W165: 0 | X165: 0 | Y165: 0 | Z165: 0 | AA165: 0 | AB165: 0 | AC165: 0 | AD165: 0
B166: SCADA and Communications | E166: 0 | F166: 0 | G166: 0 | H166: 0.01194372623 | I166: 0 | J166: 0 | K166: =K$106*$K$9 -> 0 | L166: 0 | M166: 0 | N166: 0 | O166: 0 | P166: 0 | Q166: 0 | R166: 0 | S166: 0 | T166: 0 | U166: 0 | V166: 0 | W166: 0 | X166: 0 | Y166: 0 | Z166: 0 | AA166: 0 | AB166: 0 | AC166: 0 | AD166: 0
B167: IT | E167: 0 | F167: 0 | G167: 0 | H167: 0 | I167: 0 | J167: 0 | K167: =K$106*$L$9 -> 0 | L167: 0 | M167: 0 | N167: 0 | O167: 0 | P167: 0 | Q167: 0 | R167: 0 | S167: 0 | T167: 0 | U167: 0 | V167: 0 | W167: 0 | X167: 0 | Y167: 0 | Z167: 0 | AA167: 0 | AB167: 0 | AC167: 0 | AD167: 0
B168: Other Non-Network Assets | E168: 0 | F168: 0 | G168: 0 | H168: 0 | I168: 0 | J168: 0 | K168: =K$106*$M$9 -> 0 | L168: 0 | M168: 0 | N168: 0 | O168: 0 | P168: 0 | Q168: 0 | R168: 0 | S168: 0 | T168: 0 | U168: 0 | V168: 0 | W168: 0 | X168: 0 | Y168: 0 | Z168: 0 | AA168: 0 | AB168: 0 | AC168: 0 | AD168: 0
B169: Land & Easements | E169: 0 | F169: 0 | G169: 0 | H169: 0.02410239036 | I169: 0 | J169: 0 | K169: =K$106*$N$9 -> 0 | L169: 0 | M169: 0 | N169: 0 | O169: 0 | P169: 0 | Q169: 0 | R169: 0 | S169: 0 | T169: 0 | U169: 0 | V169: 0 | W169: 0 | X169: 0 | Y169: 0 | Z169: 0 | AA169: 0 | AB169: 0 | AC169: 0 | AD169: 0
B170: Equity Raising Costs | E170: 0 | F170: 0 | G170: 0 | H170: 0 | I170: 0 | J170: 0 | K170: =K$106*$O$9 -> 0 | L170: 0 | M170: 0 | N170: 0 | O170: 0 | P170: 0 | Q170: 0 | R170: 0 | S170: 0 | T170: 0 | U170: 0 | V170: 0 | W170: 0 | X170: 0 | Y170: 0 | Z170: 0 | AA170: 0 | AB170: 0 | AC170: 0 | AD170: 0
B171: Total Transmission | E171: =SUM(E158:E170) -> 0 | F171: 0 | G171: 0 | H171: 1.717466918 | I171: 0 | J171: 0 | K171: 0 | L171: 0 | M171: 0 | N171: 0 | O171: 0 | P171: 0 | Q171: 0 | R171: 0 | S171: 0 | T171: 0 | U171: 0 | V171: 0 | W171: 0 | X171: 0 | Y171: 0 | Z171: 0 | AA171: 0 | AB171: 0 | AC171: 0 | AD171: 0
P172: =IF(ROUND(P106-P171,8)=0,"OK","CHECK") -> OK | Q172: OK | R172: OK | S172: OK | T172: OK | U172: OK | V172: OK | W172: OK | X172: OK | Y172: OK | Z172: OK | AA172: OK | AB172: OK | AC172: OK | AD172: OK
B173: Cash contributions
B174: Year ending 30 June | D174: 2006 | E174: 2007 | F174: 2008 | G174: 2009 | H174: 2010 | I174: 2011 | J174: 2012 | K174: 2013 | L174: 2014 | M174: 2015 | N174: 2016 | O174: 2017 | P174: 2018 | Q174: 2019 | R174: 2020 | S174: 2021 | T174: 2022 | U174: 2023 | V174: 2024 | W174: 2025 | X174: 2026 | Y174: 2027 | Z174: 2028 | AA174: 2029 | AB174: 2030 | AC174: 2031 | AD174: 2032
B175: [ACTUAL] Cash contributions by regulatory category [$M nominal]
B176: Growth | M176: Actual AA3 | R176: Proposed AA4 | W176: Forecast AA5 | AB176: Forecast AA6
B177: Capacity Expansion | P177: =P215*P$28 -> 0 | Q177: =Q215*Q$28 -> 0 | R177: 0 | S177: 0 | T177: 0 | U177: 0 | V177: 0 | W177: 0 | X177: 0 | Y177: 0 | Z177: 0 | AA177: 0 | AB177: 0 | AC177: 0 | AD177: 0
B178: Customer Driven | P178: =P216*P$28 -> 13.1030113 | Q178: 13.17611607 | R178: 13.2432039 | S178: 13.87856675 | T178: 14.18375255 | U178: 16.39232889 | V178: 16.70099902 | W178: 17.27995394 | X178: 17.78098778 | Y178: 18.08615863 | Z178: 18.72519864 | AA178: 19.0322919 | AB178: 19.34442149 | AC178: 19.66167 | AD178: 19.98412139
B179: Generation Driven | P179: 0 | Q179: 0 | R179: 0 | S179: 0 | T179: 0 | U179: 0 | V179: 0 | W179: 0 | X179: 0 | Y179: 0 | Z179: 0 | AA179: 0 | AB179: 0 | AC179: 0 | AD179: 0
B180: Gifted Assets | P180: 0 | Q180: 0 | R180: 0 | S180: 0 | T180: 0 | U180: 0 | V180: 0 | W180: 0 | X180: 0 | Y180: 0 | Z180: 0 | AA180: 0 | AB180: 0 | AC180: 0 | AD180: 0
B181: Asset replacement and renewal
B182: Asset Replacement | P182: =P220*P$28 -> 0 | Q182: 0 | R182: 0 | S182: 0 | T182: 0 | U182: 0 | V182: 0 | W182: 0 | X182: 0 | Y182: 0 | Z182: 0 | AA182: 0 | AB182: 0 | AC182: 0 | AD182: 0
B183: Improvement in service
B184: Reliability Driven | P184: =P222*P$28 -> 0 | Q184: 0 | R184: 0 | S184: 0 | T184: 0 | U184: 0 | V184: 0 | W184: 0 | X184: 0 | Y184: 0 | Z184: 0 | AA184: 0 | AB184: 0 | AC184: 0 | AD184: 0
B185: SCADA & Communications | P185: 0 | Q185: 0 | R185: 0 | S185: 0 | T185: 0 | U185: 0 | V185: 0 | W185: 0 | X185: 0 | Y185: 0 | Z185: 0 | AA185: 0 | AB185: 0 | AC185: 0 | AD185: 0
B186: Compliance
B187: Safety, Environmental & Statutory | P187: =P225*P$28 -> 0 | Q187: 0 | R187: 0 | S187: 0 | T187: 0 | U187: 0 | V187: 0 | W187: 0 | X187: 0 | Y187: 0 | Z187: 0 | AA187: 0 | AB187: 0 | AC187: 0 | AD187: 0
B188: Corporate
B189: IT | P189: =P227*P$28 -> 0 | Q189: 0 | R189: 0 | S189: 0 | T189: 0 | U189: 0 | V189: 0 | W189: 0 | X189: 0 | Y189: 0 | Z189: 0 | AA189: 0 | AB189: 0 | AC189: 0 | AD189: 0
B190: Business Support | P190: 0 | Q190: 0 | R190: 0 | S190: 0 | T190: 0 | U190: 0 | V190: 0 | W190: 0 | X190: 0 | Y190: 0 | Z190: 0 | AA190: 0 | AB190: 0 | AC190: 0 | AD190: 0
B191: Equity raising costs | P191: 0 | Q191: 0 | R191: 0 | S191: 0 | T191: 0 | U191: 0 | V191: 0 | W191: 0 | X191: 0 | Y191: 0 | Z191: 0 | AA191: 0 | AB191: 0 | AC191: 0 | AD191: 0
B192: Total Transmission | P192: =SUM(P177:P191) -> 13.1030113 | Q192: 13.17611607 | R192: 13.2432039 | S192: 13.87856675 | T192: 14.18375255 | U192: 16.39232889 | V192: 16.70099902 | W192: 17.27995394 | X192: 17.78098778 | Y192: 18.08615863 | Z192: 18.72519864 | AA192: 19.0322919 | AB192: 19.34442149 | AC192: 19.66167 | AD192: 19.98412139
B194: [APPROVED] Cash contributions by regulatory category [$M real as at 30 June 2017]
B195: Growth | M195: Approved AA3
B196: Capacity Expansion | K196: 0 | L196: 0 | M196: 0 | N196: 0 | O196: 0
B197: Customer Driven | K197: 24.67378979 | L197: 42.28339267 | M197: 42.81470254 | N197: 43.26454198 | O197: 43.75909018
B198: Generation Driven | K198: 0 | L198: 0 | M198: 0 | N198: 0 | O198: 0
B199: Gifted Assets | K199: 0 | L199: 0 | M199: 0 | N199: 0 | O199: 0
B200: Asset replacement and renewal
B201: Asset Replacement | K201: 0 | L201: 0 | M201: 0 | N201: 0 | O201: 0
B202: Improvement in service
B203: Reliability Driven | K203: 0 | L203: 0 | M203: 0 | N203: 0 | O203: 0
B204: SCADA & Communications | K204: 0 | L204: 0 | M204: 0 | N204: 0 | O204: 0
B205: Compliance
B206: Safety, Environmental & Statutory | K206: 0 | L206: 0 | M206: 0 | N206: 0 | O206: 0
B207: Corporate
B208: IT | K208: 0 | L208: 0 | M208: 0 | N208: 0 | O208: 0
B209: Business Support | K209: 0 | L209: 0 | M209: 0 | N209: 0 | O209: 0
B210: Equity raising costs | K210: 0 | L210: 0 | M210: 0 | N210: 0 | O210: 0
B211: Total Transmission | K211: =SUM(K196:K210) -> 24.67378979 | L211: =SUM(L196:L210) -> 42.28339267 | M211: =SUM(M196:M210) -> 42.81470254 | N211: =SUM(N196:N210) -> 43.26454198 | O211: =SUM(O196:O210) -> 43.75909018
B213: [ACTUAL] Cash contributions by regulatory category [$M real as at 30 June 2017]
B214: Growth | M214: Actual AA3 | R214: Proposed AA4 | W214: Forecast AA5 | AB214: Forecast AA6
B215: Capacity Expansion | K215: -0.01507587549 | L215: -0.03135977337 | M215: 0.01338697674 | N215: 0 | O215: -0.033
... 185 more rows

Sheet WACC_Inputs
D2: AA1 | E2: AA2 | F2: AA3 | H2: AA4 | N2: AA5
B3: Determination of the Weighted Average Cost of Capital (WACC) | D3: Approved | E3: Approved | F3: Approved | H3: 17/18 | I3: 18/19 | J3: 19/20 | K3: 20/21 | L3: 21/22 | N3: Forecast
B4: Nominal Risk Free Rate (Rfn) | F4: 0.0252 | H4: 0.0199 | I4: =$H4 -> 0.0199 | J4: =$H4 -> 0.0199 | K4: 0.0199 | L4: 0.0199 | N4: =L4 -> 0.0199
B5: Real Risk Free Rate (Rfr) | F5: =(1+F4)/(1+F6)-1 -> 0.004113614104 | H5: =(1+H4)/(1+H6)-1 -> 0.003443526171 | I5: =(1+I4)/(1+I6)-1 -> 0.003443526171 | J5: =(1+J4)/(1+J6)-1 -> 0.003443526171 | K5: =(1+K4)/(1+K6)-1 -> 0.003443526171 | L5: =(1+L4)/(1+L6)-1 -> 0.003443526171 | N5: =(1+N4)/(1+N6)-1 -> 0.003443526171
B6: Inflation Rate (I) | D6: 0.031 | E6: 0.0247 | F6: 0.021 | H6: 0.0164 | I6: =$H6 -> 0.0164 | J6: 0.0164 | K6: 0.0164 | L6: 0.0164 | N6: =L6 -> 0.0164
B7: Debt Proportion (D) | F7: 0.6 | H7: 0.6 | I7: =$H7 -> 0.6 | J7: 0.6 | K7: 0.6 | L7: 0.6 | N7: =L7 -> 0.6
B8: Equity Proportion (E) | F8: =1-F7 -> 0.4 | H8: =1-H7 -> 0.4 | I8: =1-I7 -> 0.4 | J8: =1-J7 -> 0.4 | K8: =1-K7 -> 0.4 | L8: =1-L7 -> 0.4 | N8: =1-N7 -> 0.4
B9: 5 year IRS (effective yield) | H9: 0.0229 | I9: =$H9 -> 0.0229 | J9: 0.0229 | K9: 0.0229 | L9: 0.0229 | N9: =L9 -> 0.0229
B10: Cost of Debt; Debt Risk Premium (Drp) | F10: 0.02708 | H10: =AVERAGE(H38:H51) -> 0.02793 | I10: =IF(I35=10,AVERAGE(I38:I51),H10) -> 0.02793 | J10: =IF(J35=10,AVERAGE(J38:J51),I10) -> 0.02793 | K10: =IF(K35=10,AVERAGE(K38:K51),J10) -> 0.02793 | L10: =IF(L35=10,AVERAGE(L38:L51),K10) -> 0.02793 | N10: 0.02793
B11: Cost of Debt; Debt Issuing Cost (Disc) | F11: 0.00125 | H11: 0.00125 | I11: =$H11 -> 0.00125 | J11: 0.00125 | K11: 0.00125 | L11: 0.00125 | N11: 0.00125
B12: Cost of Debt; Hedging Cost | H12: 0.00114 | I12: 0.00114 | J12: 0.00114 | K12: 0.00114 | L12: 0.00114 | N12: 0.00114
B13: Market Risk Premium (Rp) | F13: 0.06 | H13: 0.075 | I13: 0.075 | J13: =$H13 -> 0.075 | K13: 0.075 | L13: 0.075 | N13: 0.075
B14: Equity Beta (Be) | F14: 0.65 | H14: 0.7 | I14: 0.7 | J14: 0.7 | K14: 0.7 | L14: 0.7 | N14: 0.7
B15: Corporate Tax Rate (T) | F15: 0.3 | H15: 0.3 | I15: 0.3 | J15: =$H15 -> 0.3 | K15: 0.3 | L15: 0.3 | N15: 0.3
B16: Franking Credit (g) | F16: 0.25 | H16: 0.4 | I16: 0.4 | J16: 0.4 | K16: 0.4 | L16: 0.4 | N16: 0.4
B17: Imputation Adj (G) | F17: =(1-F15)/(1-F15*(1-F16)) -> 0.9032258065 | H17: =(1-H15)/(1-H15*(1-H16)) -> 0.8536585366 | I17: =(1-I15)/(1-I15*(1-I16)) -> 0.8536585366 | J17: =(1-J15)/(1-J15*(1-J16)) -> 0.8536585366 | K17: =(1-K15)/(1-K15*(1-K16)) -> 0.8536585366 | L17: =(1-L15)/(1-L15*(1-L16)) -> 0.8536585366 | N17: =(1-N15)/(1-N15*(1-N16)) -> 0.8536585366
B18: Debt
B19: Nominal Cost of Debt (DPn) | F19: =F4+F10+F11 -> 0.05353 | H19: =SUM(H9:H12) -> 0.05322 | I19: =SUM(I9:I12) -> 0.05322 | J19: =SUM(J9:J12) -> 0.05322 | K19: =SUM(K9:K12) -> 0.05322 | L19: =SUM(L9:L12) -> 0.05322 | N19: =SUM(N9:N12) -> 0.05322
B20: Real Cost of Debt (DPr) | F20: =(1+F19)/(1+F6)-1 -> 0.03186092067 | H20: =(1+H19)/(1+H6)-1 -> 0.03622589532 | I20: =(1+I19)/(1+I6)-1 -> 0.03622589532 | J20: =(1+J19)/(1+J6)-1 -> 0.03622589532 | K20: =(1+K19)/(1+K6)-1 -> 0.03622589532 | L20: =(1+L19)/(1+L6)-1 -> 0.03622589532 | N20: =(1+N19)/(1+N6)-1 -> 0.03622589532
B21: Equity
B22: Nominal Pre Tax Cost of Equity (EPn) | F22: =(F4+F13*F14)/(1-F15*(1-F16)) -> 0.08283870968 | H22: =(H4+H13*H14)/(1-H15*(1-H16)) -> 0.08829268293 | I22: =(I4+I13*I14)/(1-I15*(1-I16)) -> 0.08829268293 | J22: =(J4+J13*J14)/(1-J15*(1-J16)) -> 0.08829268293 | K22: =(K4+K13*K14)/(1-K15*(1-K16)) -> 0.08829268293 | L22: =(L4+L13*L14)/(1-L15*(1-L16)) -> 0.08829268293 | N22: =(N4+N13*N14)/(1-N15*(1-N16)) -> 0.08829268293
B23: Real Pre Tax Cost of Equity (EPr) | F23: =(1+F22)/(1+F6)-1 -> 0.06056680674 | H23: =(1+H22)/(1+H6)-1 -> 0.07073266718 | I23: =(1+I22)/(1+I6)-1 -> 0.07073266718 | J23: =(1+J22)/(1+J6)-1 -> 0.07073266718 | K23: =(1+K22)/(1+K6)-1 -> 0.07073266718 | L23: =(1+L22)/(1+L6)-1 -> 0.07073266718 | N23: =(1+N22)/(1+N6)-1 -> 0.07073266718
B24: Nominal After Tax Cost of Equity (EAn) | F24: =F4+F13*F14 -> 0.0642 | H24: =H4+H13*H14 -> 0.0724 | I24: =I4+I13*I14 -> 0.0724 | J24: =J4+J13*J14 -> 0.0724 | K24: =K4+K13*K14 -> 0.0724 | L24: =L4+L13*L14 -> 0.0724 | N24: =N4+N13*N14 -> 0.0724
B25: Real After Tax Cost of Equity (EAr) | F25: =(1+F24)/(1+F6)-1 -> 0.04231145935 | H25: =(1+H24)/(1+H6)-1 -> 0.05509641873 | I25: =(1+I24)/(1+I6)-1 -> 0.05509641873 | J25: =(1+J24)/(1+J6)-1 -> 0.05509641873 | K25: =(1+K24)/(1+K6)-1 -> 0.05509641873 | L25: =(1+L24)/(1+L6)-1 -> 0.05509641873 | N25: =(1+N24)/(1+N6)-1 -> 0.05509641873
B26: WACC: Pre-tax
B27: Nominal Pre Tax WACC (WPn) | D27: 0.1007 | E27: 0.1065 | F27: =F22*F8+F19*F7 -> 0.06525348387 | H27: =H22*H8+H19*H7 -> 0.06724907317 | I27: =I22*I8+I19*I7 -> 0.06724907317 | J27: =J22*J8+J19*J7 -> 0.06724907317 | K27: =K22*K8+K19*K7 -> 0.06724907317 | L27: =L22*L8+L19*L7 -> 0.06724907317 | N27: =N22*N8+N19*N7 -> 0.06724907317
B28: Real Pre Tax WACC (WPr) | D28: 0.0676 | E28: 0.0798 | F28: =(1+F27)/(1+F6)-1 -> 0.04334327509 | H28: =(1+H27)/(1+H6)-1 -> 0.05002860406 | I28: =(1+I27)/(1+I6)-1 -> 0.05002860406 | J28: =(1+J27)/(1+J6)-1 -> 0.05002860406 | K28: =(1+K27)/(1+K6)-1 -> 0.05002860406 | L28: =(1+L27)/(1+L6)-1 -> 0.05002860406 | N28: =(1+N27)/(1+N6)-1 -> 0.05002860406
B29: WACC: Vanilla
B30: Nominal Post Tax WACC (WAn) | F30: =F7*F19+F24*F8 -> 0.057798 | H30: =H7*H19+H24*H8 -> 0.060892 | I30: =I7*I19+I24*I8 -> 0.060892 | J30: =J7*J19+J24*J8 -> 0.060892 | K30: =K7*K19+K24*K8 -> 0.060892 | L30: =L7*L19+L24*L8 -> 0.060892 | N30: =N7*N19+N24*N8 -> 0.060892
B31: Real Post Tax WACC | F31: =(1+F30)/(1+F6)-1 -> 0.03604113614 | H31: =(1+H30)/(1+H6)-1 -> 0.04377410468 | I31: =(1+I30)/(1+I6)-1 -> 0.04377410468 | J31: =(1+J30)/(1+J6)-1 -> 0.04377410468 | K31: =(1+K30)/(1+K6)-1 -> 0.04377410468 | L31: =(1+L30)/(1+L6)-1 -> 0.04377410468 | N31: =(1+N30)/(1+N6)-1 -> 0.04377410468
F35: Count flag | H35: =COUNT(H38:H51) -> 10 | I35: =COUNT(I38:I51) -> 9 | J35: =COUNT(J38:J51) -> 8 | K35: =COUNT(K38:K51) -> 7 | L35: =COUNT(L38:L51) -> 6
F36: 10 year trailing average chart
F37: Year | H37: 17/18 | I37: 18/19 | J37: 19/20 | K37: 20/21 | L37: 21/22
F38: 2008 | H38: 0.0376
F39: 2009 | H39: 0.0462 | I39: =H39 -> 0.0462
F40: 2010 | H40: 0.0213 | I40: 0.0213 | J40: 0.0213
F41: 2011 | H41: 0.0238 | I41: 0.0238 | J41: 0.0238 | K41: 0.0238
F42: 2012 | H42: 0.0317 | I42: =H42 -> 0.0317 | J42: 0.0317 | K42: 0.0317 | L42: 0.0317
F43: 2013 | H43: 0.0304 | I43: 0.0304 | J43: 0.0304 | K43: 0.0304 | L43: 0.0304
F44: 2014 | H44: 0.0225 | I44: 0.0225 | J44: 0.0225 | K44: 0.0225 | L44: 0.0225
F45: 2015 | H45: 0.0207 | I45: 0.0207 | J45: 0.0207 | K45: 0.0207 | L45: 0.0207
F46: 2016 | H46: 0.0256 | I46: 0.0256 | J46: 0.0256 | K46: 0.0256 | L46: 0.0256
F47: 2017 | H47: 0.0195 | I47: 0.0195 | J47: 0.0195 | K47: 0.0195 | L47: 0.0195
F48: 2018 | J48: =IF(I48="","",I48) ->  | K48: =IF(J48="","",J48) ->  | L48: =IF(K48="","",K48) -> 
F49: 2019 | K49: =IF(J49="","",J49) ->  | L49: =IF(K49="","",K49) -> 
F50: 2020 | L50: =IF(K50="","",K50) -> 
F51: 2021

Sheet Adjustments_Inputs
B2: Inflation - December end of year for k-Factor calculations
B3: Year ending 30 December | C3: 2009 | D3: 2010 | E3: 2011 | F3: 2012 | G3: 2013 | H3: 2014 | I3: 2015 | J3: 2016 | K3: 2017 | L3: 2018 | M3: 2019 | N3: 2020 | O3: 2021 | P3: 2022 | Q3: 2023 | R3: 2024 | S3: 2025 | T3: 2026 | U3: 2027 | V3: 2028 | W3: 2029 | X3: 2030 | Y3: 2031 | Z3: 2032
B4: Actual and Forecast Inflation
B5: December CPI | C5: 166 | D5: 169.5 | E5: 174 | F5: 179.4
B6: December CPI (rebased) | F6: 99.8 | G6: 102 | H6: 104.8 | I6: 106.6 | J6: 108.4 | K6: 110
B7: Actual & Forecast Inflation | D7: =D5/C5-1 -> 0.02108433735 | E7: =E5/D5-1 -> 0.02654867257 | F7: =F5/E5-1 -> 0.03103448276 | G7: =G6/F6-1 -> 0.02204408818 | H7: =H6/G6-1 -> 0.02745098039 | I7: =I6/H6-1 -> 0.01717557252 | J7: =J6/I6-1 -> 0.01688555347 | K7: =K6/J6-1 -> 0.0147601476 | L7: 0.02 | M7: 0.025 | N7: 0.025 | O7: 0.025 | P7: 0.025 | Q7: 0.025 | R7: 0.025 | S7: 0.025 | T7: 0.025 | U7: 0.025 | V7: 0.025 | W7: 0.025 | X7: 0.025 | Y7: 0.025 | Z7: 0.025
B8: End of year Inflation factor | C8: =D8/(1+D7) -> 0.9253065775 | D8: =E8/(1+E7) -> 0.9448160535 | E8: =F8/(1+F7) -> 0.9698996656 | F8: 1 | G8: =F8*(1+G7) -> 1.022044088 | H8: =G8*(1+H7) -> 1.0501002 | I8: =H8*(1+I7) -> 1.068136273 | J8: =I8*(1+J7) -> 1.086172345 | K8: =J8*(1+K7) -> 1.102204409 | L8: =K8*(1+L7) -> 1.124248497 | M8: 1.152354709 | N8: 1.181163577 | O8: 1.210692667 | P8: 1.240959983 | Q8: 1.271983983 | R8: 1.303783582 | S8: 1.336378172 | T8: 1.369787626 | U8: 1.404032317 | V8: 1.439133125 | W8: 1.475111453 | X8: 1.511989239 | Y8: 1.54978897 | Z8: 1.588533695
B10: Service standard adjustment mechanism (SSAM)
B11: Year ending 30 June | E11: 2013 | F11: 2014 | G11: 2015 | H11: 2016 | I11: 2017 | K11: 2013 | L11: 2014 | M11: 2015 | N11: 2016 | O11: 2017 | Q11: 2013 | R11: 2014 | S11: 2015 | T11: 2016 | U11: 2017
B12: SSAM revenue at risk
B13: Distribution revenue at risk | E13: 0.05 | F13: 0.05 | G13: 0.05 | H13: 0.05 | I13: 0.05
B14: Transmission revenue at risk | E14: 0.01 | F14: 0.01 | G14: 0.01 | H14: 0.01 | I14: 0.01
B16: Distribution performance
G17: Actual AA3 | M17: Benchmark | S17: Target
B18: SAIDI - CBD (minutes per annum) | E18: 7.6 | F18: 18.3 | G18: 26.2 | H18: 22.6 | I18: 13.8 | K18: 39.9 | L18: 39.9 | M18: 39.9 | N18: 39.9 | O18: 39.9 | Q18: 20.3 | R18: 20.3 | S18: 20.3 | T18: 20.3 | U18: 20.3
B19: SAIDI - Urban (minutes per annum) | E19: 102.7 | F19: 107.4 | G19: 103 | H19: 91.3 | I19: 104.4 | K19: 183 | L19: 183 | M19: 183 | N19: 183 | O19: 183 | Q19: 136.6 | R19: 136.6 | S19: 136.6 | T19: 136.6 | U19: 136.6
B20: SAIDI - Rural Short (minutes per annum) | E20: 181.4 | F20: 171.2 | G20: 182.6 | H20: 168.4 | I20: 175.6 | K20: 227.8 | L20: 227.8 | M20: 227.8 | N20: 227.8 | O20: 227.8 | Q20: 207.8 | R20: 207.8 | S20: 207.8 | T20: 207.8 | U20: 207.8
B21: SAIDI - Rural Long (minutes per annum) | E21: 685.4 | F21: 673.8 | G21: 677.5 | H21: 582.6 | I21: 626.2 | K21: 724.8 | L21: 724.8 | M21: 724.8 | N21: 724.8 | O21: 724.8 | Q21: 582.2 | R21: 582.2 | S21: 582.2 | T21: 582.2 | U21: 582.2
B22: SAIFI - CBD (interruptions per annum) | E22: 0.03 | F22: 0.2 | G22: 0.17 | H22: 0.1 | I22: 0.11 | K22: 0.26 | L22: 0.26 | M22: 0.26 | N22: 0.26 | O22: 0.26 | Q22: 0.14 | R22: 0.14 | S22: 0.14 | T22: 0.14 | U22: 0.14
B23: SAIFI - Urban (interruptions per annum) | E23: 1.16 | F23: 1.13 | G23: 1.09 | H23: 0.91 | I23: 1.02 | K23: 2.12 | L23: 2.12 | M23: 2.12 | N23: 2.12 | O23: 2.12 | Q23: 1.36 | R23: 1.36 | S23: 1.36 | T23: 1.36 | U23: 1.36
B24: SAIFI - Rural Short (interruptions per annum) | E24: 2.17 | F24: 1.83 | G24: 1.98 | H24: 1.75 | I24: 1.76 | K24: 2.61 | L24: 2.61 | M24: 2.61 | N24: 2.61 | O24: 2.61 | Q24: 2.27 | R24: 2.27 | S24: 2.27 | T24: 2.27 | U24: 2.27
B25: SAIFI - Rural Long (interruptions per annum) | E25: 4.91 | F25: 4.98 | G25: 4.41 | H25: 3.99 | I25: 3.95 | K25: 4.51 | L25: 4.51 | M25: 4.51 | N25: 4.51 | O25: 4.51 | Q25: 4.06 | R25: 4.06 | S25: 4.06 | T25: 4.06 | U25: 4.06
B26: Call centre performance (% of calls per year) | E26: 90.6 | F26: 92.8 | G26: 93.7 | H26: 91.4 | I26: 91.8 | K26: 77.5 | L26: 77.5 | M26: 77.5 | N26: 77.5 | O26: 77.5 | Q26: 87.6 | R26: 87.6 | S26: 87.6 | T26: 87.6 | U26: 87.6
B27: Street Lighting repair time - Metropolitan area | E27: 1.23 | F27: 1.14 | G27: 1.3 | H27: 1.55 | I27: 2.47 | K27: 5 | L27: 5 | M27: 5 | N27: 5 | O27: 5 | Q27: n/a | R27: n/a | S27: n/a | T27: n/a | U27: n/a
B28: Street Lighting repair time - Regional area | E28: 2.01 | F28: 1.07 | G28: 1.3 | H28: 0.89 | I28: 4.59 | K28: 9 | L28: 9 | M28: 9 | N28: 9 | O28: 9 | Q28: n/a | R28: n/a | S28: n/a | T28: n/a | U28: n/a
B30: Transmission performance
G31: Actual AA3 | M31: Benchmark | S31: Target
B32: Circuit Availability (% of hours per annum) | E32: 98.4 | F32: 98 | G32: 98.5 | H32: 98.7 | I32: 98.9 | K32: 97.7 | L32: 97.7 | M32: 97.7 | N32: 97.7 | O32: 97.7 | Q32: 98.1 | R32: 98.1 | S32: 98.1 | T32: 98.1 | U32: 98.1
B33: System Minutes Interrupted - Meshed (minutes per annum) | E33: 4.5 | F33: 4.8 | G33: 6.6 | H33: 6.8 | I33: 8.2 | K33: 12.5 | L33: 12.5 | M33: 12.5 | N33: 12.5 | O33: 12.5 | Q33: n/a | R33: n/a | S33: n/a | T33: n/a | U33: n/a
B34: System Minutes Interrupted - Radial (minutes per annum) | E34: 1.2 | F34: 3.7 | G34: 1.6 | H34: 0.5 | I34: 0.7 | K34: 5 | L34: 5 | M34: 5 | N34: 5 | O34: 5 | Q34: 1.9 | R34: 1.9 | S34: 1.9 | T34: 1.9 | U34: 1.9
B35: Loss of Supply Event Frequency > 0.1 (# of events) | E35: 11 | F35: 17 | G35: 24 | H35: 15 | I35: 16 | K35: 33 | L35: 33 | M35: 33 | N35: 33 | O35: 33 | Q35: 24 | R35: 24 | S35: 24 | T35: 24 | U35: 24
B36: Loss of Supply Event Frequency > 1 (# of events) | E36: 1 | F36: 1 | G36: 0 | H36: 1 | I36: 2 | K36: 4 | L36: 4 | M36: 4 | N36: 4 | O36: 4 | Q36: 2 | R36: 2 | S36: 2 | T36: 2 | U36: 2
B37: Average Outage Duration (minutes per annum) | E37: 866 | F37: 795 | G37: 720 | H37: 1265 | I37: 653 | K37: 886 | L37: 886 | M37: 886 | N37: 886 | O37: 886 | Q37: 698 | R37: 698 | S37: 698 | T37: 698 | U37: 698
B39: Distribution incentive rates
G40: [$M real as at 30 June 2012] | M40: [$M real as at 30 June 2017]
B41: SAIDI - CBD - per SAIDI minute | E41: 0.067817 | F41: 0.067817 | G41: 0.067817 | H41: 0.067817 | I41: 0.067817 | K41: =E41/Dx_Inputs!$J$32 -> 0.07477432171 | L41: =F41/Dx_Inputs!$J$32 -> 0.07477432171 | M41: =G41/Dx_Inputs!$J$32 -> 0.07477432171 | N41: =H41/Dx_Inputs!$J$32 -> 0.07477432171 | O41: =I41/Dx_Inputs!$J$32 -> 0.07477432171
B42: SAIDI - Urban - per SAIDI minute | E42: 0.529816 | F42: 0.529816 | G42: 0.529816 | H42: 0.529816 | I42: 0.529816 | K42: =E42/Dx_Inputs!$J$32 -> 0.5841696335 | L42: =F42/Dx_Inputs!$J$32 -> 0.5841696335 | M42: =G42/Dx_Inputs!$J$32 -> 0.5841696335 | N42: =H42/Dx_Inputs!$J$32 -> 0.5841696335 | O42: =I42/Dx_Inputs!$J$32 -> 0.5841696335
B43: SAIDI - Rural Short - per SAIDI minute | E43: 0.223472 | F43: 0.223472 | G43: 0.223472 | H43: 0.223472 | I43: 0.223472 | K43: =E43/Dx_Inputs!$J$32 -> 0.2463979124 | L43: =F43/Dx_Inputs!$J$32 -> 0.2463979124 | M43: =G43/Dx_Inputs!$J$32 -> 0.2463979124 | N43: =H43/Dx_Inputs!$J$32 -> 0.2463979124 | O43: =I43/Dx_Inputs!$J$32 -> 0.2463979124
B44: SAIDI - Rural Long - per SAIDI minute | E44: 0.065219 | F44: 0.065219 | G44: 0.065219 | H44: 0.065219 | I44: 0.065219 | K44: =E44/Dx_Inputs!$J$32 -> 0.07190979382 | L44: =F44/Dx_Inputs!$J$32 -> 0.07190979382 | M44: =G44/Dx_Inputs!$J$32 -> 0.07190979382 | N44: =H44/Dx_Inputs!$J$32 -> 0.07190979382 | O44: =I44/Dx_Inputs!$J$32 -> 0.07190979382
B45: SAIFI - CBD - per 0.01 event | E45: 0.087081 | F45: 0.087081 | G45: 0.087081 | H45: 0.087081 | I45: 0.087081 | K45: =E45/Dx_Inputs!$J$32 -> 0.09601460857 | L45: =F45/Dx_Inputs!$J$32 -> 0.09601460857 | M45: =G45/Dx_Inputs!$J$32 -> 0.09601460857 | N45: =H45/Dx_Inputs!$J$32 -> 0.09601460857 | O45: =I45/Dx_Inputs!$J$32 -> 0.09601460857
B46: SAIFI - Urban - per 0.01 event | E46: 0.548988 | F46: 0.548988 | G46: 0.548988 | H46: 0.548988 | I46: 0.548988 | K46: =E46/Dx_Inputs!$J$32 -> 0.6053084821 | L46: =F46/Dx_Inputs!$J$32 -> 0.6053084821 | M46: =G46/Dx_Inputs!$J$32 -> 0.6053084821 | N46: =H46/Dx_Inputs!$J$32 -> 0.6053084821 | O46: =I46/Dx_Inputs!$J$32 -> 0.6053084821
B47: SAIFI - Rural Short - per 0.01 event | E47: 0.222511 | F47: 0.222511 | G47: 0.222511 | H47: 0.222511 | I47: 0.222511 | K47: =E47/Dx_Inputs!$J$32 -> 0.2453383237 | L47: =F47/Dx_Inputs!$J$32 -> 0.2453383237 | M47: =G47/Dx_Inputs!$J$32 -> 0.2453383237 | N47: =H47/Dx_Inputs!$J$32 -> 0.2453383237 | O47: =I47/Dx_Inputs!$J$32 -> 0.2453383237
B48: SAIFI - Rural Long - per 0.01 event | E48: 0.101725 | F48: 0.101725 | G48: 0.101725 | H48: 0.101725 | I48: 0.101725 | K48: =E48/Dx_Inputs!$J$32 -> 0.1121609313 | L48: =F48/Dx_Inputs!$J$32 -> 0.1121609313 | M48: =G48/Dx_Inputs!$J$32 -> 0.1121609313 | N48: =H48/Dx_Inputs!$J$32 -> 0.1121609313 | O48: =I48/Dx_Inputs!$J$32 -> 0.1121609313
B49: Call centre performance - per 0.1% | E49: -0.041495 | F49: -0.041495 | G49: -0.041495 | H49: -0.041495 | I49: -0.041495 | K49: =E49/Dx_Inputs!$J$32 -> -0.04575195717 | L49: =F49/Dx_Inputs!$J$32 -> -0.04575195717 | M49: =G49/Dx_Inputs!$J$32 -> -0.04575195717 | N49: =H49/Dx_Inputs!$J$32 -> -0.04575195717 | O49: =I49/Dx_Inputs!$J$32 -> -0.04575195717
B51: Transmission incentive rates
G52: [$M real as at 30 June 2012] | M52: [$M real as at 30 June 2017]
B53: Circuit Availability - per 0.1% | E53: -0.817186 | F53: -0.817185 | G53: -0.817184 | H53: -0.817183 | I53: -0.817182 | K53: =E53/Dx_Inputs!$J$32 -> -0.9010208187 | L53: =F53/Dx_Inputs!$J$32 -> -0.9010197161 | M53: =G53/Dx_Inputs!$J$32 -> -0.9010186135 | N53: =H53/Dx_Inputs!$J$32 -> -0.901017511 | O53: =I53/Dx_Inputs!$J$32 -> -0.9010164084
B54: System Minutes Interrupted - Radial - per minute | E54: 0.105443 | F54: 0.105443 | G54: 0.105443 | H54: 0.105443 | I54: 0.105443 | K54: =E54/Dx_Inputs!$J$32 -> 0.1162603596 | L54: =F54/Dx_Inputs!$J$32 -> 0.1162603596 | M54: =G54/Dx_Inputs!$J$32 -> 0.1162603596 | N54: =H54/Dx_Inputs!$J$32 -> 0.1162603596 | O54: =I54/Dx_Inputs!$J$32 -> 0.1162603596
B55: Loss of Supply Event Frequency >0.1 - per event | E55: 0.036319 | F55: 0.036319 | G55: 0.036319 | H55: 0.036319 | I55: 0.036319 | K55: =E55/Dx_Inputs!$J$32 -> 0.04004495319 | L55: =F55/Dx_Inputs!$J$32 -> 0.04004495319 | M55: =G55/Dx_Inputs!$J$32 -> 0.04004495319 | N55: =H55/Dx_Inputs!$J$32 -> 0.04004495319 | O55: =I55/Dx_Inputs!$J$32 -> 0.04004495319
B56: Loss of Supply Event Frequency >1 - per event | E56: 0.163437 | F56: 0.163437 | G56: 0.163437 | H56: 0.163437 | I56: 0.163437 | K56: =E56/Dx_Inputs!$J$32 -> 0.1802039432 | L56: =F56/Dx_Inputs!$J$32 -> 0.1802039432 | M56: =G56/Dx_Inputs!$J$32 -> 0.1802039432 | N56: =H56/Dx_Inputs!$J$32 -> 0.1802039432 | O56: =I56/Dx_Inputs!$J$32 -> 0.1802039432
B57: Average Outage Duration - per minute | E57: 0.003477 | F57: 0.003477 | G57: 0.003477 | H57: 0.003477 | I57: 0.003477 | K57: =E57/Dx_Inputs!$J$32 -> 0.003833704183 | L57: =F57/Dx_Inputs!$J$32 -> 0.003833704183 | M57: =G57/Dx_Inputs!$J$32 -> 0.003833704183 | N57: =H57/Dx_Inputs!$J$32 -> 0.003833704183 | O57: =I57/Dx_Inputs!$J$32 -> 0.003833704183
B59: Distribution penalty rates
G60: [$M real as at 30 June 2012] | M60: [$M real as at 30 June 2017]
B61: SAIDI - CBD - per SAIDI minute | E61: 0.067817 | F61: 0.067817 | G61: 0.067817 | H61: 0.067817 | I61: 0.067817 | K61: =E61/Dx_Inputs!$J$32 -> 0.07477432171 | L61: =F61/Dx_Inputs!$J$32 -> 0.07477432171 | M61: =G61/Dx_Inputs!$J$32 -> 0.07477432171 | N61: =H61/Dx_Inputs!$J$32 -> 0.07477432171 | O61: =I61/Dx_Inputs!$J$32 -> 0.07477432171
B62: SAIDI - Urban - per SAIDI minute | E62: 0.529816 | F62: 0.529816 | G62: 0.529816 | H62: 0.529816 | I62: 0.529816 | K62: =E62/Dx_Inputs!$J$32 -> 0.5841696335 | L62: =F62/Dx_Inputs!$J$32 -> 0.5841696335 | M62: =G62/Dx_Inputs!$J$32 -> 0.5841696335 | N62: =H62/Dx_Inputs!$J$32 -> 0.5841696335 | O62: =I62/Dx_Inputs!$J$32 -> 0.5841696335
B63: SAIDI - Rural Short - per SAIDI minute | E63: 0.223472 | F63: 0.223472 | G63: 0.223472 | H63: 0.223472 | I63: 0.223472 | K63: =E63/Dx_Inputs!$J$32 -> 0.2463979124 | L63: =F63/Dx_Inputs!$J$32 -> 0.2463979124 | M63: =G63/Dx_Inputs!$J$32 -> 0.2463979124 | N63: =H63/Dx_Inputs!$J$32 -> 0.2463979124 | O63: =I63/Dx_Inputs!$J$32 -> 0.2463979124
B64: SAIDI - Rural Long - per SAIDI minute | E64: 0.065219 | F64: 0.065219 | G64: 0.065219 | H64: 0.065219 | I64: 0.065219 | K64: =E64/Dx_Inputs!$J$32 -> 0.07190979382 | L64: =F64/Dx_Inputs!$J$32 -> 0.07190979382 | M64: =G64/Dx_Inputs!$J$32 -> 0.07190979382 | N64: =H64/Dx_Inputs!$J$32 -> 0.07190979382 | O64: =I64/Dx_Inputs!$J$32 -> 0.07190979382
B65: SAIFI - CBD - per 0.01 event | E65: 0.087081 | F65: 0.087081 | G65: 0.087081 | H65: 0.087081 | I65: 0.087081 | K65: =E65/Dx_Inputs!$J$32 -> 0.09601460857 | L65: =F65/Dx_Inputs!$J$32 -> 0.09601460857 | M65: =G65/Dx_Inputs!$J$32 -> 0.09601460857 | N65: =H65/Dx_Inputs!$J$32 -> 0.09601460857 | O65: =I65/Dx_Inputs!$J$32 -> 0.09601460857
B66: SAIFI - Urban - per 0.01 event | E66: 0.548988 | F66: 0.548988 | G66: 0.548988 | H66: 0.548988 | I66: 0.548988 | K66: =E66/Dx_Inputs!$J$32 -> 0.6053084821 | L66: =F66/Dx_Inputs!$J$32 -> 0.6053084821 | M66: =G66/Dx_Inputs!$J$32 -> 0.6053084821 | N66: =H66/Dx_Inputs!$J$32 -> 0.6053084821 | O66: =I66/Dx_Inputs!$J$32 -> 0.6053084821
B67: SAIFI - Rural Short - per 0.01 event | E67: 0.222511 | F67: 0.222511 | G67: 0.222511 | H67: 0.222511 | I67: 0.222511 | K67: =E67/Dx_Inputs!$J$32 -> 0.2453383237 | L67: =F67/Dx_Inputs!$J$32 -> 0.2453383237 | M67: =G67/Dx_Inputs!$J$32 -> 0.2453383237 | N67: =H67/Dx_Inputs!$J$32 -> 0.2453383237 | O67: =I67/Dx_Inputs!$J$32 -> 0.2453383237
B68: SAIFI - Rural Long - per 0.01 event | E68: 0.101725 | F68: 0.101725 | G68: 0.101725 | H68: 0.101725 | I68: 0.101725 | K68: =E68/Dx_Inputs!$J$32 -> 0.1121609313 | L68: =F68/Dx_Inputs!$J$32 -> 0.1121609313 | M68: =G68/Dx_Inputs!$J$32 -> 0.1121609313 | N68: =H68/Dx_Inputs!$J$32 -> 0.1121609313 | O68: =I68/Dx_Inputs!$J$32 -> 0.1121609313
B69: Call centre performance - per 0.1% | E69: -0.041084 | F69: -0.041084 | G69: -0.041084 | H69: -0.041084 | I69: -0.041084 | K69: =E69/Dx_Inputs!$J$32 -> -0.04529879283 | L69: =F69/Dx_Inputs!$J$32 -> -0.04529879283 | M69: =G69/Dx_Inputs!$J$32 -> -0.04529879283 | N69: =H69/Dx_Inputs!$J$32 -> -0.04529879283 | O69: =I69/Dx_Inputs!$J$32 -> -0.04529879283
B71: Transmission penalty rates
G72: [$M real as at 30 June 2012] | M72: [$M real as at 30 June 2017]
B73: Circuit Availability - per 0.1% | E73: -0.408593 | F73: -0.408593 | G73: -0.408593 | H73: -0.408593 | I73: -0.408593 | K73: =E73/Dx_Inputs!$J$32 -> -0.4505104094 | L73: =F73/Dx_Inputs!$J$32 -> -0.4505104094 | M73: =G73/Dx_Inputs!$J$32 -> -0.4505104094 | N73: =H73/Dx_Inputs!$J$32 -> -0.4505104094 | O73: =I73/Dx_Inputs!$J$32 -> -0.4505104094
B74: System Minutes Interrupted - Radial - per minute | E74: 0.172039 | F74: 0.172039 | G74: 0.172039 | H74: 0.172039 | I74: 0.172039 | K74: =E74/Dx_Inputs!$J$32 -> 0.1896884193 | L74: =F74/Dx_Inputs!$J$32 -> 0.1896884193 | M74: =G74/Dx_Inputs!$J$32 -> 0.1896884193 | N74: =H74/Dx_Inputs!$J$32 -> 0.1896884193 | O74: =I74/Dx_Inputs!$J$32 -> 0.1896884193
B75: Loss of Supply Event Frequency >0.1 - per event | E75: 0.02724 | F75: 0.02724 | G75: 0.02724 | H75: 0.02724 | I75: 0.02724 | K75: =E75/Dx_Inputs!$J$32 -> 0.03003454183 | L75: =F75/Dx_Inputs!$J$32 -> 0.03003454183 | M75: =G75/Dx_Inputs!$J$32 -> 0.03003454183 | N75: =H75/Dx_Inputs!$J$32 -> 0.03003454183 | O75: =I75/Dx_Inputs!$J$32 -> 0.03003454183
B76: Loss of Supply Event Frequency >1 - per event | E76: 0.163437 | F76: 0.163437 | G76: 0.163437 | H76: 0.163437 | I76: 0.163437 | K76: =E76/Dx_Inputs!$J$32 -> 0.1802039432 | L76: =F76/Dx_Inputs!$J$32 -> 0.1802039432 | M76: =G76/Dx_Inputs!$J$32 -> 0.1802039432 | N76: =H76/Dx_Inputs!$J$32 -> 0.1802039432 | O76: =I76/Dx_Inputs!$J$32 -> 0.1802039432
B77: Average Outage Duration - per minute | E77: 0.002495 | F77: 0.002495 | G77: 0.002495 | H77: 0.002495 | I77: 0.002495 | K77: =E77/Dx_Inputs!$J$32 -> 0.002750961155 | L77: =F77/Dx_Inputs!$J$32 -> 0.002750961155 | M77: =G77/Dx_Inputs!$J$32 -> 0.002750961155 | N77: =H77/Dx_Inputs!$J$32 -> 0.002750961155 | O77: =I77/Dx_Inputs!$J$32 -> 0.002750961155
B79: Gain share mechanism (GSM)
B80: Year ending 30 June | C80: 2011 | D80: 2012 | E80: 2013 | F80: 2014 | G80: 2015 | H80: 2016 | I80: 2017 | K80: 2013 | L80: 2014 | M80: 2015 | N80: 2016 | O80: 2017
B81: Forecast escalation factors
B82: Customer numbers escalation | D82: 0.0241 | E82: 0.0241 | F82: 0.0241 | G82: 0.0241 | H82: 0.0241 | I82: 0.0241
B83: Line length ( a ) | D83: 0.0131 | E83: 0.0131 | F83: 0.0131 | G83: 0.0131 | H83: 0.0131 | I83: 0.0131
B84: Number of distribution transformers ( b ) | D84: 0.0133 | E84: 0.0133 | F84: 0.0133 | G84: 0.0133 | H84: 0.0133 | I84: 0.0133
B85: Zone substation capacity ( c ) | D85: 0.0365 | E85: 0.0365 | F85: 0.0365 | G85: 0.0365 | H85: 0.0365 | I85: 0.0365
B86: Network growth escalation (average of a,b & c) | D86: 0.021 | E86: 0.021 | F86: 0.021 | G86: 0.021 | H86: 0.021 | I86: 0.021
B88: Actual escalation factors
B89: Number of customers | C89: 1010663 | D89: 1016000 | E89: 1050696 | F89: 1057867 | G89: 1084197 | H89: 1109915 | I89: 1127057
B90: Line length | C90: 96188.8 | D90: 97558.4 | E90: 97644.44774 | F90: 98967.39 | G90: 100302.88 | H90: 101097.36 | I90: 101633.95
B91: Number of distribution transformers | C91: 64587 | D91: 65519 | E91: 65828 | F91: 66815 | G91: 67554 | H91: 68125 | I91: 68560
B92: Zone substation capacity | C92: 7712 | D92: 8055 | E92: 8121 | F92: 8457.95 | G92: 8406.75 | H92: 8175 | I92: 8217
B94: Operating expenditure - Final decision efficiency and innovation benchmark (EIB)
B95: ERA Final Decision EIB categories | G95: [$M real as at 30 June 2012] | M95: [$M real as at 30 June 2017]
B96: Superannuation costs for defined benefit schemes | E96: 2.8874923 | F96: 2.951017131 | G96: 3.021841542 | H96: 3.082278373 | I96: 3.14392394 | K96: =E96/Dx_Inputs!$J$32 -> 3.1837191 | L96: =F96/Dx_Inputs!$J$32 -> 3.25376092 | M96: =G96/Dx_Inputs!$J$32 -> 3.331851182 | N96: =H96/Dx_Inputs!$J$32 -> 3.398488206 | O96: =I96/Dx_Inputs!$J$32 -> 3.46645797
B97: Non-revenue cap services cost | E97: 0 | F97: 0 | G97: 0 | H97: 0 | I97: 0 | K97: =E97/Dx_Inputs!$J$32 -> 0 | L97: =F97/Dx_Inputs!$J$32 -> 0 | M97: =G97/Dx_Inputs!$J$32 -> 0 | N97: =H97/Dx_Inputs!$J$32 -> 0 | O97: =I97/Dx_Inputs!$J$32 -> 0
B98: Licence fees | E98: 0.045 | F98: 0.045 | G98: 0.045 | H98: 0.045 | I98: 0.045 | K98: =E98/Dx_Inputs!$J$32 -> 0.04961653386 | L98: =F98/Dx_Inputs!$J$32 -> 0.04961653386 | M98: =G98/Dx_Inputs!$J$32 -> 0.04961653386 | N98: =H98/Dx_Inputs!$J$32 -> 0.04961653386 | O98: =I98/Dx_Inputs!$J$32 -> 0.04961653386
B99: Energy safety levy | E99: 4.115853002 | F99: 4.115853002 | G99: 4.115853002 | H99: 4.115853002 | I99: 4.115853002 | K99: =E99/Dx_Inputs!$J$32 -> 4.538096886 | L99: =F99/Dx_Inputs!$J$32 -> 4.538096886 | M99: =G99/Dx_Inputs!$J$32 -> 4.538096886 | N99: =H99/Dx_Inputs!$J$32 -> 4.538096886 | O99: =I99/Dx_Inputs!$J$32 -> 4.538096886
B100: Network control service | E100: 0 | F100: 0 | G100: 0 | H100: 0 | I100: 0 | K100: =E100/Dx_Inputs!$J$32 -> 0 | L100: =F100/Dx_Inputs!$J$32 -> 0 | M100: =G100/Dx_Inputs!$J$32 -> 0 | N100: =H100/Dx_Inputs!$J$32 -> 0 | O100: =I100/Dx_Inputs!$J$32 -> 0
B101: ERA costs (Electricity Network Access Funding Regulations) | E101: 0.8707540896 | F101: 1.354487331 | G101: 1.238282807 | H101: 1.163003146 | I101: 1.169819765 | K101: =E101/Dx_Inputs!$J$32 -> 0.9600844395 | L101: =F101/Dx_Inputs!$J$32 -> 1.493443701 | M101: =G101/Dx_Inputs!$J$32 -> 1.365317796 | N101: =H101/Dx_Inputs!$J$32 -> 1.282315221 | O101: =I101/Dx_Inputs!$J$32 -> 1.289831155
B103: Operating expenditure subject to scale esclation by regulatory category
B104: Insert operating expenditure that excludes any form of escalation
B105: Base distribution | G105: [$M real as at 30 June 2012] | M105: [$M real as at 30 June 2017]
B106: Reliability | E106: 1.502882184 | F106: 1.502882184 | G106: 1.502882184 | H106: 1.502882184 | I106: 1.502882184 | K106: =E106/Dx_Inputs!$J$32 -> 1.657062328 | L106: =F106/Dx_Inputs!$J$32 -> 1.657062328 | M106: =G106/Dx_Inputs!$J$32 -> 1.657062328 | N106: =H106/Dx_Inputs!$J$32 -> 1.657062328 | O106: =I106/Dx_Inputs!$J$32 -> 1.657062328
B107: SCADA & Communications | E107: 4.096862443 | F107: 4.096862443 | G107: 4.096862443 | H107: 4.096862443 | I107: 4.096862443 | K107: =E107/Dx_Inputs!$J$32 -> 4.517158092 | L107: =F107/Dx_Inputs!$J$32 -> 4.517158092 | M107: =G107/Dx_Inputs!$J$32 -> 4.517158092 | N107: =H107/Dx_Inputs!$J$32 -> 4.517158092 | O107: =I107/Dx_Inputs!$J$32 -> 4.517158092
B108: Non-revenue cap services | E108: 0 | F108: 0 | G108: 0 | H108: 0 | I108: 0 | K108: =E108/Dx_Inputs!$J$32 -> 0 | L108: =F108/Dx_Inputs!$J$32 -> 0 | M108: =G108/Dx_Inputs!$J$32 -> 0 | N108: =H108/Dx_Inputs!$J$32 -> 0 | O108: =I108/Dx_Inputs!$J$32 -> 0
B109: Network Operations | E109: 14.47587524 | F109: 14.47587524 | G109: 14.47587524 | H109: 14.47587524 | I109: 14.47587524 | K109: =E109/Dx_Inputs!$J$32 -> 15.9609501 | L109: =F109/Dx_Inputs!$J$32 -> 15.9609501 | M109: =G109/Dx_Inputs!$J$32 -> 15.9609501 | N109: =H109/Dx_Inputs!$J$32 -> 15.9609501 | O109: =I109/Dx_Inputs!$J$32 -> 15.9609501
B110: Smartgrid | E110: 0 | F110: 0 | G110: 0 | H110: 0 | I110: 0 | K110: =E110/Dx_Inputs!$J$32 -> 0 | L110: =F110/Dx_Inputs!$J$32 -> 0 | M110: =G110/Dx_Inputs!$J$32 -> 0 | N110: =H110/Dx_Inputs!$J$32 -> 0 | O110: =I110/Dx_Inputs!$J$32 -> 0
B111: Maintenance Strategy | E111: 0 | F111: 0 | G111: 0 | H111: 0 | I111: 0 | K111: =E111/Dx_Inputs!$J$32 -> 0 | L111: =F111/Dx_Inputs!$J$32 -> 0 | M111: =G111/Dx_Inputs!$J$32 -> 0 | N111: =H111/Dx_Inputs!$J$32 -> 0 | O111: =I111/Dx_Inputs!$J$32 -> 0
B112: Preventive Condition | E112: 39.62838312 | F112: 39.62838312 | G112: 39.62838312 | H112: 39.62838312 | I112: 39.62838312 | K112: =E112/Dx_Inputs!$J$32 -> 43.69384473 | L112: =F112/Dx_Inputs!$J$32 -> 43.69384473 | M112: =G112/Dx_Inputs!$J$32 -> 43.69384473 | N112: =H112/Dx_Inputs!$J$32 -> 43.69384473 | O112: =I112/Dx_Inputs!$J$32 -> 43.69384473
B113: Preventive Routine | E113: 33.05757729 | F113: 33.05757729 | G113: 33.05757729 | H113: 33.05757729 | I113: 33.05757729 | K113: =E113/Dx_Inputs!$J$32 -> 36.44894229 | L113: =F113/Dx_Inputs!$J$32 -> 36.44894229 | M113: =G113/Dx_Inputs!$J$32 -> 36.44894229 | N113: =H113/Dx_Inputs!$J$32 -> 36.44894229 | O113: =I113/Dx_Inputs!$J$32 -> 36.44894229
B114: Corrective Deferred | E114: 23.46630623 | F114: 23.46630623 | G114: 23.46630623 | H114: 23.46630623 | I114: 23.46630623 | K114: =E114/Dx_Inputs!$J$32 -> 25.87370618 | L114: =F114/Dx_Inputs!$J$32 -> 25.87370618 | M114: =G114/Dx_Inputs!$J$32 -> 25.87370618 | N114: =H114/Dx_Inputs!$J$32 -> 25.87370618 | O114: =I114/Dx_Inputs!$J$32 -> 25.87370618
B115: Corrective Emergency | E115: 59.20489989 | F115: 59.20489989 | G115: 59.20489989 | H115: 59.20489989 | I115: 59.20489989 | K115: =E115/Dx_Inputs!$J$32 -> 65.27870934 | L115: =F115/Dx_Inputs!$J$32 -> 65.27870934 | M115: =G115/Dx_Inputs!$J$32 -> 65.27870934 | N115: =H115/Dx_Inputs!$J$32 -> 65.27870934 | O115: =I115/Dx_Inputs!$J$32 -> 65.27870934
B116: Call Centre | E116: 6.909525 | F116: 6.909525 | G116: 6.909525 | H116: 6.909525 | I116: 6.909525 | K116: =E116/Dx_Inputs!$J$32 -> 7.618370692 | L116: =F116/Dx_Inputs!$J$32 -> 7.618370692 | M116: =G116/Dx_Inputs!$J$32 -> 7.618370692 | N116: =H116/Dx_Inputs!$J$32 -> 7.618370692 | O116: =I116/Dx_Inputs!$J$32 -> 7.618370692
B117: Metering | E117: 18.541506 | F117: 18.541506 | G117: 18.541506 | H117: 18.541506 | I117: 18.541506 | K117: =E117/Dx_Inputs!$J$32 -> 20.44367245 | L117: =F117/Dx_Inputs!$J$32 -> 20.44367245 | M117: =G117/Dx_Inputs!$J$32 -> 20.44367245 | N117: =H117/Dx_Inputs!$J$32 -> 20.44367245 | O117: =I117/Dx_Inputs!$J$32 -> 20.44367245
B118: Guaranteed service level payments | E118: 0 | F118: 0 | G118: 0 | H118: 0 | I118: 0 | K118: =E118/Dx_Inputs!$J$32 -> 0 | L118: =F118/Dx_Inputs!$J$32 -> 0 | M118: =G118/Dx_Inputs!$J$32 -> 0 | N118: =H118/Dx_Inputs!$J$32 -> 0 | O118: =I118/Dx_Inputs!$J$32 -> 0
B119: Design & Estimating - Distribution Quotations | E119: 0 | F119: 0 | G119: 0 | H119: 0 | I119: 0 | K119: =E119/Dx_Inputs!$J$32 -> 0 | L119: =F119/Dx_Inputs!$J$32 -> 0 | M119: =G119/Dx_Inputs!$J$32 -> 0 | N119: =H119/Dx_Inputs!$J$32 -> 0 | O119: =I119/Dx_Inputs!$J$32 -> 0
B120: Business Support | E120: 0 | F120: 0 | G120: 0 | H120: 0 | I120: 0 | K120: =E120/Dx_Inputs!$J$32 -> 0 | L120: =F120/Dx_Inputs!$J$32 -> 0 | M120: =G120/Dx_Inputs!$J$32 -> 0 | N120: =H120/Dx_Inputs!$J$32 -> 0 | O120: =I120/Dx_Inputs!$J$32 -> 0
B121: IT | E121: 0 | F121: 0 | G121: 0 | H121: 0 | I121: 0 | K121: =E121/Dx_Inputs!$J$32 -> 0 | L121: =F121/Dx_Inputs!$J$32 -> 0 | M121: =G121/Dx_Inputs!$J$32 -> 0 | N121: =H121/Dx_Inputs!$J$32 -> 0 | O121: =I121/Dx_Inputs!$J$32 -> 0
B122: Non-recurring opex | E122: 0 | F122: 0 | G122: 0 | H122: 0 | I122: 0 | K122: =E122/Dx_Inputs!$J$32 -> 0 | L122: =F122/Dx_Inputs!$J$32 -> 0 | M122: =G122/Dx_Inputs!$J$32 -> 0 | N122: =H122/Dx_Inputs!$J$32 -> 0 | O122: =I122/Dx_Inputs!$J$32 -> 0
B123: Total | E123: =SUM(E106:E122) -> 200.8838174 | F123: =SUM(F106:F122) -> 200.8838174 | G123: =SUM(G106:G122) -> 200.8838174 | H123: =SUM(H106:H122) -> 200.8838174 | I123: =SUM(I106:I122) -> 200.8838174 | K123: =SUM(K106:K122) -> 221.4924162 | L123: =SUM(L106:L122) -> 221.4924162 | M123: =SUM(M106:M122) -> 221.4924162 | N123: =SUM(N106:N122) -> 221.4924162 | O123: =SUM(O106:O122) -> 221.4924162
B125: New distribution operating expenditure recurring from 2012/13 | G125: [$M real as at 30 June 2012] | M125: [$M real as at 30 June 2017]
B126: Reliability | E126: 0 | F126: 0 | G126: 0 | H126: 0 | I126: 0 | K126: =E126/Dx_Inputs!$J$32 -> 0 | L126: =F126/Dx_Inputs!$J$32 -> 0 | M126: =G126/Dx_Inputs!$J$32 -> 0 | N126: =H126/Dx_Inputs!$J$32 -> 0 | O126: =I126/Dx_Inputs!$J$32 -> 0
B127: SCADA & Communications | E127: 0 | F127: 0 | G127: 0 | H127: 0 | I127: 0 | K127: =E127/Dx_Inputs!$J$32 -> 0 | L127: =F127/Dx_Inputs!$J$32 -> 0 | M127: =G127/Dx_Inputs!$J$32 -> 0 | N127: =H127/Dx_Inputs!$J$32 -> 0 | O127: =I127/Dx_Inputs!$J$32 -> 0
B128: Non-revenue cap services | E128: 0 | F128: 0 | G128: 0 | H128: 0 | I128: 0 | K128: =E128/Dx_Inputs!$J$32 -> 0 | L128: =F128/Dx_Inputs!$J$32 -> 0 | M128: =G128/Dx_Inputs!$J$32 -> 0 | N128: =H128/Dx_Inputs!$J$32 -> 0 | O128: =I128/Dx_Inputs!$J$32 -> 0
B129: Network Operations | E129: 0 | F129: 0 | G129: 0 | H129: 0 | I129: 0 | K129: =E129/Dx_Inputs!$J$32 -> 0 | L129: =F129/Dx_Inputs!$J$32 -> 0 | M129: =G129/Dx_Inputs!$J$32 -> 0 | N129: =H129/Dx_Inputs!$J$32 -> 0 | O129: =I129/Dx_Inputs!$J$32 -> 0
B130: Smartgrid | E130: 0 | F130: 0 | G130: 0 | H130: 0 | I130: 0 | K130: =E130/Dx_Inputs!$J$32 -> 0 | L130: =F130/Dx_Inputs!$J$32 -> 0 | M130: =G130/Dx_Inputs!$J$32 -> 0 | N130: =H130/Dx_Inputs!$J$32 -> 0 | O130: =I130/Dx_Inputs!$J$32 -> 0
B131: Maintenance Strategy | E131: 0 | F131: 0 | G131: 0 | H131: 0 | I131: 0 | K131: =E131/Dx_Inputs!$J$32 -> 0 | L131: =F131/Dx_Inputs!$J$32 -> 0 | M131: =G131/Dx_Inputs!$J$32 -> 0 | N131: =H131/Dx_Inputs!$J$32 -> 0 | O131: =I131/Dx_Inputs!$J$32 -> 0
B132: Preventive Condition | E132: 0 | F132: 0 | G132: 0 | H132: 0 | I132: 0 | K132: =E132/Dx_Inputs!$J$32 -> 0 | L132: =F132/Dx_Inputs!$J$32 -> 0 | M132: =G132/Dx_Inputs!$J$32 -> 0 | N132: =H132/Dx_Inputs!$J$32 -> 0 | O132: =I132/Dx_Inputs!$J$32 -> 0
B133: Preventive Routine | E133: 3.77 | F133: 3.77 | G133: 3.77 | H133: 3.77 | I133: 3.77 | K133: =E133/Dx_Inputs!$J$32 -> 4.156762948 | L133: =F133/Dx_Inputs!$J$32 -> 4.156762948 | M133: =G133/Dx_Inputs!$J$32 -> 4.156762948 | N133: =H133/Dx_Inputs!$J$32 -> 4.156762948 | O133: =I133/Dx_Inputs!$J$32 -> 4.156762948
B134: Corrective Deferred | E134: 2.3 | F134: 2.3 | G134: 2.3 | H134: 2.3 | I134: 2.3 | K134: =E134/Dx_Inputs!$J$32 -> 2.535956175 | L134: =F134/Dx_Inputs!$J$32 -> 2.535956175 | M134: =G134/Dx_Inputs!$J$32 -> 2.535956175 | N134: =H134/Dx_Inputs!$J$32 -> 2.535956175 | O134: =I134/Dx_Inputs!$J$32 -> 2.535956175
B135: Corrective Emergency | E135: 0 | F135: 0 | G135: 0 | H135: 0 | I135: 0 | K135: =E135/Dx_Inputs!$J$32 -> 0 | L135: =F135/Dx_Inputs!$J$32 -> 0 | M135: =G135/Dx_Inputs!$J$32 -> 0 | N135: =H135/Dx_Inputs!$J$32 -> 0 | O135: =I135/Dx_Inputs!$J$32 -> 0
B136: Call Centre | E136: 0 | F136: 0 | G136: 0 | H136: 0 | I136: 0 | K136: =E136/Dx_Inputs!$J$32 -> 0 | L136: =F136/Dx_Inputs!$J$32 -> 0 | M136: =G136/Dx_Inputs!$J$32 -> 0 | N136: =H136/Dx_Inputs!$J$32 -> 0 | O136: =I136/Dx_Inputs!$J$32 -> 0
B137: Metering | E137: 0.5 | F137: 0.5 | G137: 0.5 | H137: 0.5 | I137: 0.5 | K137: =E137/Dx_Inputs!$J$32 -> 0.5512948207 | L137: =F137/Dx_Inputs!$J$32 -> 0.5512948207 | M137: =G137/Dx_Inputs!$J$32 -> 0.5512948207 | N137: =H137/Dx_Inputs!$J$32 -> 0.5512948207 | O137: =I137/Dx_Inputs!$J$32 -> 0.5512948207
B138: Guaranteed service level payments | E138: 0 | F138: 0 | G138: 0 | H138: 0 | I138: 0 | K138: =E138/Dx_Inputs!$J$32 -> 0 | L138: =F138/Dx_Inputs!$J$32 -> 0 | M138: =G138/Dx_Inputs!$J$32 -> 0 | N138: =H138/Dx_Inputs!$J$32 -> 0 | O138: =I138/Dx_Inputs!$J$32 -> 0
B139: Design & Estimating - Distribution Quotations | E139: 0 | F139: 0 | G139: 0 | H139: 0 | I139: 0 | K139: =E139/Dx_Inputs!$J$32 -> 0 | L139: =F139/Dx_Inputs!$J$32 -> 0 | M139: =G139/Dx_Inputs!$J$32 -> 0 | N139: =H139/Dx_Inputs!$J$32 -> 0 | O139: =I139/Dx_Inputs!$J$32 -> 0
B140: Business Support | E140: 0 | F140: 0 | G140: 0 | H140: 0 | I140: 0 | K140: =E140/Dx_Inputs!$J$32 -> 0 | L140: =F140/Dx_Inputs!$J$32 -> 0 | M140: =G140/Dx_Inputs!$J$32 -> 0 | N140: =H140/Dx_Inputs!$J$32 -> 0 | O140: =I140/Dx_Inputs!$J$32 -> 0
B141: IT | E141: 0 | F141: 0 | G141: 0 | H141: 0 | I141: 0 | K141: =E141/Dx_Inputs!$J$32 -> 0 | L141: =F141/Dx_Inputs!$J$32 -> 0 | M141: =G141/Dx_Inputs!$J$32 -> 0 | N141: =H141/Dx_Inputs!$J$32 -> 0 | O141: =I141/Dx_Inputs!$J$32 -> 0
B142: Non-recurring opex | E142: 0 | F142: 0 | G142: 0 | H142: 0 | I142: 0 | K142: =E142/Dx_Inputs!$J$32 -> 0 | L142: =F142/Dx_Inputs!$J$32 -> 0 | M142: =G142/Dx_Inputs!$J$32 -> 0 | N142: =H142/Dx_Inputs!$J$32 -> 0 | O142: =I142/Dx_Inputs!$J$32 -> 0
B143: Total | E143: =SUM(E126:E142) -> 6.57 | F143: =SUM(F126:F142) -> 6.57 | G143: =SUM(G126:G142) -> 6.57 | H143: =SUM(H126:H142) -> 6.57 | I143: =SUM(I126:I142) -> 6.57 | K143: =SUM(K126:K142) -> 7.244013944 | L143: =SUM(L126:L142) -> 7.244013944 | M143: =SUM(M126:M142) -> 7.244013944 | N143: =SUM(N126:N142) -> 7.244013944 | O143: =SUM(O126:O142) -> 7.244013944
B145: New distribution operating expenditure recurring from 2013/14 | G145: [$M real as at 30 June 2012] | M145: [$M real as at 30 June 2017]
B146: Reliability | F146: 0 | G146: 0 | H146: 0 | I146: 0 | L146: =F146/Dx_Inputs!$J$32 -> 0 | M146: =G146/Dx_Inputs!$J$32 -> 0 | N146: =H146/Dx_Inputs!$J$32 -> 0 | O146: =I146/Dx_Inputs!$J$32 -> 0
B147: SCADA & Communications | F147: 0 | G147: 0 | H147: 0 | I147: 0 | L147: =F147/Dx_Inputs!$J$32 -> 0 | M147: =G147/Dx_Inputs!$J$32 -> 0 | N147: =H147/Dx_Inputs!$J$32 -> 0 | O147: =I147/Dx_Inputs!$J$32 -> 0
B148: Non-revenue cap services | F148: 0 | G148: 0 | H148: 0 | I148: 0 | L148: =F148/Dx_Inputs!$J$32 -> 0 | M148: =G148/Dx_Inputs!$J$32 -> 0 | N148: =H148/Dx_Inputs!$J$32 -> 0 | O148: =I148/Dx_Inputs!$J$32 -> 0
B149: Network Operations | F149: 0 | G149: 0 | H149: 0 | I149: 0 | L149: =F149/Dx_Inputs!$J$32 -> 0 | M149: =G149/Dx_Inputs!$J$32 -> 0 | N149: =H149/Dx_Inputs!$J$32 -> 0 | O149: =I149/Dx_Inputs!$J$32 -> 0
B150: Smartgrid | F150: 0 | G150: 0 | H150: 0 | I150: 0 | L150: =F150/Dx_Inputs!$J$32 -> 0 | M150: =G150/Dx_Inputs!$J$32 -> 0 | N150: =H150/Dx_Inputs!$J$32 -> 0 | O150: =I150/Dx_Inputs!$J$32 -> 0
B151: Maintenance Strategy | F151: 0 | G151: 0 | H151: 0 | I151: 0 | L151: =F151/Dx_Inputs!$J$32 -> 0 | M151: =G151/Dx_Inputs!$J$32 -> 0 | N151: =H151/Dx_Inputs!$J$32 -> 0 | O151: =I151/Dx_Inputs!$J$32 -> 0
B152: Preventive Condition | F152: 0 | G152: 0 | H152: 0 | I152: 0 | L152: =F152/Dx_Inputs!$J$32 -> 0 | M152: =G152/Dx_Inputs!$J$32 -> 0 | N152: =H152/Dx_Inputs!$J$32 -> 0 | O152: =I152/Dx_Inputs!$J$32 -> 0
B153: Preventive Routine | F153: 1.4 | G153: 1.4 | H153: 1.4 | I153: 1.4 | L153: =F153/Dx_Inputs!$J$32 -> 1.543625498 | M153: =G153/Dx_Inputs!$J$32 -> 1.543625498 | N153: =H153/Dx_Inputs!$J$32 -> 1.543625498 | O153: =I153/Dx_Inputs!$J$32 -> 1.543625498
B154: Corrective Deferred | F154: 0 | G154: 0 | H154: 0 | I154: 0 | L154: =F154/Dx_Inputs!$J$32 -> 0 | M154: =G154/Dx_Inputs!$J$32 -> 0 | N154: =H154/Dx_Inputs!$J$32 -> 0 | O154: =I154/Dx_Inputs!$J$32 -> 0
B155: Corrective Emergency | F155: 0 | G155: 0 | H155: 0 | I155: 0 | L155: =F155/Dx_Inputs!$J$32 -> 0 | M155: =G155/Dx_Inputs!$J$32 -> 0 | N155: =H155/Dx_Inputs!$J$32 -> 0 | O155: =I155/Dx_Inputs!$J$32 -> 0
B156: Call Centre | F156: 0 | G156: 0 | H156: 0 | I156: 0 | L156: =F156/Dx_Inputs!$J$32 -> 0 | M156: =G156/Dx_Inputs!$J$32 -> 0 | N156: =H156/Dx_Inputs!$J$32 -> 0 | O156: =I156/Dx_Inputs!$J$32 -> 0
B157: Metering | F157: 0 | G157: 0 | H157: 0 | I157: 0 | L157: =F157/Dx_Inputs!$J$32 -> 0 | M157: =G157/Dx_Inputs!$J$32 -> 0 | N157: =H157/Dx_Inputs!$J$32 -> 0 | O157: =I157/Dx_Inputs!$J$32 -> 0
B158: Guaranteed service level payments | F158: 0 | G158: 0 | H158: 0 | I158: 0 | L158: =F158/Dx_Inputs!$J$32 -> 0 | M158: =G158/Dx_Inputs!$J$32 -> 0 | N158: =H158/Dx_Inputs!$J$32 -> 0 | O158: =I158/Dx_Inputs!$J$32 -> 0
B159: Design & Estimating - Distribution Quotations | F159: 0 | G159: 0 | H159: 0 | I159: 0 | L159: =F159/Dx_Inputs!$J$32 -> 0 | M159: =G159/Dx_Inputs!$J$32 -> 0 | N159: =H159/Dx_Inputs!$J$32 -> 0 | O159: =I159/Dx_Inputs!$J$32 -> 0
B160: Business Support | F160: 0 | G160: 0 | H160: 0 | I160: 0 | L160: =F160/Dx_Inputs!$J$32 -> 0 | M160: =G160/Dx_Inputs!$J$32 -> 0 | N160: =H160/Dx_Inputs!$J$32 -> 0 | O160: =I160/Dx_Inputs!$J$32 -> 0
B161: IT | F161: 0 | G161: 0 | H161: 0 | I161: 0 | L161: =F161/Dx_Inputs!$J$32 -> 0 | M161: =G161/Dx_Inputs!$J$32 -> 0 | N161: =H161/Dx_Inputs!$J$32 -> 0 | O161: =I161/Dx_Inputs!$J$32 -> 0
B162: Non-recurring opex | F162: 0 | G162: 0 | H162: 0 | I162: 0 | L162: =F162/Dx_Inputs!$J$32 -> 0 | M162: =G162/Dx_Inputs!$J$32 -> 0 | N162: =H162/Dx_Inputs!$J$32 -> 0 | O162: =I162/Dx_Inputs!$J$32 -> 0
B163: Total | E163: =SUM(E146:E162) -> 0 | F163: =SUM(F146:F162) -> 1.4 | G163: =SUM(G146:G162) -> 1.4 | H163: =SUM(H146:H162) -> 1.4 | I163: =SUM(I146:I162) -> 1.4 | L163: =SUM(L146:L162) -> 1.543625498 | M163: =SUM(M146:M162) -> 1.543625498 | N163: =SUM(N146:N162) -> 1.543625498 | O163: =SUM(O146:O162) -> 1.543625498
B165: Base transmission | G165: [$M real as at 30 June 2012] | M165: [$M real as at 30 June 2017]
B166: SCADA & Communications | E166: 8.894911794 | F166: 8.894911794 | G166: 8.894911794 | H166: 8.894911794 | I166: 8.894911794 | K166: =E166/Dx_Inputs!$J$32 -> 9.807437606 | L166: =F166/Dx_Inputs!$J$32 -> 9.807437606 | M166: =G166/Dx_Inputs!$J$32 -> 9.807437606 | N166: =H166/Dx_Inputs!$J$32 -> 9.807437606 | O166: =I166/Dx_Inputs!$J$32 -> 9.807437606
B167: Non-revenue cap services | E167: 0 | F167: 0 | G167: 0 | H167: 0 | I167: 0 | K167: =E167/Dx_Inputs!$J$32 -> 0 | L167: =F167/Dx_Inputs!$J$32 -> 0 | M167: =G167/Dx_Inputs!$J$32 -> 0 | N167: =H167/Dx_Inputs!$J$32 -> 0 | O167: =I167/Dx_Inputs!$J$32 -> 0
B168: Network Operations | E168: 9.601377323 | F168: 9.601377323 | G168: 9.601377323 | H168: 9.601377323 | I168: 9.601377323 | K168: =E168/Dx_Inputs!$J$32 -> 10.58637918 | L168: =F168/Dx_Inputs!$J$32 -> 10.58637918 | M168: =G168/Dx_Inputs!$J$32 -> 10.58637918 | N168: =H168/Dx_Inputs!$J$32 -> 10.58637918 | O168: =I168/Dx_Inputs!$J$32 -> 10.58637918
B169: Maintenance Strategy | E169: 0 | F169: 0 | G169: 0 | H169: 0 | I169: 0 | K169: =E169/Dx_Inputs!$J$32 -> 0 | L169: =F169/Dx_Inputs!$J$32 -> 0 | M169: =G169/Dx_Inputs!$J$32 -> 0 | N169: =H169/Dx_Inputs!$J$32 -> 0 | O169: =I169/Dx_Inputs!$J$32 -> 0
B170: Preventive Condition | E170: 7.952149371 | F170: 7.952149371 | G170: 7.952149371 | H170: 7.952149371 | I170: 7.952149371 | K170: =E170/Dx_Inputs!$J$32 -> 8.767957524 | L170: =F170/Dx_Inputs!$J$32 -> 8.767957524 | M170: =G170/Dx_Inputs!$J$32 -> 8.767957524 | N170: =H170/Dx_Inputs!$J$32 -> 8.767957524 | O170: =I170/Dx_Inputs!$J$32 -> 8.767957524
B171: Preventive Routine | E171: 13.97234238 | F171: 13.97234238 | G171: 13.97234238 | H171: 13.97234238 | I171: 13.97234238 | K171: =E171/Dx_Inputs!$J$32 -> 15.40575997 | L171: =F171/Dx_Inputs!$J$32 -> 15.40575997 | M171: =G171/Dx_Inputs!$J$32 -> 15.40575997 | N171: =H171/Dx_Inputs!$J$32 -> 15.40575997 | O171: =I171/Dx_Inputs!$J$32 -> 15.40575997
B172: Corrective Deferred | E172: 8.123008178 | F172: 8.123008178 | G172: 8.123008178 | H172: 8.123008178 | I172: 8.123008178 | K172: =E172/Dx_Inputs!$J$32 -> 8.956344675 | L172: =F172/Dx_Inputs!$J$32 -> 8.956344675 | M172: =G172/Dx_Inputs!$J$32 -> 8.956344675 | N172: =H172/Dx_Inputs!$J$32 -> 8.956344675 | O172: =I172/Dx_Inputs!$J$32 -> 8.956344675
B173: Corrective Emergency | E173: 0.7477368046 | F173: 0.7477368046 | G173: 0.7477368046 | H173: 0.7477368046 | I173: 0.7477368046 | K173: =E173/Dx_Inputs!$J$32 -> 0.8244468552 | L173: =F173/Dx_Inputs!$J$32 -> 0.8244468552 | M173: =G173/Dx_Inputs!$J$32 -> 0.8244468552 | N173: =H173/Dx_Inputs!$J$32 -> 0.8244468552 | O173: =I173/Dx_Inputs!$J$32 -> 0.8244468552
B174: Business Support | E174: 0 | F174: 0 | G174: 0 | H174: 0 | I174: 0 | K174: =E174/Dx_Inputs!$J$32 -> 0 | L174: =F174/Dx_Inputs!$J$32 -> 0 | M174: =G174/Dx_Inputs!$J$32 -> 0 | N174: =H174/Dx_Inputs!$J$32 -> 0 | O174: =I174/Dx_Inputs!$J$32 -> 0
B175: Non-recurring opex | E175: 0 | F175: 0 | G175: 0 | H175: 0 | I175: 0 | K175: =E175/Dx_Inputs!$J$32 -> 0 | L175: =F175/Dx_Inputs!$J$32 -> 0 | M175: =G175/Dx_Inputs!$J$32 -> 0 | N175: =H175/Dx_Inputs!$J$32 -> 0 | O175: =I175/Dx_Inputs!$J$32 -> 0
B176: Total | E176: =SUM(E166:E175) -> 49.29152585 | F176: =SUM(F166:F175) -> 49.29152585 | G176: =SUM(G166:G175) -> 49.29152585 | H176: =SUM(H166:H175) -> 49.29152585 | I176: =SUM(I166:I175) -> 49.29152585 | K176: =SUM(K166:K175) -> 54.34832581 | L176: =SUM(L166:L175) -> 54.34832581 | M176: =SUM(M166:M175) -> 54.34832581 | N176: =SUM(N166:N175) -> 54.34832581 | O176: =SUM(O166:O175) -> 54.34832581
B178: New transmission operating expenditure recurring from 2012/13 | G178: [$M real as at 30 June 2012] | M178: [$M real as at 30 June 2017]
B179: SCADA & Communications | E179: 1 | F179: 1 | G179: 1 | H179: 1 | I179: 1 | K179: =E179/Dx_Inputs!$J$32 -> 1.102589641 | L179: =F179/Dx_Inputs!$J$32 -> 1.102589641 | M179: =G179/Dx_Inputs!$J$32 -> 1.102589641 | N179: =H179/Dx_Inputs!$J$32 -> 1.102589641 | O179: =I179/Dx_Inputs!$J$32 -> 1.102589641
B180: Non-revenue cap services | E180: 0 | F180: 0 | G180: 0 | H180: 0 | I180: 0 | K180: =E180/Dx_Inputs!$J$32 -> 0 | L180: =F180/Dx_Inputs!$J$32 -> 0 | M180: =G180/Dx_Inputs!$J$32 -> 0 | N180: =H180/Dx_Inputs!$J$32 -> 0 | O180: =I180/Dx_Inputs!$J$32 -> 0
B181: Network Operations | E181: 0 | F181: 0 | G181: 0 | H181: 0 | I181: 0 | K181: =E181/Dx_Inputs!$J$32 -> 0 | L181: =F181/Dx_Inputs!$J$32 -> 0 | M181: =G181/Dx_Inputs!$J$32 -> 0 | N181: =H181/Dx_Inputs!$J$32 -> 0 | O181: =I181/Dx_Inputs!$J$32 -> 0
B182: Maintenance Strategy | E182: 0 | F182: 0 | G182: 0 | H182: 0 | I182: 0 | K182: =E182/Dx_Inputs!$J$32 -> 0 | L182: =F182/Dx_Inputs!$J$32 -> 0 | M182: =G182/Dx_Inputs!$J$32 -> 0 | N182: =H182/Dx_Inputs!$J$32 -> 0 | O182: =I182/Dx_Inputs!$J$32 -> 0
B183: Preventive Condition | E183: 0.02 | F183: 0.02 | G183: 0.02 | H183: 0.02 | I183: 0.02 | K183: =E183/Dx_Inputs!$J$32 -> 0.02205179283 | L183: =F183/Dx_Inputs!$J$32 -> 0.02205179283 | M183: =G183/Dx_Inputs!$J$32 -> 0.02205179283 | N183: =H183/Dx_Inputs!$J$32 -> 0.02205179283 | O183: =I183/Dx_Inputs!$J$32 -> 0.02205179283
B184: Preventive Routine | E184: 0.02 | F184: 0.02 | G184: 0.02 | H184: 0.02 | I184: 0.02 | K184: =E184/Dx_Inputs!$J$32 -> 0.02205179283 | L184: =F184/Dx_Inputs!$J$32 -> 0.02205179283 | M184: =G184/Dx_Inputs!$J$32 -> 0.02205179283 | N184: =H184/Dx_Inputs!$J$32 -> 0.02205179283 | O184: =I184/Dx_Inputs!$J$32 -> 0.02205179283
B185: Corrective Deferred | E185: 0.06 | F185: 0.06 | G185: 0.06 | H185: 0.06 | I185: 0.06 | K185: =E185/Dx_Inputs!$J$32 -> 0.06615537849 | L185: =F185/Dx_Inputs!$J$32 -> 0.06615537849 | M185: =G185/Dx_Inputs!$J$32 -> 0.06615537849 | N185: =H185/Dx_Inputs!$J$32 -> 0.06615537849 | O185: =I185/Dx_Inputs!$J$32 -> 0.06615537849
B186: Corrective Emergency | E186: 0 | F186: 0 | G186: 0 | H186: 0 | I186: 0 | K186: =E186/Dx_Inputs!$J$32 -> 0 | L186: =F186/Dx_Inputs!$J$32 -> 0 | M186: =G186/Dx_Inputs!$J$32 -> 0 | N186: =H186/Dx_Inputs!$J$32 -> 0 | O186: =I186/Dx_Inputs!$J$32 -> 0
B187: Business Support | E187: 0 | F187: 0 | G187: 0 | H187: 0 | I187: 0 | K187: =E187/Dx_Inputs!$J$32 -> 0 | L187: =F187/Dx_Inputs!$J$32 -> 0 | M187: =G187/Dx_Inputs!$J$32 -> 0 | N187: =H187/Dx_Inputs!$J$32 -> 0 | O187: =I187/Dx_Inputs!$J$32 -> 0
B188: Non-recurring opex | E188: 0 | F188: 0 | G188: 0 | H188: 0 | I188: 0 | K188: =E188/Dx_Inputs!$J$32 -> 0 | L188: =F188/Dx_Inputs!$J$32 -> 0 | M188: =G188/Dx_Inputs!$J$32 -> 0 | N188: =H188/Dx_Inputs!$J$32 -> 0 | O188: =I188/Dx_Inputs!$J$32 -> 0
B189: Total | E189: =SUM(E179:E188) -> 1.1 | F189: =SUM(F179:F188) -> 1.1 | G189: 1.1 | H189: 1.1 | I189: 1.1 | K189: 1.212848606 | L189: 1.212848606 | M189: 1.212848606 | N189: 1.212848606 | O189: 1.212848606
B191: Actual operating expenditure in EIB categories
B192: Distribution | G192: [$M nominal] | M192: [$M real as at 30 June 2017]
B193: D-Factor Scheme | E193: 1.9587 | F193: 1.70724 | G193: 1.60837 | H193: 1.50974 | I193: 0.62093 | K193: =E193/Dx_Inputs!K$32 -> 2.109222665 | L193: =F193/Dx_Inputs!L$32 -> 1.784621983 | M193: =G193/Dx_Inputs!M$32 -> 1.65624706 | N193: =H193/Dx_Inputs!N$32 -> 1.538933867 | O193: =I193/Dx_Inputs!O$32 -> 0.62093
B194: Technical rule changes | E194: 0 | F194: 0 | G194: 0 | H194: 0 | I194: 0 | K194: =E194/Dx_Inputs!K$32 -> 0 | L194: =F194/Dx_Inputs!L$32 -> 0 | M194: =G194/Dx_Inputs!M$32 -> 0 | N194: =H194/Dx_Inputs!N$32 -> 0 | O194: =I194/Dx_Inputs!O$32 -> 0
B195: Unforeseen events | E195: 0 | F195: 0 | G195: 0.5120733096 | H195: 3.19933075 | I195: 9.652597142 | K195: =E195/Dx_Inputs!K$32 -> 0 | L195: =F195/Dx_Inputs!L$32 -> 0 | M195: =G195/Dx_Inputs!M$32 -> 0.5273164221 | N195: =H195/Dx_Inputs!N$32 -> 3.261196261 | O195: =I195/Dx_Inputs!O$32 -> 9.652597142
B196: Superannuation for defined benefit schemes | E196: 0.05565012184 | F196: 0.377 | G196: 0 | H196: 0.202 | I196: 0.207194935 | K196: =E196/Dx_Inputs!K$32 -> 0.05992673626 | L196: =F196/Dx_Inputs!L$32 -> 0.3940878187 | M196: =G196/Dx_Inputs!M$32 -> 0 | N196: =H196/Dx_Inputs!N$32 -> 0.2059060773 | O196: =I196/Dx_Inputs!O$32 -> 0.207194935
B197: Non-revenue cap services | E197: =Dx_Inputs!K371 -> 19.006 | F197: =Dx_Inputs!L371 -> 12.181 | G197: =Dx_Inputs!M371 -> 12.765 | H197: =Dx_Inputs!N371 -> 11.955 | I197: =Dx_Inputs!O371 -> 13.206 | K197: =E197/Dx_Inputs!K$32 -> 20.46657782 | L197: =F197/Dx_Inputs!L$32 -> 12.73311331 | M197: =G197/Dx_Inputs!M$32 -> 13.1449814 | N197: =H197/Dx_Inputs!N$32 -> 12.18617403 | O197: =I197/Dx_Inputs!O$32 -> 13.206
B198: License fees | E198: 0.03867412026 | F198: 0.03 | G198: 0.343175031 | H198: 0 | I198: 0 | K198: =E198/Dx_Inputs!K$32 -> 0.04164615868 | L198: =F198/Dx_Inputs!L$32 -> 0.03135977337 | M198: =G198/Dx_Inputs!M$32 -> 0.3533904738 | N198: =H198/Dx_Inputs!N$32 -> 0 | O198: =I198/Dx_Inputs!O$32 -> 0
B199: Energy safety levy | E199: 2.669606 | F199: 2.756 | G199: 4.15342 | H199: 3.049 | I199: 3.130655856 | K199: =E199/Dx_Inputs!K$32 -> 2.874760547 | L199: =F199/Dx_Inputs!L$32 -> 2.880917847 | M199: =G199/Dx_Inputs!M$32 -> 4.277056688 | N199: =H199/Dx_Inputs!N$32 -> 3.107958564 | O199: =I199/Dx_Inputs!O$32 -> 3.130655856
B200: Network Control Services | E200: 0 | F200: 0 | G200: 0 | H200: 0 | I200: 0 | K200: =E200/Dx_Inputs!K$32 -> 0 | L200: =F200/Dx_Inputs!L$32 -> 0 | M200: =G200/Dx_Inputs!M$32 -> 0 | N200: =H200/Dx_Inputs!N$32 -> 0 | O200: =I200/Dx_Inputs!O$32 -> 0
B201: ERA costs (Electricity Network Access Funding Regulations) | E201: 0.4702526837 | F201: 0.53 | G201: 0.39454345 | H201: 0.55 | I201: 0.3664018217 | K201: =E201/Dx_Inputs!K$32 -> 0.5063907791 | L201: =F201/Dx_Inputs!L$32 -> 0.5540226629 | M201: =G201/Dx_Inputs!M$32 -> 0.4062879992 | N201: =H201/Dx_Inputs!N$32 -> 0.5606353591 | O201: =I201/Dx_Inputs!O$32 -> 0.3664018217
B203: Transmission | G203: [$M nominal] | M203: [$M real as at 30 June 2017]
B204: D-Factor Scheme | E204: 0 | F204: 0 | G204: 0 | H204: 0 | I204: 0 | K204: =E204/Dx_Inputs!K$32 -> 0 | L204: =F204/Dx_Inputs!L$32 -> 0 | M204: =G204/Dx_Inputs!M$32 -> 0 | N204: =H204/Dx_Inputs!N$32 -> 0 | O204: =I204/Dx_Inputs!O$32 -> 0
B205: Technical rule changes | E205: 0 | F205: 0 | G205: 0 | H205: 0 | I205: 0 | K205: =E205/Dx_Inputs!K$32 -> 0 | L205: =F205/Dx_Inputs!L$32 -> 0 | M205: =G205/Dx_Inputs!M$32 -> 0 | N205: =H205/Dx_Inputs!N$32 -> 0 | O205: =I205/Dx_Inputs!O$32 -> 0
B206: Unforeseen events | E206: 0 | F206: 0 | G206: 0.1991396204 | H206: 1.24418418 | I206: 3.753787778 | K206: =E206/Dx_Inputs!K$32 -> 0 | L206: =F206/Dx_Inputs!L$32 -> 0 | M206: =G206/Dx_Inputs!M$32 -> 0.2050674975 | N206: =H206/Dx_Inputs!N$32 -> 1.268242991 | O206: =I206/Dx_Inputs!O$32 -> 3.753787778
B207: Superannuation for defined benefit schemes | E207: 0.02534987816 | F207: 0.118 | G207: 0 | H207: 0.074 | I207: 0.075903095 | K207: =E207/Dx_Inputs!K$32 -> 0.02729797191 | L207: =F207/Dx_Inputs!L$32 -> 0.1233484419 | M207: =G207/Dx_Inputs!M$32 -> 0 | N207: =H207/Dx_Inputs!N$32 -> 0.07543093923 | O207: =I207/Dx_Inputs!O$32 -> 0.075903095
B208: Non-revenue cap services | E208: =Tx_Inputs!K361 -> 12.614 | F208: =Tx_Inputs!L361 -> 4.563 | G208: =Tx_Inputs!M361 -> 3.378 | H208: =Tx_Inputs!N361 -> 5.381 | I208: =Tx_Inputs!O361 -> 4.028 | K208: =E208/Dx_Inputs!K$32 -> 13.58336381 | L208: =F208/Dx_Inputs!L$32 -> 4.76982153 | M208: =G208/Dx_Inputs!M$32 -> 3.478554419 | N208: =H208/Dx_Inputs!N$32 -> 5.485052486 | O208: =I208/Dx_Inputs!O$32 -> 4.028
B209: License fees | E209: 0.01950098169 | F209: 0.015 | G209: 0 | H209: 0 | I209: 0 | K209: =E209/Dx_Inputs!K$32 -> 0.02099959799 | L209: =F209/Dx_Inputs!L$32 -> 0.01567988669 | M209: =G209/Dx_Inputs!M$32 -> 0 | N209: =H209/Dx_Inputs!N$32 -> 0 | O209: =I209/Dx_Inputs!O$32 -> 0
B210: Energy safety levy | E210: 1.346118 | F210: 1.355 | G210: 0 | H210: 1.27 | I210: 1.304012114 | K210: =E210/Dx_Inputs!K$32 -> 1.449564811 | L210: =F210/Dx_Inputs!L$32 -> 1.416416431 | M210: =G210/Dx_Inputs!M$32 -> 0 | N210: =H210/Dx_Inputs!N$32 -> 1.294558011 | O210: =I210/Dx_Inputs!O$32 -> 1.304012114
B211: Network Control Services | E211: 0 | F211: 0 | G211: 0 | H211: 0 | I211: 0 | K211: =E211/Dx_Inputs!K$32 -> 0 | L211: =F211/Dx_Inputs!L$32 -> 0 | M211: =G211/Dx_Inputs!M$32 -> 0 | N211: =H211/Dx_Inputs!N$32 -> 0 | O211: =I211/Dx_Inputs!O$32 -> 0
B212: ERA costs (Electricity Network Access Funding Regulations) | E212: 0.2371195237 | F212: 0.261 | G212: 0 | H212: 0.229 | I212: 0.1525563948 | K212: =E212/Dx_Inputs!K$32 -> 0.2553417439 | L212: =F212/Dx_Inputs!L$32 -> 0.2728300283 | M212: =G212/Dx_Inputs!M$32 -> 0 | N212: =H212/Dx_Inputs!N$32 -> 0.2334281768 | O212: =I212/Dx_Inputs!O$32 -> 0.1525563948
B214: Investment adjustment mechanism (IAM) category inclusion flags [1=Include, 0=Exclude]
B215: Year ending 30 June | E215: 2013 | F215: 2014 | G215: 2015 | H215: 2016 | I215: 2017
B216: Distribtuion IAM category inclusion flags [1=Include, 0=Exclude]
B217: Growth | G217: Actual AA3
B218: Capacity Expansion | E218: 1 | F218: 1 | G218: 1 | H218: 1 | I218: 1
B219: Customer Driven | E219: 1 | F219: 1 | G219: 1 | H219: 1 | I219: 1
... 67 more rows

Sheet Incentive_Rate_Inputs
B2: VCRs weighted to WA
B3: VCRs by feeder type escalated by CPI ($/kWh) [$ Real as at 30 June 2017] | C3: $ per kWh
B4: CBD | C4: 51
B5: Urban | C5: 43.2
B6: Rural short | C6: 41.9
B7: Rural long | C7: 43.1
B10: Value of customer reliability (VCR) - AER STPIS approach
B11: WA - energy consumption (for 12 months) [GWh] | C11: CBD | D11: Urban | E11: Rural short | F11: Rural long | G11: Western Power Network Total
B12: Energy Consumption | C12: 519.34 | D12: 9063.48 | E12: 2994.2 | F12: 1067.84
B13: Total | C13: =SUM(C12:C12) -> 519.34 | D13: =SUM(D12:D12) -> 9063.48 | E13: =SUM(E12:E12) -> 2994.2 | F13: =SUM(F12:F12) -> 1067.84 | G13: =SUM(C13:F13) -> 13644.86
B15: SSAM Incentive Rate Inputs
B16: Ratio of unplanned SAIDI to unplanned SAIFI | C16: Ratio
B17: CBD | C17: 1.13
B18: Urban | C18: 0.97
B19: Rural short | C19: 0.92
B20: Rural long | C20: 0.92
B24: Revenue at risk [$ Real as at 30 June 2017] | C24: Average AA4 Revenue | D24: Portion at risk | E24: Revenue at risk
B25: Transmission average revenue | C25: =Output_Summary!H140*1000000 -> 337484910.4 | D25: 0.01 | E25: =D25*C25 -> 3374849.104
B26: Distribution average revenue | C26: =Output_Summary!H139*1000000 -> 1076041802 | D26: 0.05 | E26: =D26*C26 -> 53802090.08
B27: Total average revenue | C27: =SUM(C25:C26) -> 1413526712
B29: Total Revenue at Risk per annum | E29: =SUM(E25:E26) -> 57176939.19
B30: Total Revenue at Risk for AA4 | E30: =SUM(E25:E26)*5 -> 285884695.9
B33: Transmission revenue at risk to determine incentive rate [$ real as at 30 June 2017] | C33: Portion at risk | D33: Revenue at risk
B34: Circuit availability | C34: 0.5 | D34: =C34*C25*D25 -> 1687424.552
B35: Loss of supply event frequency >0.1 system minutes interrupted | C35: 0.125 | D35: =C35*C$25*D$25 -> 421856.138
B36: Loss of supply event frequency >1 system minutes interrupted | C36: 0.125 | D36: =C36*C$25*D$25 -> 421856.138
B37: Average outage duration | C37: 0.25 | D37: =C37*C$25*D$25 -> 843712.276
C38: Total | D38: =SUM(D34:D37) -> 3374849.104 | E38: =IF(E25=D38,"OK","CHECK") -> OK
B41: Distribution revenue at risk to determine incentive rate | C41: % of revenue per % change in performance | D41: Revenue at risk check (per % change in performance)
B42: Call Centre Performance (Dx avg revenue) | C42: 0.0004 | D42: =C42*C26 -> 430416.7207
B44: AA4 SSB and SSAM Targets
B45: Distribution Reference Service Benchmark - Statistical outputs | C45: POE1 | D45: POE50 | E45: POE99 | F45: SSB target | G45: SSAM target
B46: CBD SAIDI | C46: N/A | D46: 17.82 | E46: 37.18 | F46: =ROUND(E46,1) -> 37.2 | G46: =ROUND(D46,1) -> 17.8
B47: CBD SAIFI | C47: N/A | D47: 0.14 | E47: 0.23 | F47: =ROUND(E47,2) -> 0.23 | G47: =ROUND(D47,2) -> 0.14
B48: URBAN SAIDI | C48: N/A | D48: 108.66 | E48: 134.7 | F48: =ROUND(E48,1) -> 134.7 | G48: =ROUND(D48,1) -> 108.7
B49: URBAN SAIFI | C49: N/A | D49: 1.12 | E49: 1.33 | F49: =ROUND(E49,2) -> 1.33 | G49: =ROUND(D49,2) -> 1.12
B50: Rural Short SAIDI | C50: N/A | D50: 190.44 | E50: 226.3 | F50: =ROUND(E50,1) -> 226.3 | G50: =ROUND(D50,1) -> 190.4
B51: Rural Short SAIFI | C51: N/A | D51: 2.01 | E51: 2.38 | F51: =ROUND(E51,2) -> 2.38 | G51: =ROUND(D51,2) -> 2.01
B52: Rural Long SAIDI | C52: N/A | D52: 681.27 | E52: 902.93 | F52: =ROUND(E52,1) -> 902.9 | G52: =ROUND(D52,1) -> 681.3
B53: Rural Long SAIFI | C53: N/A | D53: 4.73 | E53: 5.9 | F53: =ROUND(E53,2) -> 5.9 | G53: =ROUND(D53,2) -> 4.73
B54: Call Centre Performance | C54: 0.8526 | D54: 0.9217 | E54: 0.9377 | F54: =ROUND(C54,3) -> 0.853 | G54: =ROUND(D54,3) -> 0.922
B55: Streetlighting repair time – metropolitan areas | F55: 5 | G55: N/A
B56: Streetlighting repair time –regional areas | F56: 9 | G56: N/A
B58: Adjustments to Distribution Reference Service Benchmark | C58: POE1 | D58: POE50 | E58: POE 99 | F58: SSB target | G58: SSAM target
B59: CBD SAIDI | C59: N/A | F59: =ROUND(E59,1) -> 0 | G59: =ROUND(D59,1) -> 0
B60: CBD SAIFI | C60: N/A | F60: =ROUND(E60,2) -> 0 | G60: =ROUND(D60,2) -> 0
B61: URBAN SAIDI | C61: N/A | F61: =ROUND(E61,1) -> 0 | G61: =ROUND(D61,1) -> 0
B62: URBAN SAIFI | C62: N/A | F62: =ROUND(E62,2) -> 0 | G62: =ROUND(D62,2) -> 0
B63: Rural Short SAIDI | C63: N/A | F63: =ROUND(E63,1) -> 0 | G63: =ROUND(D63,1) -> 0
B64: Rural Short SAIFI | C64: N/A | F64: =ROUND(E64,2) -> 0 | G64: =ROUND(D64,2) -> 0
B65: Rural Long SAIDI | C65: N/A | D65: -5.63 | F65: =ROUND(E65,1) -> 0 | G65: =ROUND(D65,1) -> -5.6 | I65: Kalbarri adjustment
B66: Rural Long SAIFI | C66: N/A | D66: -0.06 | F66: =ROUND(E66,2) -> 0 | G66: =ROUND(D66,2) -> -0.06 | I66: Kalbarri adjustment
B67: Call Centre Performance | F67: =ROUND(C67,3) -> 0 | G67: =ROUND(D67,3) -> 0
B68: Streetlighting repair time – metropolitan areas | F68: 5 | G68: N/A
B69: Streetlighting repair time –regional areas | F69: 9 | G69: N/A
B71: Distribution Reference Service Benchmark | C71: POE1 | D71: POE50 | E71: POE99 | F71: SSB target | G71: SSAM target
B72: CBD SAIDI | C72: N/A | D72: =D46+D59 -> 17.82 | E72: =E46+E59 -> 37.18 | F72: =ROUND(E72,1) -> 37.2 | G72: =ROUND(D72,1) -> 17.8
B73: CBD SAIFI | C73: N/A | D73: =D47+D60 -> 0.14 | E73: 0.23 | F73: =ROUND(E73,2) -> 0.23 | G73: =ROUND(D73,2) -> 0.14
B74: URBAN SAIDI | C74: N/A | D74: =D48+D61 -> 108.66 | E74: 134.7 | F74: =ROUND(E74,1) -> 134.7 | G74: =ROUND(D74,1) -> 108.7
B75: URBAN SAIFI | C75: N/A | D75: =D49+D62 -> 1.12 | E75: 1.33 | F75: =ROUND(E75,2) -> 1.33 | G75: =ROUND(D75,2) -> 1.12
B76: Rural Short SAIDI | C76: N/A | D76: =D50+D63 -> 190.44 | E76: 226.3 | F76: =ROUND(E76,1) -> 226.3 | G76: =ROUND(D76,1) -> 190.4
B77: Rural Short SAIFI | C77: N/A | D77: =D51+D64 -> 2.01 | E77: 2.38 | F77: =ROUND(E77,2) -> 2.38 | G77: =ROUND(D77,2) -> 2.01
B78: Rural Long SAIDI | C78: N/A | D78: =D52+D65 -> 675.64 | E78: 902.93 | F78: =ROUND(E78,1) -> 902.9 | G78: =ROUND(D78,1) -> 675.6 | I78: Kalbarri adjustment
B79: Rural Long SAIFI | C79: N/A | D79: =D53+D66 -> 4.67 | E79: 5.9 | F79: =ROUND(E79,2) -> 5.9 | G79: =ROUND(D79,2) -> 4.67 | I79: Kalbarri adjustment
B80: Call Centre Performance | C80: =C54+C67 -> 0.8526 | D80: =D54+D67 -> 0.9217 | E80: 0.9377 | F80: =ROUND(C80,3) -> 0.853 | G80: =ROUND(D80,3) -> 0.922
B81: Streetlighting repair time – metropolitan areas | F81: =F55 -> 5 | G81: N/A
B82: Streetlighting repair time –regional areas | F82: =F56 -> 9 | G82: N/A
B85: Transmission Reference Service Benchmark - statistical outputs | C85: POE1 | D85: POE50 | E85: POE99 | F85: SSB target | G85: SSAM target
B86: Circuit availability | C86: 97.63 | D86: 98.51 | E86: 98.91 | F86: =ROUND(C86,1) -> 97.6 | G86: =ROUND(D86,1) -> 98.5
B87: Loss of supply event frequency >0.1 system minutes interrupted | C87: 9 | D87: 17 | E87: 27 | F87: =ROUND(E87,0) -> 27 | G87: =ROUND(D87,0) -> 17
B88: Loss of supply event frequency >1 system minutes interrupted | C88: 0.002 | D88: 1 | E88: 4 | F88: =ROUND(E88,0) -> 4 | G88: =ROUND(D88,0) -> 1
B89: Average outage duration | C89: 580.89 | D89: 871.37 | E89: 1332.83 | F89: =ROUND(E89,0) -> 1333 | G89: =ROUND(D89,0) -> 871
B91: Adjustment to Transmission Reference Service Benchmark | C91: POE1 | D91: POE50 | E91: POE99 | F91: SSB target | G91: SSAM target
B92: Circuit availability | F92: =ROUND(C92,1) -> 0 | G92: =ROUND(D92,1) -> 0
B93: Loss of supply event frequency >0.1 system minutes interrupted | F93: =ROUND(E93,0) -> 0 | G93: =ROUND(D93,0) -> 0
B94: Loss of supply event frequency >1 system minutes interrupted | F94: =ROUND(E94,0) -> 0 | G94: =ROUND(D94,0) -> 0 | I94: LoSEF adjustment
B95: Average outage duration | F95: =ROUND(E95,0) -> 0 | G95: =ROUND(D95,0) -> 0
B97: Transmission Reference Service Benchmark | C97: POE1 | D97: POE50 | E97: POE99 | F97: SSB target | G97: SSAM target
B98: Circuit availability | C98: =C86+C92 -> 97.63 | D98: =D86+D92 -> 98.51 | E98: =E86+E92 -> 98.91 | F98: =ROUND(C98,1) -> 97.6 | G98: =ROUND(D98,1) -> 98.5
B99: Loss of supply event frequency >0.1 system minutes interrupted | C99: =C87+C93 -> 9 | D99: 17 | E99: =E87+E93 -> 27 | F99: =ROUND(E99,0) -> 27 | G99: =ROUND(D99,0) -> 17
B100: Loss of supply event frequency >1 system minutes interrupted | C100: 0.002 | D100: 1 | E100: =E88+E94 -> 4 | F100: =ROUND(E100,0) -> 4 | G100: =ROUND(D100,0) -> 1 | I100: LoSEF adjustment
B101: Average outage duration | C101: 580.89 | D101: 871.37 | E101: =E89+E95 -> 1332.83 | F101: =ROUND(E101,0) -> 1333 | G101: =ROUND(D101,0) -> 871
B103: AA4 expected performance levels - SSAM targets (POE 50) | C103: SAIDI | D103: SAIFI
B104: CBD | C104: =D72 -> 17.82 | D104: =D73 -> 0.14
B105: Urban | C105: =D74 -> 108.66 | D105: =D75 -> 1.12
B106: Rural short | C106: =D76 -> 190.44 | D106: =D77 -> 2.01
B107: Rural long | C107: =D78 -> 675.64 | D107: =D79 -> 4.67

Sheet Incentive_rates
B2: Incentive rate calculations
B3: SAIDI ($ per minute) Incentive Rate [$ Real as at 30 June 2017] | C3: $/kWh
B4: CBD | C4: =Incentive_Rate_Inputs!C4*(1-1/(1+Incentive_Rate_Inputs!$C17)) -> 27.05633803
B5: Urban | C5: =Incentive_Rate_Inputs!C5*(1-1/(1+Incentive_Rate_Inputs!$C18)) -> 21.27106599
B6: Rural short | C6: =Incentive_Rate_Inputs!C6*(1-1/(1+Incentive_Rate_Inputs!$C19)) -> 20.07708333
B7: Rural long | C7: =Incentive_Rate_Inputs!C7*(1-1/(1+Incentive_Rate_Inputs!$C20)) -> 20.65208333
B9: Convert a SAIDI minute to MWh (MWh/minute) | C9: MWh/minute
B10: CBD | C10: =Incentive_Rate_Inputs!C13/(365*24*60)*1000 -> 0.9880898021
B11: Urban | C11: =Incentive_Rate_Inputs!D13/(365*24*60)*1000 -> 17.24406393
B12: Rural short | C12: =Incentive_Rate_Inputs!E13/(365*24*60)*1000 -> 5.696727549
B13: Rural long | C13: =Incentive_Rate_Inputs!F13/(365*24*60)*1000 -> 2.031659056
B15: SAIDI incentive rate ($ per minute) | C15: $ per minute
B16: CBD | C16: =$C10*C4*1000 -> 26734.09169
B17: Urban | C17: =$C11*C5*1000 -> 366799.6217
B18: Rural short | C18: =$C12*C6*1000 -> 114373.6737
B19: Rural long | C19: =$C13*C7*1000 -> 41957.99214
B21: SAIFI ($0.01 per event) Incentive Rate [$ Real as at 30 June 2017] | C21: $/kWh
B22: CBD | C22: =Incentive_Rate_Inputs!C4/(1+Incentive_Rate_Inputs!$C17) -> 23.94366197
B23: Urban | C23: =Incentive_Rate_Inputs!C5/(1+Incentive_Rate_Inputs!$C18) -> 21.92893401
B24: Rural short | C24: =Incentive_Rate_Inputs!C6/(1+Incentive_Rate_Inputs!$C19) -> 21.82291667
B25: Rural long | C25: =Incentive_Rate_Inputs!C7/(1+Incentive_Rate_Inputs!$C20) -> 22.44791667
B27: Convert an event to MWh (assumes each event of average duration - CAIDI = SAIDI/SAIFI) (MWh/event) | C27: MWh/event
B29: CBD | C29: =Incentive_Rate_Inputs!C13*Incentive_Rate_Inputs!C104/Incentive_Rate_Inputs!D104/(365*24*60)*1000 -> 125.7697162
B30: Urban | C30: =Incentive_Rate_Inputs!D13*Incentive_Rate_Inputs!C105/Incentive_Rate_Inputs!D105/(365*24*60)*1000 -> 1672.982131
B31: Rural short | C31: =Incentive_Rate_Inputs!E13*Incentive_Rate_Inputs!C106/Incentive_Rate_Inputs!D106/(365*24*60)*1000 -> 539.7436789
B32: Rural long | C32: =Incentive_Rate_Inputs!F13*Incentive_Rate_Inputs!C107/Incentive_Rate_Inputs!D107/(365*24*60)*1000 -> 293.9336456
B34: SAIFI incentive rate ($ per 0.01 event) | C34: $ per 0.01 event
B35: CBD | C35: =$C29*C22*1000/100 -> 30113.87572
B36: Urban | C36: =$C30*C23*1000/100 -> 366867.1474
B37: Rural short | C37: =$C31*C24*1000/100 -> 117787.8133
B38: Rural long | C38: =$C32*C25*1000/100 -> 65981.97981
B40: Call Centre Performance Incentive Rates [$ Real as at 30 June 2017]
B41: Call centre reward side incentive rate
B42: Portion of revenue per % change in performance | C42: =Incentive_Rate_Inputs!C42 -> 0.0004
B43: Reward side incentive rate per % change in performance | C43: =-Incentive_Rate_Inputs!D42 -> -430416.7207
B45: Reward side incentive rate dollars per 0.1% change in performance | C45: =C43/10 -> -43041.67207
B47: PoE50 | C47: =ROUND(Incentive_Rate_Inputs!D80,3) -> 0.922
B48: PoE99 | C48: =ROUND(Incentive_Rate_Inputs!E80,3) -> 0.938
B49: Difference | C49: =C47-C48 -> -0.016
B51: Reward side revenue at risk to PoE99 | C51: =C49*100*C43 -> 688666.7531
B53: Call centre penalty side incentive rate
B54: Penalty side revenue at risk to PoE1 | C54: =-C51 -> -688666.7531
B56: PoE50 | C56: =ROUND(C47,3) -> 0.922
B57: PoE1 | C57: =ROUND(Incentive_Rate_Inputs!C80,3) -> 0.853
B58: Difference | C58: =C56-C57 -> 0.069
B60: Penalty side incentive rate per % change in performance | C60: =C54/(C58*100) -> -99806.77581
B62: Penalty side incentive rate dollars per 0.1% change in performance | C62: =C60/10 -> -9980.677581
B64: Transmission revenue at risk [$ Real as at 30 June 2017]
B65: Revenue at risk | C65: =Incentive_Rate_Inputs!D25 -> 0.01
B66: Tranmission Revenue (AA4 average) | C66: =Incentive_Rate_Inputs!C25 -> 337484910.4
B67: Transmission Revenue at risk | C67: =C65*C66 -> 3374849.104
B69: Circuit Availability Incentive Rate [$ Real as at 30 June 2017]
B70: Circuit availability reward side incentive rate
B71: Portion of revenue at risk | C71: =Incentive_Rate_Inputs!C34 -> 0.5
B72: Revenue at risk | C72: =C$67*C71 -> 1687424.552
B74: PoE50 | C74: =ROUND(Incentive_Rate_Inputs!D98,1) -> 98.5
B75: PoE99 | C75: =ROUND(Incentive_Rate_Inputs!E98,1) -> 98.9
B76: Difference | C76: =C74-C75 -> -0.4
B78: Reward side incentive rate dollars per 0.1% of total time | C78: =(C72/C76)/10 -> -421856.138
B80: Circuit availability penalty side incentive rate
B81: PoE50 | C81: =ROUND(Incentive_Rate_Inputs!D98,1) -> 98.5
B82: PoE1 | C82: =ROUND(Incentive_Rate_Inputs!C98,1) -> 97.6
B83: Difference | C83: =C82-C81 -> -0.9
B85: Penalty side incentive rate dollars per 0.1% change in performance | C85: =(C72/C83)/10 -> -187491.6169
B87: Loss of Supply Event Frequency >0.1 system minutes interrupted Incentive Rates [$ Real as at 30 June 2017]
B88: Loss of supply event frequency >0.1 system minutes interrupted reward side incentive rate
B89: Portion of revenue at risk | C89: =Incentive_Rate_Inputs!C35 -> 0.125
B90: Revenue at risk | C90: =C$67*C89 -> 421856.138
B92: PoE50 | C92: =ROUND(Incentive_Rate_Inputs!D99,0) -> 17
B93: PoE99 | C93: =ROUND(Incentive_Rate_Inputs!E99,0) -> 27
B94: Difference | C94: =C93-C92 -> 10
B96: Reward side incentive rate dollars per event | C96: =(C90/C94) -> 42185.6138
B98: Loss of supply event frequency >0.1 system minutes interrupted penalty side incentive rate
B99: PoE50 | C99: =ROUND(C92,0) -> 17
B100: PoE1 | C100: =ROUND(Incentive_Rate_Inputs!C99,0) -> 9
B101: Difference | C101: =C99-C100 -> 8
B103: Penalty side incentive rate dollars per event | C103: =(C90/C101) -> 52732.01725
B105: Loss of Supply Event Frequency >1 system minutes interrupted Incentive Rates [$ Real as at 30 June 2017]
B106: Loss of supply event frequency >1 system minutes interrupted reward side incentive rate
B107: Portion of revenue at risk | C107: =Incentive_Rate_Inputs!C36 -> 0.125
B108: Revenue at risk | C108: =C$67*C107 -> 421856.138
B110: PoE50 | C110: =ROUND(Incentive_Rate_Inputs!D100,0) -> 1
B111: PoE99 | C111: =ROUND(Incentive_Rate_Inputs!E100,0) -> 4
B112: Difference | C112: =C111-C110 -> 3
B114: Reward side incentive rate dollars per event | C114: =(C108/C112) -> 140618.7127
B116: Loss of supply event frequency >0.1 system minutes interrupted penalty side incentive rate
B118: PoE50 | C118: =ROUND(C110,0) -> 1
B119: PoE1 | C119: =ROUND(Incentive_Rate_Inputs!C100,0) -> 0
B120: Difference | C120: =C118-C119 -> 1
B122: Penalty side incentive rate dollars per event | C122: =(C108/C120) -> 421856.138
B124: Average Outage Duration Incentive Rates [$ Real as at 30 June 2017]
B125: Average Outage Duration reward side incentive rate
B126: Portion of revenue at risk | C126: =Incentive_Rate_Inputs!C37 -> 0.25
B127: Revenue at risk | C127: =C$67*C126 -> 843712.276
B129: PoE50 | C129: =ROUND(Incentive_Rate_Inputs!D101,0) -> 871
B130: PoE99 | C130: =ROUND(Incentive_Rate_Inputs!E101,0) -> 1333
B131: Difference | C131: =C130-C129 -> 462
B133: Reward side incentive rate dollars per minute | C133: =(C127/C131) -> 1826.217048
B135: Average Outage Duration penalty side incentive rate
B137: PoE50 | C137: =ROUND(C129,0) -> 871
B138: PoE1 | C138: =ROUND(Incentive_Rate_Inputs!C101,0) -> 581
B139: Difference | C139: =C137-C138 -> 290
B141: Penalty side incentive rate dollars per minute | C141: =(C127/C139) -> 2909.352676

Sheet CALCULATIONS -->

Sheet Dx_Asset
B1: Validation status | C1: =IF(COUNTIF(G11:AF11,"CHECK")+COUNTIF(D157:D167,"CHECK")+COUNTIF(E272:E572,"CHECK")>0,"CHECK","OK") -> OK
B2: Distribution calculations
B3: Year ending 30 June | F3: 2006 | G3: 2007 | H3: 2008 | I3: 2009 | J3: 2010 | K3: 2011 | L3: 2012 | M3: 2013 | N3: 2014 | O3: 2015 | P3: 2016 | Q3: 2017 | R3: 2018 | S3: 2019 | T3: 2020 | U3: 2021 | V3: 2022 | W3: 2023 | X3: 2024 | Y3: 2025 | Z3: 2026 | AA3: 2027 | AB3: 2028 | AC3: 2029 | AD3: 2030 | AE3: 2031 | AF3: 2032
B4: Total Dx RAB value [$M real as at 30 June 2017]
B5: Opening balance | G5: =F10 -> 2055.478949 | H5: =G10 -> 2395.19139 | I5: 2767.373838 | J5: 3311.092276 | K5: 3612.597808 | L5: 3901.03306 | M5: 4248.701724 | N5: 4709.869982 | O5: 5144.372537 | P5: 5506.445762 | Q5: 5752.61772 | R5: 5834.933804 | S5: 6080.819512 | T5: 6319.996024 | U5: 6582.180956 | V5: 6715.253185 | W5: 6871.849207 | X5: 7041.550663 | Y5: 7221.09955 | Z5: 7380.736875 | AA5: 7522.001069 | AB5: 7675.571307 | AC5: 7810.483143 | AD5: 7934.137965 | AE5: 8049.801097 | AF5: 8162.56753
B6: Capital expenditure | G6: =G40 -> 470.231114 | H6: =H40 -> 508.2201356 | I6: 690.8313994 | J6: 475.3885669 | K6: 475.9642281 | L6: 556.9211725 | M6: 679.9414242 | N6: 671.494835 | O6: 628.9096375 | P6: 515.4740526 | Q6: 364.433 | R6: 509.5080811 | S6: 520.0069806 | T6: 557.355498 | U6: 431.3403661 | V6: 445.7100034 | W6: 467.9386078 | X6: 476.7532192 | Y6: 471.2813234 | Z6: 465.5968158 | AA6: 488.9766866 | AB6: 485.2545778 | AC6: 485.2545778 | AD6: 485.2545778 | AE6: 485.2545778 | AF6: 485.2545778
B7: Disposals | G7: =G54 -> -0.2412762932 | H7: =H54 -> 0 | I7: 0 | J7: -0.9465649257 | K7: -0.001115575835 | L7: -2.472043047 | M7: -0.9282431907 | N7: -0.297917847 | O7: -4.931556279 | P7: -2.811331492 | Q7: -0.620126 | R7: 0 | S7: 0 | T7: 0 | U7: 0 | V7: 0 | W7: 0 | X7: 0 | Y7: 0 | Z7: 0 | AA7: 0 | AB7: 0 | AC7: 0 | AD7: 0 | AE7: 0 | AF7: 0
B8: Depreciation | G8: =G68 -> -125.3331328 | H8: =H68 -> -131.3066938 | I8: -142.4499584 | J8: -168.3615976 | K8: -183.0558449 | L8: -202.4260194 | M8: -214.0461773 | N8: -236.1848502 | O8: -261.9048565 | P8: -266.4907638 | Q8: -281.4967892 | R8: =R68 -> -263.6223738 | S8: -280.8304686 | T8: -295.1705661 | U8: -298.2681364 | V8: -289.1139817 | W8: -298.2371521 | X8: -297.2043324 | Y8: -311.6439984 | Z8: -324.3326215 | AA8: -335.4064486 | AB8: -350.3427421 | AC8: -361.5997555 | AD8: -369.5914461 | AE8: -372.4881447 | AF8: -382.0870586
B9: Accelerated depreciation | G9: =G140 -> -4.944263973 | H9: =H140 -> -4.730993777 | I9: -4.663003447 | J9: -4.574872273 | K9: -4.472015908 | L9: -4.354445869 | M9: -3.798745495 | N9: -0.5095114034 | O9: 0 | P9: 0 | Q9: 0 | R9: 0 | S9: 0 | T9: 0 | U9: 0 | V9: 0 | W9: 0 | X9: 0 | Y9: 0 | Z9: 0 | AA9: 0 | AB9: 0 | AC9: 0 | AD9: 0 | AE9: 0 | AF9: 0
B10: Closing balance | F10: =F168 -> 2055.478949 | G10: =SUM(G5:G9) -> 2395.19139 | H10: =SUM(H5:H9) -> 2767.373838 | I10: 3311.092276 | J10: 3612.597808 | K10: 3901.03306 | L10: 4248.701724 | M10: 4709.869982 | N10: 5144.372537 | O10: 5506.445762 | P10: 5752.61772 | Q10: 5834.933804 | R10: 6080.819512 | S10: 6319.996024 | T10: 6582.180956 | U10: 6715.253185 | V10: 6871.849207 | W10: 7041.550663 | X10: 7221.09955 | Y10: 7380.736875 | Z10: 7522.001069 | AA10: 7675.571307 | AB10: 7810.483143 | AC10: 7934.137965 | AD10: 8049.801097 | AE10: 8162.56753 | AF10: 8265.735049
G11: =IF(ROUND(G96-G10,8)=0,"OK","CHECK") -> OK | H11: =IF(ROUND(H96-H10,8)=0,"OK","CHECK") -> OK | I11: OK | J11: OK | K11: OK | L11: OK | M11: OK | N11: OK | O11: OK | P11: OK | Q11: OK | R11: OK | S11: OK | T11: OK | U11: OK | V11: OK | W11: OK | X11: OK | Y11: OK | Z11: OK | AA11: OK | AB11: OK | AC11: OK | AD11: OK | AE11: OK | AF11: OK
B12: Breakdown by asset categories [$M real as at 30 June 2017]
B13: Year ending 30 June | F13: 2006 | G13: 2007 | H13: 2008 | I13: 2009 | J13: 2010 | K13: 2011 | L13: 2012 | M13: 2013 | N13: 2014 | O13: 2015 | P13: 2016 | Q13: 2017 | R13: 2018 | S13: 2019 | T13: 2020 | U13: 2021 | V13: 2022 | W13: 2023 | X13: 2024 | Y13: 2025 | Z13: 2026 | AA13: 2027 | AB13: 2028 | AC13: 2029 | AD13: 2030 | AE13: 2031 | AF13: 2032
B14: Opening balance
B15: Wooden Pole Lines | G15: =F85 -> 609.2179378 | H15: =G85 -> 664.709076 | I15: 741.6628611 | J15: 866.2308082 | K15: 973.6097323 | L15: 1069.888781 | M15: 1247.08078 | N15: 1512.21433 | O15: 1831.21966 | P15: 2067.088263 | Q15: 2204.288775 | R15: 2222.219687 | S15: 2333.775096 | T15: 2408.652856 | U15: 2463.441726 | V15: 2527.284715 | W15: 2599.561697 | X15: 2678.076702 | Y15: 2756.472235 | Z15: 2832.52109 | AA15: 2900.52591 | AB15: 2962.556206 | AC15: 3033.14524 | AD15: 3099.653151 | AE15: 3162.07994 | AF15: 3220.425607
B16: Underground Cables | G16: 689.9333868 | H16: =G86 -> 864.5287637 | I16: 1029.354207 | J16: 1260.326789 | K16: 1377.114354 | L16: 1476.582334 | M16: 1548.144177 | N16: 1587.534775 | O16: 1608.26054 | P16: 1627.102421 | Q16: 1642.498042 | R16: 1653.422323 | S16: 1673.118984 | T16: 1697.688363 | U16: 1710.192107 | V16: 1715.119181 | W16: 1726.287262 | X16: 1732.200068 | Y16: 1740.092278 | Z16: 1747.638384 | AA16: 1756.668552 | AB16: 1765.151451 | AC16: 1772.168111 | AD16: 1778.23581 | AE16: 1783.354548 | AF16: 1787.524324
B17: Transformers | G17: 262.6687554 | H17: 309.2010587 | I17: 352.8663028 | J17: 422.4018538 | K17: 451.9823227 | L17: 479.3203616 | M17: 501.8171472 | N17: 607.4636628 | O17: 694.7508161 | P17: 790.7083567 | Q17: 868.2408326 | R17: 917.6823164 | S17: 958.4818185 | T17: 1003.915048 | U17: 1046.234886 | V17: 1085.328058 | W17: 1129.327686 | X17: 1176.972221 | Y17: 1232.810735 | Z17: 1286.364312 | AA17: 1341.903075 | AB17: 1395.748208 | AC17: 1443.781905 | AD17: 1488.893018 | AE17: 1531.081548 | AF17: 1570.347494
B18: Switchgear | G18: 140.0052715 | H18: 178.020321 | I18: 222.6155346 | J18: 290.5670602 | K18: 329.3130482 | L18: 366.1949136 | M18: 414.190125 | N18: 466.7628854 | O18: 513.8821347 | P18: 561.3457411 | Q18: 592.4488574 | R18: 608.9361431 | S18: 620.8222862 | T18: 637.8908661 | U18: 656.8176135 | V18: 678.1318731 | W18: 702.0653328 | X18: 724.5066155 | Y18: 744.6350907 | Z18: 763.5830961 | AA18: 783.6256907 | AB18: 802.8820309 | AC18: 819.1113499 | AD18: 833.9352541 | AE18: 847.3537434 | AF18: 859.366818
B19: Street lighting | G19: 6.776071842 | H19: 20.16936069 | I19: 37.25609975 | J19: 63.69808112 | K19: 75.95344129 | L19: 87.7861504 | M19: 96.42933188 | N19: 96.11358152 | O19: 95.17748521 | P19: 95.13380828 | Q19: 94.91076982 | R19: 93.21945482 | S19: 90.23582396 | T19: 87.53067556 | U19: 84.56172487 | V19: 81.21602864 | W19: 78.17638949 | X19: 74.9777053 | Y19: 71.32933801 | Z19: 67.44861309 | AA19: 63.6347789 | AB19: 59.65965374 | AC19: 56.18010602 | AD19: 53.41313005 | AE19: 51.80652427 | AF19: 50.75160392
B20: Meters and Services | G20: 216.8338929 | H20: 205.295554 | I20: 194.9151787 | J20: 185.7130938 | K20: 173.3717865 | L20: 165.3343862 | M20: 157.2871212 | N20: 142.4002742 | O20: 123.8012683 | P20: 105.3463082 | Q20: 114.5030736 | R20: 123.8948713 | S20: 138.4765251 | T20: 158.3572146 | U20: 181.0354104 | V20: 203.5018393 | W20: 224.2507996 | X20: 242.1790792 | Y20: 258.2456888 | Z20: 272.9692177 | AA20: 286.1117391 | AB20: 297.2137715 | AC20: 306.563641 | AD20: 313.436635 | AE20: 317.8327535 | AF20: 319.7519965
B21: IT | G21: 19.87114137 | H21: 38.01693706 | I21: 70.37361139 | J21: 86.17047651 | K21: 90.56957979 | L21: 103.2182498 | M21: 120.7273709 | N21: 124.3311141 | O21: 116.6796264 | P21: 111.9793046 | Q21: 96.48694852 | R21: 97.92576154 | S21: 114.8809577 | T21: 130.4409821 | U21: 137.1966398 | V21: 128.4596779 | W21: 114.05006 | X21: 107.2086295 | Y21: 101.2581846 | Z21: 101.9076312 | AA21: 100.6562465 | AB21: 105.2988703 | AC21: 99.46628131 | AD21: 93.49082776 | AE21: 88.40801697 | AF21: 84.20547211
B22: SCADA & Communications | G22: 16.53293473 | H22: 17.51178006 | I22: 18.17557781 | J22: 18.59021966 | K22: 20.13224029 | L22: 20.77410179 | M22: 22.44765909 | N22: 22.50028607 | O22: 21.12296979 | P22: 18.07574916 | Q22: 14.27474085 | R22: 11.87118928 | S22: 32.34840237 | T22: 52.14657952 | U22: 61.43227321 | V22: 68.5306112 | W22: 72.70177324 | X22: 78.9440961 | Y22: 85.77857562 | Z22: 87.78772785 | AA22: 87.82777028 | AB22: 87.58505273 | AC22: 86.20875124 | AD22: 85.29192396 | AE22: 85.22140971 | AF22: 85.32393894
B23: Other Distribution Non-Network | G23: 66.02882399 | H23: 70.36908231 | I23: 72.78500823 | J23: 90.02443718 | K23: 93.18184567 | L23: 104.5654398 | M23: 114.5546 | N23: 119.9231563 | O23: 104.2722561 | P23: 94.54638516 | Q23: 88.57334041 | R23: 69.989627 | S23: 83.15837729 | T23: 108.2105416 | U23: 206.4640206 | V23: 193.2349886 | W23: 191.3403368 | X23: 192.7560176 | Y23: 197.1062387 | Z23: 187.5039592 | AA23: 168.3928059 | AB23: 167.1799046 | AC23: 161.9199426 | AD23: 156.2087427 | AE23: 151.4414832 | AF23: 154.0074872
B24: Distribution Land & Easements | G24: 27.61073303 | H24: 27.36945674 | I24: 27.36945674 | J24: 27.36945674 | K24: 27.36945674 | L24: 27.36834117 | M24: 26.02341106 | N24: 25.09516787 | O24: 25.06276277 | P24: 21.41120743 | Q24: 21.41120743 | R24: 21.14720743 | S24: 21.14720743 | T24: 21.14720743 | U24: 21.14720743 | V24: 21.14720743 | W24: 21.14720743 | X24: 21.14720743 | Y24: 21.14720743 | Z24: 21.14720743 | AA24: 21.14720743 | AB24: 21.14720743 | AC24: 21.14720743 | AD24: 21.14720743 | AE24: 21.14720743 | AF24: 21.14720743
B25: Equity Raising Costs | G25: 0 | H25: 0 | I25: 0 | J25: 0 | K25: 0 | L25: 0 | M25: 0 | N25: 5.530749116 | O25: 10.14301838 | P25: 13.7082183 | Q25: 14.98113146 | R25: 14.62522416 | S25: 14.37403335 | T25: 14.01569078 | U25: 13.6573482 | V25: 13.29900563 | W25: 12.94066305 | X25: 12.58232048 | Y25: 12.2239779 | Z25: 11.86563532 | AA25: 11.50729275 | AB25: =AA95 -> 11.14895017 | AC25: =AB95 -> 10.7906076 | AD25: =AC95 -> 10.43226502 | AE25: =AD95 -> 10.07392245 | AF25: =AE95 -> 9.715579873
B26: Total | G26: =SUM(G15:G25) -> 2055.478949 | H26: =SUM(H15:H25) -> 2395.19139 | I26: 2767.373838 | J26: 3311.092276 | K26: 3612.597808 | L26: 3901.03306 | M26: 4248.701724 | N26: 4709.869982 | O26: 5144.372537 | P26: 5506.445762 | Q26: 5752.61772 | R26: 5834.933804 | S26: 6080.819512 | T26: 6319.996024 | U26: 6582.180956 | V26: 6715.253185 | W26: 6871.849207 | X26: 7041.550663 | Y26: 7221.09955 | Z26: 7380.736875 | AA26: 7522.001069 | AB26: 7675.571307 | AC26: 7810.483143 | AD26: 7934.137965 | AE26: 8049.801097 | AF26: 8162.56753
B28: Capital expenditure
B29: Wooden Pole Lines | G29: =G187 -> 101.2140507 | H29: =H187 -> 123.9140624 | I29: 173.4666593 | J29: 161.7438993 | K29: 154.500827 | L29: 241.8108743 | M29: 331.2733668 | N29: 389.4042487 | O29: 314.3711409 | P29: 225.1444395 | Q29: 110.9461384 | R29: 206.8222284 | S29: 175.1890238 | T29: 159.3730362 | U29: 153.173572 | V29: 146.2027726 | W29: 156.0067177 | X29: 159.6922878 | Y29: 161.2405432 | Z29: 157.1292044 | AA29: 154.9871003 | AB29: 167.3260109 | AC29: 167.3260109 | AD29: 167.3260109 | AE29: 167.3260109 | AF29: 167.3260109
B30: Underground Cables | G30: 193.2927586 | H30: =H188 -> 185.7097866 | I30: 254.3999373 | J30: 146.0866895 | K30: 130.9902498 | L30: 105.6793828 | M30: 75.06930643 | N30: 57.70687076 | O30: 57.08469208 | P30: 54.89881121 | Q30: 51.67906023 | R30: 60.2802106 | S30: 66.1575981 | T30: 55.19459018 | U30: 48.53783002 | V30: 55.58780123 | W30: 51.25898952 | X30: 54.0927088 | Y30: 54.64815156 | Z30: 57.0430153 | AA30: 57.44646292 | AB30: 56.93766521 | AC30: 56.93766521 | AD30: 56.93766521 | AE30: 56.93766521 | AF30: 56.93766521
B31: Transformers | G31: 63.063686 | H31: 61.12036976 | I31: 88.19363382 | J31: 51.97368801 | K31: 51.00695969 | L31: 47.66720621 | M31: 131.9656835 | N31: 116.7042156 | O31: 128.9826588 | P31: 114.2563395 | Q31: 89.63100878 | R31: 82.83513144 | S31: 89.83557651 | T31: 89.28891628 | U31: 88.61336217 | V31: 96.05162877 | W31: 100.9373131 | X31: 98.48321785 | Y31: 99.01208781 | Z31: 103.8261902 | AA31: 105.099023 | AB31: 102.2904156 | AC31: 102.2904156 | AD31: 102.2904156 | AE31: 102.2904156 | AF31: 102.2904156
B32: Switchgear | G32: 48.6333393 | H32: 55.98658543 | I32: 80.52254467 | J32: 54.61980237 | K32: 54.22992926 | L32: 67.29169348 | M32: 73.3517453 | N32: 69.72941687 | O32: 72.02260005 | P32: 57.63763688 | Q32: 44.77070013 | R32: 41.52549299 | S32: 47.89437233 | T32: 46.02352132 | U32: 44.62856215 | V32: 48.52286394 | W32: 48.41705448 | X32: 47.48759145 | Y32: 47.66390994 | Z32: 50.1203252 | AA32: 50.76608006 | AB32: 49.18951824 | AC32: 49.18951824 | AD32: 49.18951824 | AE32: 49.18951824 | AF32: 49.18951824
B33: Street lighting | G33: 19.04001539 | H33: 18.94105667 | I33: 28.00829773 | J33: 15.58561767 | K33: 15.83020438 | L33: 13.38143183 | M33: 5.269490381 | N33: 4.891103588 | O33: 6.009738811 | P33: 6.047836433 | Q33: 4.776092463 | R33: 3.974735016 | S33: 4.451954218 | T33: 4.410749645 | U33: 4.254541587 | V33: 4.773325749 | W33: 4.852946996 | X33: 4.64591124 | Y33: 4.645849178 | Z33: 4.94503237 | AA33: 5.030993013 | AB33: 4.800893946 | AC33: 4.800893946 | AD33: 4.800893946 | AE33: 4.800893946 | AF33: 4.800893946
B34: Meters and Services | G34: 12.03056245 | H34: 13.41627179 | I34: 15.03873568 | J34: 12.87291153 | K34: 17.75885171 | L34: 18.33639651 | M34: 12.28538478 | N34: 9.238432436 | O34: 12.03504656 | P34: 23.50081492 | Q34: 21.373 | R34: 20.72535982 | S34: 27.4060862 | T34: 32.03066487 | U34: 33.95427569 | V34: 34.5004254 | W34: 33.97977301 | X34: 34.38342136 | Y34: 35.33256868 | Z34: 36.10706566 | AA34: 36.47371456 | AB34: 37.15313252 | AC34: 37.15313252 | AD34: 37.15313252 | AE34: 37.15313252 | AF34: 37.15313252
B35: IT | G35: 20.17346317 | H35: 36.75950275 | I35: 22.24472151 | J35: 15.24265746 | K35: 24.63905937 | L35: 32.2208139 | M35: 20.15859922 | N35: 13.62373088 | O35: 21.12258977 | P35: 12.64079834 | Q35: 30.948 | R35: 41.87588346 | S35: 43.97418771 | T35: 39.41478101 | U35: 29.00932727 | V35: 21.98796383 | W35: 28.20100785 | X35: 28.12674695 | Y35: 32.43511571 | Z35: 28.61110567 | AA35: 32.70450168 | AB35: 22.84515131 | AC35: 22.84515131 | AD35: 22.84515131 | AE35: 22.84515131 | AF35: 22.84515131
B36: SCADA & Communications | G36: 2.599721286 | H36: 2.553736825 | I36: 2.521113304 | J36: 3.918837435 | K36: 3.690380723 | L36: 5.478126345 | M36: 3.604587986 | N36: 2.827763031 | O36: 2.757562744 | P36: 3.773585635 | Q36: 5.064 | R36: 22.76647745 | S36: 24.07348432 | T36: 15.68117526 | U36: 14.73242168 | V36: 12.93570145 | W36: 15.77589059 | X36: 17.69923429 | Y36: 14.82146401 | Z36: 14.43571823 | AA36: 15.35217711 | AB36: 15.26582295 | AC36: 15.26582295 | AD36: 15.26582295 | AE36: 15.26582295 | AF36: 15.26582295
B37: Other Distribution Non-Network | G37: 10.18351708 | H37: 9.818763428 | I37: 26.435756 | J37: 13.34446368 | K37: 23.3177661 | L37: 25.05524701 | M37: 21.4325107 | N37: 2.631084986 | O37: 10.72502791 | P37: 15.98116575 | Q37: 5.245 | R37: 28.59784546 | S37: 41.02469744 | T37: 115.9380632 | U37: 14.43647349 | V37: 25.14752049 | W37: 28.50891456 | X37: 32.14209943 | Y37: 21.48163333 | Z37: 13.37915878 | AA37: 31.11663392 | AB37: 29.44596715 | AC37: 29.44596715 | AD37: 29.44596715 | AE37: 29.44596715 | AF37: 29.44596715
B38: Distribution Land & Easements | G38: 0 | H38: 0 | I38: 0 | J38: 0 | K38: 0 | L38: 0 | M38: 0 | N38: 0 | O38: 0 | P38: 0 | Q38: 0 | R38: 0 | S38: 0 | T38: 0 | U38: 0 | V38: 0 | W38: 0 | X38: 0 | Y38: 0 | Z38: 0 | AA38: 0 | AB38: 0 | AC38: 0 | AD38: 0 | AE38: 0 | AF38: 0
B39: Equity Raising Costs | G39: 0 | H39: 0 | I39: 0 | J39: 0 | K39: 0 | L39: 0 | M39: 5.530749116 | N39: 4.737968109 | O39: 3.79857986 | P39: 1.592624457 | Q39: 0 | R39: 0.104716503 | S39: 0 | T39: 0 | U39: 0 | V39: 0 | W39: 0 | X39: 0 | Y39: 0 | Z39: 0 | AA39: 0 | AB39: =AB197 -> 0 | AC39: =AC197 -> 0 | AD39: =AD197 -> 0 | AE39: =AE197 -> 0 | AF39: =AF197 -> 0
B40: Total | G40: =SUM(G29:G39) -> 470.231114 | H40: =SUM(H29:H39) -> 508.2201356 | I40: 690.8313994 | J40: 475.3885669 | K40: 475.9642281 | L40: 556.9211725 | M40: =SUM(M29:M39) -> 679.9414242 | N40: 671.494835 | O40: 628.9096375 | P40: 515.4740526 | Q40: 364.433 | R40: 509.5080811 | S40: 520.0069806 | T40: 557.355498 | U40: 431.3403661 | V40: 445.7100034 | W40: 467.9386078 | X40: 476.7532192 | Y40: 471.2813234 | Z40: 465.5968158 | AA40: 488.9766866 | AB40: 485.2545778 | AC40: 485.2545778 | AD40: 485.2545778 | AE40: 485.2545778 | AF40: 485.2545778
B42: Disposals/Redundant assets
B43: Wooden Pole Lines | G43: =SUM(G143,G215) -> 0 | H43: =SUM(H143,H215) -> 0 | I43: 0 | J43: 0 | K43: 0 | L43: -1.048991326 | M43: 0 | N43: -0.2655127479 | O43: -1.28000093 | P43: -2.811331492 | Q43: 0 | R43: 0 | S43: 0 | T43: 0 | U43: 0 | V43: 0 | W43: 0 | X43: 0 | Y43: 0 | Z43: 0 | AA43: 0 | AB43: 0 | AC43: 0 | AD43: 0 | AE43: 0 | AF43: 0
B44: Underground Cables | G44: 0 | H44: =SUM(H144,H216) -> 0 | I44: 0 | J44: 0 | K44: 0 | L44: 0 | M44: 0 | N44: 0 | O44: 0 | P44: 0 | Q44: 0 | R44: 0 | S44: 0 | T44: 0 | U44: 0 | V44: 0 | W44: 0 | X44: 0 | Y44: 0 | Z44: 0 | AA44: 0 | AB44: 0 | AC44: 0 | AD44: 0 | AE44: 0 | AF44: 0
B45: Transformers | G45: 0 | H45: 0 | I45: 0 | J45: 0 | K45: 0 | L45: 0 | M45: 0 | N45: 0 | O45: 0 | P45: 0 | Q45: 0 | R45: 0 | S45: 0 | T45: 0 | U45: 0 | V45: 0 | W45: 0 | X45: 0 | Y45: 0 | Z45: 0 | AA45: 0 | AB45: 0 | AC45: 0 | AD45: 0 | AE45: 0 | AF45: 0
B46: Switchgear | G46: 0 | H46: 0 | I46: 0 | J46: 0 | K46: 0 | L46: 0 | M46: 0 | N46: 0 | O46: 0 | P46: 0 | Q46: 0 | R46: 0 | S46: 0 | T46: 0 | U46: 0 | V46: 0 | W46: 0 | X46: 0 | Y46: 0 | Z46: 0 | AA46: 0 | AB46: 0 | AC46: 0 | AD46: 0 | AE46: 0 | AF46: 0
B47: Street lighting | G47: 0 | H47: 0 | I47: 0 | J47: 0 | K47: 0 | L47: 0 | M47: 0 | N47: 0 | O47: 0 | P47: 0 | Q47: 0 | R47: 0 | S47: 0 | T47: 0 | U47: 0 | V47: 0 | W47: 0 | X47: 0 | Y47: 0 | Z47: 0 | AA47: 0 | AB47: 0 | AC47: 0 | AD47: 0 | AE47: 0 | AF47: 0
B48: Meters and Services | G48: 0 | H48: 0 | I48: 0 | J48: 0 | K48: 0 | L48: 0 | M48: 0 | N48: 0 | O48: 0 | P48: 0 | Q48: 0 | R48: 0 | S48: 0 | T48: 0 | U48: 0 | V48: 0 | W48: 0 | X48: 0 | Y48: 0 | Z48: 0 | AA48: 0 | AB48: 0 | AC48: 0 | AD48: 0 | AE48: 0 | AF48: 0
B49: IT | G49: 0 | H49: 0 | I49: 0 | J49: -0.9465649257 | K49: 0 | L49: -0.0781216206 | M49: 0 | N49: 0 | O49: 0 | P49: 0 | Q49: 0 | R49: 0 | S49: 0 | T49: 0 | U49: 0 | V49: 0 | W49: 0 | X49: 0 | Y49: 0 | Z49: 0 | AA49: 0 | AB49: 0 | AC49: 0 | AD49: 0 | AE49: 0 | AF49: 0
B50: SCADA & Communications | G50: 0 | H50: 0 | I50: 0 | J50: 0 | K50: 0 | L50: 0 | M50: 0 | N50: 0 | O50: 0 | P50: 0 | Q50: 0 | R50: 0 | S50: 0 | T50: 0 | U50: 0 | V50: 0 | W50: 0 | X50: 0 | Y50: 0 | Z50: 0 | AA50: 0 | AB50: 0 | AC50: 0 | AD50: 0 | AE50: 0 | AF50: 0
B51: Other Distribution Non-Network | G51: 0 | H51: 0 | I51: 0 | J51: 0 | K51: 0 | L51: 0 | M51: 0 | N51: 0 | O51: 0 | P51: 0 | Q51: -0.356126 | R51: 0 | S51: 0 | T51: 0 | U51: 0 | V51: 0 | W51: 0 | X51: 0 | Y51: 0 | Z51: 0 | AA51: 0 | AB51: 0 | AC51: 0 | AD51: 0 | AE51: 0 | AF51: 0
B52: Distribution Land & Easements | G52: -0.2412762932 | H52: 0 | I52: 0 | J52: 0 | K52: -0.001115575835 | L52: -1.344930101 | M52: -0.9282431907 | N52: -0.03240509915 | O52: -3.651555349 | P52: 0 | Q52: -0.264 | R52: 0 | S52: 0 | T52: 0 | U52: 0 | V52: 0 | W52: 0 | X52: 0 | Y52: 0 | Z52: 0 | AA52: 0 | AB52: 0 | AC52: 0 | AD52: 0 | AE52: 0 | AF52: 0
B53: Equity Raising Costs | G53: 0 | H53: 0 | I53: 0 | J53: 0 | K53: 0 | L53: 0 | M53: 0 | N53: 0 | O53: 0 | P53: 0 | Q53: 0 | R53: 0 | S53: 0 | T53: 0 | U53: 0 | V53: 0 | W53: 0 | X53: 0 | Y53: 0 | Z53: 0 | AA53: 0 | AB53: =SUM(AB153,AB225) -> 0 | AC53: =SUM(AC153,AC225) -> 0 | AD53: =SUM(AD153,AD225) -> 0 | AE53: =SUM(AE153,AE225) -> 0 | AF53: =SUM(AF153,AF225) -> 0
B54: Total | G54: =SUM(G43:G53) -> -0.2412762932 | H54: =SUM(H43:H53) -> 0 | I54: 0 | J54: -0.9465649257 | K54: -0.001115575835 | L54: -2.472043047 | M54: -0.9282431907 | N54: -0.297917847 | O54: -4.931556279 | P54: -2.811331492 | Q54: -0.620126 | R54: 0 | S54: 0 | T54: 0 | U54: 0 | V54: 0 | W54: 0 | X54: 0 | Y54: 0 | Z54: 0 | AA54: 0 | AB54: 0 | AC54: 0 | AD54: 0 | AE54: 0 | AF54: 0
B56: Depreciation
B57: Wooden Pole Lines | G57: =SUM(G115,G201) -> -42.01503019 | H57: =SUM(H115,H201) -> -43.41233409 | I57: -45.40175737 | J57: -50.933821 | K57: -54.86776589 | L57: -60.30404972 | M57: =SUM(M115,M201) -> -63.29075834 | N57: -69.75127204 | O57: -77.22253718 | P57: -85.13259542 | Q57: -93.0152271 | R57: -95.26681916 | S57: -100.3112638 | T57: -104.5841668 | U57: -89.33058226 | V57: -73.92579129 | W57: -77.49171257 | X57: -81.29675447 | Y57: -85.19168832 | Z57: -89.12438449 | AA57: -92.95680411 | AB57: -96.73697729 | AC57: -100.8180995 | AD57: -104.8992217 | AE57: -108.9803439 | AF57: -113.0614662
B58: Underground Cables | G58: -18.69738176 | H58: =SUM(H116,H202) -> -20.88434307 | I58: =SUM(I116,I202) -> -23.427356 | J58: =SUM(J116,J202) -> -29.29912361 | K58: =SUM(K116,K202) -> -31.52227055 | L58: =SUM(L116,L202) -> -34.11753947 | M58: =SUM(M116,M202) -> -35.67870856 | N58: =SUM(N116,N202) -> -36.98110599 | O58: -38.24281124 | P58: -39.5031897 | Q58: -40.75477959 | R58: -40.58354931 | S58: -41.58821949 | T58: -42.69084613 | U58: -43.61075596 | V58: -44.4197198 | W58: -45.34618315 | X58: -46.20049964 | Y58: -47.10204479 | Z58: -48.01284731 | AA58: -48.96356424 | AB58: -49.92100528 | AC58: -50.86996637 | AD58: -51.81892746 | AE58: -52.76788855 | AF58: -53.71684963
B59: Transformers | G59: -15.5425299 | H59: -16.50892686 | I59: -17.72548216 | J59: -21.47824459 | K59: -22.77451765 | L59: -24.29953147 | M59: -25.55941882 | N59: -29.31516003 | O59: -33.02511826 | P59: -36.72386358 | Q59: -40.18952491 | R59: -42.03562942 | S59: -44.40234746 | T59: -46.96907822 | U59: -49.52019011 | V59: -52.05200046 | W59: -53.29277755 | X59: -42.6447043 | Y59: -45.45851053 | Z59: -48.28742732 | AA59: -51.2538899 | AB59: -54.25671913 | AC59: -57.17930243 | AD59: -60.10188573 | AE59: -63.02446903 | AF59: -65.94705233
B60: Switchgear | G60: -10.37076085 | H60: -11.15452006 | I60: -12.33757112 | J60: -15.64507077 | K60: -17.12446302 | L60: -19.07875978 | M60: -20.58904769 | N60: -22.58469193 | O60: -24.55899369 | P60: -26.53452054 | Q60: -28.28341449 | R60: -29.63934983 | S60: -30.82579249 | T60: -27.09677393 | U60: -23.3143025 | V60: -24.58940427 | W60: -25.97577181 | X60: -27.35911623 | Y60: -28.71590455 | Z60: -30.07773055 | AA60: -31.50973984 | AB60: -32.96019927 | AC60: -34.36561408 | AD60: -35.77102889 | AE60: -37.17644369 | AF60: -38.5818585
B61: Street lighting | G61: -5.646726535 | H61: -1.854317607 | I61: -1.566316365 | J61: -3.330257494 | K61: -3.997495276 | L61: -4.738250349 | M61: -5.585240745 | N61: -5.827199897 | O61: -6.053415737 | P61: -6.270874897 | Q61: -6.467407457 | R61: -6.958365874 | S61: -7.157102624 | T61: -7.379700335 | U61: -7.600237818 | V61: -7.812964897 | W61: -8.051631184 | X61: -8.294278534 | Y61: -8.526574096 | Z61: -8.758866555 | AA61: -9.006118174 | AB61: -8.280441669 | AC61: -7.567869914 | AD61: -6.407499725 | AE61: -5.855814305 | AF61: -5.30167746
B62: Meters and Services | G62: -23.56890141 | H62: -23.79664709 | I62: -24.24082052 | J62: -25.21421889 | K62: -25.79625197 | L62: -26.38366153 | M62: -27.17223174 | N62: -27.83743838 | O62: -30.49000667 | P62: -14.34404947 | Q62: -11.98120234 | R62: -6.143706018 | S62: -7.525396672 | T62: -9.352469085 | U62: -11.48784674 | V62: -13.75146512 | W62: -16.05149348 | X62: -18.31681168 | Y62: -20.60903977 | Z62: -22.96454435 | AA62: -25.37168206 | AB62: -27.80326304 | AC62: -30.28013854 | AD62: -32.75701404 | AE62: -35.23388954 | AF62: -37.71076504
B63: IT | G63: -2.027667487 | H63: -4.402828417 | I63: -6.447856391 | J63: -9.89698925 | K63: -11.99038932 | L63: -14.63357124 | M63: -16.55485599 | N63: -21.27521861 | O63: -25.82291153 | P63: -28.13315444 | Q63: -29.50918698 | R63: -24.92068735 | S63: -28.41416327 | T63: -32.6591233 | U63: -37.74628923 | V63: -36.39758172 | W63: -35.04243827 | X63: -34.07719186 | Y63: -31.7856691 | Z63: -29.86249044 | AA63: -28.06187788 | AB63: -28.67774028 | AC63: -28.82060486 | AD63: -27.92796211 | AE63: -27.04769617 | AF63: -25.44936877
B64: SCADA & Communications | G64: -1.620875954 | H64: -1.889939082 | I64: -2.106471456 | J64: -2.376816802 | K64: -3.048519217 | L64: -3.80456905 | M64: -3.551961006 | N64: -4.205079313 | O64: -5.80478337 | P64: -7.57459395 | Q64: -7.467551569 | R64: -2.289264366 | S64: -4.275307166 | T64: -6.395481566 | U64: -7.634083694 | V64: -8.764539407 | W64: -9.533567723 | X64: -10.86475478 | Y64: -12.81231178 | Z64: -14.3956758 | AA64: -15.59489466 | AB64: -16.64212445 | AC64: -16.18265022 | AD64: -15.33633721 | AE64: -15.16329373 | AF64: -15.20085285
B65: Other Distribution Non-Network | G65: -5.84325876 | H65: -7.402837513 | I65: -9.196327047 | J65: -10.18705519 | K65: -11.934172 | L65: -15.06608678 | M65: -16.06395441 | N65: -18.28198519 | O65: -20.45089883 | P65: -21.95421049 | Q65: -23.47258742 | R65: -15.42909517 | S65: -15.97253311 | T65: -17.6845842 | U65: -27.6655055 | V65: -27.04217221 | W65: -27.09323377 | X65: -27.79187836 | Y65: -31.08391288 | Z65: -32.49031206 | AA65: -32.32953519 | AB65: -34.70592914 | AC65: -35.15716703 | AD65: -34.21322668 | AE65: -26.87996314 | AF65: -26.75882528
B66: Distribution Land & Easements | G66: 0 | H66: 0 | I66: 0 | J66: 0 | K66: 0 | L66: 0 | M66: 0 | N66: 0 | O66: 0 | P66: 0 | Q66: 0 | R66: 0 | S66: 0 | T66: 0 | U66: 0 | V66: 0 | W66: 0 | X66: 0 | Y66: 0 | Z66: 0 | AA66: 0 | AB66: 0 | AC66: 0 | AD66: 0 | AE66: 0 | AF66: 0
B67: Equity Raising Costs | G67: 0 | H67: 0 | I67: 0 | J67: 0 | K67: 0 | L67: 0 | M67: 0 | N67: -0.1256988435 | O67: -0.2333799369 | P67: -0.3197112974 | Q67: -0.3559073078 | R67: -0.3559073078 | S67: -0.3583425753 | T67: -0.3583425753 | U67: -0.3583425753 | V67: -0.3583425753 | W67: -0.3583425753 | X67: -0.3583425753 | Y67: -0.3583425753 | Z67: -0.3583425753 | AA67: -0.3583425753 | AB67: =SUM(AB125,AB211) -> -0.3583425753 | AC67: =SUM(AC125,AC211) -> -0.3583425753 | AD67: =SUM(AD125,AD211) -> -0.3583425753 | AE67: =SUM(AE125,AE211) -> -0.3583425753 | AF67: =SUM(AF125,AF211) -> -0.3583425753
B68: Total | G68: =SUM(G57:G67) -> -125.3331328 | H68: =SUM(H57:H67) -> -131.3066938 | I68: -142.4499584 | J68: -168.3615976 | K68: -183.0558449 | L68: -202.4260194 | M68: -214.0461773 | N68: -236.1848502 | O68: -261.9048565 | P68: -266.4907638 | Q68: -281.4967892 | R68: -263.6223738 | S68: -280.8304686 | T68: -295.1705661 | U68: -298.2681364 | V68: -289.1139817 | W68: -298.2371521 | X68: -297.2043324 | Y68: -311.6439984 | Z68: -324.3326215 | AA68: -335.4064486 | AB68: -350.3427421 | AC68: -361.5997555 | AD68: -369.5914461 | AE68: -372.4881447 | AF68: -382.0870586
B70: Accelerated depreciation
B71: Wooden Pole Lines | G71: =G129 -> -3.707882254 | H71: =H129 -> -3.547943226 | I71: -3.49695482 | J71: -3.431154205 | K71: -3.354011931 | L71: -3.265834402 | M71: -2.849059121 | N71: -0.3821335525 | O71: 0 | P71: 0 | Q71: 0 | R71: 0 | S71: 0 | T71: 0 | U71: 0 | V71: 0 | W71: 0 | X71: 0 | Y71: 0 | Z71: 0 | AA71: 0 | AB71: 0 | AC71: 0 | AD71: 0 | AE71: 0 | AF71: 0
B72: Underground Cables | G72: =G130 -> 0 | H72: 0 | I72: 0 | J72: 0 | K72: 0 | L72: 0 | M72: 0 | N72: 0 | O72: 0 | P72: 0 | Q72: 0 | R72: 0 | S72: 0 | T72: 0 | U72: 0 | V72: 0 | W72: 0 | X72: 0 | Y72: 0 | Z72: 0 | AA72: 0 | AB72: 0 | AC72: 0 | AD72: 0 | AE72: 0 | AF72: 0
B73: Transformers | G73: =G131 -> -0.9888527945 | H73: -0.9461987554 | I73: -0.9326006895 | J73: -0.9149744547 | K73: -0.8944031815 | L73: -0.8708891738 | M73: -0.759749099 | N73: -0.1019022807 | O73: 0 | P73: 0 | Q73: 0 | R73: 0 | S73: 0 | T73: 0 | U73: 0 | V73: 0 | W73: 0 | X73: 0 | Y73: 0 | Z73: 0 | AA73: 0 | AB73: 0 | AC73: 0 | AD73: 0 | AE73: 0 | AF73: 0
B74: Switchgear | G74: =G132 -> -0.2475289243 | H74: -0.2368517957 | I74: -0.2334479376 | J74: -0.2287436137 | K74: -0.2236007954 | L74: -0.2177222935 | M74: -0.1899372748 | N74: -0.02547557017 | O74: 0 | P74: 0 | Q74: 0 | R74: 0 | S74: 0 | T74: 0 | U74: 0 | V74: 0 | W74: 0 | X74: 0 | Y74: 0 | Z74: 0 | AA74: 0 | AB74: 0 | AC74: 0 | AD74: 0 | AE74: 0 | AF74: 0
B75: Street lighting | G75: =G133 -> 0 | H75: 0 | I75: 0 | J75: 0 | K75: 0 | L75: 0 | M75: 0 | N75: 0 | O75: 0 | P75: 0 | Q75: 0 | R75: 0 | S75: 0 | T75: 0 | U75: 0 | V75: 0 | W75: 0 | X75: 0 | Y75: 0 | Z75: 0 | AA75: 0 | AB75: 0 | AC75: 0 | AD75: 0 | AE75: 0 | AF75: 0
B76: Meters and Services | G76: =G134 -> 0 | H76: 0 | I76: 0 | J76: 0 | K76: 0 | L76: 0 | M76: 0 | N76: 0 | O76: 0 | P76: 0 | Q76: 0 | R76: 0 | S76: 0 | T76: 0 | U76: 0 | V76: 0 | W76: 0 | X76: 0 | Y76: 0 | Z76: 0 | AA76: 0 | AB76: 0 | AC76: 0 | AD76: 0 | AE76: 0 | AF76: 0
B77: IT | G77: =G135 -> 0 | H77: 0 | I77: 0 | J77: 0 | K77: 0 | L77: 0 | M77: 0 | N77: 0 | O77: 0 | P77: 0 | Q77: 0 | R77: 0 | S77: 0 | T77: 0 | U77: 0 | V77: 0 | W77: 0 | X77: 0 | Y77: 0 | Z77: 0 | AA77: 0 | AB77: 0 | AC77: 0 | AD77: 0 | AE77: 0 | AF77: 0
B78: SCADA & Communications | G78: =G136 -> 0 | H78: 0 | I78: 0 | J78: 0 | K78: 0 | L78: 0 | M78: 0 | N78: 0 | O78: 0 | P78: 0 | Q78: 0 | R78: 0 | S78: 0 | T78: 0 | U78: 0 | V78: 0 | W78: 0 | X78: 0 | Y78: 0 | Z78: 0 | AA78: 0 | AB78: 0 | AC78: 0 | AD78: 0 | AE78: 0 | AF78: 0
B79: Other Distribution Non-Network | G79: =G137 -> 0 | H79: 0 | I79: 0 | J79: 0 | K79: 0 | L79: 0 | M79: 0 | N79: 0 | O79: 0 | P79: 0 | Q79: 0 | R79: 0 | S79: 0 | T79: 0 | U79: 0 | V79: 0 | W79: 0 | X79: 0 | Y79: 0 | Z79: 0 | AA79: 0 | AB79: 0 | AC79: 0 | AD79: 0 | AE79: 0 | AF79: 0
B80: Distribution Land & Easements | G80: =G138 -> 0 | H80: 0 | I80: 0 | J80: 0 | K80: 0 | L80: 0 | M80: 0 | N80: 0 | O80: 0 | P80: 0 | Q80: 0 | R80: 0 | S80: 0 | T80: 0 | U80: 0 | V80: 0 | W80: 0 | X80: 0 | Y80: 0 | Z80: 0 | AA80: 0 | AB80: 0 | AC80: 0 | AD80: 0 | AE80: 0 | AF80: 0
B81: Equity Raising Costs | G81: =G139 -> 0 | H81: 0 | I81: 0 | J81: 0 | K81: 0 | L81: 0 | M81: 0 | N81: 0 | O81: 0 | P81: 0 | Q81: 0 | R81: 0 | S81: 0 | T81: 0 | U81: 0 | V81: 0 | W81: 0 | X81: 0 | Y81: 0 | Z81: 0 | AA81: 0 | AB81: 0 | AC81: 0 | AD81: 0 | AE81: 0 | AF81: 0
B82: Total | G82: =SUM(G71:G81) -> -4.944263973 | H82: -4.730993777 | I82: -4.663003447 | J82: -4.574872273 | K82: -4.472015908 | L82: -4.354445869 | M82: -3.798745495 | N82: -0.5095114034 | O82: 0 | P82: 0 | Q82: 0 | R82: 0 | S82: 0 | T82: 0 | U82: 0 | V82: 0 | W82: 0 | X82: 0 | Y82: 0 | Z82: 0 | AA82: 0 | AB82: 0 | AC82: 0 | AD82: 0 | AE82: 0 | AF82: 0
B84: Closing balance
B85: Wooden Pole Lines | F85: =Dx_Inputs!H38 -> 609.2179378 | G85: =SUM(G15,G29,G43,G57,G71) -> 664.709076 | H85: =SUM(H15,H29,H43,H57,H71) -> 741.6628611 | I85: 866.2308082 | J85: 973.6097323 | K85: 1069.888781 | L85: 1247.08078 | M85: 1512.21433 | N85: 1831.21966 | O85: 2067.088263 | P85: 2204.288775 | Q85: 2222.219687 | R85: 2333.775096 | S85: 2408.652856 | T85: 2463.441726 | U85: 2527.284715 | V85: 2599.561697 | W85: 2678.076702 | X85: 2756.472235 | Y85: 2832.52109 | Z85: 2900.52591 | AA85: 2962.556206 | AB85: 3033.14524 | AC85: 3099.653151 | AD85: 3162.07994 | AE85: 3220.425607 | AF85: 3274.690152
B86: Underground Cables | F86: =Dx_Inputs!H39 -> 689.9333868 | G86: =SUM(G16,G30,G44,G58,G72) -> 864.5287637 | H86: 1029.354207 | I86: 1260.326789 | J86: 1377.114354 | K86: 1476.582334 | L86: 1548.144177 | M86: 1587.534775 | N86: 1608.26054 | O86: 1627.102421 | P86: 1642.498042 | Q86: 1653.422323 | R86: 1673.118984 | S86: 1697.688363 | T86: 1710.192107 | U86: 1715.119181 | V86: 1726.287262 | W86: 1732.200068 | X86: 1740.092278 | Y86: 1747.638384 | Z86: 1756.668552 | AA86: 1765.151451 | AB86: 1772.168111 | AC86: 1778.23581 | AD86: 1783.354548 | AE86: 1787.524324 | AF86: 1790.74514
B87: Transformers | F87: =Dx_Inputs!H40 -> 262.6687554 | G87: =SUM(G17,G31,G45,G59,G73) -> 309.2010587 | H87: 352.8663028 | I87: 422.4018538 | J87: 451.9823227 | K87: 479.3203616 | L87: 501.8171472 | M87: 607.4636628 | N87: 694.7508161 | O87: 790.7083567 | P87: 868.2408326 | Q87: 917.6823164 | R87: 958.4818185 | S87: 1003.915048 | T87: 1046.234886 | U87: 1085.328058 | V87: 1129.327686 | W87: 1176.972221 | X87: 1232.810735 | Y87: 1286.364312 | Z87: 1341.903075 | AA87: 1395.748208 | AB87: 1443.781905 | AC87: 1488.893018 | AD87: 1531.081548 | AE87: 1570.347494 | AF87: 1606.690857
B88: Switchgear | F88: =Dx_Inputs!H41 -> 140.0052715 | G88: =SUM(G18,G32,G46,G60,G74) -> 178.020321 | H88: 222.6155346 | I88: 290.5670602 | J88: 329.3130482 | K88: 366.1949136 | L88: 414.190125 | M88: 466.7628854 | N88: 513.8821347 | O88: 561.3457411 | P88: 592.4488574 | Q88: 608.9361431 | R88: 620.8222862 | S88: 637.8908661 | T88: 656.8176135 | U88: 678.1318731 | V88: 702.0653328 | W88: 724.5066155 | X88: 744.6350907 | Y88: 763.5830961 | Z88: 783.6256907 | AA88: 802.8820309 | AB88: 819.1113499 | AC88: 833.9352541 | AD88: 847.3537434 | AE88: 859.366818 | AF88: 869.9744777
B89: Street lighting | F89: =Dx_Inputs!H42 -> 6.776071842 | G89: =SUM(G19,G33,G47,G61,G75) -> 20.16936069 | H89: 37.25609975 | I89: 63.69808112 | J89: 75.95344129 | K89: 87.7861504 | L89: 96.42933188 | M89: 96.11358152 | N89: 95.17748521 | O89: 95.13380828 | P89: 94.91076982 | Q89: 93.21945482 | R89: 90.23582396 | S89: 87.53067556 | T89: 84.56172487 | U89: 81.21602864 | V89: 78.17638949 | W89: 74.9777053 | X89: 71.32933801 | Y89: 67.44861309 | Z89: 63.6347789 | AA89: 59.65965374 | AB89: 56.18010602 | AC89: 53.41313005 | AD89: 51.80652427 | AE89: 50.75160392 | AF89: 50.2508204
B90: Meters and Services | F90: =Dx_Inputs!H43 -> 216.8338929 | G90: =SUM(G20,G34,G48,G62,G76) -> 205.295554 | H90: 194.9151787 | I90: 185.7130938 | J90: 173.3717865 | K90: 165.3343862 | L90: 157.2871212 | M90: 142.4002742 | N90: 123.8012683 | O90: 105.3463082 | P90: 114.5030736 | Q90: 123.8948713 | R90: 138.4765251 | S90: 158.3572146 | T90: 181.0354104 | U90: 203.5018393 | V90: 224.2507996 | W90: 242.1790792 | X90: 258.2456888 | Y90: 272.9692177 | Z90: 286.1117391 | AA90: 297.2137715 | AB90: 306.563641 | AC90: 313.436635 | AD90: 317.8327535 | AE90: 319.7519965 | AF90: 319.194364
B91: IT | F91: =Dx_Inputs!H44 -> 19.87114137 | G91: =SUM(G21,G35,G49,G63,G77) -> 38.01693706 | H91: 70.37361139 | I91: 86.17047651 | J91: 90.56957979 | K91: 103.2182498 | L91: 120.7273709 | M91: 124.3311141 | N91: 116.6796264 | O91: 111.9793046 | P91: 96.48694852 | Q91: 97.92576154 | R91: 114.8809577 | S91: 130.4409821 | T91: 137.1966398 | U91: 128.4596779 | V91: 114.05006 | W91: 107.2086295 | X91: 101.2581846 | Y91: 101.9076312 | Z91: 100.6562465 | AA91: 105.2988703 | AB91: 99.46628131 | AC91: 93.49082776 | AD91: 88.40801697 | AE91: 84.20547211 | AF91: 81.60125466
B92: SCADA & Communications | F92: =Dx_Inputs!H45 -> 16.53293473 | G92: =SUM(G22,G36,G50,G64,G78) -> 17.51178006 | H92: 18.17557781 | I92: 18.59021966 | J92: 20.13224029 | K92: 20.77410179 | L92: 22.44765909 | M92: 22.50028607 | N92: 21.12296979 | O92: 18.07574916 | P92: 14.27474085 | Q92: 11.87118928 | R92: 32.34840237 | S92: 52.14657952 | T92: 61.43227321 | U92: 68.5306112 | V92: 72.70177324 | W92: 78.9440961 | X92: 85.77857562 | Y92: 87.78772785 | Z92: 87.82777028 | AA92: 87.58505273 | AB92: 86.20875124 | AC92: 85.29192396 | AD92: 85.22140971 | AE92: 85.32393894 | AF92: 85.38890904
B93: Other Distribution Non-Network | F93: =Dx_Inputs!H46 -> 66.02882399 | G93: =SUM(G23,G37,G51,G65,G79) -> 70.36908231 | H93: 72.78500823 | I93: 90.02443718 | J93: 93.18184567 | K93: 104.5654398 | L93: 114.5546 | M93: 119.9231563 | N93: 104.2722561 | O93: 94.54638516 | P93: 88.57334041 | Q93: 69.989627 | R93: 83.15837729 | S93: 108.2105416 | T93: 206.4640206 | U93: 193.2349886 | V93: 191.3403368 | W93: 192.7560176 | X93: 197.1062387 | Y93: 187.5039592 | Z93: 168.3928059 | AA93: 167.1799046 | AB93: 161.9199426 | AC93: 156.2087427 | AD93: 151.4414832 | AE93: 154.0074872 | AF93: 156.6946291
B94: Distribution Land & Easements | F94: =Dx_Inputs!H47 -> 27.61073303 | G94: =SUM(G24,G38,G52,G66,G80) -> 27.36945674 | H94: 27.36945674 | I94: 27.36945674 | J94: 27.36945674 | K94: 27.36834117 | L94: 26.02341106 | M94: 25.09516787 | N94: 25.06276277 | O94: 21.41120743 | P94: 21.41120743 | Q94: 21.14720743 | R94: 21.14720743 | S94: 21.14720743 | T94: 21.14720743 | U94: 21.14720743 | V94: 21.14720743 | W94: 21.14720743 | X94: 21.14720743 | Y94: 21.14720743 | Z94: 21.14720743 | AA94: 21.14720743 | AB94: 21.14720743 | AC94: 21.14720743 | AD94: 21.14720743 | AE94: 21.14720743 | AF94: 21.14720743
B95: Equity Raising Costs | F95: =Dx_Inputs!H48 -> 0 | G95: =SUM(G25,G39,G53,G67,G81) -> 0 | H95: 0 | I95: 0 | J95: 0 | K95: 0 | L95: 0 | M95: 5.530749116 | N95: 10.14301838 | O95: 13.7082183 | P95: 14.98113146 | Q95: 14.62522416 | R95: 14.37403335 | S95: 14.01569078 | T95: 13.6573482 | U95: 13.29900563 | V95: 12.94066305 | W95: 12.58232048 | X95: 12.2239779 | Y95: 11.86563532 | Z95: 11.50729275 | AA95: 11.14895017 | AB95: 10.7906076 | AC95: 10.43226502 | AD95: 10.07392245 | AE95: 9.715579873 | AF95: 9.357237298
B96: Total | F96: =SUM(F85:F95) -> 2055.478949 | G96: =SUM(G85:G95) -> 2395.19139 | H96: =SUM(H85:H95) -> 2767.373838 | I96: 3311.092276 | J96: 3612.597808 | K96: 3901.03306 | L96: 4248.701724 | M96: 4709.869982 | N96: 5144.372537 | O96: 5506.445762 | P96: 5752.61772 | Q96: 5834.933804 | R96: 6080.819512 | S96: 6319.996024 | T96: 6582.180956 | U96: 6715.253185 | V96: 6871.849207 | W96: 7041.550663 | X96: 7221.09955 | Y96: 7380.736875 | Z96: 7522.001069 | AA96: 7675.571307 | AB96: 7810.483143 | AC96: 7934.137965 | AD96: 8049.801097 | AE96: 8162.56753 | AF96: 8265.735049
B98: Initial capital base [$M real as at 30 June 2017]
B99: Year ending 30 June | F99: 2006 | G99: 2007 | H99: 2008 | I99: 2009 | J99: 2010 | K99: 2011 | L99: 2012 | M99: 2013 | N99: 2014 | O99: 2015 | P99: 2016 | Q99: 2017 | R99: 2018 | S99: 2019 | T99: 2020 | U99: 2021 | V99: 2022 | W99: 2023 | X99: 2024 | Y99: 2025 | Z99: 2026 | AA99: 2027 | AB99: 2028 | AC99: 2029 | AD99: 2030 | AE99: 2031 | AF99: 2032
B100: Opening balance
B101: Wooden Pole Lines | G101: =F157 -> 609.2179378 | H101: =G157 -> 563.4950253 | I101: 518.2047699 | J101: 473.2525743 | K101: 428.6690223 | L101: 384.4893892 | M101: 339.7019962 | N101: 296.8879963 | O101: 256.6552839 | P101: 215.8490065 | Q101: 173.5113986 | R101: 133.9851222 | S101: 95.70365874 | T101: 57.42219524 | U101: 19.14073175 | V101: 0 | W101: 0 | X101: 0 | Y101: 0 | Z101: 0 | AA101: 0 | AB101: 0 | AC101: 0 | AD101: 0 | AE101: 0 | AF101: 0
B102: Underground Cables | G102: 689.9333868 | H102: =G158 -> 671.236005 | I102: 652.5386233 | J102: 633.8412415 | K102: 615.1438598 | L102: 596.446478 | M102: 577.7490963 | N102: 559.0517145 | O102: 540.3543327 | P102: 521.656951 | Q102: 502.9595692 | R102: 484.2621875 | S102: 465.5648057 | T102: 446.867424 | U102: 428.1700422 | V102: 409.4726605 | W102: 390.7752787 | X102: 372.0778969 | Y102: 353.3805152 | Z102: 334.6831334 | AA102: 315.9857517 | AB102: 297.2883699 | AC102: 278.5909882 | AD102: 259.8936064 | AE102: 241.1962247 | AF102: 222.4988429
B103: Transformers | G103: 262.6687554 | H103: 246.1373727 | I103: 229.7103967 | J103: 213.3612461 | K103: 197.0965417 | L103: 180.9233369 | M103: 164.8488059 | N103: 148.9653132 | O103: 133.8164096 | P103: 118.7808579 | Q103: 103.7453063 | R103: 88.70975466 | S103: 73.67420302 | T103: 58.63865138 | U103: 43.60309975 | V103: 28.56754811 | W103: 13.53199647 | X103: 0 | Y103: 0 | Z103: 0 | AA103: 0 | AB103: 0 | AC103: 0 | AD103: 0 | AE103: 0 | AF103: 0
B104: Switchgear | G104: 140.0052715 | H104: 129.3869817 | I104: 118.7990315 | J104: 108.2353158 | K104: 97.69844685 | L104: 87.19079902 | M104: 76.71533566 | N104: 66.29668697 | O104: 56.07172109 | P104: 45.87686271 | Q104: 35.68200433 | R104: 25.48714595 | S104: 15.29228757 | T104: 5.09742919 | U104: 0 | V104: 0 | W104: 0 | X104: 0 | Y104: 0 | Z104: 0 | AA104: 0 | AB104: 0 | AC104: 0 | AD104: 0 | AE104: 0 | AF104: 0
B105: Street lighting | G105: 6.776071842 | H105: 1.129345307 | I105: -2.220446049e-16 | J105: -2.220446049e-16 | K105: -2.220446049e-16 | L105: -2.220446049e-16 | M105: -2.220446049e-16 | N105: 2.27794764e-17 | O105: 2.27794764e-17 | P105: 2.27794764e-17 | Q105: 2.27794764e-17 | R105: 2.27794764e-17 | S105: 0 | T105: 0 | U105: 0 | V105: 0 | W105: 0 | X105: 0 | Y105: 0 | Z105: 0 | AA105: 0 | AB105: 0 | AC105: 0 | AD105: 0 | AE105: 0 | AF105: 0
B106: Meters and Services | G106: 216.8338929 | H106: 193.2649915 | I106: 169.6960901 | J106: 146.1271887 | K106: 122.5582873 | L106: 98.98938591 | M106: 75.4204845 | N106: 51.85158309 | O106: 28.28268169 | P106: 4.713780281 | Q106: 3.552713679e-14 | R106: 3.552713679e-14 | S106: 0 | T106: 0 | U106: 0 | V106: 0 | W106: 0 | X106: 0 | Y106: 0 | Z106: 0 | AA106: 0 | AB106: 0 | AC106: 0 | AD106: 0 | AE106: 0 | AF106: 0
B107: IT | G107: 19.87114137 | H107: 17.84347388 | I107: 15.81580639 | J107: 13.78813891 | K107: 10.8139065 | L107: 8.78623901 | M107: 6.680449903 | N107: 4.92243677 | O107: 3.164423638 | P107: 1.406410506 | Q107: 2.886579864e-15 | R107: 2.886579864e-15 | S107: 0 | T107: 0 | U107: 0 | V107: 0 | W107: 0 | X107: 0 | Y107: 0 | Z107: 0 | AA107: 0 | AB107: 0 | AC107: 0 | AD107: 0 | AE107: 0 | AF107: 0
B108: SCADA & Communications | G108: 16.53293473 | H108: 14.91205878 | I108: 13.29118282 | J108: 11.67030687 | K108: 10.04943092 | L108: 8.428554962 | M108: 6.807679008 | N108: 5.186803054 | O108: 3.565927099 | P108: 1.945051145 | Q108: 0.3241751909 | R108: 0 | S108: 0 | T108: 0 | U108: 0 | V108: 0 | W108: 0 | X108: 0 | Y108: 0 | Z108: 0 | AA108: 0 | AB108: 0 | AC108: 0 | AD108: 0 | AE108: 0 | AF108: 0
B109: Other Distribution Non-Network | G109: 66.02882399 | H109: 60.18556523 | I109: 54.34230647 | J109: 48.49904771 | K109: 42.65578895 | L109: 36.81253019 | M109: 30.96927143 | N109: 25.12601267 | O109: 19.28275391 | P109: 13.43949515 | Q109: 7.596236388 | R109: 1.396851628 | S109: 0 | T109: 0 | U109: 0 | V109: 0 | W109: 0 | X109: 0 | Y109: 0 | Z109: 0 | AA109: 0 | AB109: 0 | AC109: 0 | AD109: 0 | AE109: 0 | AF109: 0
B110: Distribution Land & Easements | G110: 27.61073303 | H110: 27.36945674 | I110: 27.36945674 | J110: 27.36945674 | K110: 27.36945674 | L110: 27.36834117 | M110: 26.02341106 | N110: 25.09516787 | O110: 25.06276277 | P110: 21.41120743 | Q110: 21.41120743 | R110: 21.14720743 | S110: 21.14720743 | T110: 21.14720743 | U110: 21.14720743 | V110: 21.14720743 | W110: 21.14720743 | X110: 21.14720743 | Y110: 21.14720743 | Z110: 21.14720743 | AA110: 21.14720743 | AB110: 21.14720743 | AC110: 21.14720743 | AD110: 21.14720743 | AE110: 21.14720743 | AF110: 21.14720743
B111: Equity Raising Costs | G111: 0 | H111: 0 | I111: 0 | J111: 0 | K111: 0 | L111: 0 | M111: 0 | N111: 0 | O111: 0 | P111: 0 | Q111: 0 | R111: 0 | S111: 0 | T111: 0 | U111: 0 | V111: 0 | W111: 0 | X111: 0 | Y111: 0 | Z111: 0 | AA111: 0 | AB111: =AA167 -> 0 | AC111: =AB167 -> 0 | AD111: =AC167 -> 0 | AE111: =AD167 -> 0 | AF111: =AE167 -> 0
B112: Total | G112: =SUM(G101:G111) -> 2055.478949 | H112: =SUM(H101:H111) -> 1924.960276 | I112: 1799.767664 | J112: 1676.144517 | K112: 1552.054741 | L112: 1429.435054 | M112: 1304.91653 | N112: 1183.383714 | O112: 1066.256296 | P112: 945.0796227 | Q112: 845.2298975 | R112: 754.9882694 | S112: 671.3821625 | T112: 589.1729072 | U112: 512.0610811 | V112: 459.187416 | W112: 425.4544826 | X112: 393.2251044 | Y112: 374.5277226 | Z112: 355.8303409 | AA112: 337.1329591 | AB112: 318.4355773 | AC112: 299.7381956 | AD112: 281.0408138 | AE112: 262.3434321 | AF112: 243.6460503
B114: Depreciation
B115: Wooden Pole Lines | G115: =G245 -> -42.01503019 | H115: =H245 -> -41.74231227 | I115: -41.45524077 | J115: -41.15239776 | K115: -40.82562117 | L115: -40.47256728 | M115: -39.96494073 | N115: -39.58506618 | O115: -39.5262764 | P115: -39.5262764 | Q115: -39.5262764 | R115: -38.28146349 | S115: -38.28146349 | T115: -38.28146349 | U115: -19.14073175 | V115: 0 | W115: 0 | X115: 0 | Y115: 0 | Z115: 0 | AA115: 0 | AB115: 0 | AC115: 0 | AD115: 0 | AE115: 0 | AF115: 0
B116: Underground Cables | G116: =G275 -> -18.69738176 | H116: =H275 -> -18.69738176 | I116: -18.69738176 | J116: -18.69738176 | K116: -18.69738176 | L116: -18.69738176 | M116: -18.69738176 | N116: -18.69738176 | O116: -18.69738176 | P116: -18.69738176 | Q116: -18.69738176 | R116: -18.69738176 | S116: -18.69738176 | T116: -18.69738176 | U116: -18.69738176 | V116: -18.69738176 | W116: -18.69738176 | X116: -18.69738176 | Y116: -18.69738176 | Z116: -18.69738176 | AA116: -18.69738176 | AB116: -18.69738176 | AC116: -18.69738176 | AD116: -18.69738176 | AE116: -18.69738176 | AF116: -18.69738176
B117: Transformers | G117: =G305 -> -15.5425299 | H117: =H305 -> -15.48077719 | I117: -15.41654991 | J117: -15.34972994 | K117: -15.27880168 | L117: -15.20364175 | M117: -15.12374366 | N117: -15.04700133 | O117: -15.03555164 | P117: -15.03555164 | Q117: -15.03555164 | R117: -15.03555164 | S117: -15.03555164 | T117: -15.03555164 | U117: -15.03555164 | V117: -15.03555164 | W117: -13.53199647 | X117: 0 | Y117: 0 | Z117: 0 | AA117: 0 | AB117: 0 | AC117: 0 | AD117: 0 | AE117: 0 | AF117: 0
B118: Switchgear | G118: =G335 -> -10.37076085 | H118: =H335 -> -10.35109841 | I118: -10.33026778 | J118: -10.30812531 | K118: -10.28404704 | L118: -10.25774106 | M118: -10.22871142 | N118: -10.1994903 | O118: -10.19485838 | P118: -10.19485838 | Q118: -10.19485838 | R118: -10.19485838 | S118: -10.19485838 | T118: -5.09742919 | U118: 0 | V118: 0 | W118: 0 | X118: 0 | Y118: 0 | Z118: 0 | AA118: 0 | AB118: 0 | AC118: 0 | AD118: 0 | AE118: 0 | AF118: 0
B119: Street lighting | G119: =G365 -> -5.646726535 | H119: =H365 -> -1.129345307 | I119: 0 | J119: 0 | K119: 0 | L119: 0 | M119: 2.448240813e-16 | N119: 0 | O119: 0 | P119: 0 | Q119: 0 | R119: -2.27794764e-17 | S119: 0 | T119: 0 | U119: 0 | V119: 0 | W119: 0 | X119: 0 | Y119: 0 | Z119: 0 | AA119: 0 | AB119: 0 | AC119: 0 | AD119: 0 | AE119: 0 | AF119: 0
B120: Meters and Services | G120: =G395 -> -23.56890141 | H120: =H395 -> -23.56890141 | I120: -23.56890141 | J120: -23.56890141 | K120: -23.56890141 | L120: -23.56890141 | M120: -23.56890141 | N120: -23.56890141 | O120: -23.56890141 | P120: -4.713780281 | Q120: 0 | R120: -3.552713679e-14 | S120: 0 | T120: 0 | U120: 0 | V120: 0 | W120: 0 | X120: 0 | Y120: 0 | Z120: 0 | AA120: 0 | AB120: 0 | AC120: 0 | AD120: 0 | AE120: 0 | AF120: 0
B121: IT | G121: =G425 -> -2.027667487 | H121: =H425 -> -2.027667487 | I121: -2.027667487 | J121: -2.027667487 | K121: -2.027667487 | L121: -2.027667487 | M121: -1.758013132 | N121: -1.758013132 | O121: -1.758013132 | P121: -1.406410506 | Q121: 0 | R121: -2.886579864e-15 | S121: 0 | T121: 0 | U121: 0 | V121: 0 | W121: 0 | X121: 0 | Y121: 0 | Z121: 0 | AA121: 0 | AB121: 0 | AC121: 0 | AD121: 0 | AE121: 0 | AF121: 0
B122: SCADA & Communications | G122: =G455 -> -1.620875954 | H122: =H455 -> -1.620875954 | I122: -1.620875954 | J122: -1.620875954 | K122: -1.620875954 | L122: -1.620875954 | M122: -1.620875954 | N122: -1.620875954 | O122: -1.620875954 | P122: -1.620875954 | Q122: -0.3241751909 | R122: 0 | S122: 0 | T122: 0 | U122: 0 | V122: 0 | W122: 0 | X122: 0 | Y122: 0 | Z122: 0 | AA122: 0 | AB122: 0 | AC122: 0 | AD122: 0 | AE122: 0 | AF122: 0
B123: Other Distribution Non-Network | G123: =G485 -> -5.84325876 | H123: =H485 -> -5.84325876 | I123: -5.84325876 | J123: -5.84325876 | K123: -5.84325876 | L123: -5.84325876 | M123: -5.84325876 | N123: -5.84325876 | O123: -5.84325876 | P123: -5.84325876 | Q123: -5.84325876 | R123: -1.396851628 | S123: 0 | T123: 0 | U123: 0 | V123: 0 | W123: 0 | X123: 0 | Y123: 0 | Z123: 0 | AA123: 0 | AB123: 0 | AC123: 0 | AD123: 0 | AE123: 0 | AF123: 0
B124: Distribution Land & Easements | G124: =G515 -> 0 | H124: =H515 -> 0 | I124: 0 | J124: 0 | K124: 0 | L124: 0 | M124: 0 | N124: 0 | O124: 0 | P124: 0 | Q124: 0 | R124: 0 | S124: 0 | T124: 0 | U124: 0 | V124: 0 | W124: 0 | X124: 0 | Y124: 0 | Z124: 0 | AA124: 0 | AB124: 0 | AC124: 0 | AD124: 0 | AE124: 0 | AF124: 0
B125: Equity Raising Costs | G125: =G545 -> 0 | H125: =H545 -> 0 | I125: 0 | J125: 0 | K125: 0 | L125: 0 | M125: 0 | N125: 0 | O125: 0 | P125: 0 | Q125: 0 | R125: 0 | S125: 0 | T125: 0 | U125: 0 | V125: 0 | W125: 0 | X125: 0 | Y125: 0 | Z125: 0 | AA125: 0 | AB125: 0 | AC125: 0 | AD125: 0 | AE125: 0 | AF125: 0
B126: Total | G126: =SUM(G115:G125) -> -125.3331328 | H126: =SUM(H115:H125) -> -120.4616185 | I126: -118.9601438 | J126: -118.5683384 | K126: -118.1465553 | L126: -117.6920355 | M126: -116.8058268 | N126: -116.3199888 | O126: -116.2451174 | P126: -97.03839368 | Q126: -89.62150213 | R126: -83.6061069 | S126: -82.20925527 | T126: -77.11182608 | U126: -52.87366514 | V126: -33.73293339 | W126: -32.22937823 | X126: -18.69738176 | Y126: -18.69738176 | Z126: -18.69738176 | AA126: -18.69738176 | AB126: -18.69738176 | AC126: -18.69738176 | AD126: -18.69738176 | AE126: -18.69738176 | AF126: -18.69738176
B128: Accelerated depreciation
B129: Wooden Pole Lines | G129: =-Dx_Inputs!E300 -> -3.707882254 | H129: =-Dx_Inputs!F300 -> -3.547943226 | I129: =-Dx_Inputs!G300 -> -3.49695482 | J129: =-Dx_Inputs!H300 -> -3.431154205 | K129: =-Dx_Inputs!I300 -> -3.354011931 | L129: =-Dx_Inputs!J300 -> -3.265834402 | M129: =-Dx_Inputs!K300 -> -2.849059121 | N129: =-Dx_Inputs!L300 -> -0.3821335525 | O129: =-Dx_Inputs!M300 -> 0 | P129: =-Dx_Inputs!N300 -> 0 | Q129: =-Dx_Inputs!O300 -> 0
B130: Underground Cables | G130: =-Dx_Inputs!E301 -> 0 | H130: =-Dx_Inputs!F301 -> 0 | I130: =-Dx_Inputs!G301 -> 0 | J130: =-Dx_Inputs!H301 -> 0 | K130: =-Dx_Inputs!I301 -> 0 | L130: =-Dx_Inputs!J301 -> 0 | M130: =-Dx_Inputs!K301 -> 0 | N130: =-Dx_Inputs!L301 -> 0 | O130: =-Dx_Inputs!M301 -> 0 | P130: =-Dx_Inputs!N301 -> 0 | Q130: =-Dx_Inputs!O301 -> 0
B131: Transformers | G131: =-Dx_Inputs!E302 -> -0.9888527945 | H131: =-Dx_Inputs!F302 -> -0.9461987554 | I131: =-Dx_Inputs!G302 -> -0.9326006895 | J131: =-Dx_Inputs!H302 -> -0.9149744547 | K131: =-Dx_Inputs!I302 -> -0.8944031815 | L131: =-Dx_Inputs!J302 -> -0.8708891738 | M131: =-Dx_Inputs!K302 -> -0.759749099 | N131: =-Dx_Inputs!L302 -> -0.1019022807 | O131: =-Dx_Inputs!M302 -> 0 | P131: =-Dx_Inputs!N302 -> 0 | Q131: =-Dx_Inputs!O302 -> 0
B132: Switchgear | G132: =-Dx_Inputs!E303 -> -0.2475289243 | H132: =-Dx_Inputs!F303 -> -0.2368517957 | I132: =-Dx_Inputs!G303 -> -0.2334479376 | J132: =-Dx_Inputs!H303 -> -0.2287436137 | K132: =-Dx_Inputs!I303 -> -0.2236007954 | L132: =-Dx_Inputs!J303 -> -0.2177222935 | M132: =-Dx_Inputs!K303 -> -0.1899372748 | N132: =-Dx_Inputs!L303 -> -0.02547557017 | O132: =-Dx_Inputs!M303 -> 0 | P132: =-Dx_Inputs!N303 -> 0 | Q132: =-Dx_Inputs!O303 -> 0
B133: Street lighting | G133: =-Dx_Inputs!E304 -> 0 | H133: =-Dx_Inputs!F304 -> 0 | I133: =-Dx_Inputs!G304 -> 0 | J133: =-Dx_Inputs!H304 -> 0 | K133: =-Dx_Inputs!I304 -> 0 | L133: =-Dx_Inputs!J304 -> 0 | M133: =-Dx_Inputs!K304 -> 0 | N133: =-Dx_Inputs!L304 -> 0 | O133: =-Dx_Inputs!M304 -> 0 | P133: =-Dx_Inputs!N304 -> 0 | Q133: =-Dx_Inputs!O304 -> 0
B134: Meters and Services | G134: =-Dx_Inputs!E305 -> 0 | H134: =-Dx_Inputs!F305 -> 0 | I134: =-Dx_Inputs!G305 -> 0 | J134: =-Dx_Inputs!H305 -> 0 | K134: =-Dx_Inputs!I305 -> 0 | L134: =-Dx_Inputs!J305 -> 0 | M134: =-Dx_Inputs!K305 -> 0 | N134: =-Dx_Inputs!L305 -> 0 | O134: =-Dx_Inputs!M305 -> 0 | P134: =-Dx_Inputs!N305 -> 0 | Q134: =-Dx_Inputs!O305 -> 0
B135: IT | G135: =-Dx_Inputs!E306 -> 0 | H135: =-Dx_Inputs!F306 -> 0 | I135: =-Dx_Inputs!G306 -> 0 | J135: =-Dx_Inputs!H306 -> 0 | K135: =-Dx_Inputs!I306 -> 0 | L135: =-Dx_Inputs!J306 -> 0 | M135: =-Dx_Inputs!K306 -> 0 | N135: =-Dx_Inputs!L306 -> 0 | O135: =-Dx_Inputs!M306 -> 0 | P135: =-Dx_Inputs!N306 -> 0 | Q135: =-Dx_Inputs!O306 -> 0
B136: SCADA & Communications | G136: =-Dx_Inputs!E307 -> 0 | H136: =-Dx_Inputs!F307 -> 0 | I136: =-Dx_Inputs!G307 -> 0 | J136: =-Dx_Inputs!H307 -> 0 | K136: =-Dx_Inputs!I307 -> 0 | L136: =-Dx_Inputs!J307 -> 0 | M136: =-Dx_Inputs!K307 -> 0 | N136: =-Dx_Inputs!L307 -> 0 | O136: =-Dx_Inputs!M307 -> 0 | P136: =-Dx_Inputs!N307 -> 0 | Q136: =-Dx_Inputs!O307 -> 0
B137: Other Distribution Non-Network | G137: =-Dx_Inputs!E308 -> 0 | H137: =-Dx_Inputs!F308 -> 0 | I137: =-Dx_Inputs!G308 -> 0 | J137: =-Dx_Inputs!H308 -> 0 | K137: =-Dx_Inputs!I308 -> 0 | L137: =-Dx_Inputs!J308 -> 0 | M137: =-Dx_Inputs!K308 -> 0 | N137: =-Dx_Inputs!L308 -> 0 | O137: =-Dx_Inputs!M308 -> 0 | P137: =-Dx_Inputs!N308 -> 0 | Q137: =-Dx_Inputs!O308 -> 0
B138: Distribution Land & Easements | G138: =-Dx_Inputs!E309 -> 0 | H138: =-Dx_Inputs!F309 -> 0 | I138: =-Dx_Inputs!G309 -> 0 | J138: =-Dx_Inputs!H309 -> 0 | K138: =-Dx_Inputs!I309 -> 0 | L138: =-Dx_Inputs!J309 -> 0 | M138: =-Dx_Inputs!K309 -> 0 | N138: =-Dx_Inputs!L309 -> 0 | O138: =-Dx_Inputs!M309 -> 0 | P138: =-Dx_Inputs!N309 -> 0 | Q138: =-Dx_Inputs!O309 -> 0
B139: Equity Raising Costs
B140: Total | G140: =SUM(G129:G139) -> -4.944263973 | H140: =SUM(H129:H139) -> -4.730993777 | I140: -4.663003447 | J140: -4.574872273 | K140: -4.472015908 | L140: -4.354445869 | M140: -3.798745495 | N140: -0.5095114034 | O140: 0 | P140: 0 | Q140: 0
B142: Disposals/Redundant assets
B143: Wooden Pole Lines | G143: =IF(G101+G115+G129>Dx_Inputs!E331,-Dx_Inputs!E331,0) -> 0 | H143: =IF(H101+H115+H129>Dx_Inputs!F331,-Dx_Inputs!F331,0) -> 0 | I143: =IF(I101+I115+I129>Dx_Inputs!G331,-Dx_Inputs!G331,0) -> 0 | J143: =IF(J101+J115+J129>Dx_Inputs!H331,-Dx_Inputs!H331,0) -> 0 | K143: =IF(K101+K115+K129>Dx_Inputs!I331,-Dx_Inputs!I331,0) -> 0 | L143: =IF(L101+L115+L129>Dx_Inputs!J331,-Dx_Inputs!J331,0) -> -1.048991326 | M143: =IF(M101+M115+M129>Dx_Inputs!K331,-Dx_Inputs!K331,-(M101+M115+M129)) -> 0 | N143: =IF(N101+N115+N129>Dx_Inputs!L331,-Dx_Inputs!L331,-(N101+N115+N129)) -> -0.2655127479 | O143: =IF(O101+O115+O129>Dx_Inputs!M331,-Dx_Inputs!M331,-(O101+O115+O129)) -> -1.28000093 | P143: =IF(P101+P115+P129>Dx_Inputs!N331,-Dx_Inputs!N331,-(P101+P115+P129)) -> -2.811331492 | Q143: =IF(Q101+Q115+Q129>Dx_Inputs!O331,-Dx_Inputs!O331,-(Q101+Q115+Q129)) -> 0
B144: Underground Cables | G144: =IF(G102+G116+G130>Dx_Inputs!E332,-Dx_Inputs!E332,0) -> 0 | H144: =IF(H102+H116+H130>Dx_Inputs!F332,-Dx_Inputs!F332,0) -> 0 | I144: =IF(I102+I116+I130>Dx_Inputs!G332,-Dx_Inputs!G332,0) -> 0 | J144: =IF(J102+J116+J130>Dx_Inputs!H332,-Dx_Inputs!H332,0) -> 0 | K144: =IF(K102+K116+K130>Dx_Inputs!I332,-Dx_Inputs!I332,0) -> 0 | L144: =IF(L102+L116+L130>Dx_Inputs!J332,-Dx_Inputs!J332,0) -> 0 | M144: =IF(M102+M116+M130>Dx_Inputs!K332,-Dx_Inputs!K332,-(M102+M116+M130)) -> 0 | N144: =IF(N102+N116+N130>Dx_Inputs!L332,-Dx_Inputs!L332,-(N102+N116+N130)) -> 0 | O144: =IF(O102+O116+O130>Dx_Inputs!M332,-Dx_Inputs!M332,-(O102+O116+O130)) -> 0 | P144: =IF(P102+P116+P130>Dx_Inputs!N332,-Dx_Inputs!N332,-(P102+P116+P130)) -> 0 | Q144: =IF(Q102+Q116+Q130>Dx_Inputs!O332,-Dx_Inputs!O332,-(Q102+Q116+Q130)) -> 0
B145: Transformers | G145: =IF(G103+G117+G131>Dx_Inputs!E333,-Dx_Inputs!E333,0) -> 0 | H145: =IF(H103+H117+H131>Dx_Inputs!F333,-Dx_Inputs!F333,0) -> 0 | I145: =IF(I103+I117+I131>Dx_Inputs!G333,-Dx_Inputs!G333,0) -> 0 | J145: =IF(J103+J117+J131>Dx_Inputs!H333,-Dx_Inputs!H333,0) -> 0 | K145: =IF(K103+K117+K131>Dx_Inputs!I333,-Dx_Inputs!I333,0) -> 0 | L145: =IF(L103+L117+L131>Dx_Inputs!J333,-Dx_Inputs!J333,0) -> 0 | M145: =IF(M103+M117+M131>Dx_Inputs!K333,-Dx_Inputs!K333,-(M103+M117+M131)) -> 0 | N145: =IF(N103+N117+N131>Dx_Inputs!L333,-Dx_Inputs!L333,-(N103+N117+N131)) -> 0 | O145: =IF(O103+O117+O131>Dx_Inputs!M333,-Dx_Inputs!M333,-(O103+O117+O131)) -> 0 | P145: =IF(P103+P117+P131>Dx_Inputs!N333,-Dx_Inputs!N333,-(P103+P117+P131)) -> 0 | Q145: =IF(Q103+Q117+Q131>Dx_Inputs!O333,-Dx_Inputs!O333,-(Q103+Q117+Q131)) -> 0
B146: Switchgear | G146: =IF(G104+G118+G132>Dx_Inputs!E334,-Dx_Inputs!E334,0) -> 0 | H146: =IF(H104+H118+H132>Dx_Inputs!F334,-Dx_Inputs!F334,0) -> 0 | I146: =IF(I104+I118+I132>Dx_Inputs!G334,-Dx_Inputs!G334,0) -> 0 | J146: =IF(J104+J118+J132>Dx_Inputs!H334,-Dx_Inputs!H334,0) -> 0 | K146: =IF(K104+K118+K132>Dx_Inputs!I334,-Dx_Inputs!I334,0) -> 0 | L146: =IF(L104+L118+L132>Dx_Inputs!J334,-Dx_Inputs!J334,0) -> 0 | M146: =IF(M104+M118+M132>Dx_Inputs!K334,-Dx_Inputs!K334,-(M104+M118+M132)) -> 0 | N146: =IF(N104+N118+N132>Dx_Inputs!L334,-Dx_Inputs!L334,-(N104+N118+N132)) -> 0 | O146: =IF(O104+O118+O132>Dx_Inputs!M334,-Dx_Inputs!M334,-(O104+O118+O132)) -> 0 | P146: =IF(P104+P118+P132>Dx_Inputs!N334,-Dx_Inputs!N334,-(P104+P118+P132)) -> 0 | Q146: =IF(Q104+Q118+Q132>Dx_Inputs!O334,-Dx_Inputs!O334,-(Q104+Q118+Q132)) -> 0
B147: Street lighting | G147: =IF(G105+G119+G133>Dx_Inputs!E335,-Dx_Inputs!E335,0) -> 0 | H147: =IF(H105+H119+H133>Dx_Inputs!F335,-Dx_Inputs!F335,0) -> 0 | I147: =IF(I105+I119+I133>Dx_Inputs!G335,-Dx_Inputs!G335,0) -> 0 | J147: =IF(J105+J119+J133>Dx_Inputs!H335,-Dx_Inputs!H335,0) -> 0 | K147: =IF(K105+K119+K133>Dx_Inputs!I335,-Dx_Inputs!I335,0) -> 0 | L147: =IF(L105+L119+L133>Dx_Inputs!J335,-Dx_Inputs!J335,0) -> 0 | M147: =IF(M105+M119+M133>Dx_Inputs!K335,-Dx_Inputs!K335,-(M105+M119+M133)) -> 0 | N147: =IF(N105+N119+N133>Dx_Inputs!L335,-Dx_Inputs!L335,-(N105+N119+N133)) -> 0 | O147: =IF(O105+O119+O133>Dx_Inputs!M335,-Dx_Inputs!M335,-(O105+O119+O133)) -> 0 | P147: =IF(P105+P119+P133>Dx_Inputs!N335,-Dx_Inputs!N335,-(P105+P119+P133)) -> 0 | Q147: =IF(Q105+Q119+Q133>Dx_Inputs!O335,-Dx_Inputs!O335,-(Q105+Q119+Q133)) -> 0
B148: Meters and Services | G148: =IF(G106+G120+G134>Dx_Inputs!E336,-Dx_Inputs!E336,0) -> 0 | H148: =IF(H106+H120+H134>Dx_Inputs!F336,-Dx_Inputs!F336,0) -> 0 | I148: =IF(I106+I120+I134>Dx_Inputs!G336,-Dx_Inputs!G336,0) -> 0 | J148: =IF(J106+J120+J134>Dx_Inputs!H336,-Dx_Inputs!H336,0) -> 0 | K148: =IF(K106+K120+K134>Dx_Inputs!I336,-Dx_Inputs!I336,0) -> 0 | L148: =IF(L106+L120+L134>Dx_Inputs!J336,-Dx_Inputs!J336,0) -> 0 | M148: =IF(M106+M120+M134>Dx_Inputs!K336,-Dx_Inputs!K336,-(M106+M120+M134)) -> 0 | N148: =IF(N106+N120+N134>Dx_Inputs!L336,-Dx_Inputs!L336,-(N106+N120+N134)) -> 0 | O148: =IF(O106+O120+O134>Dx_Inputs!M336,-Dx_Inputs!M336,-(O106+O120+O134)) -> 0 | P148: =IF(P106+P120+P134>Dx_Inputs!N336,-Dx_Inputs!N336,-(P106+P120+P134)) -> 0 | Q148: =IF(Q106+Q120+Q134>Dx_Inputs!O336,-Dx_Inputs!O336,-(Q106+Q120+Q134)) -> 0
B149: IT | G149: =IF(G107+G121+G135>Dx_Inputs!E337,-Dx_Inputs!E337,0) -> 0 | H149: =IF(H107+H121+H135>Dx_Inputs!F337,-Dx_Inputs!F337,0) -> 0 | I149: =IF(I107+I121+I135>Dx_Inputs!G337,-Dx_Inputs!G337,0) -> 0 | J149: =IF(J107+J121+J135>Dx_Inputs!H337,-Dx_Inputs!H337,0) -> -0.9465649257 | K149: =IF(K107+K121+K135>Dx_Inputs!I337,-Dx_Inputs!I337,0) -> 0 | L149: =IF(L107+L121+L135>Dx_Inputs!J337,-Dx_Inputs!J337,0) -> -0.0781216206 | M149: =IF(M107+M121+M135>Dx_Inputs!K337,-Dx_Inputs!K337,-(M107+M121+M135)) -> 0 | N149: =IF(N107+N121+N135>Dx_Inputs!L337,-Dx_Inputs!L337,-(N107+N121+N135)) -> 0 | O149: =IF(O107+O121+O135>Dx_Inputs!M337,-Dx_Inputs!M337,-(O107+O121+O135)) -> 0 | P149: =IF(P107+P121+P135>Dx_Inputs!N337,-Dx_Inputs!N337,-(P107+P121+P135)) -> 0 | Q149: =IF(Q107+Q121+Q135>Dx_Inputs!O337,-Dx_Inputs!O337,-(Q107+Q121+Q135)) -> 0
B150: SCADA & Communications | G150: =IF(G108+G122+G136>Dx_Inputs!E338,-Dx_Inputs!E338,0) -> 0 | H150: =IF(H108+H122+H136>Dx_Inputs!F338,-Dx_Inputs!F338,0) -> 0 | I150: =IF(I108+I122+I136>Dx_Inputs!G338,-Dx_Inputs!G338,0) -> 0 | J150: =IF(J108+J122+J136>Dx_Inputs!H338,-Dx_Inputs!H338,0) -> 0 | K150: =IF(K108+K122+K136>Dx_Inputs!I338,-Dx_Inputs!I338,0) -> 0 | L150: =IF(L108+L122+L136>Dx_Inputs!J338,-Dx_Inputs!J338,0) -> 0 | M150: =IF(M108+M122+M136>Dx_Inputs!K338,-Dx_Inputs!K338,-(M108+M122+M136)) -> 0 | N150: =IF(N108+N122+N136>Dx_Inputs!L338,-Dx_Inputs!L338,-(N108+N122+N136)) -> 0 | O150: =IF(O108+O122+O136>Dx_Inputs!M338,-Dx_Inputs!M338,-(O108+O122+O136)) -> 0 | P150: =IF(P108+P122+P136>Dx_Inputs!N338,-Dx_Inputs!N338,-(P108+P122+P136)) -> 0 | Q150: =IF(Q108+Q122+Q136>Dx_Inputs!O338,-Dx_Inputs!O338,-(Q108+Q122+Q136)) -> 7.605027719e-15
B151: Other Distribution Non-Network | G151: =IF(G109+G123+G137>Dx_Inputs!E339,-Dx_Inputs!E339,0) -> 0 | H151: =IF(H109+H123+H137>Dx_Inputs!F339,-Dx_Inputs!F339,0) -> 0 | I151: =IF(I109+I123+I137>Dx_Inputs!G339,-Dx_Inputs!G339,0) -> 0 | J151: =IF(J109+J123+J137>Dx_Inputs!H339,-Dx_Inputs!H339,0) -> 0 | K151: =IF(K109+K123+K137>Dx_Inputs!I339,-Dx_Inputs!I339,0) -> 0 | L151: =IF(L109+L123+L137>Dx_Inputs!J339,-Dx_Inputs!J339,0) -> 0 | M151: =IF(M109+M123+M137>Dx_Inputs!K339,-Dx_Inputs!K339,-(M109+M123+M137)) -> 0 | N151: =IF(N109+N123+N137>Dx_Inputs!L339,-Dx_Inputs!L339,-(N109+N123+N137)) -> 0 | O151: =IF(O109+O123+O137>Dx_Inputs!M339,-Dx_Inputs!M339,-(O109+O123+O137)) -> 0 | P151: =IF(P109+P123+P137>Dx_Inputs!N339,-Dx_Inputs!N339,-(P109+P123+P137)) -> 0 | Q151: =IF(Q109+Q123+Q137>Dx_Inputs!O339,-Dx_Inputs!O339,-(Q109+Q123+Q137)) -> -0.356126
B152: Distribution Land & Easements | G152: =IF(G110+G124+G138>Dx_Inputs!E340,-Dx_Inputs!E340,0) -> -0.2412762932 | H152: =IF(H110+H124+H138>Dx_Inputs!F340,-Dx_Inputs!F340,0) -> 0 | I152: =IF(I110+I124+I138>Dx_Inputs!G340,-Dx_Inputs!G340,0) -> 0 | J152: =IF(J110+J124+J138>Dx_Inputs!H340,-Dx_Inputs!H340,0) -> 0 | K152: =IF(K110+K124+K138>Dx_Inputs!I340,-Dx_Inputs!I340,0) -> -0.001115575835 | L152: =IF(L110+L124+L138>Dx_Inputs!J340,-Dx_Inputs!J340,0) -> -1.344930101 | M152: =IF(M110+M124+M138>Dx_Inputs!K340,-Dx_Inputs!K340,-(M110+M124+M138)) -> -0.9282431907 | N152: =IF(N110+N124+N138>Dx_Inputs!L340,-Dx_Inputs!L340,-(N110+N124+N138)) -> -0.03240509915 | O152: =IF(O110+O124+O138>Dx_Inputs!M340,-Dx_Inputs!M340,-(O110+O124+O138)) -> -3.651555349 | P152: =IF(P110+P124+P138>Dx_Inputs!N340,-Dx_Inputs!N340,-(P110+P124+P138)) -> 0 | Q152: =IF(Q110+Q124+Q138>Dx_Inputs!O340,-Dx_Inputs!O340,-(Q110+Q124+Q138)) -> -0.264
B153: Equity Raising Costs | G153: =IF(G111+G125+G139>Dx_Inputs!E341,-Dx_Inputs!E341,0) -> 0 | H153: =IF(H111+H125+H139>Dx_Inputs!F341,-Dx_Inputs!F341,0) -> 0 | I153: =IF(I111+I125+I139>Dx_Inputs!G341,-Dx_Inputs!G341,0) -> 0 | J153: =IF(J111+J125+J139>Dx_Inputs!H341,-Dx_Inputs!H341,0) -> 0 | K153: =IF(K111+K125+K139>Dx_Inputs!I341,-Dx_Inputs!I341,0) -> 0 | L153: =IF(L111+L125+L139>Dx_Inputs!J341,-Dx_Inputs!J341,0) -> 0 | M153: =IF(M111+M125+M139>Dx_Inputs!K341,-Dx_Inputs!K341,-(M111+M125+M139)) -> 0 | N153: =IF(N111+N125+N139>Dx_Inputs!L341,-Dx_Inputs!L341,-(N111+N125+N139)) -> 0 | O153: =IF(O111+O125+O139>Dx_Inputs!M341,-Dx_Inputs!M341,-(O111+O125+O139)) -> 0 | P153: =IF(P111+P125+P139>Dx_Inputs!N341,-Dx_Inputs!N341,-(P111+P125+P139)) -> 0 | Q153: =IF(Q111+Q125+Q139>Dx_Inputs!O341,-Dx_Inputs!O341,-(Q111+Q125+Q139)) -> 0
B154: Total | G154: =SUM(G143:G153) -> -0.2412762932 | H154: =SUM(H143:H153) -> 0 | I154: 0 | J154: -0.9465649257 | K154: -0.001115575835 | L154: -2.472043047 | M154: -0.9282431907 | N154: -0.297917847 | O154: -4.931556279 | P154: -2.811331492 | Q154: -0.620126
B156: Closing balance | D156: Checks
B157: Wooden Pole Lines | D157: =IF(ROUND(SUM(F157,G115:AF115,G129:Q129,G143:Q143),8)>=0,"OK","CHECK") -> OK | F157: =Dx_Inputs!H38 -> 609.2179378 | G157: =SUM(G101,G115,G129,G143) -> 563.4950253 | H157: =SUM(H101,H115,H129,H143) -> 518.2047699 | I157: 473.2525743 | J157: 428.6690223 | K157: 384.4893892 | L157: 339.7019962 | M157: 296.8879963 | N157: 256.6552839 | O157: 215.8490065 | P157: 173.5113986 | Q157: 133.9851222 | R157: 95.70365874 | S157: 57.42219524 | T157: 19.14073175 | U157: 0 | V157: 0 | W157: 0 | X157: 0 | Y157: 0 | Z157: 0 | AA157: 0 | AB157: 0 | AC157: 0 | AD157: 0 | AE157: 0 | AF157: 0
B158: Underground Cables | D158: =IF(ROUND(SUM(F158,G116:AF116,G130:Q130,G144:Q144),8)>=0,"OK","CHECK") -> OK | F158: =Dx_Inputs!H39 -> 689.9333868 | G158: 671.236005 | H158: =SUM(H102,H116,H130,H144) -> 652.5386233 | I158: 633.8412415 | J158: 615.1438598 | K158: 596.446478 | L158: 577.7490963 | M158: 559.0517145 | N158: 540.3543327 | O158: 521.656951 | P158: 502.9595692 | Q158: 484.2621875 | R158: 465.5648057 | S158: 446.867424 | T158: 428.1700422 | U158: 409.4726605 | V158: 390.7752787 | W158: 372.0778969 | X158: 353.3805152 | Y158: 334.6831334 | Z158: 315.9857517 | AA158: 297.2883699 | AB158: 278.5909882 | AC158: 259.8936064 | AD158: 241.1962247 | AE158: 222.4988429 | AF158: 203.8014611
B159: Transformers | D159: OK | F159: =Dx_Inputs!H40 -> 262.6687554 | G159: 246.1373727 | H159: 229.7103967 | I159: 213.3612461 | J159: 197.0965417 | K159: 180.9233369 | L159: 164.8488059 | M159: 148.9653132 | N159: 133.8164096 | O159: 118.7808579 | P159: 103.7453063 | Q159: 88.70975466 | R159: 73.67420302 | S159: 58.63865138 | T159: 43.60309975 | U159: 28.56754811 | V159: 13.53199647 | W159: 0 | X159: 0 | Y159: 0 | Z159: 0 | AA159: 0 | AB159: 0 | AC159: 0 | AD159: 0 | AE159: 0 | AF159: 0
B160: Switchgear | D160: OK | F160: =Dx_Inputs!H41 -> 140.0052715 | G160: 129.3869817 | H160: 118.7990315 | I160: 108.2353158 | J160: 97.69844685 | K160: 87.19079902 | L160: 76.71533566 | M160: 66.29668697 | N160: 56.07172109 | O160: 45.87686271 | P160: 35.68200433 | Q160: 25.48714595 | R160: 15.29228757 | S160: 5.09742919 | T160: 0 | U160: 0 | V160: 0 | W160: 0 | X160: 0 | Y160: 0 | Z160: 0 | AA160: 0 | AB160: 0 | AC160: 0 | AD160: 0 | AE160: 0 | AF160: 0
B161: Street lighting | D161: OK | F161: =Dx_Inputs!H42 -> 6.776071842 | G161: =SUM(G105,G119,G133,G147) -> 1.129345307 | H161: -2.220446049e-16 | I161: -2.220446049e-16 | J161: -2.220446049e-16 | K161: -2.220446049e-16 | L161: -2.220446049e-16 | M161: 2.27794764e-17 | N161: 2.27794764e-17 | O161: 2.27794764e-17 | P161: 2.27794764e-17 | Q161: 2.27794764e-17 | R161: 0 | S161: 0 | T161: 0 | U161: 0 | V161: 0 | W161: 0 | X161: 0 | Y161: 0 | Z161: 0 | AA161: 0 | AB161: 0 | AC161: 0 | AD161: 0 | AE161: 0 | AF161: 0
B162: Meters and Services | D162: OK | F162: =Dx_Inputs!H43 -> 216.8338929 | G162: 193.2649915 | H162: 169.6960901 | I162: 146.1271887 | J162: 122.5582873 | K162: 98.98938591 | L162: 75.4204845 | M162: 51.85158309 | N162: 28.28268169 | O162: 4.713780281 | P162: 3.552713679e-14 | Q162: 3.552713679e-14 | R162: 0 | S162: 0 | T162: 0 | U162: 0 | V162: 0 | W162: 0 | X162: 0 | Y162: 0 | Z162: 0 | AA162: 0 | AB162: 0 | AC162: 0 | AD162: 0 | AE162: 0 | AF162: 0
B163: IT | D163: OK | F163: =Dx_Inputs!H44 -> 19.87114137 | G163: 17.84347388 | H163: 15.81580639 | I163: 13.78813891 | J163: 10.8139065 | K163: 8.78623901 | L163: 6.680449903 | M163: 4.92243677 | N163: 3.164423638 | O163: 1.406410506 | P163: 2.886579864e-15 | Q163: 2.886579864e-15 | R163: 0 | S163: 0 | T163: 0 | U163: 0 | V163: 0 | W163: 0 | X163: 0 | Y163: 0 | Z163: 0 | AA163: 0 | AB163: 0 | AC163: 0 | AD163: 0 | AE163: 0 | AF163: 0
B164: SCADA & Communications | D164: OK | F164: =Dx_Inputs!H45 -> 16.53293473 | G164: 14.91205878 | H164: 13.29118282 | I164: 11.67030687 | J164: 10.04943092 | K164: 8.428554962 | L164: 6.807679008 | M164: 5.186803054 | N164: 3.565927099 | O164: 1.945051145 | P164: 0.3241751909 | Q164: 0 | R164: 0 | S164: 0 | T164: 0 | U164: 0 | V164: 0 | W164: 0 | X164: 0 | Y164: 0 | Z164: 0 | AA164: 0 | AB164: 0 | AC164: 0 | AD164: 0 | AE164: 0 | AF164: 0
B165: Other Distribution Non-Network | D165: OK | F165: =Dx_Inputs!H46 -> 66.02882399 | G165: 60.18556523 | H165: 54.34230647 | I165: 48.49904771 | J165: 42.65578895 | K165: 36.81253019 | L165: 30.96927143 | M165: 25.12601267 | N165: 19.28275391 | O165: 13.43949515 | P165: 7.596236388 | Q165: 1.396851628 | R165: 0 | S165: 0 | T165: 0 | U165: 0 | V165: 0 | W165: 0 | X165: 0 | Y165: 0 | Z165: 0 | AA165: 0 | AB165: 0 | AC165: 0 | AD165: 0 | AE165: 0 | AF165: 0
B166: Distribution Land & Easements | D166: OK | F166: =Dx_Inputs!H47 -> 27.61073303 | G166: 27.36945674 | H166: 27.36945674 | I166: 27.36945674 | J166: 27.36945674 | K166: 27.36834117 | L166: 26.02341106 | M166: 25.09516787 | N166: 25.06276277 | O166: 21.41120743 | P166: 21.41120743 | Q166: 21.14720743 | R166: 21.14720743 | S166: 21.14720743 | T166: 21.14720743 | U166: 21.14720743 | V166: 21.14720743 | W166: 21.14720743 | X166: 21.14720743 | Y166: 21.14720743 | Z166: 21.14720743 | AA166: 21.14720743 | AB166: 21.14720743 | AC166: 21.14720743 | AD166: 21.14720743 | AE166: 21.14720743 | AF166: 21.14720743
B167: Equity Raising Costs | D167: OK | F167: =Dx_Inputs!H48 -> 0 | G167: 0 | H167: 0 | I167: 0 | J167: 0 | K167: 0 | L167: 0 | M167: 0 | N167: 0 | O167: 0 | P167: 0 | Q167: 0 | R167: 0 | S167: 0 | T167: 0 | U167: 0 | V167: 0 | W167: 0 | X167: 0 | Y167: 0 | Z167: 0 | AA167: 0 | AB167: =SUM(AB111,AB125,AB139,AB153) -> 0 | AC167: =SUM(AC111,AC125,AC139,AC153) -> 0 | AD167: =SUM(AD111,AD125,AD139,AD153) -> 0 | AE167: =SUM(AE111,AE125,AE139,AE153) -> 0 | AF167: =SUM(AF111,AF125,AF139,AF153) -> 0
B168: Total | F168: =SUM(F157:F167) -> 2055.478949 | G168: =SUM(G157:G167) -> 1924.960276 | H168: =SUM(H157:H167) -> 1799.767664 | I168: 1676.144517 | J168: 1552.054741 | K168: 1429.435054 | L168: 1304.91653 | M168: 1183.383714 | N168: 1066.256296 | O168: 945.0796227 | P168: 845.2298975 | Q168: 754.9882694 | R168: 671.3821625 | S168: 589.1729072 | T168: 512.0610811 | U168: 459.187416 | V168: 425.4544826 | W168: 393.2251044 | X168: 374.5277226 | Y168: 355.8303409 | Z168: 337.1329591 | AA168: 318.4355773 | AB168: 299.7381956 | AC168: 281.0408138 | AD168: 262.3434321 | AE168: 243.6460503 | AF168: 224.9486686
B170: Capital expenditure [$M real as at 30 June 2017]
B171: Year ending 30 June | F171: 2006 | G171: 2007 | H171: 2008 | I171: 2009 | J171: 2010 | K171: 2011 | L171: 2012 | M171: 2013 | N171: 2014 | O171: 2015 | P171: 2016 | Q171: 2017 | R171: 2018 | S171: 2019 | T171: 2020 | U171: 2021 | V171: 2022 | W171: 2023 | X171: 2024 | Y171: 2025 | Z171: 2026 | AA171: 2027 | AB171: 2028 | AC171: 2029 | AD171: 2030 | AE171: 2031 | AF171: 2032
B172: Opening balance
B173: Wooden Pole Lines | G173: =F229 -> 0 | H173: =G229 -> 101.2140507 | I173: 223.4580912 | J173: 392.9782339 | K173: 544.94071 | L173: 685.3993923 | M173: 907.3787842 | N173: 1215.326333 | O173: 1574.564376 | P173: 1851.239256 | Q173: 2030.777377 | R173: 2088.234565 | S173: 2238.071437 | T173: 2351.230661 | U173: 2444.300994 | V173: 2527.284715 | W173: 2599.561697 | X173: 2678.076702 | Y173: 2756.472235 | Z173: 2832.52109 | AA173: 2900.52591 | AB173: 2962.556206 | AC173: 3033.14524 | AD173: 3099.653151 | AE173: 3162.07994 | AF173: 3220.425607
B174: Underground Cables | G174: =F230 -> 0 | H174: 193.2927586 | I174: 376.8155839 | J174: 626.485547 | K174: 761.9704947 | L174: 880.1358557 | M174: 970.3950808 | N174: 1028.48306 | O174: 1067.906207 | P174: 1105.44547 | Q174: 1139.538473 | R174: 1169.160135 | S174: 1207.554178 | T174: 1250.820939 | U174: 1282.022064 | V174: 1305.64652 | W174: 1335.511983 | X174: 1360.122172 | Y174: 1386.711762 | Z174: 1412.955251 | AA174: 1440.682801 | AB174: 1467.863081 | AC174: 1493.577123 | AD174: 1518.342203 | AE174: 1542.158323 | AF174: 1565.025481
B175: Transformers | G175: =F231 -> 0 | H175: 63.063686 | I175: 123.1559061 | J175: 209.0406077 | K175: 254.885781 | L175: 298.3970247 | M175: 336.9683412 | N175: 458.4983496 | O175: 560.9344065 | P175: 671.9274987 | Q175: 764.4955263 | R175: 828.9725618 | S175: 884.8076154 | T175: 945.2763961 | U175: 1002.631786 | V175: 1056.76051 | W175: 1115.795689 | X175: 1176.972221 | Y175: 1232.810735 | Z175: 1286.364312 | AA175: 1341.903075 | AB175: 1395.748208 | AC175: 1443.781905 | AD175: 1488.893018 | AE175: 1531.081548 | AF175: 1570.347494
B176: Switchgear | G176: 0 | H176: 48.6333393 | I176: 103.8165031 | J176: 182.3317444 | K176: 231.6146013 | L176: 279.0041146 | M176: 337.4747894 | N176: 400.4661984 | O176: 457.8104136 | P176: 515.4688784 | Q176: 556.7668531 | R176: 583.4489971 | S176: 605.5299987 | T176: 632.7934369 | U176: 656.8176135 | V176: 678.1318731 | W176: 702.0653328 | X176: 724.5066155 | Y176: 744.6350907 | Z176: 763.5830961 | AA176: 783.6256907 | AB176: 802.8820309 | AC176: 819.1113499 | AD176: 833.9352541 | AE176: 847.3537434 | AF176: 859.366818
B177: Street lighting | G177: 0 | H177: 19.04001539 | I177: 37.25609975 | J177: 63.69808112 | K177: 75.95344129 | L177: 87.7861504 | M177: 96.42933188 | N177: 96.11358152 | O177: 95.17748521 | P177: 95.13380828 | Q177: 94.91076982 | R177: 93.21945482 | S177: 90.23582396 | T177: 87.53067556 | U177: 84.56172487 | V177: 81.21602864 | W177: 78.17638949 | X177: 74.9777053 | Y177: 71.32933801 | Z177: 67.44861309 | AA177: 63.6347789 | AB177: 59.65965374 | AC177: 56.18010602 | AD177: 53.41313005 | AE177: 51.80652427 | AF177: 50.75160392
B178: Meters and Services | G178: 0 | H178: 12.03056245 | I178: 25.21908856 | J178: 39.58590513 | K178: 50.81349917 | L178: 66.34500031 | M178: 81.8666367 | N178: 90.54869114 | O178: 95.51858661 | P178: 100.6325279 | Q178: 114.5030736 | R178: 123.8948713 | S178: 138.4765251 | T178: 158.3572146 | U178: 181.0354104 | V178: 203.5018393 | W178: 224.2507996 | X178: 242.1790792 | Y178: 258.2456888 | Z178: 272.9692177 | AA178: 286.1117391 | AB178: 297.2137715 | AC178: 306.563641 | AD178: 313.436635 | AE178: 317.8327535 | AF178: 319.7519965
